Workbook

Sheet Accueil
A1: REFERENTIEL DE COUTS Données 2011 Classification V11e
A2: Secteur ex DG
A4: Ce référentiel fournit des données de coûts complets par GHM, hors coûts de structure
A5: (lesquels sont isolés dans une colonne spécifique).
A7: ATTENTION : les coûts complets ne sont pas directement comparables aux tarifs, compte tenu des
A8: différences de périmètre existant entre ces deux concepts.
A9: En particulier, les coûts complets incluent les activités financées via les suppléments journaliers
A10: (exemple : suppléments de réanimation) ou en sus du tarif (exemple : molécules onéreuses).
A12: ACCES

Sheet accueil synthèse (hidden)
A1: PRODUCTION DE FICHES SYNTHETIQUES DE PRESENTATION DES COUTS
A4: Sélection par CMD | E4: Sélection par sous CMD | I4: Sélection par racine | M4: Sélection par GHM

Sheet synthèse CMD (hidden)
A1: Fiche de synthèse CMD | J1: =CONCATENATE(B4,B5,B6,B7) -> 01TOTAL | K1: 01
K2: 02
A3: Identification de la catégorie majeure de diagnostics (CMD) | K3: 03
A4: CMD | B4: 01 | K4: 04
A5: sous CMD | B5: TOTAL | K5: 05
A6: racine | K6: 06
A7: GHM | K7: 07
A8: libellé | B8: =IF($B$4<>"",VLOOKUP($J$1,'Coûts 11 décomposés gds postes'!$A:$BA,6,FALSE),"") -> Affections du système nerveux | K8: 08
C9: 2011 | D9: 2010 | E9: Evolution | H9: Part des postes détaillés dans le sous poste | K9: 09
A10: Coût moyen du séjour | C10: =IF($B$4<>"",VLOOKUP($J$1,'Coûts 11 décomposés gds postes'!$A:$BA,9,FALSE),"") -> 3150.4 | D10: =IF($B$4<>"",VLOOKUP($J$1,'Coûts 10 décomposés gds postes'!$A:$W,13,FALSE),"") -> 3175.13 | E10: =IF($B$4<>"",VLOOKUP($J$1,Evolutions!$A:$T,6,FALSE),"") -> -0.007788657472 | K10: 10
K11: 11
A12: Nombre de séjours ENCC | C12: =IF($B$4<>"",VLOOKUP($J$1,'Coûts 11 décomposés gds postes'!$A:$BA,8,FALSE),"") -> 226053 | D12: =IF($B$4<>"",VLOOKUP($J$1,'Coûts 10 décomposés gds postes'!$A:$W,8,FALSE),"") -> 178803 | E12: =IF($B$4<>"",IF(D12<>"",IF(C12<>"",C12/D12-1,""),""),"") -> 0.2642573111 | G12: Coût moyen 2011 | K12: 12
K13: 13
K14: 14
F15: Médico technique: anesthésie | G15: =IF($B$4<>"",VLOOKUP($J$1,'Coûts 11 décomposés gds postes'!$A:$BA,15,FALSE),"") -> 54.51 | H15: =IF(C10<>"",IF(B27<>0,(G15+G16+G17+G18+G19+G20+G21+G22)/B27,""),"") -> 0.9008193897 | K15: 15
F16: Médico technique: bloc | G16: =IF($B$4<>"",VLOOKUP($J$1,'Coûts 11 décomposés gds postes'!$A:$BA,16,FALSE),"") -> 77.39 | K16: 16
F17: Médico technique: laboratoire | G17: =IF($B$4<>"",VLOOKUP($J$1,'Coûts 11 décomposés gds postes'!$A:$BA,22,FALSE)+VLOOKUP($J$1,'Coûts 11 décomposés gds postes'!$A:$BA,23,FALSE),"") -> 83.405 | K17: 17
F18: Médico technique: Imagerie | G18: =IF($B$4<>"",VLOOKUP($J$1,'Coûts 11 décomposés gds postes'!$A:$BA,20,FALSE),"") -> 110.32 | K18: 18
F19: Médico technique: Exploration fonctionnelle | G19: =IF($B$4<>"",VLOOKUP($J$1,'Coûts 11 décomposés gds postes'!$A:$BA,19,FALSE),"") -> 52.34 | K19: 19
F20: Médico technique: Radiothérapie | G20: =IF($B$4<>"",VLOOKUP($J$1,'Coûts 11 décomposés gds postes'!$A:$BA,26,FALSE),"") -> 1.98 | K20: 20
F21: Médico technique: SMUR terrestre | G21: =IF($B$4<>"",VLOOKUP($J$1,'Coûts 11 décomposés gds postes'!$A:$BA,27,FALSE),"") -> 46.52 | K21: 21
B22: Coût moyen 2011 | C22: Poids dans le coût du GHM | D22: Evolution 2011/2010 | F22: Médico technique: Urgences | G22: =IF($B$4<>"",VLOOKUP($J$1,'Coûts 11 décomposés gds postes'!$A:$BA,28,FALSE),"") -> 44.069 | K22: 22
A23: Activités cliniques MCO (avec hébergement, hors Réa, SI, SC) | B23: =IF($B$4<>"",VLOOKUP($J$1,'Coûts 11 décomposés gds postes'!$A:$BA,10,FALSE),"") -> 1009.27 | C23: =IF($C$10<>"",B23/$C$10,"") -> 0.3203624937 | D23: =IF($B$4<>"",VLOOKUP($J$1,Evolutions!$A:$T,7,FALSE),"") -> -0.027040836 | K23: 23
A24: Activité de réanimation | B24: =IF($B$4<>"",VLOOKUP($J$1,'Coûts 11 décomposés gds postes'!$A:$BA,13,FALSE),"") -> 233.15 | C24: =IF($C$10<>"",B24/$C$10,"") -> 0.07400647537 | D24: =IF($B$4<>"",VLOOKUP($J$1,Evolutions!$A:$T,10,FALSE),"") -> -0.02789359573 | F24: Logistique Médicale: Pharmacie | G24: =IF($B$4<>"",VLOOKUP($J$1,'Coûts 11 décomposés gds postes'!$A:$BA,39,FALSE),"") -> 46.84 | H24: =IF(C10<>"",IF(C10<>0,(G24+G25+G26)/B28,""),"") -> 0.8090581884 | K24: 25
A25: Activité de soins intensifs | B25: =IF($B$4<>"",VLOOKUP($J$1,'Coûts 11 décomposés gds postes'!$A:$BA,12,FALSE),"") -> 83.66 | C25: 0.02655535805 | D25: =IF($B$4<>"",VLOOKUP($J$1,Evolutions!$A:$T,9,FALSE),"") -> 0.02562216501 | F25: Logistique Médicale: Stérilisation | G25: =IF($B$4<>"",VLOOKUP($J$1,'Coûts 11 décomposés gds postes'!$A:$BA,40,FALSE),"") -> 12.53 | K25: 26
A26: Activité de surveillance continue | B26: =IF($B$4<>"",VLOOKUP($J$1,'Coûts 11 décomposés gds postes'!$A:$BA,11,FALSE),"") -> 62.75 | C26: 0.01991810564 | D26: =IF($B$4<>"",VLOOKUP($J$1,Evolutions!$A:$T,8,FALSE),"") -> 0.2064987502 | F26: Logistique Médicale: Hygiène et Vigilance | G26: =IF($B$4<>"",VLOOKUP($J$1,'Coûts 11 décomposés gds postes'!$A:$BA,42,FALSE),"") -> 8.065 | K26: 27
A27: Activités Médico-techniques | B27: =IF($B$4<>"",VLOOKUP($J$1,'Coûts 11 décomposés gds postes'!$A:$BA,30,FALSE),"") -> 522.34 | C27: 0.1658011681 | D27: =IF($B$4<>"",VLOOKUP($J$1,Evolutions!$A:$T,11,FALSE),"") -> -0.02426540638 | K27: 28
A28: Logistique Médicale | B28: =IF($B$4<>"",VLOOKUP($J$1,'Coûts 11 décomposés gds postes'!$A:$BA,43,FALSE),"") -> 83.35 | C28: 0.02645695785 | D28: =IF($B$4<>"",VLOOKUP($J$1,Evolutions!$A:$T,13,FALSE),"") -> -0.004300561462 | F28: Logistique générale: Blanchisserie | G28: =IF($B$4<>"",VLOOKUP($J$1,'Coûts 11 décomposés gds postes'!$A:$BA,31,FALSE),"") -> 38.163 | H28: =IF(C10<>"",IF(B29<>0,(G28+G29+G30+G31+G32+G33)/B29,""),"") -> 0.8272603852 | K28: TOTAL
A29: Logistique générale | B29: =IF($B$4<>"",VLOOKUP($J$1,'Coûts 11 décomposés gds postes'!$A:$BA,38,FALSE),"") -> 677.65 | C29: 0.2150996699 | D29: =IF($B$4<>"",VLOOKUP($J$1,Evolutions!$A:$T,12,FALSE),"") -> 0.004312772327 | F29: Logistique générale: Restauration | G29: =IF($B$4<>"",VLOOKUP($J$1,'Coûts 11 décomposés gds postes'!$A:$BA,32,FALSE),"") -> 88.38
A30: Charges directes | B30: =IF($B$4<>"",VLOOKUP($J$1,'Coûts 11 décomposés gds postes'!$A:$BA,50,FALSE),"") -> 478.22 | C30: 0.1517965973 | D30: =IF($B$4<>"",VLOOKUP($J$1,Evolutions!$A:$T,14,FALSE),"") -> 0.01617050211 | F30: Logistique générale: Services administratifs à caractère général | G30: =IF($B$4<>"",VLOOKUP($J$1,'Coûts 11 décomposés gds postes'!$A:$BA,33,FALSE),"") -> 154.18
F31: Logistique générale: Services administratifs liés au personnel | G31: =IF($B$4<>"",VLOOKUP($J$1,'Coûts 11 décomposés gds postes'!$A:$BA,34,FALSE),"") -> 86.66
F32: Logistique générale: Entretien maintenance | G32: =IF($B$4<>"",VLOOKUP($J$1,'Coûts 11 décomposés gds postes'!$A:$BA,36,FALSE),"") -> 70.62
F33: Logistique générale: Services hôteliers | G33: =IF($B$4<>"",VLOOKUP($J$1,'Coûts 11 décomposés gds postes'!$A:$BA,37,FALSE),"") -> 122.59
F35: Charges directes: Autres consommables | G35: =IF($B$4<>"",VLOOKUP($J$1,'Coûts 11 décomposés gds postes'!$A:$BA,44,FALSE),"") -> 169.32 | H35: =IF(C10<>"",IF(B30<>0,(G35+G36+G37)/B30,""),"") -> 0.6100748609
F36: Charges directes: Spécialités pharmaceutiques facturables en sus | G36: =IF($B$4<>"",VLOOKUP($J$1,'Coûts 11 décomposés gds postes'!$A:$BA,48,FALSE),"") -> 61.6
A37: Données de coûts: ENCC ex DG 2011 | F37: Charges directes: DMI facturables en sus | G37: =IF($B$4<>"",VLOOKUP($J$1,'Coûts 11 décomposés gds postes'!$A:$BA,46,FALSE),"") -> 60.83

Sheet synthèse CMD (2) (hidden)
A1: fiche de synthèse CMD | J1: =CONCATENATE(B4,B5,B6,B7) -> 01TOTAL | K1: Affections du système nerveux | L1: 01
K2: Affections de l'oeil | L2: 02
A3: identification de la catégorie majeure de diagnostics | K3: Affections des oreilles, du nez, de la gorge, de la bouche et des dents | L3: 03
A4: CMD | B4: =IF(B8<>"",VLOOKUP(B8,K:L,2,FALSE),"") -> 01 | K4: Affections de l'appareil respiratoire | L4: 04
A5: sous CMD | B5: TOTAL | K5: Affections de l'appareil circulatoire | L5: 05
A6: racine | K6: Affections du tube digestif | L6: 06
A7: GHM | K7: Affections du système hépatobiliaire et du pancréas | L7: 07
A8: Libellé | B8: Affections du système nerveux | K8: Affections et traumatismes de l'appareil musculosquelettique et du tissu conjonctif | L8: 08
K9: Affections de la peau, des tissus souscutanés et des seins | L9: 09
C10: 2011 | D10: 2010 | E10: Evolution | K10: Affections endocriniennes, métaboliques et nutritionnelles | L10: 10
A11: Coût moyen du séjour | C11: =IF($B$4<>"",VLOOKUP($J$1,'Coûts 11 décomposés gds postes'!$A:$BA,9,FALSE),"") -> 3150.4 | D11: =IF($B$4<>"",VLOOKUP($J$1,'Coûts 10 décomposés gds postes'!$A:$W,13,FALSE),"") -> 3175.13 | E11: =IF($B$4<>"",VLOOKUP($J$1,Evolutions!$A:$T,6,FALSE),"") -> -0.007788657472 | K11: Affections du rein et des voies urinaires | L11: 11
H12: Part des postes détaillés dans le sous poste | K12: Affections de l'appareil génital masculin | L12: 12
A13: Nombre de séjours ENCC | C13: =IF($B$4<>"",VLOOKUP($J$1,'Coûts 11 décomposés gds postes'!$A:$BA,8,FALSE),"") -> 226053 | D13: =IF($B$4<>"",VLOOKUP($J$1,'Coûts 10 décomposés gds postes'!$A:$W,8,FALSE),"") -> 178803 | E13: =IF($B$4<>"",IF(D13<>"",IF(C13<>"",C13/D13-1,""),""),"") -> 0.2642573111 | K13: Affections de l'appareil génital féminin | L13: 13
K14: Grossesses pathologiques, accouchements et affections du post-partum | L14: 14
G15: Coût moyen 2011 | K15: Nouveau-nés, prématurés et affections de la période périnatale | L15: 15
F16: Médico technique: anesthésie | G16: =IF($B$4<>"",VLOOKUP($J$1,'Coûts 11 décomposés gds postes'!$A:$BA,15,FALSE),"") -> 54.51 | H16: =IF(C11<>"",IF(B28<>0,(G16+G17+G18+G19+G20+G21+G22+G23)/B28,""),"") -> 0.9008193897 | K16: Affections du sang et des organes hématopoïétiques | L16: 16
F17: Médico technique: bloc | G17: =IF($B$4<>"",VLOOKUP($J$1,'Coûts 11 décomposés gds postes'!$A:$BA,16,FALSE),"") -> 77.39 | K17: Affections myéloprolifératives et tumeurs de siège imprécis ou diffus | L17: 17
F18: Médico technique: laboratoire | G18: =IF($B$4<>"",VLOOKUP($J$1,'Coûts 11 décomposés gds postes'!$A:$BA,22,FALSE)+VLOOKUP($J$1,'Coûts 11 décomposés gds postes'!$A:$BA,23,FALSE),"") -> 83.405 | K18: Maladies infectieuses et parasitaires | L18: 18
F19: Médico technique: Imagerie | G19: =IF($B$4<>"",VLOOKUP($J$1,'Coûts 11 décomposés gds postes'!$A:$BA,20,FALSE),"") -> 110.32 | K19: Maladies et troubles mentaux | L19: 19
F20: Médico technique: Exploration fonctionnelle | G20: =IF($B$4<>"",VLOOKUP($J$1,'Coûts 11 décomposés gds postes'!$A:$BA,19,FALSE),"") -> 52.34 | K20: Troubles mentaux organiques liés à l'absorption de drogues ou induits par celles-ci | L20: 20
F21: Médico technique: Radiothérapie | G21: =IF($B$4<>"",VLOOKUP($J$1,'Coûts 11 décomposés gds postes'!$A:$BA,26,FALSE),"") -> 1.98 | K21: Traumatismes, allergies et empoisonnements | L21: 21
F22: Médico technique: SMUR terrestre | G22: =IF($B$4<>"",VLOOKUP($J$1,'Coûts 11 décomposés gds postes'!$A:$BA,27,FALSE),"") -> 46.52 | K22: Brûlures | L22: 22
B23: Coût moyen 2011 | C23: Poids dans le coût du GHM | D23: Evolution 2011/2010 | F23: Médico technique: Urgences | G23: =IF($B$4<>"",VLOOKUP($J$1,'Coûts 11 décomposés gds postes'!$A:$BA,28,FALSE),"") -> 44.069 | K23: Facteurs influant sur l'état de santé et autres motifs de recours aux services de santé | L23: 23
A24: Activités cliniques MCO (avec hébergement, hors Réa, SI, SC) | B24: =IF($B$4<>"",VLOOKUP($J$1,'Coûts 11 décomposés gds postes'!$A:$BA,10,FALSE),"") -> 1009.27 | C24: =IF($C$11<>"",B24/$C$11,"") -> 0.3203624937 | D24: =IF($B$4<>"",VLOOKUP($J$1,Evolutions!$A:$T,7,FALSE),"") -> -0.027040836 | K24: Maladies dues à une infection par le VIH | L24: 25
A25: Activité de réanimation | B25: =IF($B$4<>"",VLOOKUP($J$1,'Coûts 11 décomposés gds postes'!$A:$BA,13,FALSE),"") -> 233.15 | C25: =IF($C$11<>"",B25/$C$11,"") -> 0.07400647537 | D25: =IF($B$4<>"",VLOOKUP($J$1,Evolutions!$A:$T,10,FALSE),"") -> -0.02789359573 | F25: Logistique Médicale: Pharmacie | G25: =IF($B$4<>"",VLOOKUP($J$1,'Coûts 11 décomposés gds postes'!$A:$BA,39,FALSE),"") -> 46.84 | H25: =IF(C11<>"",IF(C11<>0,(G25+G26+G27)/B29,""),"") -> 0.8090581884 | K25: Traumatismes multiples graves | L25: 26
A26: Activité de soins intensifs | B26: =IF($B$4<>"",VLOOKUP($J$1,'Coûts 11 décomposés gds postes'!$A:$BA,12,FALSE),"") -> 83.66 | C26: 0.02655535805 | D26: =IF($B$4<>"",VLOOKUP($J$1,Evolutions!$A:$T,9,FALSE),"") -> 0.02562216501 | F26: Logistique Médicale: Stérilisation | G26: =IF($B$4<>"",VLOOKUP($J$1,'Coûts 11 décomposés gds postes'!$A:$BA,40,FALSE),"") -> 12.53 | K26: Transplantations d'organes | L26: 27
A27: Activité de surveillance continue | B27: =IF($B$4<>"",VLOOKUP($J$1,'Coûts 11 décomposés gds postes'!$A:$BA,11,FALSE),"") -> 62.75 | C27: 0.01991810564 | D27: =IF($B$4<>"",VLOOKUP($J$1,Evolutions!$A:$T,8,FALSE),"") -> 0.2064987502 | F27: Logistique Médicale: Hygiène et Vigilance | G27: =IF($B$4<>"",VLOOKUP($J$1,'Coûts 11 décomposés gds postes'!$A:$BA,42,FALSE),"") -> 8.065 | K27: Séances | L27: 28
A28: Activités Médico-techniques | B28: =IF($B$4<>"",VLOOKUP($J$1,'Coûts 11 décomposés gds postes'!$A:$BA,30,FALSE),"") -> 522.34 | C28: 0.1658011681 | D28: =IF($B$4<>"",VLOOKUP($J$1,Evolutions!$A:$T,11,FALSE),"") -> -0.02426540638 | K28: TOTAL | L28: TOTAL
A29: Logistique Médicale | B29: =IF($B$4<>"",VLOOKUP($J$1,'Coûts 11 décomposés gds postes'!$A:$BA,43,FALSE),"") -> 83.35 | C29: 0.02645695785 | D29: =IF($B$4<>"",VLOOKUP($J$1,Evolutions!$A:$T,13,FALSE),"") -> -0.004300561462 | F29: Logistique générale: Blanchisserie | G29: =IF($B$4<>"",VLOOKUP($J$1,'Coûts 11 décomposés gds postes'!$A:$BA,31,FALSE),"") -> 38.163 | H29: =IF(C11<>"",IF(B30<>0,(G29+G30+G31+G32+G33+G34)/B30,""),"") -> 0.8272603852
A30: Logistique générale | B30: =IF($B$4<>"",VLOOKUP($J$1,'Coûts 11 décomposés gds postes'!$A:$BA,38,FALSE),"") -> 677.65 | C30: 0.2150996699 | D30: =IF($B$4<>"",VLOOKUP($J$1,Evolutions!$A:$T,12,FALSE),"") -> 0.004312772327 | F30: Logistique générale: Restauration | G30: =IF($B$4<>"",VLOOKUP($J$1,'Coûts 11 décomposés gds postes'!$A:$BA,32,FALSE),"") -> 88.38
A31: Charges directes | B31: =IF($B$4<>"",VLOOKUP($J$1,'Coûts 11 décomposés gds postes'!$A:$BA,50,FALSE),"") -> 478.22 | C31: 0.1517965973 | D31: =IF($B$4<>"",VLOOKUP($J$1,Evolutions!$A:$T,14,FALSE),"") -> 0.01617050211 | F31: Logistique générale: Services administratifs à caractère général | G31: =IF($B$4<>"",VLOOKUP($J$1,'Coûts 11 décomposés gds postes'!$A:$BA,33,FALSE),"") -> 154.18
F32: Logistique générale: Services administratifs liés au personnel | G32: =IF($B$4<>"",VLOOKUP($J$1,'Coûts 11 décomposés gds postes'!$A:$BA,34,FALSE),"") -> 86.66
F33: Logistique générale: Entretien maintenance | G33: =IF($B$4<>"",VLOOKUP($J$1,'Coûts 11 décomposés gds postes'!$A:$BA,36,FALSE),"") -> 70.62
F34: Logistique générale: Services hôteliers | G34: =IF($B$4<>"",VLOOKUP($J$1,'Coûts 11 décomposés gds postes'!$A:$BA,37,FALSE),"") -> 122.59
F36: Charges directes: Autres consommables | G36: =IF($B$4<>"",VLOOKUP($J$1,'Coûts 11 décomposés gds postes'!$A:$BA,44,FALSE),"") -> 169.32 | H36: =IF(C11<>"",IF(B31<>0,(G36+G37+G38)/B31,""),"") -> 0.6100748609
F37: Charges directes: Spécialités pharmaceutiques facturables en sus | G37: =IF($B$4<>"",VLOOKUP($J$1,'Coûts 11 décomposés gds postes'!$A:$BA,48,FALSE),"") -> 61.6
A38: Données de coûts: ENCC ex DG 2011 | F38: Charges directes: DMI facturables en sus | G38: =IF($B$4<>"",VLOOKUP($J$1,'Coûts 11 décomposés gds postes'!$A:$BA,46,FALSE),"") -> 60.83

Sheet synthèse sous CMD (hidden)
A1: Fiche de synthèse sous CMD | J1: =CONCATENATE(B4,B5,B6,B7) -> 0101CTOTAL | K1: 01C
K2: 01K
A3: Identification de la sous catégorie majeure de diagnostics (sous CMD) | K3: 01M
A4: CMD | B4: =LEFT(B5,2) -> 01 | K4: 02C
A5: sous CMD | B5: 01C | K5: 02M
A6: racine | B6: TOTAL | K6: 03C
A7: GHMV11 | K7: 03K
A8: Libellé | B8: =IF(B4<>"",VLOOKUP(J1,'Coûts 11 décomposés gds postes'!A:W,6,FALSE),"") -> Affections du système nerveux - Groupes chirurgicaux | K8: 03M
K9: 04C
C10: 2011 | D10: 2010 | E10: Evolution | H10: Part des postes détaillés dans le sous poste | K10: 04K
A11: Coût moyen du séjour | C11: =IF($B$4<>"",VLOOKUP($J$1,'Coûts 11 décomposés gds postes'!$A:$BA,9,FALSE),"") -> 6099.61 | D11: =IF($B$4<>"",VLOOKUP($J$1,'Coûts 10 décomposés gds postes'!$A:$W,13,FALSE),"") -> 6232.03 | E11: =IF($B$4<>"",VLOOKUP($J$1,Evolutions!$A:$T,6,FALSE),"") -> -0.02124829309 | K11: 04M
K12: 05C
A13: Nombre de séjours ENCC | C13: =IF($B$4<>"",VLOOKUP($J$1,'Coûts 11 décomposés gds postes'!$A:$BA,8,FALSE),"") -> 32683 | D13: =IF($B$4<>"",VLOOKUP($J$1,'Coûts 10 décomposés gds postes'!$A:$W,8,FALSE),"") -> 25495 | E13: =IF($B$4<>"",IF(D13<>"",IF(C13<>"",C13/D13-1,""),""),"") -> 0.2819376348 | G13: Coût moyen 2011 | K13: 05K
K14: 05M
K15: 06C
F16: Médico technique: anesthésie | G16: =IF($B$4<>"",VLOOKUP($J$1,'Coûts 11 décomposés gds postes'!$A:$BA,15,FALSE),"") -> 412.86 | H16: =IF(C11<>"",IF(B28<>0,(G16+G17+G18+G19+G20+G21+G22+G23)/B28,""),"") -> 0.9282971459 | K16: 06K
F17: Médico technique: bloc | G17: =IF($B$4<>"",VLOOKUP($J$1,'Coûts 11 décomposés gds postes'!$A:$BA,16,FALSE),"") -> 613.73 | K17: 06M
F18: Médico technique: laboratoire | G18: =IF($B$4<>"",VLOOKUP($J$1,'Coûts 11 décomposés gds postes'!$A:$BA,22,FALSE)+VLOOKUP($J$1,'Coûts 11 décomposés gds postes'!$A:$BA,23,FALSE),"") -> 105.235 | K18: 07C
F19: Médico technique: Imagerie | G19: =IF($B$4<>"",VLOOKUP($J$1,'Coûts 11 décomposés gds postes'!$A:$BA,20,FALSE),"") -> 121.15 | K19: 07K
F20: Médico technique: Exploration fonctionnelle | G20: =IF($B$4<>"",VLOOKUP($J$1,'Coûts 11 décomposés gds postes'!$A:$BA,19,FALSE),"") -> 27.4 | K20: 07M
F21: Médico technique: Radiothérapie | G21: =IF($B$4<>"",VLOOKUP($J$1,'Coûts 11 décomposés gds postes'!$A:$BA,26,FALSE),"") -> 1.4 | K21: 08C
F22: Médico technique: SMUR terrestre | G22: =IF($B$4<>"",VLOOKUP($J$1,'Coûts 11 décomposés gds postes'!$A:$BA,27,FALSE),"") -> 15.5 | K22: 08K
B23: Coût moyen 2011 | C23: Poids dans le coût du GHM | D23: Evolution 2011/2010 | F23: Médico technique: Urgences | G23: =IF($B$4<>"",VLOOKUP($J$1,'Coûts 11 décomposés gds postes'!$A:$BA,28,FALSE),"") -> 10.575 | K23: 08M
A24: Activités cliniques MCO (avec hébergement, hors Réa, SI, SC) | B24: =IF($B$4<>"",VLOOKUP($J$1,'Coûts 11 décomposés gds postes'!$A:$BA,10,FALSE),"") -> 1080.35 | C24: =IF($C$11<>"",B24/$C$11,"") -> 0.1771178813 | D24: =IF($B$4<>"",VLOOKUP($J$1,Evolutions!$A:$T,7,FALSE),"") -> -0.02947464875 | K24: 09C
A25: Activité de réanimation | B25: =IF($B$4<>"",VLOOKUP($J$1,'Coûts 11 décomposés gds postes'!$A:$BA,13,FALSE),"") -> 858.01 | C25: =IF($C$11<>"",B25/$C$11,"") -> 0.1406663705 | D25: =IF($B$4<>"",VLOOKUP($J$1,Evolutions!$A:$T,10,FALSE),"") -> -0.0305409925 | F25: Logistique Médicale: Pharmacie | G25: =IF($B$4<>"",VLOOKUP($J$1,'Coûts 11 décomposés gds postes'!$A:$BA,39,FALSE),"") -> 96.4 | H25: =IF(C11<>"",IF(C11<>0,(G25+G26+G27)/B29,""),"") -> 0.8370294169 | K25: 09K
A26: Activité de soins intensifs | B26: =IF($B$4<>"",VLOOKUP($J$1,'Coûts 11 décomposés gds postes'!$A:$BA,12,FALSE),"") -> 67.45 | C26: 0.01105808404 | D26: =IF($B$4<>"",VLOOKUP($J$1,Evolutions!$A:$T,9,FALSE),"") -> -0.1941457587 | F26: Logistique Médicale: Stérilisation | G26: =IF($B$4<>"",VLOOKUP($J$1,'Coûts 11 décomposés gds postes'!$A:$BA,40,FALSE),"") -> 78.5 | K26: 09M
A27: Activité de surveillance continue | B27: =IF($B$4<>"",VLOOKUP($J$1,'Coûts 11 décomposés gds postes'!$A:$BA,11,FALSE),"") -> 162.29 | C27: 0.02660661911 | D27: =IF($B$4<>"",VLOOKUP($J$1,Evolutions!$A:$T,8,FALSE),"") -> 0.1561587234 | F27: Logistique Médicale: Hygiène et Vigilance | G27: =IF($B$4<>"",VLOOKUP($J$1,'Coûts 11 décomposés gds postes'!$A:$BA,42,FALSE),"") -> 16.311 | K27: 09Z
A28: Activités Médico-techniques | B28: =IF($B$4<>"",VLOOKUP($J$1,'Coûts 11 décomposés gds postes'!$A:$BA,30,FALSE),"") -> 1408.87 | C28: 0.2309770625 | D28: =IF($B$4<>"",VLOOKUP($J$1,Evolutions!$A:$T,11,FALSE),"") -> -0.03511307135 | K28: 10C
A29: Logistique Médicale | B29: =IF($B$4<>"",VLOOKUP($J$1,'Coûts 11 décomposés gds postes'!$A:$BA,43,FALSE),"") -> 228.44 | C29: 0.03745157477 | D29: =IF($B$4<>"",VLOOKUP($J$1,Evolutions!$A:$T,13,FALSE),"") -> -0.03603679635 | F29: Logistique générale: Blanchisserie | G29: =IF($B$4<>"",VLOOKUP($J$1,'Coûts 11 décomposés gds postes'!$A:$BA,31,FALSE),"") -> 47.412 | H29: =IF(C11<>"",IF(B30<>0,(G29+G30+G31+G32+G33+G34)/B30,""),"") -> 0.8265546608 | K29: 10M
A30: Logistique générale | B30: =IF($B$4<>"",VLOOKUP($J$1,'Coûts 11 décomposés gds postes'!$A:$BA,38,FALSE),"") -> 948.76 | C30: 0.1555443709 | D30: =IF($B$4<>"",VLOOKUP($J$1,Evolutions!$A:$T,12,FALSE),"") -> -0.01829394479 | F30: Logistique générale: Restauration | G30: =IF($B$4<>"",VLOOKUP($J$1,'Coûts 11 décomposés gds postes'!$A:$BA,32,FALSE),"") -> 99.57 | K30: 11C
A31: Charges directes | B31: =IF($B$4<>"",VLOOKUP($J$1,'Coûts 11 décomposés gds postes'!$A:$BA,50,FALSE),"") -> 1345.43 | C31: 0.2205763975 | D31: =IF($B$4<>"",VLOOKUP($J$1,Evolutions!$A:$T,14,FALSE),"") -> -0.0005719803892 | F31: Logistique générale: Services administratifs à caractère général | G31: =IF($B$4<>"",VLOOKUP($J$1,'Coûts 11 décomposés gds postes'!$A:$BA,33,FALSE),"") -> 219.25 | K31: 11K
F32: Logistique générale: Services administratifs liés au personnel | G32: =IF($B$4<>"",VLOOKUP($J$1,'Coûts 11 décomposés gds postes'!$A:$BA,34,FALSE),"") -> 135.07 | K32: 11M
F33: Logistique générale: Entretien maintenance | G33: =IF($B$4<>"",VLOOKUP($J$1,'Coûts 11 décomposés gds postes'!$A:$BA,36,FALSE),"") -> 100.17 | K33: 12C
F34: Logistique générale: Services hôteliers | G34: =IF($B$4<>"",VLOOKUP($J$1,'Coûts 11 décomposés gds postes'!$A:$BA,37,FALSE),"") -> 182.73 | K34: 12K
K35: 12M
F36: Charges directes: Autres consommables | G36: =IF($B$4<>"",VLOOKUP($J$1,'Coûts 11 décomposés gds postes'!$A:$BA,44,FALSE),"") -> 519.36 | H36: =IF(C11<>"",IF(B31<>0,(G36+G37+G38)/B31,""),"") -> 0.6957478278 | K36: 13C
F37: Charges directes: Spécialités pharmaceutiques facturables en sus | G37: =IF($B$4<>"",VLOOKUP($J$1,'Coûts 11 décomposés gds postes'!$A:$BA,48,FALSE),"") -> 49.08 | K37: 13K
A38: Données de coûts: ENCC ex DG 2011 | F38: Charges directes: DMI facturables en sus | G38: =IF($B$4<>"",VLOOKUP($J$1,'Coûts 11 décomposés gds postes'!$A:$BA,46,FALSE),"") -> 367.64 | K38: 13M
K39: 14C
K40: 14M
K41: 14Z
K42: 15C
K43: 15M
K44: 15Z
K45: 16C
K46: 16M
K47: 17C
K48: 17K
K49: 17M
K50: 18C
K51: 18M
K52: 19C
K53: 19M
K54: 20Z
K55: 21C
K56: 21K
K57: 21M
K58: 22C
K59: 22K
K60: 22M
K61: 22Z
K62: 23C
K63: 23K
K64: 23M
K65: 23Z
K66: 25C
K67: 25M
K68: 25Z
K69: 26C
K70: 26M
K71: 27C
K72: 27Z
K73: 28Z

Sheet synthèse sous CMD (2) (hidden)
A1: Fiche de synthèse sous CMD | J1: =CONCATENATE(B4,B5,B6,B7) -> 0101CTOTAL | K1: Affections du système nerveux - Groupes chirurgicaux | L1: 01C
K2: Affections du système nerveux - Avec acte classant non opératoire | L2: 01K
A3: Identification de la sous catégorie majeure de diagnostics (sous CMD) | K3: Affections du système nerveux - Groupes 'médicaux' | L3: 01M
A4: CMD | B4: =LEFT(B5,2) -> 01 | K4: Affections de l'oeil - Groupes chirurgicaux | L4: 02C
A5: sous CMD | B5: =IF(B8<>"",VLOOKUP(B8,K:L,2,FALSE),"") -> 01C | K5: Affections de l'oeil - Groupes 'médicaux' | L5: 02M
A6: racine | B6: TOTAL | K6: Affections des oreilles, du nez, de la gorge, de la bouche et des dents - Groupes chirurgicaux | L6: 03C
A7: GHMV11 | K7: Affections des oreilles, du nez, de la gorge, de la bouche et des dents - Avec acte classant non opératoire | L7: 03K
A8: Libellé | B8: Affections du système nerveux - Groupes chirurgicaux | K8: Affections des oreilles, du nez, de la gorge, de la bouche et des dents - Groupes 'médicaux' | L8: 03M
C9: 2011 | D9: 2010 | E9: Evolution | H9: Part des postes détaillés dans le sous poste | K9: Affections de l'appareil respiratoire - Groupes chirurgicaux | L9: 04C
A10: coût moyen du séjour | C10: =IF($B$4<>"",VLOOKUP($J$1,'Coûts 11 décomposés gds postes'!$A:$BA,9,FALSE),"") -> 6099.61 | D10: =IF($B$4<>"",VLOOKUP($J$1,'Coûts 10 décomposés gds postes'!$A:$W,13,FALSE),"") -> 6232.03 | E10: =IF($B$4<>"",VLOOKUP($J$1,Evolutions!$A:$T,6,FALSE),"") -> -0.02124829309 | G10: Coût moyen | K10: Affections de l'appareil respiratoire - Avec acte classant non opératoire | L10: 04K
K11: Affections de l'appareil respiratoire - Groupes 'médicaux' | L11: 04M
A12: nombre de séjours ENCC | C12: =IF($B$4<>"",VLOOKUP($J$1,'Coûts 11 décomposés gds postes'!$A:$BA,8,FALSE),"") -> 32683 | D12: =IF($B$4<>"",VLOOKUP($J$1,'Coûts 10 décomposés gds postes'!$A:$W,8,FALSE),"") -> 25495 | E12: =IF($B$4<>"",IF(D12<>"",IF(C12<>"",C12/D12-1,""),""),"") -> 0.2819376348 | K12: Affections de l'appareil circulatoire - Groupes chirurgicaux | L12: 05C
K13: Affections de l'appareil circulatoire - Avec acte classant non opératoire | L13: 05K
K14: Affections de l'appareil circulatoire - Groupes 'médicaux' | L14: 05M
F15: Médico technique: anesthésie | G15: =IF($B$4<>"",VLOOKUP($J$1,'Coûts 11 décomposés gds postes'!$A:$BA,15,FALSE),"") -> 412.86 | H15: =IF(C10<>"",IF(B27<>0,(G15+G16+G17+G18+G19+G20+G21+G22)/B27,""),"") -> 0.9282971459 | K15: Affections du tube digestif - Groupes chirurgicaux | L15: 06C
F16: Médico technique: bloc | G16: =IF($B$4<>"",VLOOKUP($J$1,'Coûts 11 décomposés gds postes'!$A:$BA,16,FALSE),"") -> 613.73 | K16: Affections du tube digestif - Avec acte classant non opératoire | L16: 06K
F17: Médico technique: laboratoire | G17: =IF($B$4<>"",VLOOKUP($J$1,'Coûts 11 décomposés gds postes'!$A:$BA,22,FALSE)+VLOOKUP($J$1,'Coûts 11 décomposés gds postes'!$A:$BA,23,FALSE),"") -> 105.235 | K17: Affections du tube digestif - Groupes 'médicaux' | L17: 06M
F18: Médico technique: Imagerie | G18: =IF($B$4<>"",VLOOKUP($J$1,'Coûts 11 décomposés gds postes'!$A:$BA,20,FALSE),"") -> 121.15 | K18: Affections du système hépatobiliaire et du pancréas - Groupes chirurgicaux | L18: 07C
F19: Médico technique: Exploration fonctionnelle | G19: =IF($B$4<>"",VLOOKUP($J$1,'Coûts 11 décomposés gds postes'!$A:$BA,19,FALSE),"") -> 27.4 | K19: Affections du système hépatobiliaire et du pancréas - Avec acte classant non opératoire | L19: 07K
F20: Médico technique: Radiothérapie | G20: =IF($B$4<>"",VLOOKUP($J$1,'Coûts 11 décomposés gds postes'!$A:$BA,26,FALSE),"") -> 1.4 | K20: Affections du système hépatobiliaire et du pancréas - Groupes 'médicaux' | L20: 07M
F21: Médico technique: SMUR terrestre | G21: =IF($B$4<>"",VLOOKUP($J$1,'Coûts 11 décomposés gds postes'!$A:$BA,27,FALSE),"") -> 15.5 | K21: Affections et traumatismes de l'appareil musculosquelettique et du tissu conjonctif - Groupes chirurgicaux | L21: 08C
B22: Coût moyen 2011 | C22: Poids dans le coût du GHM | D22: Evolution 2011/2010 | F22: Médico technique: Urgences | G22: =IF($B$4<>"",VLOOKUP($J$1,'Coûts 11 décomposés gds postes'!$A:$BA,28,FALSE),"") -> 10.575 | K22: Affections et traumatismes de l'appareil musculosquelettique et du tissu conjonctif - Avec acte classant non opératoire | L22: 08K
A23: Activités cliniques MCO (avec hébergement, hors Réa, SI, SC) | B23: =IF($B$4<>"",VLOOKUP($J$1,'Coûts 11 décomposés gds postes'!$A:$BA,10,FALSE),"") -> 1080.35 | C23: =IF($C$10<>"",B23/$C$10,"") -> 0.1771178813 | D23: =IF($B$4<>"",VLOOKUP($J$1,Evolutions!$A:$T,7,FALSE),"") -> -0.02947464875 | K23: Affections et traumatismes de l'appareil musculosquelettique et du tissu conjonctif - Groupes 'médicaux' | L23: 08M
A24: Activité de réanimation | B24: =IF($B$4<>"",VLOOKUP($J$1,'Coûts 11 décomposés gds postes'!$A:$BA,13,FALSE),"") -> 858.01 | C24: =IF($C$10<>"",B24/$C$10,"") -> 0.1406663705 | D24: =IF($B$4<>"",VLOOKUP($J$1,Evolutions!$A:$T,10,FALSE),"") -> -0.0305409925 | F24: Logistique Médicale: Pharmacie | G24: =IF($B$4<>"",VLOOKUP($J$1,'Coûts 11 décomposés gds postes'!$A:$BA,39,FALSE),"") -> 96.4 | H24: =IF(C10<>"",IF(C10<>0,(G24+G25+G26)/B28,""),"") -> 0.8370294169 | K24: Affections de la peau, des tissus souscutanés et des seins - Groupes chirurgicaux | L24: 09C
A25: Activité de soins intensifs | B25: =IF($B$4<>"",VLOOKUP($J$1,'Coûts 11 décomposés gds postes'!$A:$BA,12,FALSE),"") -> 67.45 | C25: 0.01105808404 | D25: =IF($B$4<>"",VLOOKUP($J$1,Evolutions!$A:$T,9,FALSE),"") -> -0.1941457587 | F25: Logistique Médicale: Stérilisation | G25: =IF($B$4<>"",VLOOKUP($J$1,'Coûts 11 décomposés gds postes'!$A:$BA,40,FALSE),"") -> 78.5 | K25: Affections de la peau, des tissus souscutanés et des seins - Avec acte classant non opératoire | L25: 09K
A26: Activité de surveillance continue | B26: =IF($B$4<>"",VLOOKUP($J$1,'Coûts 11 décomposés gds postes'!$A:$BA,11,FALSE),"") -> 162.29 | C26: 0.02660661911 | D26: =IF($B$4<>"",VLOOKUP($J$1,Evolutions!$A:$T,8,FALSE),"") -> 0.1561587234 | F26: Logistique Médicale: Hygiène et Vigilance | G26: =IF($B$4<>"",VLOOKUP($J$1,'Coûts 11 décomposés gds postes'!$A:$BA,42,FALSE),"") -> 16.311 | K26: Affections de la peau, des tissus souscutanés et des seins - Groupes 'médicaux' | L26: 09M
A27: Activités Médico-techniques | B27: =IF($B$4<>"",VLOOKUP($J$1,'Coûts 11 décomposés gds postes'!$A:$BA,30,FALSE),"") -> 1408.87 | C27: 0.2309770625 | D27: =IF($B$4<>"",VLOOKUP($J$1,Evolutions!$A:$T,11,FALSE),"") -> -0.03511307135 | K27: Affections de la peau, des tissus souscutanés et des seins - Groupes indifférenciés | L27: 09Z
A28: Logistique Médicale | B28: =IF($B$4<>"",VLOOKUP($J$1,'Coûts 11 décomposés gds postes'!$A:$BA,43,FALSE),"") -> 228.44 | C28: 0.03745157477 | D28: =IF($B$4<>"",VLOOKUP($J$1,Evolutions!$A:$T,13,FALSE),"") -> -0.03603679635 | F28: Logistique générale: Blanchisserie | G28: =IF($B$4<>"",VLOOKUP($J$1,'Coûts 11 décomposés gds postes'!$A:$BA,31,FALSE),"") -> 47.412 | H28: =IF(C10<>"",IF(B29<>0,(G28+G29+G30+G31+G32+G33)/B29,""),"") -> 0.8265546608 | K28: Affections endocriniennes, métaboliques et nutritionnelles - Groupes chirurgicaux | L28: 10C
A29: Logistique générale | B29: =IF($B$4<>"",VLOOKUP($J$1,'Coûts 11 décomposés gds postes'!$A:$BA,38,FALSE),"") -> 948.76 | C29: 0.1555443709 | D29: =IF($B$4<>"",VLOOKUP($J$1,Evolutions!$A:$T,12,FALSE),"") -> -0.01829394479 | F29: Logistique générale: Restauration | G29: =IF($B$4<>"",VLOOKUP($J$1,'Coûts 11 décomposés gds postes'!$A:$BA,32,FALSE),"") -> 99.57 | K29: Affections endocriniennes, métaboliques et nutritionnelles - Groupes 'médicaux' | L29: 10M
A30: Charges directes | B30: =IF($B$4<>"",VLOOKUP($J$1,'Coûts 11 décomposés gds postes'!$A:$BA,50,FALSE),"") -> 1345.43 | C30: 0.2205763975 | D30: =IF($B$4<>"",VLOOKUP($J$1,Evolutions!$A:$T,14,FALSE),"") -> -0.0005719803892 | F30: Logistique générale: Services administratifs à caractère général | G30: =IF($B$4<>"",VLOOKUP($J$1,'Coûts 11 décomposés gds postes'!$A:$BA,33,FALSE),"") -> 219.25 | K30: Affections du rein et des voies urinaires - Groupes chirurgicaux | L30: 11C
F31: Logistique générale: Services administratifs liés au personnel | G31: =IF($B$4<>"",VLOOKUP($J$1,'Coûts 11 décomposés gds postes'!$A:$BA,34,FALSE),"") -> 135.07 | K31: Affections du rein et des voies urinaires - Avec acte classant non opératoire | L31: 11K
F32: Logistique générale: Entretien maintenance | G32: =IF($B$4<>"",VLOOKUP($J$1,'Coûts 11 décomposés gds postes'!$A:$BA,36,FALSE),"") -> 100.17 | K32: Affections du rein et des voies urinaires - Groupes 'médicaux' | L32: 11M
F33: Logistique générale: Services hôteliers | G33: =IF($B$4<>"",VLOOKUP($J$1,'Coûts 11 décomposés gds postes'!$A:$BA,37,FALSE),"") -> 182.73 | K33: Affections de l'appareil génital masculin - Groupes chirurgicaux | L33: 12C
K34: Affections de l'appareil génital masculin - Avec acte classant non opératoire | L34: 12K
F35: Charges directes: Autres consommables | G35: =IF($B$4<>"",VLOOKUP($J$1,'Coûts 11 décomposés gds postes'!$A:$BA,44,FALSE),"") -> 519.36 | H35: =IF(C10<>"",IF(B30<>0,(G35+G36+G37)/B30,""),"") -> 0.6957478278 | K35: Affections de l'appareil génital masculin - Groupes 'médicaux' | L35: 12M
F36: Charges directes: Spécialités pharmaceutiques facturables en sus | G36: =IF($B$4<>"",VLOOKUP($J$1,'Coûts 11 décomposés gds postes'!$A:$BA,48,FALSE),"") -> 49.08 | K36: Affections de l'appareil génital féminin - Groupes chirurgicaux | L36: 13C
A37: Données de coûts: ENCC ex DG 2011 | F37: Charges directes: DMI facturables en sus | G37: =IF($B$4<>"",VLOOKUP($J$1,'Coûts 11 décomposés gds postes'!$A:$BA,46,FALSE),"") -> 367.64 | K37: Affections de l'appareil génital féminin - Avec acte classant non opératoire | L37: 13K
K38: Affections de l'appareil génital féminin - Groupes 'médicaux' | L38: 13M
K39: Grossesses pathologiques, accouchements et affections du post-partum - Groupes chirurgicaux | L39: 14C
K40: Grossesses pathologiques, accouchements et affections du post-partum - Groupes 'médicaux' | L40: 14M
K41: Grossesses pathologiques, accouchements et affections du post-partum - Groupes indifférenciés | L41: 14Z
K42: Nouveau-nés, prématurés et affections de la période périnatale - Groupes chirurgicaux | L42: 15C
K43: Nouveau-nés, prématurés et affections de la période périnatale - Groupes 'médicaux' | L43: 15M
K44: Nouveau-nés, prématurés et affections de la période périnatale - Groupes indifférenciés | L44: 15Z
K45: Affections du sang et des organes hématopoïétiques - Groupes chirurgicaux | L45: 16C
K46: Affections du sang et des organes hématopoïétiques - Groupes 'médicaux' | L46: 16M
K47: Affections myéloprolifératives et tumeurs de siège imprécis ou diffus - Groupes chirurgicaux | L47: 17C
K48: Affections myéloprolifératives et tumeurs de siège imprécis ou diffus - Avec acte classant non opératoire | L48: 17K
K49: Affections myéloprolifératives et tumeurs de siège imprécis ou diffus - Groupes 'médicaux' | L49: 17M
K50: Maladies infectieuses et parasitaires - Groupes chirurgicaux | L50: 18C
K51: Maladies infectieuses et parasitaires - Groupes 'médicaux' | L51: 18M
K52: Maladies et troubles mentaux - Groupes chirurgicaux | L52: 19C
K53: Maladies et troubles mentaux - Groupes 'médicaux' | L53: 19M
K54: Troubles mentaux organiques liés à l'absorption de drogues ou induits par celles-ci - Groupes indifférenciés | L54: 20Z
K55: Traumatismes, allergies et empoisonnements - Groupes chirurgicaux | L55: 21C
K56: Traumatismes, allergies et empoisonnements - Avec acte classant non opératoire | L56: 21K
K57: Traumatismes, allergies et empoisonnements - Groupes 'médicaux' | L57: 21M
K58: Brûlures - Groupes chirurgicaux | L58: 22C
K59: Brûlures - Avec acte classant non opératoire | L59: 22K
K60: Brûlures - Groupes 'médicaux' | L60: 22M
K61: Brûlures - Groupes indifférenciés | L61: 22Z
K62: Facteurs influant sur l'état de santé et autres motifs de recours aux services de santé - Groupes chirurgicaux | L62: 23C
K63: Facteurs influant sur l'état de santé et autres motifs de recours aux services de santé - Avec acte classant non opératoire | L63: 23K
K64: Facteurs influant sur l'état de santé et autres motifs de recours aux services de santé - Groupes 'médicaux' | L64: 23M
K65: Facteurs influant sur l'état de santé et autres motifs de recours aux services de santé - Groupes indifférenciés | L65: 23Z
K66: Maladies dues à une infection par le VIH - Groupes chirurgicaux | L66: 25C
K67: Maladies dues à une infection par le VIH - Groupes 'médicaux' | L67: 25M
K68: Maladies dues à une infection par le VIH - Groupes indifférenciés | L68: 25Z
K69: Traumatismes multiples graves - Groupes chirurgicaux | L69: 26C
K70: Traumatismes multiples graves - Groupes 'médicaux' | L70: 26M
K71: Transplantations d'organes - Groupes chirurgicaux | L71: 27C
K72: Transplantations d'organes - Groupes indifférenciés | L72: 27Z
K73: Séances - Groupes indifférenciés | L73: 28Z

Sheet synthèse racine (hidden)
A1: Fiche de synthèse Racine | J1: =CONCATENATE(B4,B5,LEFT(B6,5),B7) -> 0101C01C03TOTAL | L1: 01C03
L2: 01C04
A3: Identification de la racine | L3: 01C05
A4: CMD | B4: =LEFT(B5,2) -> 01 | L4: 01C06
A5: Sous CMD | B5: =LEFT(B6,3) -> 01C | L5: 01C08
A6: Racine | B6: 01C03 | L6: 01C09
A7: GHMV11 | B7: TOTAL | L7: 01C10
A8: Libellé | B8: =IF(B4<>"",VLOOKUP(J1,'Coûts 11 décomposés gds postes'!A:W,6,FALSE),"") -> Craniotomies pour traumatisme, âge supérieur à 17 ans | L8: 01C11
C9: 2011 | D9: 2010 | E9: Evolution | H9: Part des postes détaillés dans le sous poste | L9: 01C12
A10: Coût moyen du séjour | C10: =IF($B$4<>"",VLOOKUP($J$1,'Coûts 11 décomposés gds postes'!$A:$BA,9,FALSE),"") -> 14437.24 | D10: =IF($B$4<>"",IF(ISNA(VLOOKUP($J$1,'Coûts 10 décomposés gds postes'!$A:$W,13,FALSE)),"NC",VLOOKUP($J$1,'Coûts 10 décomposés gds postes'!$A:$W,13,FALSE)),"") -> 14616.25 | E10: =IF($B$4<>"",VLOOKUP($J$1,Evolutions!$A:$T,6,FALSE),"") -> -0.01224732746 | G10: Coût moyen 2011 | L10: 01C14
L11: 01C15
A12: Nombre de séjours ENCC | C12: =IF($B$4<>"",VLOOKUP($J$1,'Coûts 11 décomposés gds postes'!$A:$BA,8,FALSE),"") -> 2102 | D12: =IF($B$4<>"",IF(ISNA(VLOOKUP($J$1,'Coûts 10 décomposés gds postes'!$A:$W,8,FALSE)),"NC",VLOOKUP($J$1,'Coûts 10 décomposés gds postes'!$A:$W,8,FALSE)),"") -> 1920 | E12: =IF($B$4<>"",IF(D9<>"",IF(D9<>"NC",IF(C9<>"",C9/D9-1,""),""),""),"") -> 0.0004975124378 | L12: 01K02
L13: 01K03
L14: 01K04
F15: Médico technique: anesthésie | G15: =IF($B$4<>"",VLOOKUP($J$1,'Coûts 11 décomposés gds postes'!$A:$BA,15,FALSE),"") -> 436.54 | H15: =IF(C10<>"",IF(B27<>0,(G15+G16+G17+G18+G19+G20+G21+G22)/B27,""),"") -> 0.9065431982 | L15: 01K05
F16: Médico technique: bloc | G16: =IF($B$4<>"",VLOOKUP($J$1,'Coûts 11 décomposés gds postes'!$A:$BA,16,FALSE),"") -> 566.57 | L16: 01K06
F17: Médico technique: laboratoire | G17: =IF($B$4<>"",VLOOKUP($J$1,'Coûts 11 décomposés gds postes'!$A:$BA,22,FALSE)+VLOOKUP($J$1,'Coûts 11 décomposés gds postes'!$A:$BA,23,FALSE),"") -> 359.032 | L17: 01K07
F18: Médico technique: Imagerie | G18: =IF($B$4<>"",VLOOKUP($J$1,'Coûts 11 décomposés gds postes'!$A:$BA,20,FALSE),"") -> 343.31 | L18: 01M04
F19: Médico technique: Exploration fonctionnelle | G19: =IF($B$4<>"",VLOOKUP($J$1,'Coûts 11 décomposés gds postes'!$A:$BA,19,FALSE),"") -> 67.96 | L19: 01M05
F20: Médico technique: Radiothérapie | G20: =IF($B$4<>"",VLOOKUP($J$1,'Coûts 11 décomposés gds postes'!$A:$BA,26,FALSE),"") -> 0.28 | L20: 01M07
F21: Médico technique: SMUR terrestre | G21: =IF($B$4<>"",VLOOKUP($J$1,'Coûts 11 décomposés gds postes'!$A:$BA,27,FALSE),"") -> 100.36 | L21: 01M08
B22: Coût moyen 2011 | C22: Poids dans le coût du GHM | D22: Evolution 2011/2010 | F22: Médico technique: Urgences | G22: =IF($B$4<>"",VLOOKUP($J$1,'Coûts 11 décomposés gds postes'!$A:$BA,28,FALSE),"") -> 47.185 | L22: 01M09
A23: Activités cliniques MCO (avec hébergement, hors Réa, SI, SC) | B23: =IF($B$4<>"",VLOOKUP($J$1,'Coûts 11 décomposés gds postes'!$A:$BA,10,FALSE),"") -> 2011.26 | C23: =IF($C$10<>"",B23/$C$10,"") -> 0.1393105607 | D23: =IF($B$4<>"",VLOOKUP($J$1,Evolutions!$A:$T,7,FALSE),"") -> -0.06500860025 | L23: 01M10
A24: Activité de réanimation | B24: =IF($B$4<>"",VLOOKUP($J$1,'Coûts 11 décomposés gds postes'!$A:$BA,13,FALSE),"") -> 4562.83 | C24: =IF($C$10<>"",B24/$C$10,"") -> 0.3160458647 | D24: =IF($B$4<>"",VLOOKUP($J$1,Evolutions!$A:$T,10,FALSE),"") -> -0.02331042248 | F24: Logistique Médicale: Pharmacie | G24: =IF($B$4<>"",VLOOKUP($J$1,'Coûts 11 décomposés gds postes'!$A:$BA,39,FALSE),"") -> 201.59 | H24: =IF(C10<>"",IF(C10<>0,(G24+G25+G26)/B28,""),"") -> 0.7837272858 | L24: 01M11
A25: Activité de soins intensifs | B25: =IF($B$4<>"",VLOOKUP($J$1,'Coûts 11 décomposés gds postes'!$A:$BA,12,FALSE),"") -> 145 | C25: 0.01004347091 | D25: =IF($B$4<>"",VLOOKUP($J$1,Evolutions!$A:$T,9,FALSE),"") -> -0.2003529477 | F25: Logistique Médicale: Stérilisation | G25: =IF($B$4<>"",VLOOKUP($J$1,'Coûts 11 décomposés gds postes'!$A:$BA,40,FALSE),"") -> 89.56 | L25: 01M12
A26: Activité de surveillance continue | B26: =IF($B$4<>"",VLOOKUP($J$1,'Coûts 11 décomposés gds postes'!$A:$BA,11,FALSE),"") -> 581.49 | C26: 0.04027708897 | D26: =IF($B$4<>"",VLOOKUP($J$1,Evolutions!$A:$T,8,FALSE),"") -> 0.5687962014 | F26: Logistique Médicale: Hygiène et Vigilance | G26: =IF($B$4<>"",VLOOKUP($J$1,'Coûts 11 décomposés gds postes'!$A:$BA,42,FALSE),"") -> 35.774 | L26: 01M13
A27: Activités Médico-techniques | B27: =IF($B$4<>"",VLOOKUP($J$1,'Coûts 11 décomposés gds postes'!$A:$BA,30,FALSE),"") -> 2119.3 | C27: 0.1467939856 | D27: =IF($B$4<>"",VLOOKUP($J$1,Evolutions!$A:$T,11,FALSE),"") -> -0.0424575402 | L27: 01M15
A28: Logistique Médicale | B28: =IF($B$4<>"",VLOOKUP($J$1,'Coûts 11 décomposés gds postes'!$A:$BA,43,FALSE),"") -> 417.14 | C28: 0.02889333418 | D28: =IF($B$4<>"",VLOOKUP($J$1,Evolutions!$A:$T,13,FALSE),"") -> 0.01437151959 | F28: Logistique générale: Blanchisserie | G28: =IF($B$4<>"",VLOOKUP($J$1,'Coûts 11 décomposés gds postes'!$A:$BA,31,FALSE),"") -> 120.196 | H28: =IF(C10<>"",IF(B29<>0,(G28+G29+G30+G31+G32+G33)/B29,""),"") -> 0.8341988856 | L28: 01M16
A29: Logistique générale | B29: =IF($B$4<>"",VLOOKUP($J$1,'Coûts 11 décomposés gds postes'!$A:$BA,38,FALSE),"") -> 2229.02 | C29: 0.1543937761 | D29: =IF($B$4<>"",VLOOKUP($J$1,Evolutions!$A:$T,12,FALSE),"") -> -0.01742522757 | F29: Logistique générale: Restauration | G29: =IF($B$4<>"",VLOOKUP($J$1,'Coûts 11 décomposés gds postes'!$A:$BA,32,FALSE),"") -> 209.82 | L29: 01M17
A30: Charges directes | B30: =IF($B$4<>"",VLOOKUP($J$1,'Coûts 11 décomposés gds postes'!$A:$BA,50,FALSE),"") -> 2371.2 | C30: 0.1642419188 | D30: =IF($B$4<>"",VLOOKUP($J$1,Evolutions!$A:$T,14,FALSE),"") -> 0.009713037443 | F30: Logistique générale: Services administratifs à caractère général | G30: =IF($B$4<>"",VLOOKUP($J$1,'Coûts 11 décomposés gds postes'!$A:$BA,33,FALSE),"") -> 515.44 | L30: 01M18
F31: Logistique générale: Services administratifs liés au personnel | G31: =IF($B$4<>"",VLOOKUP($J$1,'Coûts 11 décomposés gds postes'!$A:$BA,34,FALSE),"") -> 337.57 | L31: 01M19
F32: Logistique générale: Entretien maintenance | G32: =IF($B$4<>"",VLOOKUP($J$1,'Coûts 11 décomposés gds postes'!$A:$BA,36,FALSE),"") -> 235.62 | L32: 01M20
F33: Logistique générale: Services hôteliers | G33: =IF($B$4<>"",VLOOKUP($J$1,'Coûts 11 décomposés gds postes'!$A:$BA,37,FALSE),"") -> 440.8 | L33: 01M21
L34: 01M22
F35: Charges directes: Autres consommables | G35: =IF($B$4<>"",VLOOKUP($J$1,'Coûts 11 décomposés gds postes'!$A:$BA,44,FALSE),"") -> 1057.35 | H35: =IF(C10<>"",IF(B30<>0,(G35+G36+G37)/B30,""),"") -> 0.5455718623 | L35: 01M23
F36: Charges directes: Spécialités pharmaceutiques facturables en sus | G36: =IF($B$4<>"",VLOOKUP($J$1,'Coûts 11 décomposés gds postes'!$A:$BA,48,FALSE),"") -> 107.22 | L36: 01M24
A37: Données de coûts: ENCC ex DG 2011 | F37: Charges directes: DMI facturables en sus | G37: =IF($B$4<>"",VLOOKUP($J$1,'Coûts 11 décomposés gds postes'!$A:$BA,46,FALSE),"") -> 129.09 | L37: 01M25
L38: 01M26
L39: 01M27
L40: 01M28
L41: 01M29
L42: 01M30
L43: 01M31
L44: 01M32
L45: 01M33
L46: 01M34
L47: 01M35
L48: 01M36
L49: 01M37
L50: 01M38
L51: 01M39
L52: 02C02
L53: 02C03
L54: 02C05
L55: 02C06
L56: 02C07
L57: 02C08
L58: 02C09
L59: 02C10
L60: 02C11
L61: 02C12
L62: 02C13
L63: 02M02
L64: 02M03
L65: 02M04
L66: 02M05
L67: 02M07
L68: 02M08
L69: 02M09
L70: 02M10
L71: 03C05
L72: 03C06
L73: 03C07
L74: 03C09
L75: 03C10
L76: 03C11
L77: 03C12
L78: 03C13
L79: 03C14
L80: 03C15
L81: 03C16
L82: 03C17
L83: 03C18
L84: 03C19
L85: 03C20
L86: 03C21
L87: 03C24
L88: 03C25
L89: 03C26
L90: 03C27
L91: 03C28
L92: 03C29
L93: 03C30
L94: 03K02
L95: 03K03
L96: 03K04
L97: 03M02
L98: 03M03
L99: 03M04
L100: 03M05
L101: 03M06
L102: 03M07
L103: 03M08
L104: 03M09
L105: 03M10
L106: 03M11
L107: 03M12
L108: 03M13
L109: 03M14
L110: 03M15
L111: 04C02
L112: 04C03
L113: 04C04
L114: 04K02
L115: 04M02
L116: 04M03
L117: 04M04
L118: 04M05
L119: 04M06
L120: 04M07
L121: 04M08
L122: 04M09
L123: 04M10
L124: 04M11
L125: 04M12
L126: 04M13
L127: 04M14
L128: 04M15
L129: 04M16
L130: 04M17
L131: 04M18
L132: 04M19
L133: 04M20
L134: 04M21
L135: 04M22
L136: 04M23
L137: 04M24
L138: 04M25
L139: 04M26
L140: 04M27
L141: 05C02
L142: 05C03
L143: 05C04
L144: 05C05
L145: 05C06
L146: 05C07
L147: 05C08
L148: 05C09
L149: 05C10
L150: 05C11
L151: 05C12
L152: 05C13
L153: 05C14
L154: 05C15
L155: 05C17
L156: 05C18
L157: 05C19
L158: 05C20
L159: 05C21
L160: 05C22
L161: 05K05
L162: 05K06
L163: 05K10
L164: 05K12
L165: 05K14
L166: 05K15
L167: 05K17
L168: 05K18
L169: 05K19
L170: 05K20
L171: 05K21
L172: 05K22
L173: 05K23
L174: 05K24
L175: 05K25
L176: 05K26
L177: 05M04
L178: 05M05
L179: 05M06
L180: 05M07
L181: 05M08
L182: 05M09
L183: 05M10
L184: 05M11
L185: 05M12
L186: 05M13
L187: 05M14
L188: 05M15
L189: 05M16
L190: 05M17
L191: 05M18
L192: 05M19
L193: 05M20
L194: 05M21
L195: 05M22
L196: 05M23
L197: 06C03
L198: 06C04
L199: 06C05
L200: 06C07
... 461 more rows

Sheet synthèse racine (2) (hidden)
A1: Fiche de synthèse Racine | J1: =CONCATENATE(B4,B5,B6,B7) -> 0101C01C03TOTAL | K1: Craniotomies pour traumatisme, âge supérieur à 17 ans | L1: 01C03
K2: Craniotomies en dehors de tout traumatisme, âge supérieur à 17 ans | L2: 01C04
A3: identification de la racine | K3: Interventions sur le rachis et la moelle pour des affections neurologiques | L3: 01C05
A4: CMD | B4: =LEFT(B5,2) -> 01 | K4: Interventions sur le système vasculaire précérébral | L4: 01C06
A5: sous CMD | B5: =LEFT(B6,3) -> 01C | K5: Interventions sur les nerfs crâniens ou périphériques et autres interventions sur le système nerveux | L5: 01C08
A6: racine | B6: =IF(B8<>"",VLOOKUP(B8,K:L,2,FALSE),"") -> 01C03 | K6: Pose d'un stimulateur cérébral | L6: 01C09
A7: GHMV11 | B7: TOTAL | K7: Pose d'un stimulateur médullaire | L7: 01C10
A8: libellé | B8: Craniotomies pour traumatisme, âge supérieur à 17 ans | K8: Craniotomies pour tumeurs, âge inférieur à 18 ans | L8: 01C11
C9: 2011 | D9: 2010 | E9: Evolution | K9: Craniotomies pour affections non tumorales, âge inférieur à 18 ans | L9: 01C12
A10: Coût moyen du séjour | C10: =IF($B$4<>"",VLOOKUP($J$1,'Coûts 11 décomposés gds postes'!$A:$BA,9,FALSE),"") -> 14437.24 | D10: =IF($B$4<>"",IF(ISNA(VLOOKUP($J$1,'Coûts 10 décomposés gds postes'!$A:$W,13,FALSE)),"NC",VLOOKUP($J$1,'Coûts 10 décomposés gds postes'!$A:$W,13,FALSE)),"") -> 14616.25 | E10: =IF($B$4<>"",VLOOKUP($J$1,Evolutions!$A:$T,6,FALSE),"") -> -0.01224732746 | G10: Coût moyen | H10: Part des postes détaillés dans le sous poste | K10: Libérations de nerfs superficiels à l'exception du médian au canal carpien | L10: 01C14
K11: Libérations du médian au canal carpien | L11: 01C15
A12: Nombre de séjours ENCC | C12: =IF($B$4<>"",VLOOKUP($J$1,'Coûts 11 décomposés gds postes'!$A:$BA,8,FALSE),"") -> 2102 | D12: =IF($B$4<>"",IF(ISNA(VLOOKUP($J$1,'Coûts 10 décomposés gds postes'!$A:$W,8,FALSE)),"NC",VLOOKUP($J$1,'Coûts 10 décomposés gds postes'!$A:$W,8,FALSE)),"") -> 1920 | E12: =IF($B$4<>"",IF(D9<>"",IF(D9<>"NC",IF(C9<>"",C9/D9-1,""),""),""),"") -> 0.0004975124378 | K12: Autres embolisations intracrâniennes et médullaires | L12: 01K02
K13: Autres actes thérapeutiques par voie vasculaire du système nerveux | L13: 01K03
K14: Injections de toxine botulique, en ambulatoire | L14: 01K04
F15: Médico technique: anesthésie | G15: =IF($B$4<>"",VLOOKUP($J$1,'Coûts 11 décomposés gds postes'!$A:$BA,15,FALSE),"") -> 436.54 | H15: =IF(C10<>"",IF(B27<>0,(G15+G16+G17+G18+G19+G20+G21+G22)/B27,""),"") -> 0.9065431982 | K15: Séjours pour douleurs chroniques rebelles comprenant un bloc ou une infiltration, en ambulatoire | L15: 01K05
F16: Médico technique: bloc | G16: =IF($B$4<>"",VLOOKUP($J$1,'Coûts 11 décomposés gds postes'!$A:$BA,16,FALSE),"") -> 566.57 | K16: Affections du système nerveux sans acte opératoire avec anesthésie, en ambulatoire | L16: 01K06
F17: Médico technique: laboratoire | G17: =IF($B$4<>"",VLOOKUP($J$1,'Coûts 11 décomposés gds postes'!$A:$BA,22,FALSE)+VLOOKUP($J$1,'Coûts 11 décomposés gds postes'!$A:$BA,23,FALSE),"") -> 359.032 | K17: Embolisations intracrâniennes et médullaires pour hémorragie | L17: 01K07
F18: Médico technique: Imagerie | G18: =IF($B$4<>"",VLOOKUP($J$1,'Coûts 11 décomposés gds postes'!$A:$BA,20,FALSE),"") -> 343.31 | K18: Méningites virales | L18: 01M04
F19: Médico technique: Exploration fonctionnelle | G19: =IF($B$4<>"",VLOOKUP($J$1,'Coûts 11 décomposés gds postes'!$A:$BA,19,FALSE),"") -> 67.96 | K19: Infections du système nerveux à l'exception des méningites virales | L19: 01M05
F20: Médico technique: Radiothérapie | G20: =IF($B$4<>"",VLOOKUP($J$1,'Coûts 11 décomposés gds postes'!$A:$BA,26,FALSE),"") -> 0.28 | K20: Maladies dégénératives du système nerveux, âge supérieur à 79 ans | L20: 01M07
F21: Médico technique: SMUR terrestre | G21: =IF($B$4<>"",VLOOKUP($J$1,'Coûts 11 décomposés gds postes'!$A:$BA,27,FALSE),"") -> 100.36 | K21: Maladies dégénératives du système nerveux, âge inférieur à 80 ans | L21: 01M08
B22: Coût moyen 2011 | C22: Poids dans le coût du GHM | D22: Evolution 2011/2010 | F22: Médico technique: Urgences | G22: =IF($B$4<>"",VLOOKUP($J$1,'Coûts 11 décomposés gds postes'!$A:$BA,28,FALSE),"") -> 47.185 | K22: Affections et lésions du rachis et de la moelle | L22: 01M09
A23: activités cliniques MCO (avec hébergement, hors Réa, SI, SC) | B23: =IF($B$4<>"",VLOOKUP($J$1,'Coûts 11 décomposés gds postes'!$A:$BA,10,FALSE),"") -> 2011.26 | C23: =IF($C$10<>"",B23/$C$10,"") -> 0.1393105607 | D23: =IF($B$4<>"",VLOOKUP($J$1,Evolutions!$A:$T,7,FALSE),"") -> -0.06500860025 | K23: Autres affections cérébrovasculaires | L23: 01M10
A24: Activité de réanimation | B24: =IF($B$4<>"",VLOOKUP($J$1,'Coûts 11 décomposés gds postes'!$A:$BA,13,FALSE),"") -> 4562.83 | C24: =IF($C$10<>"",B24/$C$10,"") -> 0.3160458647 | D24: =IF($B$4<>"",VLOOKUP($J$1,Evolutions!$A:$T,10,FALSE),"") -> -0.02331042248 | F24: Logistique Médicale: Pharmacie | G24: =IF($B$4<>"",VLOOKUP($J$1,'Coûts 11 décomposés gds postes'!$A:$BA,39,FALSE),"") -> 201.59 | H24: =IF(C10<>"",IF(C10<>0,(G24+G25+G26)/B28,""),"") -> 0.7837272858 | K24: Affections des nerfs crâniens et rachidiens | L24: 01M11
A25: Activité de soins intensifs | B25: =IF($B$4<>"",VLOOKUP($J$1,'Coûts 11 décomposés gds postes'!$A:$BA,12,FALSE),"") -> 145 | C25: 0.01004347091 | D25: =IF($B$4<>"",VLOOKUP($J$1,Evolutions!$A:$T,9,FALSE),"") -> -0.2003529477 | F25: Logistique Médicale: Stérilisation | G25: =IF($B$4<>"",VLOOKUP($J$1,'Coûts 11 décomposés gds postes'!$A:$BA,40,FALSE),"") -> 89.56 | K25: Autres affections du système nerveux | L25: 01M12
A26: Activité de surveillance continue | B26: =IF($B$4<>"",VLOOKUP($J$1,'Coûts 11 décomposés gds postes'!$A:$BA,11,FALSE),"") -> 581.49 | C26: 0.04027708897 | D26: =IF($B$4<>"",VLOOKUP($J$1,Evolutions!$A:$T,8,FALSE),"") -> 0.5687962014 | F26: Logistique Médicale: Hygiène et Vigilance | G26: =IF($B$4<>"",VLOOKUP($J$1,'Coûts 11 décomposés gds postes'!$A:$BA,42,FALSE),"") -> 35.774 | K26: Troubles de la conscience et comas d'origine non traumatique | L26: 01M13
A27: Activités Médico-techniques | B27: =IF($B$4<>"",VLOOKUP($J$1,'Coûts 11 décomposés gds postes'!$A:$BA,30,FALSE),"") -> 2119.3 | C27: 0.1467939856 | D27: =IF($B$4<>"",VLOOKUP($J$1,Evolutions!$A:$T,11,FALSE),"") -> -0.0424575402 | K27: Accidents ischémiques transitoires et occlusions des artères précérébrales, âge supérieur à 79 ans | L27: 01M15
A28: Logistique Médicale | B28: =IF($B$4<>"",VLOOKUP($J$1,'Coûts 11 décomposés gds postes'!$A:$BA,43,FALSE),"") -> 417.14 | C28: 0.02889333418 | D28: =IF($B$4<>"",VLOOKUP($J$1,Evolutions!$A:$T,13,FALSE),"") -> 0.01437151959 | F28: Logistique générale: Blanchisserie | G28: =IF($B$4<>"",VLOOKUP($J$1,'Coûts 11 décomposés gds postes'!$A:$BA,31,FALSE),"") -> 120.196 | H28: =IF(C10<>"",IF(B29<>0,(G28+G29+G30+G31+G32+G33)/B29,""),"") -> 0.8341988856 | K28: Accidents ischémiques transitoires et occlusions des artères précérébrales, âge inférieur à 80 ans | L28: 01M16
A29: Logistique générale | B29: =IF($B$4<>"",VLOOKUP($J$1,'Coûts 11 décomposés gds postes'!$A:$BA,38,FALSE),"") -> 2229.02 | C29: 0.1543937761 | D29: =IF($B$4<>"",VLOOKUP($J$1,Evolutions!$A:$T,12,FALSE),"") -> -0.01742522757 | F29: Logistique générale: Restauration | G29: =IF($B$4<>"",VLOOKUP($J$1,'Coûts 11 décomposés gds postes'!$A:$BA,32,FALSE),"") -> 209.82 | K29: Sclérose en plaques et ataxie cérébelleuse | L29: 01M17
A30: Charges directes | B30: =IF($B$4<>"",VLOOKUP($J$1,'Coûts 11 décomposés gds postes'!$A:$BA,50,FALSE),"") -> 2371.2 | C30: 0.1642419188 | D30: =IF($B$4<>"",VLOOKUP($J$1,Evolutions!$A:$T,14,FALSE),"") -> 0.009713037443 | F30: Logistique générale: Services administratifs à caractère général | G30: =IF($B$4<>"",VLOOKUP($J$1,'Coûts 11 décomposés gds postes'!$A:$BA,33,FALSE),"") -> 515.44 | K30: Lésions traumatiques intracrâniennes sévères | L30: 01M18
F31: Logistique générale: Services administratifs liés au personnel | G31: =IF($B$4<>"",VLOOKUP($J$1,'Coûts 11 décomposés gds postes'!$A:$BA,34,FALSE),"") -> 337.57 | K31: Autres lésions traumatiques intracrâniennes, sauf commotions | L31: 01M19
F32: Logistique générale: Entretien maintenance | G32: =IF($B$4<>"",VLOOKUP($J$1,'Coûts 11 décomposés gds postes'!$A:$BA,36,FALSE),"") -> 235.62 | K32: Commotions cérébrales | L32: 01M20
F33: Logistique générale: Services hôteliers | G33: =IF($B$4<>"",VLOOKUP($J$1,'Coûts 11 décomposés gds postes'!$A:$BA,37,FALSE),"") -> 440.8 | K33: Douleurs chroniques rebelles | L33: 01M21
K34: Migraines et céphalées | L34: 01M22
F35: Charges directes: Autres consommables | G35: =IF($B$4<>"",VLOOKUP($J$1,'Coûts 11 décomposés gds postes'!$A:$BA,44,FALSE),"") -> 1057.35 | H35: =IF(C10<>"",IF(B30<>0,(G35+G36+G37)/B30,""),"") -> 0.5455718623 | K35: Convulsions hyperthermiques | L35: 01M23
F36: Charges directes: Spécialités pharmaceutiques facturables en sus | G36: =IF($B$4<>"",VLOOKUP($J$1,'Coûts 11 décomposés gds postes'!$A:$BA,48,FALSE),"") -> 107.22 | K36: Epilepsie, âge inférieur à 18 ans | L36: 01M24
A37: Données de coûts: ENCC ex DG 2011 | F37: Charges directes: DMI facturables en sus | G37: =IF($B$4<>"",VLOOKUP($J$1,'Coûts 11 décomposés gds postes'!$A:$BA,46,FALSE),"") -> 129.09 | K37: Epilepsie, âge supérieur à 17 ans | L37: 01M25
K38: Tumeurs malignes du système nerveux | L38: 01M26
K39: Autres tumeurs du système nerveux | L39: 01M27
K40: Hydrocéphalies | L40: 01M28
K41: Anévrysmes cérébraux | L41: 01M29
K42: Accidents vasculaires intracérébraux non transitoires | L42: 01M30
K43: Autres accidents vasculaires cérébraux non transitoires | L43: 01M31
K44: Explorations et surveillance pour affections du système nerveux | L44: 01M32
K45: Troubles du sommeil | L45: 01M33
K46: Anomalies de la démarche d'origine neurologique | L46: 01M34
K47: Symptômes et autres recours aux soins de la CMD 01 | L47: 01M35
K48: Accidents vasculaires cérébraux non transitoires avec décès : séjours de moins de 2 jours | L48: 01M36
K49: Autres affections de la CMD 01 avec décès : séjours de moins de 2 jours | L49: 01M37
K50: Autres affections neurologiques concernant majoritairement la petite enfance | L50: 01M38
K51: Troubles de la régulation thermique du nouveau-né et du nourrisson | L51: 01M39
K52: Interventions sur la rétine | L52: 02C02
K53: Interventions sur l'orbite | L53: 02C03
K54: Interventions sur le cristallin avec ou sans vitrectomie | L54: 02C05
K55: Interventions primaires sur l'iris | L55: 02C06
K56: Autres interventions extraoculaires, âge inférieur à 18 ans | L56: 02C07
K57: Autres interventions extraoculaires, âge supérieur à 17 ans | L57: 02C08
K58: Allogreffes de cornée | L58: 02C09
K59: Autres interventions intraoculaires pour affections sévères | L59: 02C10
K60: Autres interventions intraoculaires en dehors des affections sévères | L60: 02C11
K61: Interventions sur le cristallin avec trabéculectomie | L61: 02C12
K62: Interventions sur les muscles oculomoteurs, âge inférieur à 18 ans | L62: 02C13
K63: Hyphéma | L63: 02M02
K64: Infections oculaires aiguës sévères | L64: 02M03
K65: Affections oculaires d'origine neurologique | L65: 02M04
K66: Autres affections oculaires, âge inférieur à 18 ans | L66: 02M05
K67: Autres affections oculaires d'origine diabétique, âge supérieur à 17 ans | L67: 02M07
K68: Autres affections oculaires d'origine non diabétique, âge supérieur à 17 ans | L68: 02M08
K69: Explorations et surveillance pour affections de l'oeil | L69: 02M09
K70: Symptômes et autres recours aux soins de la CMD 02 | L70: 02M10
K71: Réparations de fissures labiale et palatine | L71: 03C05
K72: Interventions sur les sinus et l'apophyse mastoïde, âge inférieur à 18 ans | L72: 03C06
K73: Interventions sur les sinus et l'apophyse mastoïde, âge supérieur à 17 ans | L73: 03C07
K74: Rhinoplasties | L74: 03C09
K75: Amygdalectomies et/ou adénoïdectomies isolées, âge inférieur à 18 ans | L75: 03C10
K76: Amygdalectomies et/ou adénoïdectomies isolées, âge supérieur à 17 ans | L76: 03C11
K77: Interventions sur les amygdales et les végétations adénoïdes autres que les amygdalectomies et/ou les adénoïdectomies isolées, âge inférieur à 18 ans | L77: 03C12
K78: Interventions sur les amygdales et les végétations adénoïdes autres que les amygdalectomies et/ou les adénoïdectomies isolées, âge supérieur à 17 ans | L78: 03C13
K79: Drains transtympaniques, âge inférieur à 18 ans | L79: 03C14
K80: Drains transtympaniques, âge supérieur à 17 ans | L80: 03C15
K81: Autres interventions chirurgicales portant sur les oreilles, le nez, la gorge ou le cou | L81: 03C16
K82: Interventions sur la bouche | L82: 03C17
K83: Pose d'implants cochléaires | L83: 03C18
K84: Ostéotomies de la face | L84: 03C19
K85: Interventions de reconstruction de l'oreille moyenne | L85: 03C20
K86: Interventions pour oreilles décollées | L86: 03C21
K87: Interventions sur les glandes salivaires | L87: 03C24
K88: Interventions majeures sur la tête et le cou | L88: 03C25
K89: Autres interventions sur la tête et le cou | L89: 03C26
K90: Interventions sur les amygdales, en ambulatoire | L90: 03C27
K91: Interventions sur les végétations adénoïdes, en ambulatoire | L91: 03C28
K92: Autres interventions sur l'oreille, le nez ou la gorge pour tumeurs malignes | L92: 03C29
K93: Interventions sur l'oreille externe | L93: 03C30
K94: Affections de la bouche et des dents avec certaines extractions, réparations et prothèses dentaires | L94: 03K02
K95: Séjours comprenant une endoscopie oto-rhino-laryngologique, en ambulatoire | L95: 03K03
K96: Séjours comprenant certains actes non opératoires de la CMD 03, en ambulatoire | L96: 03K04
K97: Traumatismes et déformations du nez | L97: 03M02
K98: Otites moyennes et autres infections des voies aériennes supérieures, âge inférieur à 18 ans | L98: 03M03
K99: Otites moyennes et autres infections des voies aériennes supérieures, âge supérieur à 17 ans | L99: 03M04
K100: Troubles de l'équilibre | L100: 03M05
K101: Epistaxis | L101: 03M06
K102: Tumeurs malignes des oreilles, du nez, de la gorge ou de la bouche | L102: 03M07
K103: Autres diagnostics portant sur les oreilles, le nez, la gorge ou la bouche, âge inférieur à 18 ans | L103: 03M08
K104: Autres diagnostics portant sur les oreilles, le nez, la gorge ou la bouche, âge supérieur à 17 ans | L104: 03M09
K105: Affections de la bouche et des dents sans certaines extractions, réparations ou prothèses dentaires, âge inférieur à 18 ans | L105: 03M10
K106: Affections de la bouche et des dents sans certaines extractions, réparations ou prothèses dentaires, âge supérieur à 17 ans | L106: 03M11
K107: Infections aigües sévères des voies aériennes supérieures, âge inférieur à 18 ans | L107: 03M12
K108: Infections aigües sévères des voies aériennes supérieures, âge supérieur à 17 ans | L108: 03M13
K109: Explorations et surveillance pour affections ORL | L109: 03M14
K110: Symptômes et autres recours aux soins de la CMD 03 | L110: 03M15
K111: Interventions majeures sur le thorax | L111: 04C02
K112: Autres interventions chirurgicales sur le système respiratoire | L112: 04C03
K113: Interventions sous thoracoscopie | L113: 04C04
K114: Séjours comprenant une endoscopie bronchique, en ambulatoire | L114: 04K02
K115: Bronchites et asthme, âge inférieur à 18 ans | L115: 04M02
K116: Bronchites et asthme, âge supérieur à 17 ans | L116: 04M03
K117: Pneumonies et pleurésies banales, âge inférieur à 18 ans | L117: 04M04
K118: Pneumonies et pleurésies banales, âge supérieur à 17 ans | L118: 04M05
K119: Infections et inflammations respiratoires, âge inférieur à 18 ans | L119: 04M06
K120: Infections et inflammations respiratoires, âge supérieur à 17 ans | L120: 04M07
K121: Bronchopneumopathies chroniques | L121: 04M08
K122: Tumeurs de l'appareil respiratoire | L122: 04M09
K123: Embolies pulmonaires | L123: 04M10
K124: Signes et symptômes respiratoires | L124: 04M11
K125: Pneumothorax | L125: 04M12
K126: Oedème pulmonaire et détresse respiratoire | L126: 04M13
K127: Maladies pulmonaires interstitielles | L127: 04M14
K128: Autres diagnostics portant sur le système respiratoire | L128: 04M15
K129: Traumatismes thoraciques | L129: 04M16
K130: Epanchements pleuraux | L130: 04M17
K131: Bronchiolites | L131: 04M18
K132: Tuberculoses | L132: 04M19
K133: Bronchopneumopathies chroniques surinfectées | L133: 04M20
K134: Suivis de greffe pulmonaire | L134: 04M21
K135: Explorations et surveillance pour affections de l'appareil respiratoire | L135: 04M22
K136: Autres symptômes et recours aux soins de la CMD 04 | L136: 04M23
K137: Affections de la CMD 04 avec décès : séjours de moins de 2 jours | L137: 04M24
K138: Grippes | L138: 04M25
K139: Fibroses kystiques avec manifestations pulmonaires | L139: 04M26
K140: Autres affections respiratoires concernant majoritairement la petite enfance | L140: 04M27
K141: Chirurgie de remplacement valvulaire avec circulation extracorporelle et avec cathétérisme cardiaque ou coronarographie | L141: 05C02
K142: Chirurgie de remplacement valvulaire avec circulation extracorporelle, sans cathétérisme cardiaque, ni coronarographie | L142: 05C03
K143: Pontages aortocoronariens avec cathétérisme cardiaque ou coronarographie | L143: 05C04
K144: Pontages aortocoronariens sans cathétérisme cardiaque, ni coronarographie | L144: 05C05
K145: Autres interventions cardiothoraciques, âge supérieur à 1 an, ou vasculaires quel que soit l'âge, avec circulation extracorporelle | L145: 05C06
K146: Autres interventions cardiothoraciques, âge inférieur à 2 ans, avec circulation extracorporelle | L146: 05C07
K147: Autres interventions cardiothoraciques, âge supérieur à 1 an, ou vasculaires quel que soit l'âge, sans circulation extracorporelle | L147: 05C08
K148: Autres interventions cardiothoraciques, âge inférieur à 2 ans, sans circulation extracorporelle | L148: 05C09
K149: Chirurgie majeure de revascularisation | L149: 05C10
K150: Autres interventions de chirurgie vasculaire | L150: 05C11
K151: Amputations du membre inférieur, sauf des orteils, pour troubles circulatoires | L151: 05C12
K152: Amputations pour troubles circulatoires portant sur le membre supérieur ou les orteils | L152: 05C13
K153: Poses d'un stimulateur cardiaque permanent avec infarctus aigu du myocarde ou insuffisance cardiaque congestive ou état de choc | L153: 05C14
K154: Poses d'un stimulateur cardiaque permanent sans infarctus aigu du myocarde, ni insuffisance cardiaque congestive, ni état de choc | L154: 05C15
K155: Ligatures de veines et éveinages | L155: 05C17
K156: Autres interventions sur le système circulatoire | L156: 05C18
K157: Poses d'un défibrillateur cardiaque | L157: 05C19
K158: Remplacements ou ablations chirurgicale d'électrodes ou repositionnements de boîtier de stimulation cardiaque permanente | L158: 05C20
K159: Créations et réfections de fistules artérioveineuses pour affections de la CMD 05 | L159: 05C21
K160: Remplacements de stimulateurs cardiaques permanents | L160: 05C22
K161: Endoprothèses vasculaires avec infarctus du myocarde | L161: 05K05
K162: Endoprothèses vasculaires sans infarctus du myocarde | L162: 05K06
K163: Actes diagnostiques par voie vasculaire | L163: 05K10
K164: Actes thérapeutiques par voie vasculaire sauf endoprothèses, âge inférieur à 18 ans | L164: 05K12
K165: Mise en place de certains accès vasculaires pour des affections de la CMD 05, séjours de moins de 2 jours | L165: 05K14
K166: Surveillances de greffes de coeur avec acte diagnostique par voie vasculaire | L166: 05K15
K167: Affections cardiovasculaires sans acte opératoire de la CMD 05, avec anesthésie, en ambulatoire | L167: 05K17
K168: Varices avec acte autre que ligature et éveinage, en ambulatoire | L168: 05K18
K169: Traitements majeurs de troubles du rythme par voie vasculaire | L169: 05K19
K170: Autres traitements de troubles du rythme par voie vasculaire | L170: 05K20
K171: Poses de bioprothèses de valves cardiaques par voie vasculaire | L171: 05K21
K172: Actes thérapeutiques par voie vasculaire sur les orifices du coeur, âge supérieur à 17 ans | L172: 05K22
K173: Ablations, repositionnements et poses de sondes cardiaques supplémentaires par voie vasculaire, âge supérieur à 17 ans | L173: 05K23
K174: Dilatations coronaires et autres actes thérapeutiques sur le coeur par voie vasculaire, âge supérieur à 17 ans | L174: 05K24
K175: Actes thérapeutiques sur les artères par voie vasculaire, âge supérieur à 17 ans | L175: 05K25
K176: Actes thérapeutiques sur les accès vasculaires ou les veines par voie vasculaire, âge supérieur à 17 ans | L176: 05K26
K177: Infarctus aigu du myocarde | L177: 05M04
K178: Syncopes et lipothymies | L178: 05M05
K179: Angine de poitrine | L179: 05M06
K180: Thrombophlébites veineuses profondes | L180: 05M07
K181: Arythmies et troubles de la conduction cardiaque | L181: 05M08
K182: Insuffisances cardiaques et états de choc circulatoire | L182: 05M09
K183: Cardiopathies congénitales et valvulopathies, âge inférieur à 18 ans | L183: 05M10
K184: Cardiopathies congénitales et valvulopathies, âge supérieur à 17 ans | L184: 05M11
K185: Troubles vasculaires périphériques | L185: 05M12
K186: Douleurs thoraciques | L186: 05M13
K187: Arrêt cardiaque | L187: 05M14
K188: Hypertension artérielle | L188: 05M15
K189: Athérosclérose coronarienne | L189: 05M16
K190: Autres affections de l'appareil circulatoire | L190: 05M17
K191: Endocardites aiguës et subaiguës | L191: 05M18
K192: Surveillances de greffes de coeur sans acte diagnostique par voie vasculaire | L192: 05M19
K193: Explorations et surveillance pour affections de l'appareil circulatoire | L193: 05M20
K194: Infarctus aigu du myocarde avec décès : séjours de moins de 2 jours | L194: 05M21
K195: Autres affections de la CMD 05 avec décès : séjours de moins de 2 jours | L195: 05M22
K196: Symptômes et autres recours aux soins de la CMD 05 | L196: 05M23
K197: Résections rectales | L197: 06C03
K198: Interventions majeures sur l'intestin grêle et le côlon | L198: 06C04
K199: Interventions sur l'oesophage, l'estomac et le duodénum, âge inférieur à 18 ans | L199: 06C05
K200: Interventions mineures sur l'intestin grêle et le côlon | L200: 06C07
... 461 more rows

Sheet synthèse GHM (hidden)
A1: Fiche de synthèse GHM | J1: =B4 -> 01C031 | K1: 01C031 | L1: Craniotomies pour traumatisme, âge supérieur à 17 ans, niveau 1
K2: 01C032 | L2: Craniotomies pour traumatisme, âge supérieur à 17 ans, niveau 2
A3: Identification du GHM | K3: 01C033 | L3: Craniotomies pour traumatisme, âge supérieur à 17 ans, niveau 3
A4: GHM | B4: 01C031 | K4: 01C034 | L4: Craniotomies pour traumatisme, âge supérieur à 17 ans, niveau 4
A5: Libellé | B5: =IF(B4<>"",VLOOKUP(B4,$K:$L,2,FALSE),"") -> Craniotomies pour traumatisme, âge supérieur à 17 ans, niveau 1 | K5: 01C041 | L5: Craniotomies en dehors de tout traumatisme, âge supérieur à 17 ans, niveau 1
C6: 2011 | D6: 2010 | E6: Evolution | K6: 01C042 | L6: Craniotomies en dehors de tout traumatisme, âge supérieur à 17 ans, niveau 2
A7: Coût moyen du séjour | C7: =IF($B$4<>"",VLOOKUP($B$4,'Coûts décomposés'!$A:$EY,5,FALSE),"") -> 5355.5 | D7: =IF($B$4<>"",IF(ISNA(VLOOKUP($B$4,'Coûts 10 décomposés gds postes'!$E:$W,9,FALSE)),"NC",VLOOKUP($B$4,'Coûts 10 décomposés gds postes'!$E:$W,9,FALSE)),"") -> 5579.47 | E7: =IF($B$4<>"",IF(ISNA(VLOOKUP($J$1,Evolutions!$E:$N,2,FALSE)),"NC",VLOOKUP($J$1,Evolutions!$E:$N,2,FALSE)),"") -> -0.04014180558 | K7: 01C043 | L7: Craniotomies en dehors de tout traumatisme, âge supérieur à 17 ans, niveau 3
K8: 01C044 | L8: Craniotomies en dehors de tout traumatisme, âge supérieur à 17 ans, niveau 4
A9: Nombre de séjours ENCC | C9: =IF($B$4<>"",VLOOKUP($B$4,'Coûts décomposés'!$A:$EY,4,FALSE),"") -> 594 | D9: =IF($B$4<>"",IF(ISNA(VLOOKUP($B$4,'Coûts 10 décomposés gds postes'!$E:$W,4,FALSE)),"NC",VLOOKUP($B$4,'Coûts 10 décomposés gds postes'!$E:$W,4,FALSE)),"") -> 633 | E9: =IF($B$4<>"",IF(D9<>"",IF(D9<>"NC",IF(C9<>"",C9/D9-1,""),""),""),"") -> -0.06161137441 | G9: Coût moyen 2011 | H9: Part des postes détaillés dans le sous poste | K9: 01C051 | L9: Interventions sur le rachis et la moelle pour des affections neurologiques, niveau 1
K10: 01C052 | L10: Interventions sur le rachis et la moelle pour des affections neurologiques, niveau 2
A11: Intervalle de confiance | B11: Borne Basse | C11: =IF($B$4<>"",VLOOKUP($B$4,'Intervalle de confiance'!A:M,12,FALSE),"") -> 4640.93 | D11: =IF($B$4<>"",IF(ISNA(VLOOKUP($B$4,'Coûts 10 décomposés gds postes'!$E:$W,7,FALSE)),"NC",VLOOKUP($B$4,'Coûts 10 décomposés gds postes'!$E:$W,7,FALSE)),"") -> 5151.13 | K11: 01C053 | L11: Interventions sur le rachis et la moelle pour des affections neurologiques, niveau 3
B12: Borne Haute | C12: =IF($B$4<>"",VLOOKUP($B$4,'Intervalle de confiance'!A:M,13,FALSE),"") -> 6070.06 | D12: =IF($B$4<>"",IF(ISNA(VLOOKUP($B$4,'Coûts 10 décomposés gds postes'!$E:$W,8,FALSE)),"NC",VLOOKUP($B$4,'Coûts 10 décomposés gds postes'!$E:$W,8,FALSE)),"") -> 6007.8 | K12: 01C054 | L12: Interventions sur le rachis et la moelle pour des affections neurologiques, niveau 4
K13: 01C061 | L13: Interventions sur le système vasculaire précérébral, niveau 1
F14: Cliniques: Personnel médical | G14: =IF(B4<>"",VLOOKUP(B4,'Coûts décomposés'!A:EY,9,FALSE),"") -> 179.68 | H14: =IF($C$7<>"",IF(B23<>0,(G14+G15+G16)/B23,""),"") -> 0.9938414814 | K14: 01C062 | L14: Interventions sur le système vasculaire précérébral, niveau 2
F15: Cliniques: Personnel soignant | G15: =IF(B4<>"",VLOOKUP(B4,'Coûts décomposés'!A:EY,10,FALSE),"") -> 819.97 | K15: 01C063 | L15: Interventions sur le système vasculaire précérébral, niveau 3
F16: Cliniques: Personnel autre | G16: =IF(B4<>"",VLOOKUP(B4,'Coûts décomposés'!A:EY,8,FALSE),"") -> 178.4 | K16: 01C064 | L16: Interventions sur le système vasculaire précérébral, niveau 4
K17: 01C081 | L17: Interventions sur les nerfs crâniens ou périphériques et autres interventions sur le système nerveux, niveau 1
F18: Réanimation: Personnel médical | G18: =IF(B4<>"",VLOOKUP(B4,'Coûts décomposés'!A:EY,27,FALSE),"") -> 86.72 | H18: =IF(C7<>"",IF(B24<>0,(G18+G19+G20)/B24,""),"") -> 0.961027342 | K18: 01C082 | L18: Interventions sur les nerfs crâniens ou périphériques et autres interventions sur le système nerveux, niveau 2
F19: Réanimation: Personnel soignant | G19: =IF(B4<>"",VLOOKUP(B4,'Coûts décomposés'!A:EY,28,FALSE),"") -> 324.9 | K19: 01C083 | L19: Interventions sur les nerfs crâniens ou périphériques et autres interventions sur le système nerveux, niveau 3
F20: Réanimation: Personnel autre | G20: =IF(B4<>"",VLOOKUP(B4,'Coûts décomposés'!A:EY,26,FALSE),"") -> 28.79 | K20: 01C084 | L20: Interventions sur les nerfs crâniens ou périphériques et autres interventions sur le système nerveux, niveau 4
K21: 01C08J | L21: Interventions sur les nerfs crâniens ou périphériques et autres interventions sur le système nerveux, en ambulatoire
B22: Coût moyen 2011 | C22: Poids dans le coût du GHM | D22: Evolution 2011/2010 | F22: Soins intensifs: Personnel médical | G22: =IF(B4<>"",VLOOKUP(B4,'Coûts décomposés'!A:EY,21,FALSE),"") -> 14.34 | H22: =IF(C7<>"",IF(B25<>0,(G22+G23+G24)/B25,""),"") -> 0.9748382459 | K22: 01C091 | L22: Pose d'un stimulateur cérébral, niveau 1
A23: Activités cliniques MCO (avec hébergement, hors Réa, SI, SC) | B23: =IF(B4<>"",VLOOKUP(B4,'Coûts décomposés'!A:EY,11,FALSE),"") -> 1185.35 | C23: =IF($C$7<>"",B23/$C$7,"") -> 0.2213332089 | D23: =IF($B$4<>"",VLOOKUP($J$1,Evolutions!$E:$N,3,FALSE),"") -> -0.133319685 | F23: Soins intensifs: Personnel soignant | G23: =IF(B4<>"",VLOOKUP(B4,'Coûts décomposés'!A:EY,22,FALSE),"") -> 38.27 | K23: 01C092 | L23: Pose d'un stimulateur cérébral, niveau 2
A24: Activité de réanimation | B24: =IF(B4<>"",VLOOKUP(B4,'Coûts décomposés'!A:EY,29,FALSE),"") -> 458.27 | C24: =IF($C$7<>"",B24/$C$7,"") -> 0.08556997479 | D24: =IF($B$4<>"",VLOOKUP($J$1,Evolutions!$E:$N,6,FALSE),"") -> -0.06933246685 | F24: Soins intensifs: Personnel autre | G24: =IF(B4<>"",VLOOKUP(B4,'Coûts décomposés'!A:EY,20,FALSE),"") -> 1.63 | K24: 01C093 | L24: Pose d'un stimulateur cérébral, niveau 3
A25: Activité de soins intensifs | B25: =IF(B4<>"",VLOOKUP(B4,'Coûts décomposés'!A:EY,23,FALSE),"") -> 55.64 | C25: 0.01038931939 | D25: =IF($B$4<>"",VLOOKUP($J$1,Evolutions!$E:$N,5,FALSE),"") -> -0.1787453875 | K25: 01C094 | L25: Pose d'un stimulateur cérébral, niveau 4
A26: Activité de surveillance continue | B26: =IF(B4<>"",VLOOKUP(B4,'Coûts décomposés'!A:EY,17,FALSE),"") -> 158.94 | C26: 0.02967790122 | D26: =IF($B$4<>"",VLOOKUP($J$1,Evolutions!$E:$N,4,FALSE),"") -> 0.3922564821 | F26: Surveillance continue: Personnel médical | G26: =IF(B4<>"",VLOOKUP(B4,'Coûts décomposés'!A:EY,15,FALSE),"") -> 32.26 | H26: =IF(C7<>"",IF(B26<>0,(G26+G27+G28)/B26,""),"") -> 0.9869699258 | K26: 01C101 | L26: Pose d'un stimulateur médullaire, niveau 1
A27: Activités Médico-techniques | B27: =IF(B4<>"",VLOOKUP(B4,'Coûts décomposés'!A:EY,129,FALSE),"") -> 1298.16 | C27: 0.2423975352 | D27: =IF($B$4<>"",VLOOKUP($J$1,Evolutions!$E:$N,7,FALSE),"") -> -0.02120953939 | F27: Surveillance continue: Personnel soignant | G27: =IF(B4<>"",VLOOKUP(B4,'Coûts décomposés'!A:EY,16,FALSE),"") -> 116.17 | K27: 01C102 | L27: Pose d'un stimulateur médullaire, niveau 2
A28: Logistique Médicale | B28: =IF(B4<>"",VLOOKUP(B4,'Coûts décomposés'!A:EY,147,FALSE),"") -> 184.94 | C28: 0.03453272337 | D28: =IF($B$4<>"",VLOOKUP($J$1,Evolutions!$E:$N,9,FALSE),"") -> 0.04704750042 | F28: Surveillance continue: Personnel autre | G28: =IF(B4<>"",VLOOKUP(B4,'Coûts décomposés'!A:EY,14,FALSE),"") -> 8.439 | K28: 01C103 | L28: Pose d'un stimulateur médullaire, niveau 3
A29: Logistique générale | B29: =IF(B4<>"",VLOOKUP(B4,'Coûts décomposés'!A:EY,141,FALSE),"") -> 927.83 | C29: 0.1732480627 | D29: =IF($B$4<>"",VLOOKUP($J$1,Evolutions!$E:$N,8,FALSE),"") -> -0.09051432604 | K29: 01C10J | L29: Pose d'un stimulateur médullaire, en ambulatoire
A30: Charges directes | B30: =IF(B4<>"",VLOOKUP(B4,'Coûts décomposés'!A:FK,164,FALSE),"") -> 1086.36 | C30: 0.2028494072 | D30: =IF($B$4<>"",VLOOKUP($J$1,Evolutions!$E:$N,10,FALSE),"") -> 0.07097015882 | F30: Médico technique: anesthésie | G30: =IF(B4<>"",VLOOKUP(B4,'Coûts décomposés'!A:EY,36,FALSE),"") -> 382.95 | H30: =IF(C7<>"",IF(B27<>0,(G30+G31+G32+G33)/B27,""),"") -> 0.8397447156 | K30: 01C111 | L30: Craniotomies pour tumeurs, âge inférieur à 18 ans, niveau 1
F31: Médico technique: bloc | G31: =IF(B4<>"",VLOOKUP(B4,'Coûts décomposés'!A:EY,42,FALSE),"") -> 500.13 | K31: 01C112 | L31: Craniotomies pour tumeurs, âge inférieur à 18 ans, niveau 2
F32: Médico technique: laboratoire | G32: =IF(B4<>"",VLOOKUP(B4,'Coûts décomposés'!A:EY,79,FALSE)+VLOOKUP(B4,'Coûts décomposés'!A:EY,85,FALSE),"") -> 78.073 | K32: 01C113 | L32: Craniotomies pour tumeurs, âge inférieur à 18 ans, niveau 3
F33: Médico technique: imagerie | G33: =IF(B4<>"",VLOOKUP(B4,'Coûts décomposés'!A:EY,67,FALSE),"") -> 128.97 | K33: 01C114 | L33: Craniotomies pour tumeurs, âge inférieur à 18 ans, niveau 4
K34: 01C121 | L34: Craniotomies pour affections non tumorales, âge inférieur à 18 ans, niveau 1
F35: Logistique générale: Blanchisserie | G35: =IF(B4<>"",VLOOKUP(B4,'Coûts décomposés'!A:EY,130,FALSE),"") -> 47.741 | H35: =IF(C7<>"",IF(B29<>0,(G35+G36)/B29,""),"") -> 0.1721770152 | K35: 01C122 | L35: Craniotomies pour affections non tumorales, âge inférieur à 18 ans, niveau 2
F36: Logistique générale: Restauration | G36: =IF(B4<>"",VLOOKUP(B4,'Coûts décomposés'!A:EY,131,FALSE),"") -> 112.01 | K36: 01C123 | L36: Craniotomies pour affections non tumorales, âge inférieur à 18 ans, niveau 3
K37: 01C124 | L37: Craniotomies pour affections non tumorales, âge inférieur à 18 ans, niveau 4
A38: Données de coûts: ENCC ex DG 2011 | F38: Charges directes: Spécialités pharmaceutiques facturables en sus | G38: =IF(B4<>"",VLOOKUP(B4,'Coûts décomposés'!A:EY,154,FALSE),"") -> 97.74 | H38: =IF(C7<>"",IF(B30<>0,(G38+G39)/B30,""),"") -> 0.2163463309 | K38: 01C141 | L38: Libérations de nerfs superficiels à l'exception du médian au canal carpien, niveau 1
F39: Charges directes: DMI facturables en sus | G39: =IF(B4<>"",VLOOKUP(B4,'Coûts décomposés'!A:EY,150,FALSE),"") -> 137.29 | K39: 01C142 | L39: Libérations de nerfs superficiels à l'exception du médian au canal carpien, niveau 2
K40: 01C143 | L40: Libérations de nerfs superficiels à l'exception du médian au canal carpien, niveau 3
K41: 01C144 | L41: Libérations de nerfs superficiels à l'exception du médian au canal carpien, niveau 4
K42: 01C14J | L42: Libérations de nerfs superficiels à l'exception du médian au canal carpien, en ambulatoire
K43: 01C151 | L43: Libérations du médian au canal carpien, niveau 1
K44: 01C152 | L44: Libérations du médian au canal carpien, niveau 2
K45: 01C153 | L45: Libérations du médian au canal carpien, niveau 3
K46: 01C15J | L46: Libérations du médian au canal carpien, en ambulatoire
K47: 01K021 | L47: Autres embolisations intracrâniennes et médullaires, niveau 1
K48: 01K022 | L48: Autres embolisations intracrâniennes et médullaires, niveau 2
K49: 01K023 | L49: Autres embolisations intracrâniennes et médullaires, niveau 3
K50: 01K024 | L50: Autres embolisations intracrâniennes et médullaires, niveau 4
K51: 01K031 | L51: Autres actes thérapeutiques par voie vasculaire du système nerveux, niveau 1
K52: 01K032 | L52: Autres actes thérapeutiques par voie vasculaire du système nerveux, niveau 2
K53: 01K033 | L53: Autres actes thérapeutiques par voie vasculaire du système nerveux, niveau 3
K54: 01K034 | L54: Autres actes thérapeutiques par voie vasculaire du système nerveux, niveau 4
K55: 01K04J | L55: Injections de toxine botulique, en ambulatoire
K56: 01K05J | L56: Séjours pour douleurs chroniques rebelles comprenant un bloc ou une infiltration, en ambulatoire
K57: 01K06J | L57: Affections du système nerveux sans acte opératoire avec anesthésie, en ambulatoire
K58: 01K071 | L58: Embolisations intracrâniennes et médullaires pour hémorragie, niveau 1
K59: 01K072 | L59: Embolisations intracrâniennes et médullaires pour hémorragie, niveau 2
K60: 01K073 | L60: Embolisations intracrâniennes et médullaires pour hémorragie, niveau 3
K61: 01K074 | L61: Embolisations intracrâniennes et médullaires pour hémorragie, niveau 4
K62: 01M041 | L62: Méningites virales, niveau 1
K63: 01M042 | L63: Méningites virales, niveau 2
K64: 01M043 | L64: Méningites virales, niveau 3
K65: 01M044 | L65: Méningites virales, niveau 4
K66: 01M04T | L66: Méningites virales, très courte durée
K67: 01M051 | L67: Infections du système nerveux à l'exception des méningites virales, niveau 1
K68: 01M052 | L68: Infections du système nerveux à l'exception des méningites virales, niveau 2
K69: 01M053 | L69: Infections du système nerveux à l'exception des méningites virales, niveau 3
K70: 01M054 | L70: Infections du système nerveux à l'exception des méningites virales, niveau 4
K71: 01M05T | L71: Infections du système nerveux à l'exception des méningites virales, très courte durée
K72: 01M071 | L72: Maladies dégénératives du système nerveux, âge supérieur à 79 ans, niveau 1
K73: 01M072 | L73: Maladies dégénératives du système nerveux, âge supérieur à 79 ans, niveau 2
K74: 01M073 | L74: Maladies dégénératives du système nerveux, âge supérieur à 79 ans, niveau 3
K75: 01M074 | L75: Maladies dégénératives du système nerveux, âge supérieur à 79 ans, niveau 4
K76: 01M07T | L76: Maladies dégénératives du système nerveux, âge supérieur à 79 ans, très courte durée
K77: 01M081 | L77: Maladies dégénératives du système nerveux, âge inférieur à 80 ans, niveau 1
K78: 01M082 | L78: Maladies dégénératives du système nerveux, âge inférieur à 80 ans, niveau 2
K79: 01M083 | L79: Maladies dégénératives du système nerveux, âge inférieur à 80 ans, niveau 3
K80: 01M084 | L80: Maladies dégénératives du système nerveux, âge inférieur à 80 ans, niveau 4
K81: 01M08T | L81: Maladies dégénératives du système nerveux, âge inférieur à 80 ans, très courte durée
K82: 01M091 | L82: Affections et lésions du rachis et de la moelle, niveau 1
K83: 01M092 | L83: Affections et lésions du rachis et de la moelle, niveau 2
K84: 01M093 | L84: Affections et lésions du rachis et de la moelle, niveau 3
K85: 01M094 | L85: Affections et lésions du rachis et de la moelle, niveau 4
K86: 01M09T | L86: Affections et lésions du rachis et de la moelle, très courte durée
K87: 01M101 | L87: Autres affections cérébrovasculaires, niveau 1
K88: 01M102 | L88: Autres affections cérébrovasculaires, niveau 2
K89: 01M103 | L89: Autres affections cérébrovasculaires, niveau 3
K90: 01M104 | L90: Autres affections cérébrovasculaires, niveau 4
K91: 01M10T | L91: Autres affections cérébrovasculaires, très courte durée
K92: 01M111 | L92: Affections des nerfs crâniens et rachidiens, niveau 1
K93: 01M112 | L93: Affections des nerfs crâniens et rachidiens, niveau 2
K94: 01M113 | L94: Affections des nerfs crâniens et rachidiens, niveau 3
K95: 01M114 | L95: Affections des nerfs crâniens et rachidiens, niveau 4
K96: 01M11T | L96: Affections des nerfs crâniens et rachidiens, très courte durée
K97: 01M121 | L97: Autres affections du système nerveux, niveau 1
K98: 01M122 | L98: Autres affections du système nerveux, niveau 2
K99: 01M123 | L99: Autres affections du système nerveux, niveau 3
K100: 01M124 | L100: Autres affections du système nerveux, niveau 4
K101: 01M12T | L101: Autres affections du système nerveux, très courte durée
K102: 01M131 | L102: Troubles de la conscience et comas d'origine non traumatique, niveau 1
K103: 01M132 | L103: Troubles de la conscience et comas d'origine non traumatique, niveau 2
K104: 01M133 | L104: Troubles de la conscience et comas d'origine non traumatique, niveau 3
K105: 01M134 | L105: Troubles de la conscience et comas d'origine non traumatique, niveau 4
K106: 01M151 | L106: Accidents ischémiques transitoires et occlusions des artères précérébrales, âge supérieur à 79 ans, niveau 1
K107: 01M152 | L107: Accidents ischémiques transitoires et occlusions des artères précérébrales, âge supérieur à 79 ans, niveau 2
K108: 01M153 | L108: Accidents ischémiques transitoires et occlusions des artères précérébrales, âge supérieur à 79 ans, niveau 3
K109: 01M154 | L109: Accidents ischémiques transitoires et occlusions des artères précérébrales, âge supérieur à 79 ans, niveau 4
K110: 01M15T | L110: Accidents ischémiques transitoires et occlusions des artères précérébrales, âge supérieur à 79 ans, très courte durée
K111: 01M161 | L111: Accidents ischémiques transitoires et occlusions des artères précérébrales, âge inférieur à 80 ans, niveau 1
K112: 01M162 | L112: Accidents ischémiques transitoires et occlusions des artères précérébrales, âge inférieur à 80 ans, niveau 2
K113: 01M163 | L113: Accidents ischémiques transitoires et occlusions des artères précérébrales, âge inférieur à 80 ans, niveau 3
K114: 01M164 | L114: Accidents ischémiques transitoires et occlusions des artères précérébrales, âge inférieur à 80 ans, niveau 4
K115: 01M16T | L115: Accidents ischémiques transitoires et occlusions des artères précérébrales, âge inférieur à 80 ans, très courte durée
K116: 01M171 | L116: Sclérose en plaques et ataxie cérébelleuse, niveau 1
K117: 01M172 | L117: Sclérose en plaques et ataxie cérébelleuse, niveau 2
K118: 01M173 | L118: Sclérose en plaques et ataxie cérébelleuse, niveau 3
K119: 01M174 | L119: Sclérose en plaques et ataxie cérébelleuse, niveau 4
K120: 01M17T | L120: Sclérose en plaques et ataxie cérébelleuse, très courte durée
K121: 01M181 | L121: Lésions traumatiques intracrâniennes sévères, niveau 1
K122: 01M182 | L122: Lésions traumatiques intracrâniennes sévères, niveau 2
K123: 01M183 | L123: Lésions traumatiques intracrâniennes sévères, niveau 3
K124: 01M184 | L124: Lésions traumatiques intracrâniennes sévères, niveau 4
K125: 01M18T | L125: Lésions traumatiques intracrâniennes sévères, très courte durée
K126: 01M191 | L126: Autres lésions traumatiques intracrâniennes, sauf commotions, niveau 1
K127: 01M192 | L127: Autres lésions traumatiques intracrâniennes, sauf commotions, niveau 2
K128: 01M193 | L128: Autres lésions traumatiques intracrâniennes, sauf commotions, niveau 3
K129: 01M194 | L129: Autres lésions traumatiques intracrâniennes, sauf commotions, niveau 4
K130: 01M201 | L130: Commotions cérébrales, niveau 1
K131: 01M202 | L131: Commotions cérébrales, niveau 2
K132: 01M203 | L132: Commotions cérébrales, niveau 3
K133: 01M204 | L133: Commotions cérébrales, niveau 4
K134: 01M211 | L134: Douleurs chroniques rebelles, niveau 1
K135: 01M212 | L135: Douleurs chroniques rebelles, niveau 2
K136: 01M213 | L136: Douleurs chroniques rebelles, niveau 3
K137: 01M214 | L137: Douleurs chroniques rebelles, niveau 4
K138: 01M21T | L138: Douleurs chroniques rebelles, très courte durée
K139: 01M221 | L139: Migraines et céphalées, niveau 1
K140: 01M222 | L140: Migraines et céphalées, niveau 2
K141: 01M223 | L141: Migraines et céphalées, niveau 3
K142: 01M224 | L142: Migraines et céphalées, niveau 4
K143: 01M22T | L143: Migraines et céphalées, très courte durée
K144: 01M231 | L144: Convulsions hyperthermiques, niveau 1
K145: 01M232 | L145: Convulsions hyperthermiques, niveau 2
K146: 01M233 | L146: Convulsions hyperthermiques, niveau 3
K147: 01M234 | L147: Convulsions hyperthermiques, niveau 4
K148: 01M241 | L148: Epilepsie, âge inférieur à 18 ans, niveau 1
K149: 01M242 | L149: Epilepsie, âge inférieur à 18 ans, niveau 2
K150: 01M243 | L150: Epilepsie, âge inférieur à 18 ans, niveau 3
K151: 01M244 | L151: Epilepsie, âge inférieur à 18 ans, niveau 4
K152: 01M24T | L152: Epilepsie, âge inférieur à 18 ans, très courte durée
K153: 01M251 | L153: Epilepsie, âge supérieur à 17 ans, niveau 1
K154: 01M252 | L154: Epilepsie, âge supérieur à 17 ans, niveau 2
K155: 01M253 | L155: Epilepsie, âge supérieur à 17 ans, niveau 3
K156: 01M254 | L156: Epilepsie, âge supérieur à 17 ans, niveau 4
K157: 01M25T | L157: Epilepsie, âge supérieur à 17 ans, très courte durée
K158: 01M261 | L158: Tumeurs malignes du système nerveux, niveau 1
K159: 01M262 | L159: Tumeurs malignes du système nerveux, niveau 2
K160: 01M263 | L160: Tumeurs malignes du système nerveux, niveau 3
K161: 01M264 | L161: Tumeurs malignes du système nerveux, niveau 4
K162: 01M26T | L162: Tumeurs malignes du système nerveux, très courte durée
K163: 01M271 | L163: Autres tumeurs du système nerveux, niveau 1
K164: 01M272 | L164: Autres tumeurs du système nerveux, niveau 2
K165: 01M273 | L165: Autres tumeurs du système nerveux, niveau 3
K166: 01M274 | L166: Autres tumeurs du système nerveux, niveau 4
K167: 01M27T | L167: Autres tumeurs du système nerveux, très courte durée
K168: 01M281 | L168: Hydrocéphalies, niveau 1
K169: 01M282 | L169: Hydrocéphalies, niveau 2
K170: 01M283 | L170: Hydrocéphalies, niveau 3
K171: 01M284 | L171: Hydrocéphalies, niveau 4
K172: 01M28T | L172: Hydrocéphalies, très courte durée
K173: 01M291 | L173: Anévrysmes cérébraux, niveau 1
K174: 01M292 | L174: Anévrysmes cérébraux, niveau 2
K175: 01M293 | L175: Anévrysmes cérébraux, niveau 3
K176: 01M294 | L176: Anévrysmes cérébraux, niveau 4
K177: 01M301 | L177: Accidents vasculaires intracérébraux non transitoires, niveau 1
K178: 01M302 | L178: Accidents vasculaires intracérébraux non transitoires, niveau 2
K179: 01M303 | L179: Accidents vasculaires intracérébraux non transitoires, niveau 3
K180: 01M304 | L180: Accidents vasculaires intracérébraux non transitoires, niveau 4
K181: 01M30T | L181: Transferts et autres séjours courts pour accidents vasculaires intracérébraux non transitoires
K182: 01M311 | L182: Autres accidents vasculaires cérébraux non transitoires, niveau 1
K183: 01M312 | L183: Autres accidents vasculaires cérébraux non transitoires, niveau 2
K184: 01M313 | L184: Autres accidents vasculaires cérébraux non transitoires, niveau 3
K185: 01M314 | L185: Autres accidents vasculaires cérébraux non transitoires, niveau 4
K186: 01M31T | L186: Transferts et autres séjours courts pour autres accidents vasculaires cérébraux non transitoires
K187: 01M32Z | L187: Explorations et surveillance pour affections du système nerveux
K188: 01M331 | L188: Troubles du sommeil, niveau 1
K189: 01M332 | L189: Troubles du sommeil, niveau 2
K190: 01M333 | L190: Troubles du sommeil, niveau 3
K191: 01M334 | L191: Troubles du sommeil, niveau 4
K192: 01M34T | L192: Anomalies de la démarche d'origine neurologique, très courte durée
K193: 01M34Z | L193: Anomalies de la démarche d'origine neurologique
K194: 01M35T | L194: Symptômes et autres recours aux soins de la CMD 01, très courte durée
K195: 01M35Z | L195: Symptômes et autres recours aux soins de la CMD 01
K196: 01M36E | L196: Accidents vasculaires cérébraux non transitoires avec décès : séjours de moins de 2 jours
K197: 01M37E | L197: Autres affections de la CMD 01 avec décès : séjours de moins de 2 jours
K198: 01M381 | L198: Autres affections neurologiques concernant majoritairement la petite enfance, niveau 1
K199: 01M382 | L199: Autres affections neurologiques concernant majoritairement la petite enfance, niveau 2
K200: 01M383 | L200: Autres affections neurologiques concernant majoritairement la petite enfance, niveau 3
... 2325 more rows

Sheet synthèse GHM (2) (hidden)
A1: Fiche de synthèse GHM | J1: =B4 -> 01C031 | K1: Craniotomies pour traumatisme, âge supérieur à 17 ans, niveau 1 | L1: 01C031
K2: Craniotomies pour traumatisme, âge supérieur à 17 ans, niveau 2 | L2: 01C032
A3: Identification du GHM | K3: Craniotomies pour traumatisme, âge supérieur à 17 ans, niveau 3 | L3: 01C033
A4: GHM | B4: =IF(B5<>"",VLOOKUP(B5,K:L,2,FALSE),"") -> 01C031 | K4: Craniotomies pour traumatisme, âge supérieur à 17 ans, niveau 4 | L4: 01C034
A5: Libellé | B5: Craniotomies pour traumatisme, âge supérieur à 17 ans, niveau 1 | K5: Craniotomies en dehors de tout traumatisme, âge supérieur à 17 ans, niveau 1 | L5: 01C041
C6: 2011 | D6: 2010 | E6: Evolution | K6: Craniotomies en dehors de tout traumatisme, âge supérieur à 17 ans, niveau 2 | L6: 01C042
A7: Coût moyen du séjour | C7: =IF($B$4<>"",VLOOKUP($B$4,'Coûts décomposés'!$A:$EY,5,FALSE),"") -> 5355.5 | D7: =IF($B$4<>"",IF(ISNA(VLOOKUP($B$4,'Coûts 10 décomposés gds postes'!$E:$W,9,FALSE)),"NC",VLOOKUP($B$4,'Coûts 10 décomposés gds postes'!$E:$W,9,FALSE)),"") -> 5579.47 | E7: =IF($B$4<>"",IF(ISNA(VLOOKUP($J$1,Evolutions!$E:$N,2,FALSE)),"NC",VLOOKUP($J$1,Evolutions!$E:$N,2,FALSE)),"") -> -0.04014180558 | K7: Craniotomies en dehors de tout traumatisme, âge supérieur à 17 ans, niveau 3 | L7: 01C043
K8: Craniotomies en dehors de tout traumatisme, âge supérieur à 17 ans, niveau 4 | L8: 01C044
A9: Nombre de séjours ENCC | C9: =IF($B$4<>"",VLOOKUP($B$4,'Coûts décomposés'!$A:$EY,4,FALSE),"") -> 594 | D9: =IF($B$4<>"",IF(ISNA(VLOOKUP($B$4,'Coûts 10 décomposés gds postes'!$E:$W,4,FALSE)),"NC",VLOOKUP($B$4,'Coûts 10 décomposés gds postes'!$E:$W,4,FALSE)),"") -> 633 | E9: =IF($B$4<>"",IF(D9<>"",IF(D9<>"NC",IF(C9<>"",C9/D9-1,""),""),""),"") -> -0.06161137441 | G9: Coût moyen | H9: Part des postes détaillés dans le sous poste | K9: Interventions sur le rachis et la moelle pour des affections neurologiques, niveau 1 | L9: 01C051
K10: Interventions sur le rachis et la moelle pour des affections neurologiques, niveau 2 | L10: 01C052
A11: Intervalle de confiance | B11: Borne Basse | C11: =IF($B$4<>"",VLOOKUP($B$4,'Intervalle de confiance'!A:M,12,FALSE),"") -> 4640.93 | D11: =IF($B$4<>"",IF(ISNA(VLOOKUP($B$4,'Coûts 10 décomposés gds postes'!$E:$W,7,FALSE)),"NC",VLOOKUP($B$4,'Coûts 10 décomposés gds postes'!$E:$W,7,FALSE)),"") -> 5151.13 | K11: Interventions sur le rachis et la moelle pour des affections neurologiques, niveau 3 | L11: 01C053
B12: Borne Haute | C12: =IF($B$4<>"",VLOOKUP($B$4,'Intervalle de confiance'!A:M,13,FALSE),"") -> 6070.06 | D12: =IF($B$4<>"",IF(ISNA(VLOOKUP($B$4,'Coûts 10 décomposés gds postes'!$E:$W,8,FALSE)),"NC",VLOOKUP($B$4,'Coûts 10 décomposés gds postes'!$E:$W,8,FALSE)),"") -> 6007.8 | K12: Interventions sur le rachis et la moelle pour des affections neurologiques, niveau 4 | L12: 01C054
K13: Interventions sur le système vasculaire précérébral, niveau 1 | L13: 01C061
F14: Cliniques: Personnel médical | G14: =IF(B4<>"",VLOOKUP(B4,'Coûts décomposés'!A:EY,9,FALSE),"") -> 179.68 | H14: =IF($C$7<>"",IF(B23<>0,(G14+G15+G16)/B23,""),"") -> 0.9938414814 | K14: Interventions sur le système vasculaire précérébral, niveau 2 | L14: 01C062
F15: Cliniques: Personnel soignant | G15: =IF(B4<>"",VLOOKUP(B4,'Coûts décomposés'!A:EY,10,FALSE),"") -> 819.97 | K15: Interventions sur le système vasculaire précérébral, niveau 3 | L15: 01C063
F16: Cliniques: Personnel autre | G16: =IF(B4<>"",VLOOKUP(B4,'Coûts décomposés'!A:EY,8,FALSE),"") -> 178.4 | K16: Interventions sur le système vasculaire précérébral, niveau 4 | L16: 01C064
K17: Interventions sur les nerfs crâniens ou périphériques et autres interventions sur le système nerveux, niveau 1 | L17: 01C081
F18: Réanimation: Personnel médical | G18: =IF(B4<>"",VLOOKUP(B4,'Coûts décomposés'!A:EY,27,FALSE),"") -> 86.72 | H18: =IF(C7<>"",IF(B24<>0,(G18+G19+G20)/B24,""),"") -> 0.961027342 | K18: Interventions sur les nerfs crâniens ou périphériques et autres interventions sur le système nerveux, niveau 2 | L18: 01C082
F19: Réanimation: Personnel soignant | G19: =IF(B4<>"",VLOOKUP(B4,'Coûts décomposés'!A:EY,28,FALSE),"") -> 324.9 | K19: Interventions sur les nerfs crâniens ou périphériques et autres interventions sur le système nerveux, niveau 3 | L19: 01C083
F20: Réanimation: Personnel autre | G20: =IF(B4<>"",VLOOKUP(B4,'Coûts décomposés'!A:EY,26,FALSE),"") -> 28.79 | K20: Interventions sur les nerfs crâniens ou périphériques et autres interventions sur le système nerveux, niveau 4 | L20: 01C084
K21: Interventions sur les nerfs crâniens ou périphériques et autres interventions sur le système nerveux, en ambulatoire | L21: 01C08J
B22: Coût moyen 2011 | C22: Poids dans le coût du GHM | D22: Evolution 2011/2010 | F22: Soins intensifs: Personnel médical | G22: =IF(B4<>"",VLOOKUP(B4,'Coûts décomposés'!A:EY,21,FALSE),"") -> 14.34 | H22: =IF(C7<>"",IF(B25<>0,(G22+G23+G24)/B25,""),"") -> 0.9748382459 | K22: Pose d'un stimulateur cérébral, niveau 1 | L22: 01C091
A23: activités cliniques MCO (avec hébergement, hors Réa, SI, SC) | B23: =IF(B4<>"",VLOOKUP(B4,'Coûts décomposés'!A:EY,11,FALSE),"") -> 1185.35 | C23: =IF($C$7<>"",B23/$C$7,"") -> 0.2213332089 | D23: =IF($B$4<>"",VLOOKUP($J$1,Evolutions!$E:$N,3,FALSE),"") -> -0.133319685 | F23: Soins intensifs: Personnel soignant | G23: =IF(B4<>"",VLOOKUP(B4,'Coûts décomposés'!A:EY,22,FALSE),"") -> 38.27 | K23: Pose d'un stimulateur cérébral, niveau 2 | L23: 01C092
A24: Activité de réanimation | B24: =IF(B4<>"",VLOOKUP(B4,'Coûts décomposés'!A:EY,29,FALSE),"") -> 458.27 | C24: =IF($C$7<>"",B24/$C$7,"") -> 0.08556997479 | D24: =IF($B$4<>"",VLOOKUP($J$1,Evolutions!$E:$N,6,FALSE),"") -> -0.06933246685 | F24: Soins intensifs: Personnel autre | G24: =IF(B4<>"",VLOOKUP(B4,'Coûts décomposés'!A:EY,20,FALSE),"") -> 1.63 | K24: Pose d'un stimulateur cérébral, niveau 3 | L24: 01C093
A25: Activité de soins intensifs | B25: =IF(B4<>"",VLOOKUP(B4,'Coûts décomposés'!A:EY,23,FALSE),"") -> 55.64 | C25: 0.01038931939 | D25: =IF($B$4<>"",VLOOKUP($J$1,Evolutions!$E:$N,5,FALSE),"") -> -0.1787453875 | K25: Pose d'un stimulateur cérébral, niveau 4 | L25: 01C094
A26: Activité de surveillance continue | B26: =IF(B4<>"",VLOOKUP(B4,'Coûts décomposés'!A:EY,17,FALSE),"") -> 158.94 | C26: 0.02967790122 | D26: =IF($B$4<>"",VLOOKUP($J$1,Evolutions!$E:$N,4,FALSE),"") -> 0.3922564821 | F26: Surveillance continue: Personnel médical | G26: =IF(B4<>"",VLOOKUP(B4,'Coûts décomposés'!A:EY,15,FALSE),"") -> 32.26 | H26: =IF(C7<>"",IF(B26<>0,(G26+G27+G28)/B26,""),"") -> 0.9869699258 | K26: Pose d'un stimulateur médullaire, niveau 1 | L26: 01C101
A27: Activités Médico-techniques | B27: =IF(B4<>"",VLOOKUP(B4,'Coûts décomposés'!A:EY,129,FALSE),"") -> 1298.16 | C27: 0.2423975352 | D27: =IF($B$4<>"",VLOOKUP($J$1,Evolutions!$E:$N,7,FALSE),"") -> -0.02120953939 | F27: Surveillance continue: Personnel soignant | G27: =IF(B4<>"",VLOOKUP(B4,'Coûts décomposés'!A:EY,16,FALSE),"") -> 116.17 | K27: Pose d'un stimulateur médullaire, niveau 2 | L27: 01C102
A28: Logistique Médicale | B28: =IF(B4<>"",VLOOKUP(B4,'Coûts décomposés'!A:EY,147,FALSE),"") -> 184.94 | C28: 0.03453272337 | D28: =IF($B$4<>"",VLOOKUP($J$1,Evolutions!$E:$N,9,FALSE),"") -> 0.04704750042 | F28: Surveillance continue: Personnel autre | G28: =IF(B4<>"",VLOOKUP(B4,'Coûts décomposés'!A:EY,14,FALSE),"") -> 8.439 | K28: Pose d'un stimulateur médullaire, niveau 3 | L28: 01C103
A29: Logistique générale | B29: =IF(B4<>"",VLOOKUP(B4,'Coûts décomposés'!A:EY,141,FALSE),"") -> 927.83 | C29: 0.1732480627 | D29: =IF($B$4<>"",VLOOKUP($J$1,Evolutions!$E:$N,8,FALSE),"") -> -0.09051432604 | K29: Pose d'un stimulateur médullaire, en ambulatoire | L29: 01C10J
A30: Charges directes | B30: =IF(B4<>"",VLOOKUP(B4,'Coûts décomposés'!A:FK,164,FALSE),"") -> 1086.36 | C30: 0.2028494072 | D30: =IF($B$4<>"",VLOOKUP($J$1,Evolutions!$E:$N,10,FALSE),"") -> 0.07097015882 | F30: Médico technique: anesthésie | G30: =IF(B4<>"",VLOOKUP(B4,'Coûts décomposés'!A:EY,36,FALSE),"") -> 382.95 | H30: =IF(C7<>"",IF(B27<>0,(G30+G31+G32+G33)/B27,""),"") -> 0.8397447156 | K30: Craniotomies pour tumeurs, âge inférieur à 18 ans, niveau 1 | L30: 01C111
F31: Médico technique: bloc | G31: =IF(B4<>"",VLOOKUP(B4,'Coûts décomposés'!A:EY,42,FALSE),"") -> 500.13 | K31: Craniotomies pour tumeurs, âge inférieur à 18 ans, niveau 2 | L31: 01C112
F32: Médico technique: laboratoire | G32: =IF(B4<>"",VLOOKUP(B4,'Coûts décomposés'!A:EY,79,FALSE)+VLOOKUP(B4,'Coûts décomposés'!A:EY,85,FALSE),"") -> 78.073 | K32: Craniotomies pour tumeurs, âge inférieur à 18 ans, niveau 3 | L32: 01C113
F33: Médico technique: imagerie | G33: =IF(B4<>"",VLOOKUP(B4,'Coûts décomposés'!A:EY,67,FALSE),"") -> 128.97 | K33: Craniotomies pour tumeurs, âge inférieur à 18 ans, niveau 4 | L33: 01C114
K34: Craniotomies pour affections non tumorales, âge inférieur à 18 ans, niveau 1 | L34: 01C121
F35: Logistique générale: Blanchisserie | G35: =IF(B4<>"",VLOOKUP(B4,'Coûts décomposés'!A:EY,130,FALSE),"") -> 47.741 | H35: =IF(C7<>"",IF(B29<>0,(G35+G36)/B29,""),"") -> 0.1721770152 | K35: Craniotomies pour affections non tumorales, âge inférieur à 18 ans, niveau 2 | L35: 01C122
F36: Logistique générale: Restauration | G36: =IF(B4<>"",VLOOKUP(B4,'Coûts décomposés'!A:EY,131,FALSE),"") -> 112.01 | K36: Craniotomies pour affections non tumorales, âge inférieur à 18 ans, niveau 3 | L36: 01C123
K37: Craniotomies pour affections non tumorales, âge inférieur à 18 ans, niveau 4 | L37: 01C124
A38: Données de coûts: ENCC ex DG 2011 | F38: Charges directes: Spécialités pharmaceutiques facturables en sus | G38: =IF(B4<>"",VLOOKUP(B4,'Coûts décomposés'!A:EY,154,FALSE),"") -> 97.74 | H38: =IF(C7<>"",IF(B30<>0,(G38+G39)/B30,""),"") -> 0.2163463309 | K38: Libérations de nerfs superficiels à l'exception du médian au canal carpien, niveau 1 | L38: 01C141
F39: Charges directes: DMI facturables en sus | G39: =IF(B4<>"",VLOOKUP(B4,'Coûts décomposés'!A:EY,150,FALSE),"") -> 137.29 | K39: Libérations de nerfs superficiels à l'exception du médian au canal carpien, niveau 2 | L39: 01C142
K40: Libérations de nerfs superficiels à l'exception du médian au canal carpien, niveau 3 | L40: 01C143
K41: Libérations de nerfs superficiels à l'exception du médian au canal carpien, niveau 4 | L41: 01C144
K42: Libérations de nerfs superficiels à l'exception du médian au canal carpien, en ambulatoire | L42: 01C14J
K43: Libérations du médian au canal carpien, niveau 1 | L43: 01C151
K44: Libérations du médian au canal carpien, niveau 2 | L44: 01C152
K45: Libérations du médian au canal carpien, niveau 3 | L45: 01C153
K46: Libérations du médian au canal carpien, en ambulatoire | L46: 01C15J
K47: Autres embolisations intracrâniennes et médullaires, niveau 1 | L47: 01K021
K48: Autres embolisations intracrâniennes et médullaires, niveau 2 | L48: 01K022
K49: Autres embolisations intracrâniennes et médullaires, niveau 3 | L49: 01K023
K50: Autres embolisations intracrâniennes et médullaires, niveau 4 | L50: 01K024
K51: Autres actes thérapeutiques par voie vasculaire du système nerveux, niveau 1 | L51: 01K031
K52: Autres actes thérapeutiques par voie vasculaire du système nerveux, niveau 2 | L52: 01K032
K53: Autres actes thérapeutiques par voie vasculaire du système nerveux, niveau 3 | L53: 01K033
K54: Autres actes thérapeutiques par voie vasculaire du système nerveux, niveau 4 | L54: 01K034
K55: Injections de toxine botulique, en ambulatoire | L55: 01K04J
K56: Séjours pour douleurs chroniques rebelles comprenant un bloc ou une infiltration, en ambulatoire | L56: 01K05J
K57: Affections du système nerveux sans acte opératoire avec anesthésie, en ambulatoire | L57: 01K06J
K58: Embolisations intracrâniennes et médullaires pour hémorragie, niveau 1 | L58: 01K071
K59: Embolisations intracrâniennes et médullaires pour hémorragie, niveau 2 | L59: 01K072
K60: Embolisations intracrâniennes et médullaires pour hémorragie, niveau 3 | L60: 01K073
K61: Embolisations intracrâniennes et médullaires pour hémorragie, niveau 4 | L61: 01K074
K62: Méningites virales, niveau 1 | L62: 01M041
K63: Méningites virales, niveau 2 | L63: 01M042
K64: Méningites virales, niveau 3 | L64: 01M043
K65: Méningites virales, niveau 4 | L65: 01M044
K66: Méningites virales, très courte durée | L66: 01M04T
K67: Infections du système nerveux à l'exception des méningites virales, niveau 1 | L67: 01M051
K68: Infections du système nerveux à l'exception des méningites virales, niveau 2 | L68: 01M052
K69: Infections du système nerveux à l'exception des méningites virales, niveau 3 | L69: 01M053
K70: Infections du système nerveux à l'exception des méningites virales, niveau 4 | L70: 01M054
K71: Infections du système nerveux à l'exception des méningites virales, très courte durée | L71: 01M05T
K72: Maladies dégénératives du système nerveux, âge supérieur à 79 ans, niveau 1 | L72: 01M071
K73: Maladies dégénératives du système nerveux, âge supérieur à 79 ans, niveau 2 | L73: 01M072
K74: Maladies dégénératives du système nerveux, âge supérieur à 79 ans, niveau 3 | L74: 01M073
K75: Maladies dégénératives du système nerveux, âge supérieur à 79 ans, niveau 4 | L75: 01M074
K76: Maladies dégénératives du système nerveux, âge supérieur à 79 ans, très courte durée | L76: 01M07T
K77: Maladies dégénératives du système nerveux, âge inférieur à 80 ans, niveau 1 | L77: 01M081
K78: Maladies dégénératives du système nerveux, âge inférieur à 80 ans, niveau 2 | L78: 01M082
K79: Maladies dégénératives du système nerveux, âge inférieur à 80 ans, niveau 3 | L79: 01M083
K80: Maladies dégénératives du système nerveux, âge inférieur à 80 ans, niveau 4 | L80: 01M084
K81: Maladies dégénératives du système nerveux, âge inférieur à 80 ans, très courte durée | L81: 01M08T
K82: Affections et lésions du rachis et de la moelle, niveau 1 | L82: 01M091
K83: Affections et lésions du rachis et de la moelle, niveau 2 | L83: 01M092
K84: Affections et lésions du rachis et de la moelle, niveau 3 | L84: 01M093
K85: Affections et lésions du rachis et de la moelle, niveau 4 | L85: 01M094
K86: Affections et lésions du rachis et de la moelle, très courte durée | L86: 01M09T
K87: Autres affections cérébrovasculaires, niveau 1 | L87: 01M101
K88: Autres affections cérébrovasculaires, niveau 2 | L88: 01M102
K89: Autres affections cérébrovasculaires, niveau 3 | L89: 01M103
K90: Autres affections cérébrovasculaires, niveau 4 | L90: 01M104
K91: Autres affections cérébrovasculaires, très courte durée | L91: 01M10T
K92: Affections des nerfs crâniens et rachidiens, niveau 1 | L92: 01M111
K93: Affections des nerfs crâniens et rachidiens, niveau 2 | L93: 01M112
K94: Affections des nerfs crâniens et rachidiens, niveau 3 | L94: 01M113
K95: Affections des nerfs crâniens et rachidiens, niveau 4 | L95: 01M114
K96: Affections des nerfs crâniens et rachidiens, très courte durée | L96: 01M11T
K97: Autres affections du système nerveux, niveau 1 | L97: 01M121
K98: Autres affections du système nerveux, niveau 2 | L98: 01M122
K99: Autres affections du système nerveux, niveau 3 | L99: 01M123
K100: Autres affections du système nerveux, niveau 4 | L100: 01M124
K101: Autres affections du système nerveux, très courte durée | L101: 01M12T
K102: Troubles de la conscience et comas d'origine non traumatique, niveau 1 | L102: 01M131
K103: Troubles de la conscience et comas d'origine non traumatique, niveau 2 | L103: 01M132
K104: Troubles de la conscience et comas d'origine non traumatique, niveau 3 | L104: 01M133
K105: Troubles de la conscience et comas d'origine non traumatique, niveau 4 | L105: 01M134
K106: Accidents ischémiques transitoires et occlusions des artères précérébrales, âge supérieur à 79 ans, niveau 1 | L106: 01M151
K107: Accidents ischémiques transitoires et occlusions des artères précérébrales, âge supérieur à 79 ans, niveau 2 | L107: 01M152
K108: Accidents ischémiques transitoires et occlusions des artères précérébrales, âge supérieur à 79 ans, niveau 3 | L108: 01M153
K109: Accidents ischémiques transitoires et occlusions des artères précérébrales, âge supérieur à 79 ans, niveau 4 | L109: 01M154
K110: Accidents ischémiques transitoires et occlusions des artères précérébrales, âge supérieur à 79 ans, très courte durée | L110: 01M15T
K111: Accidents ischémiques transitoires et occlusions des artères précérébrales, âge inférieur à 80 ans, niveau 1 | L111: 01M161
K112: Accidents ischémiques transitoires et occlusions des artères précérébrales, âge inférieur à 80 ans, niveau 2 | L112: 01M162
K113: Accidents ischémiques transitoires et occlusions des artères précérébrales, âge inférieur à 80 ans, niveau 3 | L113: 01M163
K114: Accidents ischémiques transitoires et occlusions des artères précérébrales, âge inférieur à 80 ans, niveau 4 | L114: 01M164
K115: Accidents ischémiques transitoires et occlusions des artères précérébrales, âge inférieur à 80 ans, très courte durée | L115: 01M16T
K116: Sclérose en plaques et ataxie cérébelleuse, niveau 1 | L116: 01M171
K117: Sclérose en plaques et ataxie cérébelleuse, niveau 2 | L117: 01M172
K118: Sclérose en plaques et ataxie cérébelleuse, niveau 3 | L118: 01M173
K119: Sclérose en plaques et ataxie cérébelleuse, niveau 4 | L119: 01M174
K120: Sclérose en plaques et ataxie cérébelleuse, très courte durée | L120: 01M17T
K121: Lésions traumatiques intracrâniennes sévères, niveau 1 | L121: 01M181
K122: Lésions traumatiques intracrâniennes sévères, niveau 2 | L122: 01M182
K123: Lésions traumatiques intracrâniennes sévères, niveau 3 | L123: 01M183
K124: Lésions traumatiques intracrâniennes sévères, niveau 4 | L124: 01M184
K125: Lésions traumatiques intracrâniennes sévères, très courte durée | L125: 01M18T
K126: Autres lésions traumatiques intracrâniennes, sauf commotions, niveau 1 | L126: 01M191
K127: Autres lésions traumatiques intracrâniennes, sauf commotions, niveau 2 | L127: 01M192
K128: Autres lésions traumatiques intracrâniennes, sauf commotions, niveau 3 | L128: 01M193
K129: Autres lésions traumatiques intracrâniennes, sauf commotions, niveau 4 | L129: 01M194
K130: Commotions cérébrales, niveau 1 | L130: 01M201
K131: Commotions cérébrales, niveau 2 | L131: 01M202
K132: Commotions cérébrales, niveau 3 | L132: 01M203
K133: Commotions cérébrales, niveau 4 | L133: 01M204
K134: Douleurs chroniques rebelles, niveau 1 | L134: 01M211
K135: Douleurs chroniques rebelles, niveau 2 | L135: 01M212
K136: Douleurs chroniques rebelles, niveau 3 | L136: 01M213
K137: Douleurs chroniques rebelles, niveau 4 | L137: 01M214
K138: Douleurs chroniques rebelles, très courte durée | L138: 01M21T
K139: Migraines et céphalées, niveau 1 | L139: 01M221
K140: Migraines et céphalées, niveau 2 | L140: 01M222
K141: Migraines et céphalées, niveau 3 | L141: 01M223
K142: Migraines et céphalées, niveau 4 | L142: 01M224
K143: Migraines et céphalées, très courte durée | L143: 01M22T
K144: Convulsions hyperthermiques, niveau 1 | L144: 01M231
K145: Convulsions hyperthermiques, niveau 2 | L145: 01M232
K146: Convulsions hyperthermiques, niveau 3 | L146: 01M233
K147: Convulsions hyperthermiques, niveau 4 | L147: 01M234
K148: Epilepsie, âge inférieur à 18 ans, niveau 1 | L148: 01M241
K149: Epilepsie, âge inférieur à 18 ans, niveau 2 | L149: 01M242
K150: Epilepsie, âge inférieur à 18 ans, niveau 3 | L150: 01M243
K151: Epilepsie, âge inférieur à 18 ans, niveau 4 | L151: 01M244
K152: Epilepsie, âge inférieur à 18 ans, très courte durée | L152: 01M24T
K153: Epilepsie, âge supérieur à 17 ans, niveau 1 | L153: 01M251
K154: Epilepsie, âge supérieur à 17 ans, niveau 2 | L154: 01M252
K155: Epilepsie, âge supérieur à 17 ans, niveau 3 | L155: 01M253
K156: Epilepsie, âge supérieur à 17 ans, niveau 4 | L156: 01M254
K157: Epilepsie, âge supérieur à 17 ans, très courte durée | L157: 01M25T
K158: Tumeurs malignes du système nerveux, niveau 1 | L158: 01M261
K159: Tumeurs malignes du système nerveux, niveau 2 | L159: 01M262
K160: Tumeurs malignes du système nerveux, niveau 3 | L160: 01M263
K161: Tumeurs malignes du système nerveux, niveau 4 | L161: 01M264
K162: Tumeurs malignes du système nerveux, très courte durée | L162: 01M26T
K163: Autres tumeurs du système nerveux, niveau 1 | L163: 01M271
K164: Autres tumeurs du système nerveux, niveau 2 | L164: 01M272
K165: Autres tumeurs du système nerveux, niveau 3 | L165: 01M273
K166: Autres tumeurs du système nerveux, niveau 4 | L166: 01M274
K167: Autres tumeurs du système nerveux, très courte durée | L167: 01M27T
K168: Hydrocéphalies, niveau 1 | L168: 01M281
K169: Hydrocéphalies, niveau 2 | L169: 01M282
K170: Hydrocéphalies, niveau 3 | L170: 01M283
K171: Hydrocéphalies, niveau 4 | L171: 01M284
K172: Hydrocéphalies, très courte durée | L172: 01M28T
K173: Anévrysmes cérébraux, niveau 1 | L173: 01M291
K174: Anévrysmes cérébraux, niveau 2 | L174: 01M292
K175: Anévrysmes cérébraux, niveau 3 | L175: 01M293
K176: Anévrysmes cérébraux, niveau 4 | L176: 01M294
K177: Accidents vasculaires intracérébraux non transitoires, niveau 1 | L177: 01M301
K178: Accidents vasculaires intracérébraux non transitoires, niveau 2 | L178: 01M302
K179: Accidents vasculaires intracérébraux non transitoires, niveau 3 | L179: 01M303
K180: Accidents vasculaires intracérébraux non transitoires, niveau 4 | L180: 01M304
K181: Transferts et autres séjours courts pour accidents vasculaires intracérébraux non transitoires | L181: 01M30T
K182: Autres accidents vasculaires cérébraux non transitoires, niveau 1 | L182: 01M311
K183: Autres accidents vasculaires cérébraux non transitoires, niveau 2 | L183: 01M312
K184: Autres accidents vasculaires cérébraux non transitoires, niveau 3 | L184: 01M313
K185: Autres accidents vasculaires cérébraux non transitoires, niveau 4 | L185: 01M314
K186: Transferts et autres séjours courts pour autres accidents vasculaires cérébraux non transitoires | L186: 01M31T
K187: Explorations et surveillance pour affections du système nerveux | L187: 01M32Z
K188: Troubles du sommeil, niveau 1 | L188: 01M331
K189: Troubles du sommeil, niveau 2 | L189: 01M332
K190: Troubles du sommeil, niveau 3 | L190: 01M333
K191: Troubles du sommeil, niveau 4 | L191: 01M334
K192: Anomalies de la démarche d'origine neurologique, très courte durée | L192: 01M34T
K193: Anomalies de la démarche d'origine neurologique | L193: 01M34Z
K194: Symptômes et autres recours aux soins de la CMD 01, très courte durée | L194: 01M35T
K195: Symptômes et autres recours aux soins de la CMD 01 | L195: 01M35Z
K196: Accidents vasculaires cérébraux non transitoires avec décès : séjours de moins de 2 jours | L196: 01M36E
K197: Autres affections de la CMD 01 avec décès : séjours de moins de 2 jours | L197: 01M37E
K198: Autres affections neurologiques concernant majoritairement la petite enfance, niveau 1 | L198: 01M381
K199: Autres affections neurologiques concernant majoritairement la petite enfance, niveau 2 | L199: 01M382
K200: Autres affections neurologiques concernant majoritairement la petite enfance, niveau 3 | L200: 01M383
... 2325 more rows

Sheet accueil données détaillées (hidden)
A1: DONNEES DE COUTS DETAILLEES
D3: Données de coûts par GHM | F3: 2011
F10: 2010
D16: Données de coûts 2011 par GHS
D22: Données 2011 sur les UO

Sheet Coûts décomposés (hidden)
A2: Informations sur le GHM | F2: Dépenses cliniques (clinique + SI + SC + REA) | AE2: Dépenses Médico-Techniques | DZ2: Logistique et Gestion Générale | EL2: Logistique Médicale | ER2: Charges directes | FI2: Structure
A3: GHM V11 | B3: Libellé GHM | C3: Coût modifié (*) | D3: Nombre de séjours ENCC 2011 | E3: Coût complet hors structure | F3: Amortissement location clinique (hors SI SC réa) | G3: Entretien maintenance clinique (hors SI SC réa) | H3: Personnel autre clinique (hors SI SC réa) | I3: Personnel médical clinique (hors SI SC réa) | J3: Personnel soignant clinique (hors SI SC réa) | K3: Dépenses cliniques | L3: Amortissement location surveillance continue | M3: Entretien maintenance surveillance continue | N3: Personnel autre surveillance continue | O3: Personnel médical surveillance continue | P3: Personnel soignant surveillance continue | Q3: Dépenses SC | R3: Amortissement location soins intensifs | S3: Entretien maintenance soins intensifs | T3: Personnel autre soins intensifs | U3: Personnel médical soins intensifs | V3: Personnel soignant soins intensifs | W3: Dépenses SI | X3: Amortissement location réanimation | Y3: Entretien maintenance réanimation | Z3: Personnel autre réanimation | AA3: Personnel médical réanimation | AB3: Personnel soignant réanimation | AC3: Dépenses REA | AD3: TOTAL Dépenses cliniques + SI + SC + REA | AE3: Amortissement Anesthésie | AF3: Entretien Anesthésie | AG3: Personnel autre Anesthésie | AH3: Personnel médical Anesthésie | AI3: Personnel soignant Anesthésie | AJ3: Dépenses totales Anesthésie | AK3: Amortissement Bloc | AL3: Entretien Bloc | AM3: Personnel autre Bloc | AN3: Personnel médical Bloc | AO3: Personnel soignant Bloc | AP3: Dépenses totales Bloc | AQ3: Amortissement Bloc Obstétrique | AR3: Entretien Bloc Obstétrique | AS3: Personnel autre Bloc Obstétrique | AT3: Personnel médical Bloc Obstétrique | AU3: Personnel soignant Bloc Obstétrique | AV3: Dépenses totales Bloc Obstétrique | AW3: Amortissement Dialyse | AX3: Entretien Dialyse | AY3: Personnel autre Dialyse | AZ3: Personnel médical Dialyse | BA3: Personnel soignant Dialyse | BB3: Dialyse en sus | BC3: Dépenses totales Dialyse | BD3: Amortissement Exploration fonctionnelle | BE3: Entretien Exploration fonctionnelle | BF3: Personnel autre Exploration fonctionnelle | BG3: Personnel médical Exploration fonctionnelle | BH3: Personnel soignant Exploration fonctionnelle | BI3: Dépenses totales Exploration fonctionnelle | BJ3: Amortissement Imagerie | BK3: Entretien Imagerie | BL3: Personnel autre Imagerie | BM3: Personnel médical Imagerie | BN3: Personnel soignant Imagerie | BO3: Dépenses totales Imagerie | BP3: Amortissement Imagerie interventionnelle | BQ3: Entretien Imagerie interventionnelle | BR3: Personnel autre Imagerie interventionnelle | BS3: Personnel médical Imagerie interventionnelle | BT3: Personnel soignant Imagerie interventionnelle | BU3: Dépenses totales Imagerie interventionnelle | BV3: Amortissement Laboratoire B | BW3: Entretien Laboratoire B | BX3: Personnel autre Laboratoire B | BY3: Personnel médical Laboratoire B | BZ3: Personnel soignant Laboratoire B | CA3: Dépenses totales Laboratoire B | CB3: Amortissement Laboratoire P | CC3: Entretien Laboratoire P | CD3: Personnel autre Laboratoire P | CE3: Personnel médical Laboratoire P | CF3: Personnel soignant Laboratoire P | CG3: Dépenses totales Laboratoire P | CH3: Amortissement Laboratoire Hors nomenclature (BHN) | CI3: Entretien Laboratoire Hors nomenclature (BHN) | CJ3: Personnel autre Laboratoire Hors nomenclature (BHN) | CK3: Personnel médical Laboratoire Hors nomenclature (BHN) | CL3: Personnel soignant Laboratoire Hors nomenclature (BHN) | CM3: Dépenses totales Laboratoire Hors nomenclature (BHN) | CN3: Amortissement Laboratoire Hors nomenclature (AHN) | CO3: Entretien Laboratoire Hors nomenclature (AHN) | CP3: Personnel autre Laboratoire Hors nomenclature (AHN) | CQ3: Personnel médical Laboratoire Hors nomenclature (AHN) | CR3: Personnel soignant Laboratoire Hors nomenclature (AHN) | CS3: Dépenses totales Laboratoire Hors nomenclature (AHN) | CT3: Amortissement Radiothérapie | CU3: Entretien Radiothérapie | CV3: Personnel autre Radiothérapie | CW3: Personnel médical Radiothérapie | CX3: Personnel soignant Radiothérapie | CY3: Radiothérapie en sus | CZ3: Dépenses totales Radiothérapie | DA3: Amortissement SMUR terrestre | DB3: Entretien SMUR terrestre | DC3: Personnel autre SMUR terrestre | DD3: Personnel médical SMUR terrestre | DE3: Personnel soignant SMUR terrestre | DF3: Dépenses totales SMUR terrestre | DG3: Amortissement SMUR aérien | DH3: Entretien SMUR aérien | DI3: Personnel autre SMUR aérien | DJ3: Personnel médical SMUR aérien | DK3: Personnel soignant SMUR aérien | DL3: Dépenses totales SMUR aérien | DM3: Amortissement Urgences | DN3: Entretien Urgences | DO3: Personnel autre Urgences | DP3: Personnel médical Urgences | DQ3: Personnel soignant Urgences | DR3: Dépenses totales Urgences | DS3: Amortissement Autres MT | DT3: Entretien Autres MT | DU3: Personnel autre Autres MT | DV3: Personnel médical Autres MT | DW3: Personnel soignant Autres MT | DX3: Dépenses totales Autres MT | DY3: TOTAL Dépenses MT | DZ3: LGG Blanchisserie | EA3: LGG Restauration | EB3: LGG Accueil et gestion des malades | EC3: LGG Services administratifs à caractère général | ED3: LGG Services administratifs liés au personnel | EE3: LGG Brancardage et transport pédestre des patients | EF3: LGG DIM | EG3: LGG DSIO | EH3: LGG Entretien maintenance | EI3: LGG Services hôteliers | EJ3: LGG Transport motorisé des patients (hors SMUR) | EK3: TOTAL Dépenses LGG | EL3: LM Pharmacie | EM3: LM Stérilisation | EN3: LM Génie Biomédical | EO3: LM Hygiène et Vigilance | EP3: Autre LM | EQ3: TOTAL Dépenses LM | ER3: CD Autres consommables | ES3: CD DMI non facturables en sus | ET3: CD DMI facturables en sus | EU3: CD Médicaments ATU | EV3: CD Sang | EW3: CD Spécialités pharmaceutiques non facturables en sus | EX3: CD Spécialités pharmaceutiques facturables en sus | EY3: CD Sous-traitance Autre | EZ3: CD Sous-traitance Hospitalisation à l'extérieur | FA3: CD Sous-traitance Imagerie | FB3: CD Sous-traitance Laboratoire | FC3: CD Sous-traitance Laboratoire Hors nomenclature | FD3: CD Sous-traitance SMUR | FE3: TOTAL Charges directes hors honoraires | FF3: CD Honoraires des PH | FG3: CD Rémunération à l'acte du personnel | FH3: TOTAL Charges directes y compris honoraires et rémunération à l'acte | FI3: Structure financier | FJ3: Structure Immobilier | FK3: TOTAL Structure
A4: 01C031 | B4: Craniotomies pour traumatisme, âge supérieur à 17 ans, niveau 1 | D4: 594 | E4: 5355.5 | F4: 5.695 | G4: 1.598 | H4: 178.4 | I4: 179.68 | J4: 819.97 | K4: 1185.35 | L4: 1.501 | M4: 0.57 | N4: 8.439 | O4: 32.26 | P4: 116.17 | Q4: 158.94 | R4: 1.203 | S4: 0.1983 | T4: 1.63 | U4: 14.34 | V4: 38.27 | W4: 55.64 | X4: 13.95 | Y4: 3.909 | Z4: 28.79 | AA4: 86.72 | AB4: 324.9 | AC4: 458.27 | AD4: 1858.2 | AE4: 9.641 | AF4: 5.185 | AG4: 12.063 | AH4: 189.98 | AI4: 166.09 | AJ4: 382.95 | AK4: 43.05 | AL4: 21.851 | AM4: 42.102 | AN4: 101.73 | AO4: 291.39 | AP4: 500.13 | AQ4: 0 | AR4: 0 | AS4: 0 | AT4: 0 | AU4: 0 | AV4: 0 | AW4: 0 | AX4: 0 | AY4: 0 | AZ4: 0 | BA4: 0 | BB4: 0 | BC4: 0 | BD4: 0.732 | BE4: 0.3309 | BF4: 2.481 | BG4: 3.851 | BH4: 6.07 | BI4: 13.47 | BJ4: 15.126 | BK4: 12.43 | BL4: 68.5 | BM4: 28.06 | BN4: 4.846 | BO4: 128.97 | BP4: 0.29 | BQ4: 0.066 | BR4: 0.597 | BS4: 0.465 | BT4: 0.277 | BU4: 1.7 | BV4: 3.396 | BW4: 2.049 | BX4: 47.86 | BY4: 23.1 | BZ4: 0.612 | CA4: 77.02 | CB4: 0.0463 | CC4: 0.02815 | CD4: 0.637 | CE4: 0.3218 | CF4: 0.01957 | CG4: 1.053 | CH4: 0.61 | CI4: 0.3708 | CJ4: 7.3 | CK4: 3.805 | CL4: 0.0696 | CM4: 12.16 | CN4: 0.2046 | CO4: 0.123 | CP4: 2.725 | CQ4: 1.431 | CR4: 0.0913 | CS4: 4.575 | CT4: 0 | CU4: 0 | CV4: 0 | CW4: 0 | CX4: 0 | CY4: 0 | CZ4: 0 | DA4: 2.0525 | DB4: 1.0156 | DC4: 16.238 | DD4: 30.04 | DE4: 18.507 | DF4: 67.85 | DG4: 17.938 | DH4: 8.8104 | DI4: 2.4943 | DJ4: 10.115 | DK4: 4.5837 | DL4: 43.941 | DM4: 0.39419 | DN4: 0.19303 | DO4: 5.4827 | DP4: 14.613 | DQ4: 25.765 | DR4: 46.448 | DS4: 0.0394 | DT4: 0.00757 | DU4: 12.41 | DV4: 0.9114 | DW4: 4.529 | DX4: 17.9 | DY4: 1298.16 | DZ4: 47.741 | EA4: 112.01 | EB4: 13.968 | EC4: 200.26 | ED4: 142.2 | EE4: 28.09 | EF4: 8.766 | EG4: 84.27 | EH4: 90.42 | EI4: 175.98 | EJ4: 24.108 | EK4: 927.83 | EL4: 76.84 | EM4: 58.4 | EN4: 29.725 | EO4: 13.354 | EP4: 6.625 | EQ4: 184.94 | ER4: 422.68 | ES4: 44.03 | ET4: 137.29 | EU4: 0.3 | EV4: 115.1 | EW4: 155.18 | EX4: 97.74 | EY4: 13.08 | EZ4: 0.46 | FA4: 0.464 | FB4: 32.36 | FC4: 12.65 | FD4: 29.797 | FE4: 1061.15 | FF4: 25.213 | FG4: 0.001 | FH4: 1086.36 | FI4: 61.285 | FJ4: 159.43 | FK4: 220.71
A5: 01C032 | B5: Craniotomies pour traumatisme, âge supérieur à 17 ans, niveau 2 | D5: 568 | E5: 8115.71 | F5: 8.218 | G5: 2.588 | H5: 244.53 | I5: 249.8 | J5: 1198.64 | K5: 1703.77 | L5: 2.6 | M5: 1.147 | N5: 25.453 | O5: 75.64 | P5: 239.61 | Q5: 344.45 | R5: 1.517 | S5: 0.153 | T5: 2.75 | U5: 12.43 | V5: 37.6 | W5: 54.45 | X5: 43.98 | Y5: 13.689 | Z5: 84.14 | AA5: 298.08 | AB5: 1044.03 | AC5: 1483.92 | AD5: 3586.59 | AE5: 9.793 | AF5: 4.982 | AG5: 12.579 | AH5: 191.43 | AI5: 168.7 | AJ5: 387.49 | AK5: 43.325 | AL5: 21.288 | AM5: 42.887 | AN5: 94.83 | AO5: 277.21 | AP5: 479.54 | AQ5: 0 | AR5: 0 | AS5: 0 | AT5: 0 | AU5: 0 | AV5: 0 | AW5: 0 | AX5: 0 | AY5: 0 | AZ5: 0 | BA5: 0 | BB5: 1.21 | BC5: 1.21 | BD5: 1.56 | BE5: 0.5831 | BF5: 5.418 | BG5: 8.735 | BH5: 14.52 | BI5: 30.82 | BJ5: 23.177 | BK5: 18.847 | BL5: 107.59 | BM5: 43.6 | BN5: 8.055 | BO5: 201.26 | BP5: 1.201 | BQ5: 0.205 | BR5: 1.166 | BS5: 1.32 | BT5: 0.237 | BU5: 4.13 | BV5: 7.772 | BW5: 4.119 | BX5: 103.09 | BY5: 49.95 | BZ5: 1.06 | CA5: 166 | CB5: 0.096 | CC5: 0.0546 | CD5: 1.341 | CE5: 0.7066 | CF5: 0.03241 | CG5: 2.23 | CH5: 0.803 | CI5: 0.4534 | CJ5: 11.52 | CK5: 5.683 | CL5: 0.1086 | CM5: 18.57 | CN5: 0.3593 | CO5: 0.2354 | CP5: 5.151 | CQ5: 2.767 | CR5: 0.1232 | CS5: 8.636 | CT5: 0 | CU5: 0 | CV5: 0 | CW5: 0 | CX5: 0 | CY5: 0 | CZ5: 0 | DA5: 1.5958 | DB5: 1.0021 | DC5: 12.665 | DD5: 29.68 | DE5: 18.988 | DF5: 63.93 | DG5: 0.98 | DH5: 0.2065 | DI5: 1.5494 | DJ5: 12.074 | DK5: 7.7733 | DL5: 22.583 | DM5: 0.39887 | DN5: 0.1486 | DO5: 6.652 | DP5: 15.118 | DQ5: 28.749 | DR5: 51.066 | DS5: 0.1417 | DT5: 0.0345 | DU5: 21.41 | DV5: 1.8057 | DW5: 6.763 | DX5: 30.15 | DY5: 1467.61 | DZ5: 77.053 | EA5: 165.67 | EB5: 13.93 | EC5: 330.21 | ED5: 214.1 | EE5: 44.616 | EF5: 8.804 | EG5: 125.75 | EH5: 144.11 | EI5: 278.8 | EJ5: 39.417 | EK5: 1442.46 | EL5: 118.28 | EM5: 62.7 | EN5: 37.1 | EO5: 19.543 | EP5: 8.516 | EQ5: 246.14 | ER5: 594.93 | ES5: 59.32 | ET5: 82.79 | EU5: 0.98 | EV5: 123.69 | EW5: 289.79 | EX5: 74.01 | EY5: 15.03 | EZ5: 0.79 | FA5: 0.932 | FB5: 45.32 | FC5: 7.28 | FD5: 47.373 | FE5: 1342.22 | FF5: 30.674 | FG5: 0.006 | FH5: 1372.9 | FI5: 112.989 | FJ5: 256.03 | FK5: 369.02
A6: 01C033 | B6: Craniotomies pour traumatisme, âge supérieur à 17 ans, niveau 3 | D6: 498 | E6: 13096.99 | F6: 11.993 | G6: 2.655 | H6: 331.79 | I6: 341.81 | J6: 1629.77 | K6: 2318.02 | L6: 4.448 | M6: 1.97 | N6: 31.421 | O6: 117.19 | P6: 360.85 | Q6: 515.88 | R6: 7.473 | S6: 0.6499 | T6: 20.37 | U6: 27.65 | V6: 134.22 | W6: 190.36 | X6: 93.7 | Y6: 27.18 | Z6: 198.18 | AA6: 729.39 | AB6: 2251.28 | AC6: 3299.74 | AD6: 6324 | AE6: 11.174 | AF6: 5.854 | AG6: 13.699 | AH6: 228.47 | AI6: 196.18 | AJ6: 455.37 | AK6: 52.399 | AL6: 27.897 | AM6: 51.318 | AN6: 123.07 | AO6: 357.91 | AP6: 612.59 | AQ6: 0 | AR6: 0 | AS6: 0 | AT6: 0 | AU6: 0 | AV6: 0 | AW6: 0 | AX6: 0 | AY6: 0 | AZ6: 0 | BA6: 0 | BB6: 3.35 | BC6: 3.35 | BD6: 4.071 | BE6: 1.7593 | BF6: 9.761 | BG6: 22.258 | BH6: 30.34 | BI6: 68.19 | BJ6: 40.845 | BK6: 29.184 | BL6: 173.54 | BM6: 65.09 | BN6: 12.266 | BO6: 320.93 | BP6: 5.119 | BQ6: 2.037 | BR6: 5.766 | BS6: 3.581 | BT6: 2.098 | BU6: 18.6 | BV6: 14.474 | BW6: 7.305 | BX6: 195.24 | BY6: 91.98 | BZ6: 1.582 | CA6: 310.57 | CB6: 0.2186 | CC6: 0.10728 | CD6: 2.772 | CE6: 1.4577 | CF6: 0.06053 | CG6: 4.616 | CH6: 1.907 | CI6: 1.0014 | CJ6: 28.7 | CK6: 14.345 | CL6: 0.1968 | CM6: 46.15 | CN6: 0.7787 | CO6: 0.4672 | CP6: 10.586 | CQ6: 5.286 | CR6: 0.2179 | CS6: 17.336 | CT6: 0.145 | CU6: 0.163 | CV6: 0.66 | CW6: 0.23 | CX6: 0.011 | CY6: 0 | CZ6: 1.22 | DA6: 2.7509 | DB6: 1.6631 | DC6: 27.193 | DD6: 49.99 | DE6: 30.932 | DF6: 112.53 | DG6: 6.859 | DH6: 0.1851 | DI6: 1.8473 | DJ6: 13.182 | DK6: 7.1515 | DL6: 29.225 | DM6: 0.36978 | DN6: 0.14591 | DO6: 6.2148 | DP6: 13.043 | DQ6: 22.53 | DR6: 42.304 | DS6: 0.2932 | DT6: 0.07875 | DU6: 46.95 | DV6: 1.5473 | DW6: 4.496 | DX6: 53.37 | DY6: 2096.36 | DZ6: 115.646 | EA6: 235.27 | EB6: 14.012 | EC6: 513.28 | ED6: 318.82 | EE6: 70.454 | EF6: 8.687 | EG6: 189.65 | EH6: 225.29 | EI6: 428.38 | EJ6: 63.192 | EK6: 2182.69 | EL6: 185.52 | EM6: 88.23 | EN6: 60.474 | EO6: 33.084 | EP6: 14.652 | EQ6: 381.96 | ER6: 917.5 | ES6: 88.5 | ET6: 95.55 | EU6: 1.51 | EV6: 208.95 | EW6: 495.15 | EX6: 118.45 | EY6: 27.26 | EZ6: 1.18 | FA6: 4.432 | FB6: 54.18 | FC6: 11.71 | FD6: 54.275 | FE6: 2078.64 | FF6: 33.332 | FG6: 0.009 | FH6: 2111.99 | FI6: 181.869 | FJ6: 393.87 | FK6: 575.74
A7: 01C034 | B7: Craniotomies pour traumatisme, âge supérieur à 17 ans, niveau 4 | D7: 442 | E7: 38336.45 | F7: 16.251 | G7: 4.225 | H7: 473 | I7: 495.05 | J7: 2342.94 | K7: 3331.46 | L7: 28.538 | M7: 11.978 | N7: 128.557 | O7: 291.91 | P7: 1157.75 | Q7: 1618.73 | R7: 13.832 | S7: 0.9751 | T7: 36.21 | U7: 53.55 | V7: 248.14 | W7: 352.7 | X7: 443.57 | Y7: 135.894 | Z7: 1008.85 | AA7: 3299.15 | AB7: 11526.76 | AC7: 16414.23 | AD7: 21717.12 | AE7: 13.55 | AF7: 7.019 | AG7: 16.747 | AH7: 287.31 | AI7: 238.75 | AJ7: 563.38 | AK7: 53.871 | AL7: 29.826 | AM7: 61.135 | AN7: 160.74 | AO7: 428.58 | AP7: 734.15 | AQ7: 0 | AR7: 0 | AS7: 0 | AT7: 0 | AU7: 0 | AV7: 0 | AW7: 0 | AX7: 0 | AY7: 0 | AZ7: 0 | BA7: 0 | BB7: 1.37 | BC7: 1.37 | BD7: 12.849 | BE7: 6.0423 | BF7: 27.525 | BG7: 62.454 | BH7: 92.01 | BI7: 200.88 | BJ7: 102.101 | BK7: 75.152 | BL7: 490.78 | BM7: 184.67 | BN7: 34.361 | BO7: 887.06 | BP7: 6.643 | BQ7: 3.941 | BR7: 17.945 | BS7: 13.039 | BT7: 6.563 | BU7: 48.13 | BV7: 51.691 | BW7: 25.994 | BX7: 693.18 | BY7: 315.4 | BZ7: 5.914 | CA7: 1092.18 | CB7: 0.1123 | CC7: 0.0537 | CD7: 1.341 | CE7: 0.8338 | CF7: 0.02085 | CG7: 2.362 | CH7: 7.252 | CI7: 3.6933 | CJ7: 101.13 | CK7: 51.092 | CL7: 0.9852 | CM7: 164.15 | CN7: 0.2895 | CO7: 0.1742 | CP7: 3.754 | CQ7: 2.263 | CR7: 0.0802 | CS7: 6.56 | CT7: 0 | CU7: 0 | CV7: 0 | CW7: 0 | CX7: 0 | CY7: 0 | CZ7: 0 | DA7: 4.8361 | DB7: 2.6877 | DC7: 40.722 | DD7: 85.25 | DE7: 52.141 | DF7: 185.64 | DG7: 4.329 | DH7: 16.9386 | DI7: 2.9781 | DJ7: 26.562 | DK7: 15.792 | DL7: 66.6 | DM7: 0.38626 | DN7: 0.13658 | DO7: 5.7209 | DP7: 15.559 | DQ7: 26.698 | DR7: 48.5 | DS7: 2.3805 | DT7: 0.8148 | DU7: 233.18 | DV7: 11.3657 | DW7: 30.137 | DX7: 277.87 | DY7: 4278.85 | DZ7: 293.888 | EA7: 389.1 | EB7: 13.81 | EC7: 1247.66 | ED7: 823.09 | EE7: 202.676 | EF7: 8.804 | EG7: 516.91 | EH7: 592.03 | EI7: 1076.78 | EJ7: 159.625 | EK7: 5324.37 | EL7: 522.37 | EM7: 174.96 | EN7: 214.237 | EO7: 94.933 | EP7: 35.584 | EQ7: 1042.09 | ER7: 2808.27 | ES7: 150.04 | ET7: 218.35 | EU7: 11.31 | EV7: 604.35 | EW7: 1673.25 | EX7: 154.42 | EY7: 47.41 | EZ7: 6.26 | FA7: 5.631 | FB7: 86.5 | FC7: 8.4 | FD7: 119.983 | FE7: 5894.17 | FF7: 79.845 | FG7: 0.001 | FH7: 5974.02 | FI7: 425.092 | FJ7: 997.38 | FK7: 1422.47
A8: 01C041 | B8: Craniotomies en dehors de tout traumatisme, âge supérieur à 17 ans, niveau 1 | D8: 4285 | E8: 6666.85 | F8: 7.596 | G8: 1.657 | H8: 224.76 | I8: 201.66 | J8: 1036.1 | K8: 1471.77 | L8: 2.271 | M8: 0.747 | N8: 10.264 | O8: 26.48 | P8: 120.31 | Q8: 160.07 | R8: 2.618 | S8: 0.2333 | T8: 5.26 | U8: 16.56 | V8: 56.55 | W8: 81.22 | X8: 5.59 | Y8: 1.456 | Z8: 10.18 | AA8: 27.63 | AB8: 123.99 | AC8: 168.84 | AD8: 1881.91 | AE8: 19.321 | AF8: 9.795 | AG8: 19.206 | AH8: 321.04 | AI8: 274.93 | AJ8: 644.29 | AK8: 93.055 | AL8: 50.74 | AM8: 96.501 | AN8: 190.02 | AO8: 565.52 | AP8: 995.84 | AQ8: 0.002 | AR8: 0.002 | AS8: 0.018 | AT8: 0.006 | AU8: 0.05 | AV8: 0.08 | AW8: 0 | AX8: 0 | AY8: 0 | AZ8: 0 | BA8: 0 | BB8: 0.75 | BC8: 0.75 | BD8: 1.099 | BE8: 0.3689 | BF8: 4.317 | BG8: 7.749 | BH8: 14.43 | BI8: 27.97 | BJ8: 20.928 | BK8: 13.273 | BL8: 68.66 | BM8: 30.65 | BN8: 4.625 | BO8: 138.14 | BP8: 2.189 | BQ8: 1.213 | BR8: 5.773 | BS8: 4.922 | BT8: 1.554 | BU8: 15.65 | BV8: 2.404 | BW8: 1.408 | BX8: 35.1 | BY8: 16.63 | BZ8: 0.38 | CA8: 55.92 | CB8: 1.5597 | CC8: 0.74293 | CD8: 18.324 | CE8: 11.2385 | CF8: 0.37954 | CG8: 32.244 | CH8: 0.839 | CI8: 0.4089 | CJ8: 8.47 | CK8: 4.463 | CL8: 0.0588 | CM8: 14.24 | CN8: 5.2969 | CO8: 3.0689 | CP8: 67.558 | CQ8: 39.731 | CR8: 1.1932 | CS8: 116.848 | CT8: 0.014 | CU8: 0.016 | CV8: 0.06 | CW8: 0.02 | CX8: 0.001 | CY8: 0.04 | CZ8: 0.16 | DA8: 0.2752 | DB8: 0.166 | DC8: 2.644 | DD8: 5.12 | DE8: 2.909 | DF8: 11.12 | DG8: 0.026 | DH8: 0.0296 | DI8: 0.2849 | DJ8: 1.703 | DK8: 1.4208 | DL8: 3.465 | DM8: 0.09286 | DN8: 0.03415 | DO8: 1.0534 | DP8: 2.923 | DQ8: 5.228 | DR8: 9.331 | DS8: 0.0492 | DT8: 0.011 | DU8: 8.74 | DV8: 0.6585 | DW8: 2.186 | DX8: 11.65 | DY8: 2077.69 | DZ8: 55.255 | EA8: 138.96 | EB8: 13.664 | EC8: 232.65 | ED8: 153.2 | EE8: 34.289 | EF8: 9.196 | EG8: 98.35 | EH8: 105.29 | EI8: 203.3 | EJ8: 26.555 | EK8: 1070.7 | EL8: 115.31 | EM8: 104.58 | EN8: 38.456 | EO8: 19.24 | EP8: 7.581 | EQ8: 285.17 | ER8: 708.65 | ES8: 99.93 | ET8: 118.12 | EU8: 0.3 | EV8: 31.02 | EW8: 223.02 | EX8: 95.77 | EY8: 5.52 | EZ8: 0.52 | FA8: 2.459 | FB8: 29.63 | FC8: 2.78 | FD8: 9.222 | FE8: 1326.94 | FF8: 24.445 | FG8: 0.001 | FH8: 1351.39 | FI8: 82.755 | FJ8: 184.41 | FK8: 267.17
A9: 01C042 | B9: Craniotomies en dehors de tout traumatisme, âge supérieur à 17 ans, niveau 2 | D9: 2315 | E9: 9439.13 | F9: 11.896 | G9: 2.497 | H9: 297.66 | I9: 286.45 | J9: 1500.88 | K9: 2099.39 | L9: 2.344 | M9: 1.284 | N9: 16.486 | O9: 46.28 | P9: 167.54 | Q9: 233.94 | R9: 4.344 | S9: 0.3362 | T9: 9.94 | U9: 21.52 | V9: 84.58 | W9: 120.73 | X9: 18.39 | Y9: 5.856 | Z9: 43.17 | AA9: 132.31 | AB9: 476.64 | AC9: 676.37 | AD9: 3130.42 | AE9: 19.714 | AF9: 10.077 | AG9: 20.206 | AH9: 341.97 | AI9: 313.23 | AJ9: 705.2 | AK9: 105.899 | AL9: 61.679 | AM9: 92.006 | AN9: 209.8 | AO9: 584.15 | AP9: 1053.53 | AQ9: 0.004 | AR9: 0.0016 | AS9: 0.016 | AT9: 0.045 | AU9: 0.15 | AV9: 0.21 | AW9: 0 | AX9: 0 | AY9: 0 | AZ9: 0 | BA9: 0 | BB9: 1.25 | BC9: 1.25 | BD9: 4.994 | BE9: 1.8291 | BF9: 15.87 | BG9: 33.502 | BH9: 58.51 | BI9: 114.71 | BJ9: 38.33 | BK9: 22.854 | BL9: 121.11 | BM9: 53.21 | BN9: 9.632 | BO9: 245.14 | BP9: 8.327 | BQ9: 3.411 | BR9: 15.11 | BS9: 13.187 | BT9: 4.234 | BU9: 44.27 | BV9: 5.767 | BW9: 3.01 | BX9: 78.84 | BY9: 37.07 | BZ9: 0.797 | CA9: 125.49 | CB9: 2.1571 | CC9: 0.85048 | CD9: 25 | CE9: 15.4509 | CF9: 0.63625 | CG9: 44.094 | CH9: 0.962 | CI9: 0.4855 | CJ9: 11.17 | CK9: 5.777 | CL9: 0.1093 | CM9: 18.5 | CN9: 6.2664 | CO9: 3.4945 | CP9: 82.829 | CQ9: 44.373 | CR9: 1.6481 | CS9: 138.611 | CT9: 0.172 | CU9: 0.086 | CV9: 0.1 | CW9: 0.09 | CX9: 0.062 | CY9: 0.74 | CZ9: 1.25 | DA9: 0.6597 | DB9: 0.3059 | DC9: 5.813 | DD9: 10.58 | DE9: 5.409 | DF9: 22.77 | DG9: 0.425 | DH9: 0.03 | DI9: 0.1937 | DJ9: 1.197 | DK9: 0.6672 | DL9: 2.514 | DM9: 0.1409 | DN9: 0.05769 | DO9: 1.862 | DP9: 4.83 | DQ9: 8.365 | DR9: 15.255 | DS9: 0.1204 | DT9: 0.03082 | DU9: 21.05 | DV9: 0.9634 | DW9: 2.782 | DX9: 24.94 | DY9: 2557.73 | DZ9: 84.468 | EA9: 206.61 | EB9: 13.544 | EC9: 364.28 | ED9: 225.38 | EE9: 54.354 | EF9: 9.088 | EG9: 141.01 | EH9: 162.45 | EI9: 312.6 | EJ9: 42.922 | EK9: 1616.7 | EL9: 165.79 | EM9: 122.07 | EN9: 46.603 | EO9: 28.041 | EP9: 10.268 | EQ9: 372.76 | ER9: 873.03 | ES9: 124.17 | ET9: 179.58 | EU9: 0.85 | EV9: 63.01 | EW9: 335.38 | EX9: 93.87 | EY9: 10.6 | EZ9: 0.93 | FA9: 4.799 | FB9: 39.44 | FC9: 4.22 | FD9: 4.57 | FE9: 1734.44 | FF9: 27.065 | FG9: 0.001 | FH9: 1761.51 | FI9: 131.442 | FJ9: 277.49 | FK9: 408.93
A10: 01C043 | B10: Craniotomies en dehors de tout traumatisme, âge supérieur à 17 ans, niveau 3 | D10: 1485 | E10: 14730.78 | F10: 18.389 | G10: 4.301 | H10: 473.12 | I10: 493.57 | J10: 2214.83 | K10: 3204.21 | L10: 5.087 | M10: 2.342 | N10: 34.775 | O10: 88.54 | P10: 352.56 | Q10: 483.31 | R10: 4.746 | S10: 0.6434 | T10: 15.32 | U10: 26.7 | V10: 116.15 | W10: 163.56 | X10: 67.29 | Y10: 20.724 | Z10: 126.1 | AA10: 454.89 | AB10: 1537.16 | AC10: 2206.16 | AD10: 6057.24 | AE10: 19.599 | AF10: 9.908 | AG10: 22.327 | AH10: 345.94 | AI10: 297.07 | AJ10: 694.85 | AK10: 107.015 | AL10: 58.951 | AM10: 92.815 | AN10: 181.42 | AO10: 547.45 | AP10: 987.66 | AQ10: 0.003 | AR10: 0.0013 | AS10: 0.01 | AT10: 0.003 | AU10: 0.04 | AV10: 0.06 | AW10: 0 | AX10: 0 | AY10: 0 | AZ10: 0 | BA10: 0 | BB10: 7.11 | BC10: 7.11 | BD10: 3.926 | BE10: 1.7903 | BF10: 12.099 | BG10: 22.239 | BH10: 35.56 | BI10: 75.61 | BJ10: 62.413 | BK10: 36.789 | BL10: 205.77 | BM10: 87.73 | BN10: 16.127 | BO10: 408.83 | BP10: 11.392 | BQ10: 4.642 | BR10: 21.319 | BS10: 18.053 | BT10: 6.203 | BU10: 61.61 | BV10: 12.283 | BW10: 6.649 | BX10: 174.66 | BY10: 82.15 | BZ10: 1.629 | CA10: 277.37 | CB10: 2.924 | CC10: 0.98577 | CD10: 31.265 | CE10: 21.2866 | CF10: 0.79201 | CG10: 57.253 | CH10: 2.475 | CI10: 1.3315 | CJ10: 32.54 | CK10: 16.907 | CL10: 0.2416 | CM10: 53.5 | CN10: 6.6964 | CO10: 3.6029 | CP10: 84.06 | CQ10: 48.076 | CR10: 1.5366 | CS10: 143.972 | CT10: 1.065 | CU10: 0.56 | CV10: 0.88 | CW10: 0.52 | CX10: 0.318 | CY10: 5.81 | CZ10: 9.15 | DA10: 1.1074 | DB10: 0.5137 | DC10: 9.968 | DD10: 20.69 | DE10: 12.974 | DF10: 45.26 | DG10: 2.627 | DH10: 0.0983 | DI10: 0.8878 | DJ10: 5.3 | DK10: 3.7106 | DL10: 12.624 | DM10: 0.22808 | DN10: 0.09225 | DO10: 3.2146 | DP10: 7.044 | DQ10: 13.098 | DR10: 23.677 | DS10: 0.2867 | DT10: 0.08341 | DU10: 41.16 | DV10: 1.9599 | DW10: 6.6 | DX10: 50.09 | DY10: 2908.62 | DZ10: 138.605 | EA10: 306.6 | EB10: 14.043 | EC10: 590.96 | ED10: 379.97 | EE10: 80.651 | EF10: 8.785 | EG10: 230.36 | EH10: 265.9 | EI10: 498.16 | EJ10: 70.011 | EK10: 2584.05 | EL10: 243.18 | EM10: 124.19 | EN10: 66.782 | EO10: 41.768 | EP10: 18.494 | EQ10: 494.41 | ER10: 1161.62 | ES10: 155.9 | ET10: 210.53 | EU10: 1.69 | EV10: 133.16 | EW10: 599.71 | EX10: 262.06 | EY10: 21.9 | EZ10: 1.14 | FA10: 6.562 | FB10: 51.35 | FC10: 7.41 | FD10: 30.643 | FE10: 2643.67 | FF10: 42.783 | FG10: 0.01 | FH10: 2686.46 | FI10: 213.906 | FJ10: 463.29 | FK10: 677.2
A11: 01C044 | B11: Craniotomies en dehors de tout traumatisme, âge supérieur à 17 ans, niveau 4 | D11: 1405 | E11: 36354.66 | F11: 22.744 | G11: 5.805 | H11: 511 | I11: 571.02 | J11: 2583.24 | K11: 3693.8 | L11: 19.197 | M11: 7.62 | N11: 110 | O11: 279.26 | P11: 1019.35 | Q11: 1435.43 | R11: 17.208 | S11: 2.2123 | T11: 53.96 | U11: 84.29 | V11: 375.98 | W11: 533.65 | X11: 338.4 | Y11: 109.811 | Z11: 782.48 | AA11: 2493.02 | AB11: 8959.26 | AC11: 12682.96 | AD11: 18345.85 | AE11: 22.59 | AF11: 11.479 | AG11: 26.954 | AH11: 421.32 | AI11: 350.9 | AJ11: 833.24 | AK11: 86.116 | AL11: 47.215 | AM11: 88.795 | AN11: 185.76 | AO11: 560.32 | AP11: 968.2 | AQ11: 0.006 | AR11: 0.0097 | AS11: 0.052 | AT11: 0.147 | AU11: 0.58 | AV11: 0.8 | AW11: 0 | AX11: 0 | AY11: 0 | AZ11: 0.5387 | BA11: 1.375 | BB11: 5.67 | BC11: 7.59 | BD11: 10.604 | BE11: 4.9246 | BF11: 28.13 | BG11: 50.303 | BH11: 80.26 | BI11: 174.22 | BJ11: 135.317 | BK11: 88.994 | BL11: 560.99 | BM11: 222.87 | BN11: 44.692 | BO11: 1052.86 | BP11: 67.123 | BQ11: 23.955 | BR11: 112.275 | BS11: 101.677 | BT11: 36.403 | BU11: 341.43 | BV11: 46.335 | BW11: 23.593 | BX11: 625.63 | BY11: 286.06 | BZ11: 5.534 | CA11: 987.15 | CB11: 1.2365 | CC11: 0.48555 | CD11: 13.639 | CE11: 9.4752 | CF11: 0.30989 | CG11: 25.146 | CH11: 9.223 | CI11: 4.5704 | CJ11: 122.84 | CK11: 63.283 | CL11: 1.1142 | CM11: 201.03 | CN11: 2.9594 | CO11: 1.64 | CP11: 37.314 | CQ11: 22.482 | CR11: 0.8612 | CS11: 65.256 | CT11: 1.033 | CU11: 0.891 | CV11: 1 | CW11: 0.97 | CX11: 0.541 | CY11: 15.22 | CZ11: 19.66 | DA11: 3.4725 | DB11: 1.8345 | DC11: 28.821 | DD11: 58.36 | DE11: 34.346 | DF11: 126.84 | DG11: 4.754 | DH11: 0.2092 | DI11: 2.0049 | DJ11: 18.108 | DK11: 11.7042 | DL11: 36.78 | DM11: 0.31717 | DN11: 0.11064 | DO11: 4.6974 | DP11: 11.821 | DQ11: 21.339 | DR11: 38.285 | DS11: 1.5714 | DT11: 0.46671 | DU11: 218.36 | DV11: 7.268 | DW11: 15.794 | DX11: 243.46 | DY11: 5121.95 | DZ11: 276.069 | EA11: 424.04 | EB11: 13.881 | EC11: 1201.07 | ED11: 779.37 | EE11: 196.521 | EF11: 9.184 | EG11: 488.4 | EH11: 571.42 | EI11: 1045.04 | EJ11: 153.315 | EK11: 5158.31 | EL11: 537.9 | EM11: 191.8 | EN11: 194.499 | EO11: 96.034 | EP11: 38.35 | EQ11: 1058.59 | ER11: 2929.52 | ES11: 276.36 | ET11: 872.02 | EU11: 11.38 | EV11: 371.91 | EW11: 1634.62 | EX11: 228.8 | EY11: 51.89 | EZ11: 5.64 | FA11: 10.956 | FB11: 83.72 | FC11: 16.95 | FD11: 84.79 | FE11: 6578.55 | FF11: 91.404 | FG11: 0.015 | FH11: 6669.97 | FI11: 399.843 | FJ11: 938.09 | FK11: 1337.94
A12: 01C051 | B12: Interventions sur le rachis et la moelle pour des affections neurologiques, niveau 1 | D12: 2104 | E12: 6021.7 | F12: 7.811 | G12: 1.099 | H12: 235.17 | I12: 211.59 | J12: 902.92 | K12: 1358.59 | L12: 0.443 | M12: 0.144 | N12: 2.52 | O12: 9.69 | P12: 38.68 | Q12: 51.47 | R12: 0.269 | S12: 0.0353 | T12: 0.46 | U12: 2.72 | V12: 7.6 | W12: 11.09 | X12: 0.59 | Y12: 0.278 | Z12: 2.61 | AA12: 6.38 | AB12: 18.57 | AC12: 28.43 | AD12: 1449.58 | AE12: 18.106 | AF12: 9.303 | AG12: 19.396 | AH12: 302.48 | AI12: 256.49 | AJ12: 605.78 | AK12: 84.492 | AL12: 42.87 | AM12: 103.651 | AN12: 178.12 | AO12: 534.67 | AP12: 943.8 | AQ12: 0 | AR12: 0 | AS12: 0 | AT12: 0 | AU12: 0 | AV12: 0 | AW12: 0 | AX12: 0 | AY12: 0 | AZ12: 0 | BA12: 0 | BB12: 0.41 | BC12: 0.41 | BD12: 0.12 | BE12: 0.0628 | BF12: 0.338 | BG12: 0.582 | BH12: 0.88 | BI12: 1.98 | BJ12: 6.382 | BK12: 4.574 | BL12: 26.1 | BM12: 10.55 | BN12: 1.723 | BO12: 49.33 | BP12: 1.556 | BQ12: 0.993 | BR12: 0.67 | BS12: 0.865 | BT12: 0.429 | BU12: 4.51 | BV12: 1.062 | BW12: 0.577 | BX12: 17.05 | BY12: 7.65 | BZ12: 0.221 | CA12: 26.56 | CB12: 0.3176 | CC12: 0.15131 | CD12: 3.949 | CE12: 2.3003 | CF12: 0.08646 | CG12: 6.804 | CH12: 0.106 | CI12: 0.0532 | CJ12: 1.37 | CK12: 0.696 | CL12: 0.027 | CM12: 2.25 | CN12: 0.808 | CO12: 0.4281 | CP12: 10.732 | CQ12: 6.261 | CR12: 0.2346 | CS12: 18.464 | CT12: 0 | CU12: 0 | CV12: 0 | CW12: 0 | CX12: 0 | CY12: 0 | CZ12: 0 | DA12: 0.0044 | DB12: 0.0054 | DC12: 0.039 | DD12: 0.03 | DE12: 0.045 | DF12: 0.13 | DG12: 0 | DH12: 0 | DI12: 0.0008 | DJ12: 0 | DK12: 0.4009 | DL12: 0.402 | DM12: 0.03138 | DN12: 0.00907 | DO12: 0.4602 | DP12: 0.899 | DQ12: 1.87 | DR12: 3.27 | DS12: 0.063 | DT12: 0.04176 | DU12: 32.08 | DV12: 0.4157 | DW12: 1.463 | DX12: 34.06 | DY12: 1697.75 | DZ12: 42.79 | EA12: 118.88 | EB12: 12.792 | EC12: 195.7 | ED12: 108.23 | EE12: 27.721 | EF12: 9.231 | EG12: 77.86 | EH12: 93.36 | EI12: 170.28 | EJ12: 23.102 | EK12: 879.94 | EL12: 103.83 | EM12: 117.41 | EN12: 24.73 | EO12: 17.169 | EP12: 8.212 | EQ12: 271.35 | ER12: 518.48 | ES12: 141.5 | ET12: 800.94 | EU12: 0.41 | EV12: 25.27 | EW12: 124.06 | EX12: 43.63 | EY12: 6.84 | EZ12: 0.47 | FA12: 1.432 | FB12: 22.72 | FC12: 0.13 | FD12: 2.401 | FE12: 1688.3 | FF12: 33.611 | FG12: 1.171 | FH12: 1723.08 | FI12: 64.514 | FJ12: 141.59 | FK12: 206.1
A13: 01C052 | B13: Interventions sur le rachis et la moelle pour des affections neurologiques, niveau 2 | D13: 967 | E13: 8122.35 | F13: 18.227 | G13: 1.97 | H13: 404.22 | I13: 463.09 | J13: 1354.99 | K13: 2242.5 | L13: 1.132 | M13: 0.429 | N13: 6.124 | O13: 24.56 | P13: 74.8 | Q13: 107.05 | R13: 0.413 | S13: 0.0777 | T13: 0.92 | U13: 5.14 | V13: 15.41 | W13: 21.96 | X13: 3.28 | Y13: 1.184 | Z13: 9.36 | AA13: 26.17 | AB13: 71.26 | AC13: 111.24 | AD13: 2482.75 | AE13: 17.42 | AF13: 9.801 | AG13: 17.613 | AH13: 317.21 | AI13: 267.06 | AJ13: 629.1 | AK13: 89.949 | AL13: 43.957 | AM13: 111.184 | AN13: 188.43 | AO13: 545.32 | AP13: 978.85 | AQ13: 0 | AR13: 0 | AS13: 0 | AT13: 0 | AU13: 0 | AV13: 0 | AW13: 0 | AX13: 0 | AY13: 0 | AZ13: 0 | BA13: 0 | BB13: 0 | BC13: 0 | BD13: 0.636 | BE13: 0.2179 | BF13: 1.574 | BG13: 2.151 | BH13: 3.13 | BI13: 7.71 | BJ13: 12.999 | BK13: 9.43 | BL13: 47.35 | BM13: 21.39 | BN13: 3.541 | BO13: 94.71 | BP13: 9.176 | BQ13: 6.306 | BR13: 2.583 | BS13: 4.378 | BT13: 2.954 | BU13: 25.4 | BV13: 2.785 | BW13: 1.437 | BX13: 43.71 | BY13: 19.24 | BZ13: 0.447 | CA13: 67.62 | CB13: 0.642 | CC13: 0.24774 | CD13: 7.196 | CE13: 4.6338 | CF13: 0.15785 | CG13: 12.877 | CH13: 0.4 | CI13: 0.2272 | CJ13: 5.3 | CK13: 2.489 | CL13: 0.0759 | CM13: 8.49 | CN13: 1.4062 | CO13: 0.7376 | CP13: 16.87 | CQ13: 10.127 | CR13: 0.3042 | CS13: 29.445 | CT13: 0.06 | CU13: 0.067 | CV13: 0.27 | CW13: 0.1 | CX13: 0.005 | CY13: 6.8 | CZ13: 7.3 | DA13: 0.1612 | DB13: 0.0944 | DC13: 1.336 | DD13: 2.37 | DE13: 1.625 | DF13: 5.59 | DG13: 0.034 | DH13: 0.0335 | DI13: 0.1559 | DJ13: 1.241 | DK13: 0.7503 | DL13: 2.214 | DM13: 0.07396 | DN13: 0.02132 | DO13: 0.8829 | DP13: 2.164 | DQ13: 3.636 | DR13: 6.778 | DS13: 0.1464 | DT13: 0.10131 | DU13: 70.73 | DV13: 1.3233 | DW13: 4.637 | DX13: 76.94 | DY13: 1953.01 | DZ13: 70.865 | EA13: 192.47 | EB13: 12.116 | EC13: 312.84 | ED13: 172.77 | EE13: 42.164 | EF13: 8.869 | EG13: 125.62 | EH13: 145.36 | EI13: 255.97 | EJ13: 33.739 | EK13: 1372.78 | EL13: 155.29 | EM13: 132.71 | EN13: 32.694 | EO13: 24.265 | EP13: 16.276 | EQ13: 361.24 | ER13: 631.4 | ES13: 120.97 | ET13: 724.62 | EU13: 0.99 | EV13: 116.7 | EW13: 206.13 | EX13: 49.95 | EY13: 10.89 | EZ13: 0.48 | FA13: 3.408 | FB13: 34.31 | FC13: 0.79 | FD13: 3.871 | FE13: 1904.52 | FF13: 47.255 | FG13: 0.8 | FH13: 1952.58 | FI13: 102.682 | FJ13: 224.11 | FK13: 326.79
A14: 01C053 | B14: Interventions sur le rachis et la moelle pour des affections neurologiques, niveau 3 | D14: 447 | E14: 11681.42 | F14: 20.876 | G14: 3.632 | H14: 499.65 | I14: 507.28 | J14: 2055.6 | K14: 3087.04 | L14: 14.149 | M14: 5.481 | N14: 21.923 | O14: 67.17 | P14: 294.02 | Q14: 402.74 | R14: 2.265 | S14: 0.0904 | T14: 6.46 | U14: 7.63 | V14: 40.11 | W14: 56.54 | X14: 25.2 | Y14: 8.27 | Z14: 74.03 | AA14: 201.56 | AB14: 573.98 | AC14: 883.03 | AD14: 4429.35 | AE14: 17.262 | AF14: 9.476 | AG14: 22.25 | AH14: 342.73 | AI14: 308.23 | AJ14: 699.95 | AK14: 91.092 | AL14: 47.85 | AM14: 93.362 | AN14: 206.22 | AO14: 579.92 | AP14: 1018.45 | AQ14: 0 | AR14: 0 | AS14: 0 | AT14: 0 | AU14: 0 | AV14: 0 | AW14: 0 | AX14: 0 | AY14: 0 | AZ14: 0 | BA14: 0 | BB14: 1.85 | BC14: 1.85 | BD14: 1.26 | BE14: 0.6608 | BF14: 2.555 | BG14: 4.929 | BH14: 6.97 | BI14: 16.37 | BJ14: 34.613 | BK14: 21.976 | BL14: 116.91 | BM14: 54.23 | BN14: 9.395 | BO14: 237.12 | BP14: 2.04 | BQ14: 0.956 | BR14: 4.969 | BS14: 4.512 | BT14: 1.606 | BU14: 14.08 | BV14: 7.062 | BW14: 3.698 | BX14: 107.02 | BY14: 48.3 | BZ14: 1.854 | CA14: 167.94 | CB14: 1.3221 | CC14: 0.4166 | CD14: 13.695 | CE14: 10.2546 | CF14: 0.29951 | CG14: 25.988 | CH14: 1.064 | CI14: 0.5165 | CJ14: 14.63 | CK14: 7.209 | CL14: 0.288 | CM14: 23.7 | CN14: 2.4265 | CO14: 1.2246 | CP14: 28.796 | CQ14: 20.206 | CR14: 0.3833 | CS14: 53.036 | CT14: 0.12 | CU14: 0.134 | CV14: 0.55 | CW14: 0.19 | CX14: 0.009 | CY14: 12.65 | CZ14: 13.65 | DA14: 0.2665 | DB14: 0.0299 | DC14: 0.73 | DD14: 8.03 | DE14: 2.875 | DF14: 11.93 | DG14: 0.004 | DH14: 0.0018 | DI14: 0.1205 | DJ14: 0.975 | DK14: 1.7255 | DL14: 2.827 | DM14: 0.20615 | DN14: 0.06418 | DO14: 2.9005 | DP14: 6.615 | DQ14: 11.208 | DR14: 20.994 | DS14: 0.437 | DT14: 0.12276 | DU14: 85.03 | DV14: 3.594 | DW14: 8.087 | DX14: 97.27 | DY14: 2405.16 | DZ14: 113.78 | EA14: 276.95 | EB14: 13.601 | EC14: 480.99 | ED14: 298.24 | EE14: 67.22 | EF14: 8.444 | EG14: 192.22 | EH14: 211.61 | EI14: 391.01 | EJ14: 54.441 | EK14: 2108.51 | EL14: 194.66 | EM14: 125.23 | EN14: 51.379 | EO14: 33.474 | EP14: 20.541 | EQ14: 425.28 | ER14: 882.02 | ES14: 135.42 | ET14: 436.27 | EU14: 4.26 | EV14: 178.01 | EW14: 399.28 | EX14: 136.47 | EY14: 26.51 | EZ14: 1.05 | FA14: 4.731 | FB14: 48.34 | FC14: 0.8 | FD14: 14.721 | FE14: 2267.89 | FF14: 38.44 | FG14: 6.789 | FH14: 2313.12 | FI14: 151.979 | FJ14: 368.44 | FK14: 520.42
A15: 01C054 | B15: Interventions sur le rachis et la moelle pour des affections neurologiques, niveau 4 | D15: 187 | E15: 29161.88 | F15: 41.561 | G15: 4.637 | H15: 807.71 | I15: 845.46 | J15: 3073.44 | K15: 4772.81 | L15: 13.626 | M15: 4.025 | N15: 107.066 | O15: 243.53 | P15: 721.19 | Q15: 1089.44 | R15: 1.616 | S15: 0.411 | T15: 19.09 | U15: 40.63 | V15: 122.53 | W15: 184.28 | X15: 296.28 | Y15: 87.005 | Z15: 603.37 | AA15: 1726.24 | AB15: 5487.17 | AC15: 8200.07 | AD15: 14246.61 | AE15: 22.9 | AF15: 11.393 | AG15: 26.693 | AH15: 433.56 | AI15: 362.7 | AJ15: 857.24 | AK15: 110.929 | AL15: 58.793 | AM15: 115.21 | AN15: 253.85 | AO15: 728.7 | AP15: 1267.48 | AQ15: 0 | AR15: 0 | AS15: 0 | AT15: 0 | AU15: 0 | AV15: 0 | AW15: 0 | AX15: 0 | AY15: 0 | AZ15: 0 | BA15: 0 | BB15: 0 | BC15: 0 | BD15: 5.522 | BE15: 2.6612 | BF15: 10.535 | BG15: 25.17 | BH15: 30.42 | BI15: 74.31 | BJ15: 72.227 | BK15: 45.966 | BL15: 318.04 | BM15: 125.94 | BN15: 29.133 | BO15: 591.3 | BP15: 0.454 | BQ15: 1.378 | BR15: 3.266 | BS15: 1.12 | BT15: 1.974 | BU15: 8.19 | BV15: 31.088 | BW15: 17.073 | BX15: 425.22 | BY15: 198.15 | BZ15: 3.444 | CA15: 674.97 | CB15: 0.4382 | CC15: 0.19157 | CD15: 4.529 | CE15: 3.1569 | CF15: 0.05104 | CG15: 8.366 | CH15: 4.716 | CI15: 2.5201 | CJ15: 72.43 | CK15: 34.821 | CL15: 0.4005 | CM15: 114.89 | CN15: 1.2965 | CO15: 0.6927 | CP15: 15.442 | CQ15: 10.968 | CR15: 0.1316 | CS15: 28.531 | CT15: 0 | CU15: 0 | CV15: 0 | CW15: 0 | CX15: 0 | CY15: 21.35 | CZ15: 21.35 | DA15: 1.3642 | DB15: 0.9097 | DC15: 11.231 | DD15: 19.71 | DE15: 13.666 | DF15: 46.89 | DG15: 52.701 | DH15: 0.5174 | DI15: 6.3293 | DJ15: 37.494 | DK15: 14.8404 | DL15: 111.883 | DM15: 0.3171 | DN15: 0.09163 | DO15: 4.7577 | DP15: 10.452 | DQ15: 20.592 | DR15: 36.21 | DS15: 1.0874 | DT15: 0.62892 | DU15: 131.37 | DV15: 12.2801 | DW15: 36.314 | DX15: 181.68 | DY15: 4023.29 | DZ15: 248.601 | EA15: 446.6 | EB15: 13.753 | EC15: 1045.13 | ED15: 654.29 | EE15: 146.319 | EF15: 8.893 | EG15: 430.05 | EH15: 494.49 | EI15: 911.45 | EJ15: 118.304 | EK15: 4517.88 | EL15: 449.65 | EM15: 201.73 | EN15: 123.82 | EO15: 73.14 | EP15: 56.506 | EQ15: 904.85 | ER15: 2208.94 | ES15: 184.15 | ET15: 748.82 | EU15: 12.99 | EV15: 630.34 | EW15: 1229.09 | EX15: 156.35 | EY15: 63.59 | EZ15: 2.32 | FA15: 15.981 | FB15: 74.26 | FC15: 10 | FD15: 84.624 | FE15: 5421.47 | FF15: 41.583 | FG15: 6.199 | FH15: 5469.25 | FI15: 403.315 | FJ15: 810.61 | FK15: 1213.92
A16: 01C061 | B16: Interventions sur le système vasculaire précérébral, niveau 1 | D16: 1732 | E16: 5543.45 | F16: 15.225 | G16: 2.563 | H16: 182.53 | I16: 238.22 | J16: 681.28 | K16: 1119.82 | L16: 2.475 | M16: 0.469 | N16: 16.717 | O16: 21.9 | P16: 115.81 | Q16: 157.37 | R16: 0.704 | S16: 0.2382 | T16: 8.19 | U16: 18.13 | V16: 47.09 | W16: 74.35 | X16: 1.44 | Y16: 0.555 | Z16: 3.04 | AA16: 5.11 | AB16: 19.35 | AC16: 29.5 | AD16: 1381.04 | AE16: 17.246 | AF16: 7.303 | AG16: 20.389 | AH16: 264.1 | AI16: 266.91 | AJ16: 575.95 | AK16: 77.002 | AL16: 35.811 | AM16: 122.513 | AN16: 258.36 | AO16: 595.63 | AP16: 1089.32 | AQ16: 0 | AR16: 0 | AS16: 0 | AT16: 0 | AU16: 0 | AV16: 0 | AW16: 0 | AX16: 0 | AY16: 0 | AZ16: 0 | BA16: 0 | BB16: 0.16 | BC16: 0.16 | BD16: 1.801 | BE16: 0.8731 | BF16: 3.8 | BG16: 7.39 | BH16: 7.57 | BI16: 21.43 | BJ16: 10.634 | BK16: 6.943 | BL16: 34.01 | BM16: 24.12 | BN16: 5.902 | BO16: 81.61 | BP16: 1.93 | BQ16: 0.518 | BR16: 2.196 | BS16: 2.662 | BT16: 0.879 | BU16: 8.19 | BV16: 3.023 | BW16: 1.976 | BX16: 48.01 | BY16: 19.35 | BZ16: 1.088 | CA16: 73.45 | CB16: 0.202 | CC16: 0.06751 | CD16: 2.503 | CE16: 1.9527 | CF16: 0.08459 | CG16: 4.81 | CH16: 0.137 | CI16: 0.0687 | CJ16: 1.61 | CK16: 0.744 | CL16: 0.026 | CM16: 2.59 | CN16: 0.3583 | CO16: 0.1431 | CP16: 4.801 | CQ16: 3.804 | CR16: 0.1437 | CS16: 9.25 | CT16: 0 | CU16: 0 | CV16: 0 | CW16: 0 | CX16: 0 | CY16: 0 | CZ16: 0 | DA16: 0.0108 | DB16: 0.0026 | DC16: 0.099 | DD16: 0.16 | DE16: 0.051 | DF16: 0.32 | DG16: 0 | DH16: 0 | DI16: 0 | DJ16: 0 | DK16: 0 | DL16: 0 | DM16: 0.05937 | DN16: 0.02349 | DO16: 0.9119 | DP16: 2.158 | DQ16: 2.97 | DR16: 6.124 | DS16: 0.0214 | DT16: 0.00362 | DU16: 3.58 | DV16: 0.0772 | DW16: 0.263 | DX16: 3.94 | DY16: 1877.14 | DZ16: 39.517 | EA16: 104.68 | EB16: 15.98 | EC16: 165.91 | ED16: 99.39 | EE16: 21.131 | EF16: 10.442 | EG16: 62.96 | EH16: 72.66 | EI16: 134.51 | EJ16: 17.255 | EK16: 744.43 | EL16: 115.53 | EM16: 125.16 | EN16: 35.27 | EO16: 18.885 | EP16: 7.897 | EQ16: 302.74 | ER16: 737.26 | ES16: 41.16 | ET16: 87.35 | EU16: 0.15 | EV16: 13.96 | EW16: 131.04 | EX16: 3.93 | EY16: 4.23 | EZ16: 0.24 | FA16: 0.594 | FB16: 27.19 | FC16: 0.26 | FD16: 0.054 | FE16: 1047.41 | FF16: 96.398 | FG16: 94.296 | FH16: 1238.1 | FI16: 48.209 | FJ16: 126.4 | FK16: 174.61
A17: 01C062 | B17: Interventions sur le système vasculaire précérébral, niveau 2 | D17: 744 | E17: 7259.93 | F17: 20.124 | G17: 3.104 | H17: 258.2 | I17: 293.62 | J17: 955.55 | K17: 1530.6 | L17: 3.464 | M17: 0.756 | N17: 31.801 | O17: 30.95 | P17: 175.3 | Q17: 242.27 | R17: 2.537 | S17: 1.1474 | T17: 21.4 | U17: 42.43 | V17: 143.67 | W17: 211.18 | X17: 2.87 | Y17: 1.252 | Z17: 6.14 | AA17: 13.05 | AB17: 39.22 | AC17: 62.53 | AD17: 2046.58 | AE17: 19.153 | AF17: 7.893 | AG17: 23.731 | AH17: 282.74 | AI17: 303.22 | AJ17: 636.74 | AK17: 85.609 | AL17: 36.601 | AM17: 148.14 | AN17: 310.58 | AO17: 646.61 | AP17: 1227.54 | AQ17: 0 | AR17: 0 | AS17: 0 | AT17: 0 | AU17: 0 | AV17: 0 | AW17: 0 | AX17: 0 | AY17: 0 | AZ17: 0 | BA17: 0 | BB17: 8.37 | BC17: 8.37 | BD17: 3.143 | BE17: 1.7521 | BF17: 7.346 | BG17: 13.81 | BH17: 16.87 | BI17: 42.92 | BJ17: 22.385 | BK17: 13.745 | BL17: 64.97 | BM17: 50.38 | BN17: 10.493 | BO17: 161.97 | BP17: 0.756 | BQ17: 1.523 | BR17: 3.551 | BS17: 1.918 | BT17: 1.868 | BU17: 9.62 | BV17: 4.623 | BW17: 2.97 | BX17: 76.66 | BY17: 29.71 | BZ17: 2.007 | CA17: 115.98 | CB17: 0.2799 | CC17: 0.09229 | CD17: 3.315 | CE17: 2.5928 | CF17: 0.08462 | CG17: 6.364 | CH17: 0.233 | CI17: 0.152 | CJ17: 4.24 | CK17: 1.856 | CL17: 0.092 | CM17: 6.57 | CN17: 0.5785 | CO17: 0.2403 | CP17: 7.43 | CQ17: 6.197 | CR17: 0.1769 | CS17: 14.623 | CT17: 0 | CU17: 0 | CV17: 0 | CW17: 0 | CX17: 0 | CY17: 0 | CZ17: 0 | DA17: 0.0303 | DB17: 0.021 | DC17: 0.829 | DD17: 1 | DE17: 0.986 | DF17: 2.87 | DG17: 0 | DH17: 0 | DI17: 0 | DJ17: 0 | DK17: 0 | DL17: 0 | DM17: 0.10224 | DN17: 0.05191 | DO17: 1.7051 | DP17: 3.425 | DQ17: 5.607 | DR17: 10.891 | DS17: 0.0631 | DT17: 0.01552 | DU17: 10.97 | DV17: 0.2564 | DW17: 0.607 | DX17: 11.91 | DY17: 2256.35 | DZ17: 59.938 | EA17: 153.77 | EB17: 15.728 | EC17: 250.29 | ED17: 153.89 | EE17: 30.696 | EF17: 11.636 | EG17: 90.64 | EH17: 110.53 | EI17: 205.85 | EJ17: 24.684 | EK17: 1107.64 | EL17: 139.57 | EM17: 134.01 | EN17: 37 | EO17: 22.46 | EP17: 10.514 | EQ17: 343.55 | ER17: 864.03 | ES17: 47.56 | ET17: 123.78 | EU17: 0.29 | EV17: 35.94 | EW17: 179.85 | EX17: 23.38 | EY17: 7.98 | EZ17: 0.22 | FA17: 3.396 | FB17: 35.23 | FC17: 0.38 | FD17: 7.264 | FE17: 1329.3 | FF17: 86.203 | FG17: 90.305 | FH17: 1505.81 | FI17: 69.848 | FJ17: 183.12 | FK17: 252.97
A18: 01C063 | B18: Interventions sur le système vasculaire précérébral, niveau 3 | D18: 220 | E18: 11907.49 | F18: 36.439 | G18: 5.366 | H18: 477.72 | I18: 530.31 | J18: 1862.68 | K18: 2912.52 | L18: 5.179 | M18: 1.001 | N18: 43.549 | O18: 40.77 | P18: 246.99 | Q18: 337.49 | R18: 6.188 | S18: 2.3133 | T18: 48.29 | U18: 105.29 | V18: 337.19 | W18: 499.26 | X18: 23.87 | Y18: 8.966 | Z18: 43.85 | AA18: 126.22 | AB18: 342.31 | AC18: 545.21 | AD18: 4294.48 | AE18: 20.305 | AF18: 7.911 | AG18: 22.781 | AH18: 317 | AI18: 305.38 | AJ18: 673.38 | AK18: 89.849 | AL18: 38.139 | AM18: 137.849 | AN18: 339.57 | AO18: 698.5 | AP18: 1303.91 | AQ18: 0 | AR18: 0 | AS18: 0 | AT18: 0 | AU18: 0 | AV18: 0 | AW18: 0 | AX18: 0 | AY18: 0 | AZ18: 0 | BA18: 0 | BB18: 15.96 | BC18: 15.96 | BD18: 6.913 | BE18: 3.8412 | BF18: 16.025 | BG18: 34.201 | BH18: 41.87 | BI18: 102.85 | BJ18: 40.42 | BK18: 33.34 | BL18: 164.18 | BM18: 96.51 | BN18: 13.205 | BO18: 347.66 | BP18: 2.888 | BQ18: 2.991 | BR18: 10.646 | BS18: 6.225 | BT18: 6.913 | BU18: 29.66 | BV18: 9.969 | BW18: 6.621 | BX18: 165.23 | BY18: 64.19 | BZ18: 3.451 | CA18: 249.46 | CB18: 0.2695 | CC18: 0.11077 | CD18: 3.49 | CE18: 3.2191 | CF18: 0.07456 | CG18: 7.164 | CH18: 0.766 | CI18: 0.4959 | CJ18: 12.32 | CK18: 5.339 | CL18: 0.2076 | CM18: 19.13 | CN18: 0.4972 | CO18: 0.1923 | CP18: 5.941 | CQ18: 5.012 | CR18: 0.2148 | CS18: 11.857 | CT18: 0 | CU18: 0 | CV18: 0 | CW18: 0 | CX18: 0 | CY18: 0 | CZ18: 0 | DA18: 0.2199 | DB18: 0.0783 | DC18: 2.577 | DD18: 3.97 | DE18: 2.126 | DF18: 8.97 | DG18: 0 | DH18: 0 | DI18: 0.0171 | DJ18: 0 | DK18: 8.5305 | DL18: 8.548 | DM18: 0.4667 | DN18: 0.10508 | DO18: 6.4444 | DP18: 13.114 | DQ18: 18.736 | DR18: 38.867 | DS18: 0.3045 | DT18: 0.03795 | DU18: 43.61 | DV18: 1.2594 | DW18: 5.183 | DX18: 50.4 | DY18: 2867.81 | DZ18: 110.951 | EA18: 276.81 | EB18: 15.658 | EC18: 485.71 | ED18: 302.67 | EE18: 54.723 | EF18: 10.425 | EG18: 174.68 | EH18: 227.98 | EI18: 395.81 | EJ18: 62.415 | EK18: 2117.83 | EL18: 206.13 | EM18: 168.52 | EN18: 58.385 | EO18: 33.201 | EP18: 29.232 | EQ18: 495.46 | ER18: 1111.34 | ES18: 49.72 | ET18: 192.7 | EU18: 0.32 | EV18: 127.48 | EW18: 348.76 | EX18: 9.54 | EY18: 23.64 | EZ18: 0.29 | FA18: 5.212 | FB18: 55.68 | FC18: 0.97 | FD18: 51.467 | FE18: 1977.13 | FF18: 78.32 | FG18: 76.458 | FH18: 2131.91 | FI18: 170.867 | FJ18: 339.78 | FK18: 510.65
A19: 01C064 | B19: Interventions sur le système vasculaire précérébral, niveau 4 | D19: 61 | E19: 23617.2 | F19: 72.388 | G19: 11.633 | H19: 614.33 | I19: 649.94 | J19: 2411.99 | K19: 3760.28 | L19: 14.658 | M19: 1.948 | N19: 117.879 | O19: 125.34 | P19: 679.58 | Q19: 939.4 | R19: 12.304 | S19: 3.6412 | T19: 59.44 | U19: 165.52 | V19: 467.7 | W19: 708.6 | X19: 169.77 | Y19: 85.329 | Z19: 402.66 | AA19: 1226.63 | AB19: 3211.32 | AC19: 5095.71 | AD19: 10503.98 | AE19: 27.863 | AF19: 10.919 | AG19: 31.404 | AH19: 409.88 | AI19: 421.83 | AJ19: 901.9 | AK19: 110.336 | AL19: 40.896 | AM19: 181.249 | AN19: 414.57 | AO19: 774.69 | AP19: 1521.74 | AQ19: 0 | AR19: 0 | AS19: 0 | AT19: 0 | AU19: 0 | AV19: 0 | AW19: 0 | AX19: 0 | AY19: 0 | AZ19: 0 | BA19: 0 | BB19: 77.25 | BC19: 77.25 | BD19: 14.54 | BE19: 8.1877 | BF19: 32.229 | BG19: 63.437 | BH19: 69.31 | BI19: 187.71 | BJ19: 74.53 | BK19: 51.149 | BL19: 296.06 | BM19: 143.87 | BN19: 31.731 | BO19: 597.35 | BP19: 0.001 | BQ19: 0 | BR19: 0.15 | BS19: 0.213 | BT19: 0.064 | BU19: 0.43 | BV19: 29.843 | BW19: 16.95 | BX19: 429.76 | BY19: 185.36 | BZ19: 8.54 | CA19: 670.45 | CB19: 0.2982 | CC19: 0.08378 | CD19: 3.359 | CE19: 2.9842 | CF19: 0.04203 | CG19: 6.767 | CH19: 3.91 | CI19: 2.0306 | CJ19: 54.24 | CK19: 26.156 | CL19: 0.7915 | CM19: 87.13 | CN19: 0.7548 | CO19: 0.285 | CP19: 9.867 | CQ19: 8.805 | CR19: 0.0762 | CS19: 19.788 | CT19: 0 | CU19: 0 | CV19: 0 | CW19: 0 | CX19: 0 | CY19: 0 | CZ19: 0 | DA19: 0.3928 | DB19: 0.1549 | DC19: 9.69 | DD19: 15.3 | DE19: 11.719 | DF19: 37.26 | DG19: 0 | DH19: 0 | DI19: 0 | DJ19: 0 | DK19: 0 | DL19: 0 | DM19: 0.3291 | DN19: 0.10873 | DO19: 3.6883 | DP19: 7.038 | DQ19: 14.104 | DR19: 25.268 | DS19: 0.9649 | DT19: 0.29958 | DU19: 112.92 | DV19: 2.8167 | DW19: 4.606 | DX19: 121.61 | DY19: 4254.64 | DZ19: 193.816 | EA19: 404.57 | EB19: 15.164 | EC19: 851.97 | ED19: 500.7 | EE19: 123.095 | EF19: 13.131 | EG19: 312.45 | EH19: 427.4 | EI19: 767.48 | EJ19: 98.139 | EK19: 3707.91 | EL19: 373.06 | EM19: 189.76 | EN19: 98.604 | EO19: 68.094 | EP19: 38.036 | EQ19: 767.56 | ER19: 2128.3 | ES19: 100.9 | ET19: 148.8 | EU19: 6.28 | EV19: 372.3 | EW19: 976.37 | EX19: 397.62 | EY19: 40.06 | EZ19: 22.28 | FA19: 3.541 | FB19: 80.64 | FC19: 0.6 | FD19: 3.9 | FE19: 4281.6 | FF19: 84.729 | FG19: 16.778 | FH19: 4383.11 | FI19: 222.432 | FJ19: 584.97 | FK19: 807.4
A20: 01C081 | B20: Interventions sur les nerfs crâniens ou périphériques et autres interventions sur le système nerveux, niveau 1 | D20: 1737 | E20: 2938.71 | F20: 5.177 | G20: 0.776 | H20: 101.09 | I20: 117.46 | J20: 404.45 | K20: 628.95 | L20: 0.173 | M20: 0.03 | N20: 1.28 | O20: 2.03 | P20: 7.59 | Q20: 11.1 | R20: 0.078 | S20: 0.013 | T20: 0.1 | U20: 0.96 | V20: 2.53 | W20: 3.68 | X20: 0.11 | Y20: 0.046 | Z20: 0.24 | AA20: 0.59 | AB20: 1.32 | AC20: 2.31 | AD20: 646.04 | AE20: 12.219 | AF20: 5.764 | AG20: 13.31 | AH20: 218.18 | AI20: 204.94 | AJ20: 454.42 | AK20: 45.606 | AL20: 23.067 | AM20: 57.74 | AN20: 142.56 | AO20: 350.04 | AP20: 619.01 | AQ20: 0.135 | AR20: 0.0879 | AS20: 0.438 | AT20: 0.787 | AU20: 2.61 | AV20: 4.06 | AW20: 0 | AX20: 0 | AY20: 0 | AZ20: 0 | BA20: 0 | BB20: 0.06 | BC20: 0.06 | BD20: 0.407 | BE20: 0.1303 | BF20: 1.547 | BG20: 2.733 | BH20: 4.12 | BI20: 8.93 | BJ20: 3.216 | BK20: 2.612 | BL20: 16 | BM20: 6.87 | BN20: 1.323 | BO20: 30.02 | BP20: 0.377 | BQ20: 0.187 | BR20: 0.779 | BS20: 0.546 | BT20: 0.213 | BU20: 2.1 | BV20: 1.17 | BW20: 0.819 | BX20: 19.73 | BY20: 8.5 | BZ20: 0.311 | CA20: 30.53 | CB20: 0.3869 | CC20: 0.16317 | CD20: 4.188 | CE20: 2.4041 | CF20: 0.08851 | CG20: 7.231 | CH20: 0.371 | CI20: 0.2289 | CJ20: 5.55 | CK20: 3.162 | CL20: 0.0405 | CM20: 9.35 | CN20: 2.4543 | CO20: 1.198 | CP20: 28.636 | CQ20: 15.249 | CR20: 0.7372 | CS20: 48.275 | CT20: 0 | CU20: 0 | CV20: 0 | CW20: 0 | CX20: 0 | CY20: 0 | CZ20: 0 | DA20: 0.2384 | DB20: 0.1678 | DC20: 2.616 | DD20: 4.9 | DE20: 3.315 | DF20: 11.23 | DG20: 0 | DH20: 0 | DI20: 0 | DJ20: 0 | DK20: 0 | DL20: 0 | DM20: 0.41978 | DN20: 0.14131 | DO20: 5.3993 | DP20: 16.678 | DQ20: 19.068 | DR20: 41.706 | DS20: 0.0182 | DT20: 0.00539 | DU20: 4.54 | DV20: 0.5457 | DW20: 0.82 | DX20: 5.93 | DY20: 1272.86 | DZ20: 19.406 | EA20: 49.22 | EB20: 14.796 | EC20: 77.68 | ED20: 50.02 | EE20: 10.363 | EF20: 8.564 | EG20: 30.3 | EH20: 32.13 | EI20: 63.84 | EJ20: 8.438 | EK20: 364.76 | EL20: 55.91 | EM20: 81.78 | EN20: 17.565 | EO20: 9.264 | EP20: 2.822 | EQ20: 167.34 | ER20: 298.04 | ES20: 44.49 | ET20: 16.2 | EU20: 0.23 | EV20: 6.25 | EW20: 67.42 | EX20: 16.26 | EY20: 3.94 | EZ20: 0.14 | FA20: 0.507 | FB20: 10.94 | FC20: 0.31 | FD20: 0.32 | FE20: 465.04 | FF20: 15.463 | FG20: 7.203 | FH20: 487.71 | FI20: 22.813 | FJ20: 57.24 | FK20: 80.05
A21: 01C082 | B21: Interventions sur les nerfs crâniens ou périphériques et autres interventions sur le système nerveux, niveau 2 | D21: 216 | E21: 5848.4 | F21: 14.409 | G21: 2.722 | H21: 265.25 | I21: 299.84 | J21: 1115.04 | K21: 1697.26 | L21: 2.086 | M21: 0.374 | N21: 13.055 | O21: 36.56 | P21: 125.21 | Q21: 177.29 | R21: 0.367 | S21: 0.1093 | T21: 1.92 | U21: 4.87 | V21: 19.76 | W21: 27.03 | X21: 4.09 | Y21: 1.643 | Z21: 19.44 | AA21: 30.9 | AB21: 122.24 | AC21: 178.32 | AD21: 2079.9 | AE21: 13.45 | AF21: 6.366 | AG21: 12.076 | AH21: 201.87 | AI21: 190.08 | AJ21: 423.84 | AK21: 48.097 | AL21: 23.646 | AM21: 58.602 | AN21: 114.91 | AO21: 333.81 | AP21: 579.06 | AQ21: 0 | AR21: 0 | AS21: 0 | AT21: 0 | AU21: 0 | AV21: 0 | AW21: 0 | AX21: 0 | AY21: 0 | AZ21: 0 | BA21: 0 | BB21: 0 | BC21: 0 | BD21: 1.466 | BE21: 0.81 | BF21: 5.856 | BG21: 9.927 | BH21: 13.7 | BI21: 31.76 | BJ21: 10.741 | BK21: 9.934 | BL21: 58.74 | BM21: 24.23 | BN21: 5.843 | BO21: 109.49 | BP21: 0 | BQ21: 0 | BR21: 0 | BS21: 0 | BT21: 0 | BU21: 0 | BV21: 3.899 | BW21: 2.428 | BX21: 59.92 | BY21: 29.4 | BZ21: 0.637 | CA21: 96.29 | CB21: 0.7112 | CC21: 0.32006 | CD21: 7.69 | CE21: 4.9498 | CF21: 0.16015 | CG21: 13.831 | CH21: 1.152 | CI21: 0.9049 | CJ21: 17.12 | CK21: 9.318 | CL21: 0.1606 | CM21: 28.65 | CN21: 4.9138 | CO21: 2.3404 | CP21: 50.983 | CQ21: 30.728 | CR21: 0.9867 | CS21: 89.952 | CT21: 0 | CU21: 0 | CV21: 0 | CW21: 0 | CX21: 0 | CY21: 0 | CZ21: 0 | DA21: 0.1917 | DB21: 0.1148 | DC21: 3.177 | DD21: 3.94 | DE21: 3.635 | DF21: 11.05 | DG21: 5.841 | DH21: 0.0535 | DI21: 0.655 | DJ21: 1.772 | DK21: 0.4781 | DL21: 8.8 | DM21: 0.06602 | DN21: 0.02802 | DO21: 1.6368 | DP21: 4.381 | DQ21: 6.255 | DR21: 12.367 | DS21: 0.0694 | DT21: 0.01615 | DU21: 19.32 | DV21: 0.9728 | DW21: 2.227 | DX21: 22.61 | DY21: 1427.7 | DZ21: 56.936 | EA21: 146.53 | EB21: 14.064 | EC21: 255.76 | ED21: 155.47 | EE21: 35.434 | EF21: 10.107 | EG21: 98.6 | EH21: 103.87 | EI21: 215.24 | EJ21: 28.65 | EK21: 1120.67 | EL21: 94.8 | EM21: 77.1 | EN21: 26.309 | EO21: 15.532 | EP21: 5.948 | EQ21: 219.69 | ER21: 464.66 | ES21: 81.02 | ET21: 82.05 | EU21: 1.66 | EV21: 27.77 | EW21: 142.25 | EX21: 118.38 | EY21: 7.77 | EZ21: 0.27 | FA21: 1.17 | FB21: 42.26 | FC21: 0.21 | FD21: 0.328 | FE21: 969.8 | FF21: 19.477 | FG21: 11.166 | FH21: 1000.45 | FI21: 72.541 | FJ21: 194.71 | FK21: 267.25
A22: 01C083 | B22: Interventions sur les nerfs crâniens ou périphériques et autres interventions sur le système nerveux, niveau 3 | D22: 105 | E22: 10912 | F22: 26.531 | G22: 3.348 | H22: 661.02 | I22: 602.39 | J22: 2607.63 | K22: 3900.91 | L22: 1.361 | M22: 0.65 | N22: 27.168 | O22: 47.92 | P22: 174.64 | Q22: 251.73 | R22: 1.054 | S22: 0.2129 | T22: 13.82 | U22: 38.89 | V22: 85.51 | W22: 139.49 | X22: 15.95 | Y22: 5.49 | Z22: 42.19 | AA22: 117.1 | AB22: 323.43 | AC22: 504.16 | AD22: 4796.3 | AE22: 14.178 | AF22: 7.368 | AG22: 14.902 | AH22: 224.28 | AI22: 212.65 | AJ22: 473.37 | AK22: 60.705 | AL22: 29.811 | AM22: 70.301 | AN22: 142.26 | AO22: 356.1 | AP22: 659.17 | AQ22: 0 | AR22: 0 | AS22: 0 | AT22: 0 | AU22: 0 | AV22: 0 | AW22: 0 | AX22: 0 | AY22: 0 | AZ22: 0 | BA22: 0 | BB22: 0 | BC22: 0 | BD22: 3.336 | BE22: 1.4518 | BF22: 11.109 | BG22: 21.67 | BH22: 29.33 | BI22: 66.9 | BJ22: 26.052 | BK22: 18.559 | BL22: 100.17 | BM22: 53.65 | BN22: 9.457 | BO22: 207.89 | BP22: 0.088 | BQ22: 0.124 | BR22: 0.36 | BS22: 0.213 | BT22: 0.301 | BU22: 1.09 | BV22: 8.835 | BW22: 5.964 | BX22: 154.2 | BY22: 68.52 | BZ22: 3.305 | CA22: 240.83 | CB22: 0.9269 | CC22: 0.35616 | CD22: 10.231 | CE22: 7.3956 | CF22: 0.29823 | CG22: 19.208 | CH22: 2.216 | CI22: 1.5613 | CJ22: 37.32 | CK22: 18.813 | CL22: 0.6371 | CM22: 60.54 | CN22: 4.5492 | CO22: 2.1309 | CP22: 52.611 | CQ22: 34.122 | CR22: 1.3712 | CS22: 94.785 | CT22: 0 | CU22: 0 | CV22: 0 | CW22: 0 | CX22: 0 | CY22: 0 | CZ22: 0 | DA22: 1.4405 | DB22: 1.1042 | DC22: 22.065 | DD22: 34.74 | DE22: 29.044 | DF22: 88.4 | DG22: 0.074 | DH22: 0.0075 | DI22: 0.4533 | DJ22: 2.048 | DK22: 1.1627 | DL22: 3.746 | DM22: 0.20225 | DN22: 0.11981 | DO22: 3.9749 | DP22: 8.05 | DQ22: 12.569 | DR22: 24.916 | DS22: 0.2104 | DT22: 0.01608 | DU22: 52.16 | DV22: 1.8931 | DW22: 2.563 | DX22: 56.84 | DY22: 1997.69 | DZ22: 130.495 | EA22: 323.86 | EB22: 14.771 | EC22: 532.53 | ED22: 330.09 | EE22: 91.044 | EF22: 9.312 | EG22: 209.61 | EH22: 269.58 | EI22: 447.5 | EJ22: 65.119 | EK22: 2423.92 | EL22: 156.78 | EM22: 94.52 | EN22: 41.077 | EO22: 25.034 | EP22: 12.328 | EQ22: 329.74 | ER22: 641.92 | ES22: 107.86 | ET22: 7.09 | EU22: 3.51 | EV22: 72.9 | EW22: 328.66 | EX22: 32.75 | EY22: 23.25 | EZ22: 0.29 | FA22: 3.436 | FB22: 74.64 | FC22: 0.64 | FD22: 19.003 | FE22: 1315.95 | FF22: 34.203 | FG22: 14.209 | FH22: 1364.36 | FI22: 187.166 | FJ22: 422 | FK22: 609.17
A23: 01C084 | B23: Interventions sur les nerfs crâniens ou périphériques et autres interventions sur le système nerveux, niveau 4 | D23: 50 | E23: 35483.71 | F23: 57.488 | G23: 7.661 | H23: 1304.98 | I23: 1444.32 | J23: 4690.75 | K23: 7505.2 | L23: 23.438 | M23: 3.215 | N23: 100.393 | O23: 251.34 | P23: 1537.43 | Q23: 1915.82 | R23: 17.369 | S23: 1.4709 | T23: 16.88 | U23: 80.75 | V23: 166.03 | W23: 282.5 | X23: 220.85 | Y23: 93.113 | Z23: 569.88 | AA23: 2084.26 | AB23: 5586.95 | AC23: 8555.06 | AD23: 18258.57 | AE23: 11.616 | AF23: 4.314 | AG23: 15.314 | AH23: 207.73 | AI23: 194.73 | AJ23: 433.71 | AK23: 41.572 | AL23: 18.701 | AM23: 54.495 | AN23: 161.27 | AO23: 332.04 | AP23: 608.09 | AQ23: 0.03 | AR23: 0.0313 | AS23: 0.207 | AT23: 0.562 | AU23: 1.97 | AV23: 2.8 | AW23: 14.4104 | AX23: 5.5035 | AY23: 24.705 | AZ23: 20.8175 | BA23: 159.636 | BB23: 0 | BC23: 225.07 | BD23: 15.903 | BE23: 6.4029 | BF23: 49.777 | BG23: 106.16 | BH23: 160.04 | BI23: 338.28 | BJ23: 73.299 | BK23: 55.893 | BL23: 369.19 | BM23: 147.78 | BN23: 33.675 | BO23: 679.84 | BP23: 0.021 | BQ23: 7.732 | BR23: 27.242 | BS23: 5.917 | BT23: 10.894 | BU23: 51.8 | BV23: 42.031 | BW23: 28.609 | BX23: 674.25 | BY23: 292.34 | BZ23: 5.403 | CA23: 1042.63 | CB23: 0.7945 | CC23: 0.46863 | CD23: 11.62 | CE23: 6.6807 | CF23: 0.20992 | CG23: 19.774 | CH23: 11.247 | CI23: 6.8967 | CJ23: 138.72 | CK23: 74.187 | CL23: 0.9037 | CM23: 231.96 | CN23: 4.7558 | CO23: 3.4299 | CP23: 73.725 | CQ23: 39.848 | CR23: 1.4878 | CS23: 123.246 | CT23: 0 | CU23: 0 | CV23: 0 | CW23: 0 | CX23: 0 | CY23: 11.87 | CZ23: 11.87 | DA23: 2.0893 | DB23: 2.0153 | DC23: 19.411 | DD23: 30.33 | DE23: 13.518 | DF23: 67.37 | DG23: 0.024 | DH23: 0.0113 | DI23: 0.6741 | DJ23: 5.402 | DK23: 2.8388 | DL23: 8.951 | DM23: 0.31761 | DN23: 0.05179 | DO23: 3.8647 | DP23: 10.859 | DQ23: 19.426 | DR23: 34.519 | DS23: 0.8621 | DT23: 0.21608 | DU23: 184.87 | DV23: 8.8591 | DW23: 3.59 | DX23: 198.4 | DY23: 4078.3 | DZ23: 316.677 | EA23: 658.08 | EB23: 14.181 | EC23: 1249.28 | ED23: 844.2 | EE23: 274.268 | EF23: 8.878 | EG23: 567.82 | EH23: 648.24 | EI23: 1149.94 | EJ23: 144.981 | EK23: 5876.56 | EL23: 530.57 | EM23: 112.81 | EN23: 182.577 | EO23: 90.268 | EP23: 29.984 | EQ23: 946.21 | ER23: 2284.75 | ES23: 110.3 | ET23: 123.49 | EU23: 27.23 | EV23: 420.11 | EW23: 1612.5 | EX23: 1386.23 | EY23: 79.69 | EZ23: 0.32 | FA23: 18.509 | FB23: 206.56 | FC23: 24.48 | FD23: 20.558 | FE23: 6314.72 | FF23: 9.345 | FG23: 0 | FH23: 6324.06 | FI23: 418.286 | FJ23: 978.29 | FK23: 1396.58
A24: 01C08J | B24: Interventions sur les nerfs crâniens ou périphériques et autres interventions sur le système nerveux, en ambulatoire | D24: 535 | E24: 2041.44 | F24: 1.116 | G24: 0.159 | H24: 32.87 | I24: 45.73 | J24: 110.79 | K24: 190.67 | L24: 0.001 | M24: 0 | N24: 0.003 | O24: 0.04 | P24: 0.06 | Q24: 0.1 | R24: 0.044 | S24: 0.0074 | T24: 0.06 | U24: 0.55 | V24: 1.44 | W24: 2.1 | X24: 0 | Y24: 0 | Z24: 0 | AA24: 0 | AB24: 0 | AC24: 0 | AD24: 192.87 | AE24: 5.42 | AF24: 2.936 | AG24: 6.931 | AH24: 151.86 | AI24: 123.29 | AJ24: 290.44 | AK24: 30.196 | AL24: 13.847 | AM24: 32.062 | AN24: 115.81 | AO24: 227.88 | AP24: 419.79 | AQ24: 0.089 | AR24: 0.0201 | AS24: 0.167 | AT24: 0.513 | AU24: 2.43 | AV24: 3.22 | AW24: 0 | AX24: 0 | AY24: 0 | AZ24: 0 | BA24: 0 | BB24: 0 | BC24: 0 | BD24: 0.57 | BE24: 0.2055 | BF24: 3.108 | BG24: 4.709 | BH24: 7.23 | BI24: 15.83 | BJ24: 0.476 | BK24: 0.4 | BL24: 2.4 | BM24: 0.98 | BN24: 0.151 | BO24: 4.41 | BP24: 0 | BQ24: 0 | BR24: 0 | BS24: 0 | BT24: 0 | BU24: 0 | BV24: 1.008 | BW24: 0.551 | BX24: 22.05 | BY24: 6.58 | BZ24: 0.559 | CA24: 30.75 | CB24: 0.4731 | CC24: 0.23718 | CD24: 6.257 | CE24: 3.7762 | CF24: 0.15269 | CG24: 10.896 | CH24: 0.351 | CI24: 0.1839 | CJ24: 5.51 | CK24: 2.363 | CL24: 0.1092 | CM24: 8.52 | CN24: 2.9323 | CO24: 1.7848 | CP24: 43.444 | CQ24: 20.422 | CR24: 1.2337 | CS24: 69.817 | CT24: 0 | CU24: 0 | CV24: 0 | CW24: 0 | CX24: 0 | CY24: 0 | CZ24: 0 | DA24: 0.1469 | DB24: 0.0594 | DC24: 0.724 | DD24: 1.3 | DE24: 0.794 | DF24: 3.03 | DG24: 0 | DH24: 0 | DI24: 0 | DJ24: 0 | DK24: 0 | DL24: 0 | DM24: 0.24515 | DN24: 0.04615 | DO24: 2.0266 | DP24: 7.998 | DQ24: 8.862 | DR24: 19.179 | DS24: 0.0072 | DT24: 0.00459 | DU24: 1.55 | DV24: 0.0024 | DW24: 0.134 | DX24: 1.7 | DY24: 877.58 | DZ24: 7.675 | EA24: 8.79 | EB24: 16.792 | EC24: 120.14 | ED24: 61.21 | EE24: 14.928 | EF24: 8.464 | EG24: 41.63 | EH24: 45.79 | EI24: 83.5 | EJ24: 11.497 | EK24: 420.42 | EL24: 32.73 | EM24: 55.69 | EN24: 10.081 | EO24: 5.33 | EP24: 1.001 | EQ24: 104.84 | ER24: 175.93 | ES24: 12.67 | ET24: 144.54 | EU24: 0.65 | EV24: 0.45 | EW24: 42.12 | EX24: 0.52 | EY24: 11.7 | EZ24: 0.08 | FA24: 0.11 | FB24: 33.46 | FC24: 0.08 | FD24: 0.281 | FE24: 422.59 | FF24: 23.156 | FG24: 0 | FH24: 445.75 | FI24: 35.243 | FJ24: 78.62 | FK24: 113.86
A25: 01C091 | B25: Pose d'un stimulateur cérébral, niveau 1 | D25: 473 | E25: 17006.36 | F25: 9.743 | G25: 1.685 | H25: 234.12 | I25: 226.12 | J25: 1032.94 | K25: 1504.61 | L25: 0.363 | M25: 0.171 | N25: 2.57 | O25: 10.09 | P25: 36.47 | Q25: 49.66 | R25: 1.138 | S25: 0.236 | T25: 4.36 | U25: 14.49 | V25: 50.63 | W25: 70.86 | X25: 0.16 | Y25: 0.034 | Z25: 0.26 | AA25: 1.71 | AB25: 5.75 | AC25: 7.91 | AD25: 1633.03 | AE25: 20.19 | AF25: 12.538 | AG25: 25.858 | AH25: 408.97 | AI25: 348.06 | AJ25: 815.62 | AK25: 144.016 | AL25: 80.863 | AM25: 96.129 | AN25: 291.01 | AO25: 1012.17 | AP25: 1624.19 | AQ25: 0.388 | AR25: 0.2704 | AS25: 0.166 | AT25: 0.979 | AU25: 1.78 | AV25: 3.58 | AW25: 0 | AX25: 0 | AY25: 0 | AZ25: 0 | BA25: 0 | BB25: 0 | BC25: 0 | BD25: 4.606 | BE25: 0.9318 | BF25: 6.642 | BG25: 17.932 | BH25: 25.96 | BI25: 56.07 | BJ25: 20.418 | BK25: 9.827 | BL25: 79.06 | BM25: 27.9 | BN25: 3.653 | BO25: 140.86 | BP25: 1.818 | BQ25: 0.4 | BR25: 3.305 | BS25: 3.211 | BT25: 0.757 | BU25: 9.49 | BV25: 0.863 | BW25: 0.441 | BX25: 12.28 | BY25: 5.84 | BZ25: 0.1 | CA25: 19.52 | CB25: 0.0445 | CC25: 0.01568 | CD25: 0.451 | CE25: 0.2832 | CF25: 0.00115 | CG25: 0.795 | CH25: 0.212 | CI25: 0.1215 | CJ25: 3.78 | CK25: 2.036 | CL25: 0.0017 | CM25: 6.15 | CN25: 0.3177 | CO25: 0.0989 | CP25: 3.306 | CQ25: 1.925 | CR25: 0.0073 | CS25: 5.655 | CT25: 0 | CU25: 0 | CV25: 0 | CW25: 0 | CX25: 0 | CY25: 0 | CZ25: 0 | DA25: 0 | DB25: 0 | DC25: 0 | DD25: 0 | DE25: 0 | DF25: 0 | DG25: 0 | DH25: 0 | DI25: 0 | DJ25: 0 | DK25: 0 | DL25: 0 | DM25: 0.0048 | DN25: 0.00162 | DO25: 0.0187 | DP25: 0.043 | DQ25: 0.118 | DR25: 0.186 | DS25: 0.0329 | DT25: 0.00706 | DU25: 6.97 | DV25: 0.0329 | DW25: 0.124 | DX25: 7.17 | DY25: 2689.28 | DZ25: 46.189 | EA25: 133.24 | EB25: 14.015 | EC25: 221.02 | ED25: 138.5 | EE25: 34.308 | EF25: 8.652 | EG25: 88.22 | EH25: 81.73 | EI25: 184.54 | EJ25: 26.847 | EK25: 977.26 | EL25: 123.53 | EM25: 143.8 | EN25: 37.87 | EO25: 24.875 | EP25: 5.807 | EQ25: 335.88 | ER25: 829.98 | ES25: 640.67 | ET25: 9718.13 | EU25: 0.6 | EV25: 3.41 | EW25: 139.05 | EX25: 2.74 | EY25: 3.98 | EZ25: 3.04 | FA25: 1.238 | FB25: 17.55 | FC25: 0.92 | FD25: 0 | FE25: 11361.31 | FF25: 9.602 | FG25: 0 | FH25: 11370.92 | FI25: 67.099 | FJ25: 161.51 | FK25: 228.61
A26: 01C092 | B26: Pose d'un stimulateur cérébral, niveau 2 | D26: 143 | E26: 23219.98 | F26: 19.57 | G26: 3.221 | H26: 547.69 | I26: 402.8 | J26: 2105.1 | K26: 3078.38 | L26: 0.436 | M26: 0.435 | N26: 5.33 | O26: 11.87 | P26: 49.13 | Q26: 67.2 | R26: 3.207 | S26: 0.5438 | T26: 21.36 | U26: 25.78 | V26: 147.3 | W26: 198.18 | X26: 0.9 | Y26: 0.595 | Z26: 3.41 | AA26: 6.76 | AB26: 21.56 | AC26: 33.22 | AD26: 3377 | AE26: 29.707 | AF26: 16.135 | AG26: 29.006 | AH26: 501.84 | AI26: 368.57 | AJ26: 945.26 | AK26: 297.284 | AL26: 184.09 | AM26: 192.642 | AN26: 455.74 | AO26: 1374.36 | AP26: 2504.12 | AQ26: 0 | AR26: 0 | AS26: 0 | AT26: 0 | AU26: 0 | AV26: 0 | AW26: 0 | AX26: 0 | AY26: 0 | AZ26: 0 | BA26: 0 | BB26: 0 | BC26: 0 | BD26: 0.866 | BE26: 1.0186 | BF26: 3.024 | BG26: 6.283 | BH26: 8.29 | BI26: 19.48 | BJ26: 50.923 | BK26: 21.059 | BL26: 155.8 | BM26: 56.84 | BN26: 6.427 | BO26: 291.04 | BP26: 0 | BQ26: 0 | BR26: 0 | BS26: 0 | BT26: 0 | BU26: 0 | BV26: 2.628 | BW26: 1.292 | BX26: 35.39 | BY26: 16.92 | BZ26: 0.509 | CA26: 56.74 | CB26: 0.2323 | CC26: 0.06993 | CD26: 2.453 | CE26: 1.3918 | CF26: 0.00778 | CG26: 4.155 | CH26: 0.184 | CI26: 0.0809 | CJ26: 2.67 | CK26: 1.315 | CL26: 0.008 | CM26: 4.25 | CN26: 1.1636 | CO26: 0.3368 | CP26: 12.226 | CQ26: 6.89 | CR26: 0.014 | CS26: 20.631 | CT26: 0 | CU26: 0 | CV26: 0 | CW26: 0 | CX26: 0 | CY26: 0 | CZ26: 0 | DA26: 0 | DB26: 0 | DC26: 0 | DD26: 0 | DE26: 0 | DF26: 0 | DG26: 0 | DH26: 0 | DI26: 0 | DJ26: 0 | DK26: 0 | DL26: 0 | DM26: 0.02343 | DN26: 0.00457 | DO26: 0.1383 | DP26: 0.374 | DQ26: 0.815 | DR26: 1.355 | DS26: 0.1005 | DT26: 0.03027 | DU26: 11.77 | DV26: 0.1009 | DW26: 0.218 | DX26: 12.22 | DY26: 3859.27 | DZ26: 108.223 | EA26: 289.03 | EB26: 14.109 | EC26: 454.83 | ED26: 315.2 | EE26: 62.702 | EF26: 8.902 | EG26: 173.43 | EH26: 190.38 | EI26: 394.76 | EJ26: 48.077 | EK26: 2059.63 | EL26: 259.48 | EM26: 253.93 | EN26: 87.804 | EO26: 41.224 | EP26: 13.617 | EQ26: 656.05 | ER26: 1404.95 | ES26: 389.16 | ET26: 11020.19 | EU26: 0.23 | EV26: 7.61 | EW26: 343.15 | EX26: 47.38 | EY26: 6.83 | EZ26: 0.15 | FA26: 0.787 | FB26: 26.78 | FC26: 3.31 | FD26: 0.001 | FE26: 13250.52 | FF26: 17.513 | FG26: 0.001 | FH26: 13268.03 | FI26: 176.603 | FJ26: 355.72 | FK26: 532.32
A27: 01C093 | B27: Pose d'un stimulateur cérébral, niveau 3 | D27: 44 | E27: 26555.12 | F27: 23.507 | G27: 3.039 | H27: 497.68 | I27: 525.26 | J27: 2435.13 | K27: 3484.62 | L27: 1.429 | M27: 0.586 | N27: 7.409 | O27: 19.62 | P27: 118.18 | Q27: 147.22 | R27: 4.252 | S27: 1.1656 | T27: 37.25 | U27: 54.05 | V27: 281.19 | W27: 377.91 | X27: 7.72 | Y27: 1.619 | Z27: 18.51 | AA27: 57.39 | AB27: 214.35 | AC27: 299.59 | AD27: 4309.33 | AE27: 36.026 | AF27: 19.996 | AG27: 27.871 | AH27: 531.63 | AI27: 333.31 | AJ27: 948.84 | AK27: 378.963 | AL27: 213.56 | AM27: 224.85 | AN27: 603.7 | AO27: 1803.38 | AP27: 3224.45 | AQ27: 0 | AR27: 0 | AS27: 0 | AT27: 0 | AU27: 0 | AV27: 0 | AW27: 0 | AX27: 0 | AY27: 0 | AZ27: 0 | BA27: 0 | BB27: 0 | BC27: 0 | BD27: 5.617 | BE27: 1.4348 | BF27: 8.107 | BG27: 21.659 | BH27: 33.37 | BI27: 70.19 | BJ27: 58.61 | BK27: 26.271 | BL27: 200.39 | BM27: 78.08 | BN27: 10.34 | BO27: 373.69 | BP27: 2.511 | BQ27: 0.552 | BR27: 4.566 | BS27: 4.435 | BT27: 1.045 | BU27: 13.11 | BV27: 5.392 | BW27: 3.036 | BX27: 80.97 | BY27: 42.06 | BZ27: 0.485 | CA27: 131.94 | CB27: 0 | CC27: 0 | CD27: 0 | CE27: 0 | CF27: 0 | CG27: 0 | CH27: 0.783 | CI27: 0.4256 | CJ27: 14.38 | CK27: 6.964 | CL27: 0.056 | CM27: 22.61 | CN27: 0 | CO27: 0 | CP27: 0 | CQ27: 0 | CR27: 0 | CS27: 0 | CT27: 0 | CU27: 0 | CV27: 0 | CW27: 0 | CX27: 0 | CY27: 0 | CZ27: 0 | DA27: 0 | DB27: 0 | DC27: 0 | DD27: 0 | DE27: 0 | DF27: 0 | DG27: 0 | DH27: 0 | DI27: 0 | DJ27: 0 | DK27: 0 | DL27: 0 | DM27: 0 | DN27: 0 | DO27: 0 | DP27: 0 | DQ27: 0 | DR27: 0 | DS27: 0.2138 | DT27: 0.05942 | DU27: 30.48 | DV27: 0.3888 | DW27: 0.667 | DX27: 31.81 | DY27: 4816.64 | DZ27: 121.694 | EA27: 339.21 | EB27: 14.087 | EC27: 558.47 | ED27: 321.54 | EE27: 72.425 | EF27: 8.361 | EG27: 211.04 | EH27: 219.07 | EI27: 459.21 | EJ27: 63.582 | EK27: 2388.7 | EL27: 331.75 | EM27: 320.3 | EN27: 78.196 | EO27: 60.069 | EP27: 13.793 | EQ27: 804.1 | ER27: 1690.47 | ES27: 223.55 | ET27: 11832.77 | EU27: 0.62 | EV27: 21.22 | EW27: 391.08 | EX27: 5.96 | EY27: 15.52 | EZ27: 0.27 | FA27: 2.411 | FB27: 31.84 | FC27: 3.12 | FD27: 0.002 | FE27: 14218.85 | FF27: 17.496 | FG27: 0 | FH27: 14236.35 | FI27: 218.024 | FJ27: 406.49 | FK27: 624.51
A28: 01C094 | B28: Pose d'un stimulateur cérébral, niveau 4 | C28: * | D28: 12 | E28: 67192.66 | F28: 59.48 | G28: 7.689 | H28: 1259.29 | I28: 1329.06 | J28: 6161.63 | K28: 8817.16 | L28: 3.616 | M28: 1.484 | N28: 18.748 | O28: 49.63 | P28: 299.03 | Q28: 372.52 | R28: 10.758 | S28: 2.9494 | T28: 94.25 | U28: 136.77 | V28: 711.51 | W28: 956.23 | X28: 19.54 | Y28: 4.096 | Z28: 46.84 | AA28: 145.21 | AB28: 542.36 | AC28: 758.04 | AD28: 10903.95 | AE28: 91.158 | AF28: 50.596 | AG28: 70.523 | AH28: 1345.2 | AI28: 843.39 | AJ28: 2400.86 | AK28: 958.893 | AL28: 540.372 | AM28: 568.939 | AN28: 1527.55 | AO28: 4563.1 | AP28: 8158.85 | AQ28: 0 | AR28: 0 | AS28: 0 | AT28: 0 | AU28: 0 | AV28: 0 | AW28: 0 | AX28: 0 | AY28: 0 | AZ28: 0 | BA28: 0 | BB28: 0 | BC28: 0 | BD28: 14.214 | BE28: 3.6306 | BF28: 20.513 | BG28: 54.805 | BH28: 84.44 | BI28: 177.6 | BJ28: 148.301 | BK28: 66.474 | BL28: 507.05 | BM28: 197.56 | BN28: 26.164 | BO28: 945.55 | BP28: 6.355 | BQ28: 1.397 | BR28: 11.553 | BS28: 11.222 | BT28: 2.645 | BU28: 33.17 | BV28: 13.643 | BW28: 7.683 | BX28: 204.88 | BY28: 106.41 | BZ28: 1.227 | CA28: 333.85 | CB28: 0 | CC28: 0 | CD28: 0 | CE28: 0 | CF28: 0 | CG28: 0 | CH28: 1.982 | CI28: 1.0768 | CJ28: 36.39 | CK28: 17.621 | CL28: 0.1416 | CM28: 57.21 | CN28: 0 | CO28: 0 | CP28: 0 | CQ28: 0 | CR28: 0 | CS28: 0 | CT28: 0 | CU28: 0 | CV28: 0 | CW28: 0 | CX28: 0 | CY28: 0 | CZ28: 0 | DA28: 0 | DB28: 0 | DC28: 0 | DD28: 0 | DE28: 0 | DF28: 0 | DG28: 0 | DH28: 0 | DI28: 0 | DJ28: 0 | DK28: 0 | DL28: 0 | DM28: 0 | DN28: 0 | DO28: 0 | DP28: 0 | DQ28: 0 | DR28: 0 | DS28: 0.5409 | DT28: 0.15035 | DU28: 77.12 | DV28: 0.9838 | DW28: 1.688 | DX28: 80.48 | DY28: 12187.58 | DZ28: 307.923 | EA28: 858.31 | EB28: 35.645 | EC28: 1413.1 | ED28: 813.6 | EE28: 183.256 | EF28: 21.157 | EG28: 534 | EH28: 554.32 | EI28: 1161.95 | EJ28: 160.883 | EK28: 6044.16 | EL28: 839.42 | EM28: 810.45 | EN28: 197.86 | EO28: 151.993 | EP28: 34.9 | EQ28: 2034.63 | ER28: 4277.42 | ES28: 565.65 | ET28: 29940.57 | EU28: 1.56 | EV28: 53.7 | EW28: 989.56 | EX28: 15.09 | EY28: 39.26 | EZ28: 0.69 | FA28: 6.101 | FB28: 80.57 | FC28: 7.9 | FD28: 0.006 | FE28: 35978.08 | FF28: 44.271 | FG28: 0 | FH28: 36022.35 | FI28: 551.668 | FJ28: 1028.54 | FK28: 1580.21
A29: 01C101 | B29: Pose d'un stimulateur médullaire, niveau 1 | D29: 819 | E29: 8090.19 | F29: 4.33 | G29: 0.67 | H29: 103.04 | I29: 104.35 | J29: 482.48 | K29: 694.87 | L29: 0.006 | M29: 0.001 | N29: 0.025 | O29: 0.03 | P29: 0.38 | Q29: 0.44 | R29: 0 | S29: 0 | T29: 0 | U29: 0 | V29: 0 | W29: 0 | X29: 0.02 | Y29: 0.008 | Z29: 0.14 | AA29: 0.26 | AB29: 0.56 | AC29: 0.99 | AD29: 696.3 | AE29: 6.397 | AF29: 3.031 | AG29: 8.426 | AH29: 132.72 | AI29: 111.64 | AJ29: 262.21 | AK29: 25.95 | AL29: 13.259 | AM29: 25.747 | AN29: 73.03 | AO29: 167.33 | AP29: 305.32 | AQ29: 0 | AR29: 0 | AS29: 0 | AT29: 0 | AU29: 0 | AV29: 0 | AW29: 0 | AX29: 0 | AY29: 0 | AZ29: 0 | BA29: 0 | BB29: 0 | BC29: 0 | BD29: 0.124 | BE29: 0.0595 | BF29: 0.17 | BG29: 0.338 | BH29: 0.75 | BI29: 1.44 | BJ29: 1.63 | BK29: 1.312 | BL29: 9.42 | BM29: 3.1 | BN29: 0.941 | BO29: 16.41 | BP29: 0 | BQ29: 0 | BR29: 0 | BS29: 0 | BT29: 0 | BU29: 0 | BV29: 0.285 | BW29: 0.164 | BX29: 4.62 | BY29: 2.07 | BZ29: 0.054 | CA29: 7.19 | CB29: 0.0041 | CC29: 0.00135 | CD29: 0.031 | CE29: 0.0193 | CF29: 0.00041 | CG29: 0.056 | CH29: 0.018 | CI29: 0.011 | CJ29: 0.37 | CK29: 0.186 | CL29: 0.0029 | CM29: 0.59 | CN29: 0.0039 | CO29: 0.0021 | CP29: 0.046 | CQ29: 0.03 | CR29: 0.0016 | CS29: 0.083 | CT29: 0 | CU29: 0 | CV29: 0 | CW29: 0 | CX29: 0 | CY29: 0 | CZ29: 0 | DA29: 0 | DB29: 0 | DC29: 0 | DD29: 0 | DE29: 0 | DF29: 0 | DG29: 0 | DH29: 0 | DI29: 0 | DJ29: 0 | DK29: 0 | DL29: 0 | DM29: 0.00011 | DN29: 5e-05 | DO29: 0.0009 | DP29: 0.006 | DQ29: 0.009 | DR29: 0.016 | DS29: 0.0076 | DT29: 0.00057 | DU29: 2.58 | DV29: 0 | DW29: 0.056 | DX29: 2.64 | DY29: 595.96 | DZ29: 23.621 | EA29: 60 | EB29: 12.66 | EC29: 95.91 | ED29: 59.42 | EE29: 11.188 | EF29: 7.985 | EG29: 36.84 | EH29: 44.73 | EI29: 71.29 | EJ29: 8.968 | EK29: 432.62 | EL29: 38.63 | EM29: 33.07 | EN29: 15.302 | EO29: 6.854 | EP29: 2.872 | EQ29: 96.73 | ER29: 211.16 | ES29: 368.01 | ET29: 5607.33 | EU29: 0.74 | EV29: 1.41 | EW29: 51.88 | EX29: 0.3 | EY29: 2.15 | EZ29: 0.06 | FA29: 2.024 | FB29: 7.72 | FC29: 0.2 | FD29: 0.001 | FE29: 6252.98 | FF29: 14.727 | FG29: 0.882 | FH29: 6268.59 | FI29: 28.449 | FJ29: 77.6 | FK29: 106.05
A30: 01C102 | B30: Pose d'un stimulateur médullaire, niveau 2 | D30: 106 | E30: 10011.17 | F30: 10.771 | G30: 0.572 | H30: 178.56 | I30: 200.41 | J30: 720.1 | K30: 1110.41 | L30: 0.054 | M30: 0.015 | N30: 0.228 | O30: 0.55 | P30: 3.89 | Q30: 4.73 | R30: 0 | S30: 0 | T30: 0 | U30: 0 | V30: 0 | W30: 0 | X30: 0 | Y30: 0 | Z30: 0 | AA30: 0 | AB30: 0 | AC30: 0 | AD30: 1115.14 | AE30: 7.923 | AF30: 4.924 | AG30: 10.758 | AH30: 185.38 | AI30: 153.81 | AJ30: 362.8 | AK30: 16.875 | AL30: 12.802 | AM30: 17.246 | AN30: 60.38 | AO30: 175.92 | AP30: 283.23 | AQ30: 0 | AR30: 0 | AS30: 0 | AT30: 0 | AU30: 0 | AV30: 0 | AW30: 0 | AX30: 0 | AY30: 0 | AZ30: 0 | BA30: 0 | BB30: 0 | BC30: 0 | BD30: 0 | BE30: 0 | BF30: 0 | BG30: 0 | BH30: 0 | BI30: 0 | BJ30: 3.135 | BK30: 2.902 | BL30: 22.87 | BM30: 5.49 | BN30: 2.495 | BO30: 36.89 | BP30: 0 | BQ30: 0 | BR30: 0 | BS30: 0 | BT30: 0 | BU30: 0 | BV30: 0.535 | BW30: 0.405 | BX30: 11 | BY30: 4.91 | BZ30: 0.146 | CA30: 16.99 | CB30: 0.0113 | CC30: 0.00552 | CD30: 0.128 | CE30: 0.0861 | CF30: 0.003 | CG30: 0.234 | CH30: 0.001 | CI30: 0.0022 | CJ30: 0.05 | CK30: 0.023 | CL30: 0.0013 | CM30: 0.08 | CN30: 0.0154 | CO30: 0.0096 | CP30: 0.187 | CQ30: 0.115 | CR30: 0.0107 | CS30: 0.338 | CT30: 0 | CU30: 0 | CV30: 0 | CW30: 0 | CX30: 0 | CY30: 0 | CZ30: 0 | DA30: 0 | DB30: 0 | DC30: 0 | DD30: 0 | DE30: 0 | DF30: 0 | DG30: 0 | DH30: 0 | DI30: 0 | DJ30: 0 | DK30: 0 | DL30: 0 | DM30: 0 | DN30: 0 | DO30: 0 | DP30: 0 | DQ30: 0 | DR30: 0 | DS30: 0.0138 | DT30: 0.00286 | DU30: 2.93 | DV30: 0.009 | DW30: 0.05 | DX30: 3 | DY30: 703.56 | DZ30: 41.948 | EA30: 102.41 | EB30: 14.812 | EC30: 154.45 | ED30: 115.9 | EE30: 18.729 | EF30: 8.542 | EG30: 65.59 | EH30: 73.02 | EI30: 120.36 | EJ30: 14.416 | EK30: 730.16 | EL30: 63.9 | EM30: 34.88 | EN30: 25.841 | EO30: 11.225 | EP30: 6.31 | EQ30: 142.16 | ER30: 235.73 | ES30: 270.9 | ET30: 6697.62 | EU30: 0.04 | EV30: 5.3 | EW30: 89.32 | EX30: 3.12 | EY30: 2.08 | EZ30: 0.02 | FA30: 0.317 | FB30: 9.16 | FC30: 0.43 | FD30: 0.001 | FE30: 7314.03 | FF30: 6.119 | FG30: 0 | FH30: 7320.15 | FI30: 54.745 | FJ30: 135.95 | FK30: 190.7
A31: 01C103 | B31: Pose d'un stimulateur médullaire, niveau 3 | C31: * | D31: 8 | E31: 15872.74 | F31: 17.078 | G31: 0.907 | H31: 283.1 | I31: 317.75 | J31: 1141.72 | K31: 1760.56 | L31: 0.085 | M31: 0.023 | N31: 0.362 | O31: 0.87 | P31: 6.16 | Q31: 7.5 | R31: 0 | S31: 0 | T31: 0 | U31: 0 | V31: 0 | W31: 0 | X31: 0 | Y31: 0 | Z31: 0 | AA31: 0 | AB31: 0 | AC31: 0 | AD31: 1768.06 | AE31: 12.562 | AF31: 7.807 | AG31: 17.057 | AH31: 293.92 | AI31: 243.87 | AJ31: 575.22 | AK31: 26.755 | AL31: 20.298 | AM31: 27.343 | AN31: 95.74 | AO31: 278.93 | AP31: 449.06 | AQ31: 0 | AR31: 0 | AS31: 0 | AT31: 0 | AU31: 0 | AV31: 0 | AW31: 0 | AX31: 0 | AY31: 0 | AZ31: 0 | BA31: 0 | BB31: 0 | BC31: 0 | BD31: 0 | BE31: 0 | BF31: 0 | BG31: 0 | BH31: 0 | BI31: 0 | BJ31: 4.97 | BK31: 4.6 | BL31: 36.26 | BM31: 8.7 | BN31: 3.955 | BO31: 58.48 | BP31: 0 | BQ31: 0 | BR31: 0 | BS31: 0 | BT31: 0 | BU31: 0 | BV31: 0.849 | BW31: 0.642 | BX31: 17.44 | BY31: 7.78 | BZ31: 0.232 | CA31: 26.94 | CB31: 0.0179 | CC31: 0.00875 | CD31: 0.203 | CE31: 0.1365 | CF31: 0.00475 | CG31: 0.371 | CH31: 0.002 | CI31: 0.0034 | CJ31: 0.08 | CK31: 0.036 | CL31: 0.002 | CM31: 0.12 | CN31: 0.0244 | CO31: 0.0153 | CP31: 0.297 | CQ31: 0.182 | CR31: 0.0169 | CS31: 0.536 | CT31: 0 | CU31: 0 | CV31: 0 | CW31: 0 | CX31: 0 | CY31: 0 | CZ31: 0 | DA31: 0 | DB31: 0 | DC31: 0 | DD31: 0 | DE31: 0 | DF31: 0 | DG31: 0 | DH31: 0 | DI31: 0 | DJ31: 0 | DK31: 0 | DL31: 0 | DM31: 0 | DN31: 0 | DO31: 0 | DP31: 0 | DQ31: 0 | DR31: 0 | DS31: 0.0219 | DT31: 0.00454 | DU31: 4.64 | DV31: 0.0142 | DW31: 0.079 | DX31: 4.76 | DY31: 1115.5 | DZ31: 66.508 | EA31: 162.37 | EB31: 23.485 | EC31: 244.88 | ED31: 183.75 | EE31: 29.695 | EF31: 13.544 | EG31: 103.99 | EH31: 115.77 | EI31: 190.82 | EJ31: 22.857 | EK31: 1157.67 | EL31: 101.32 | EM31: 55.3 | EN31: 40.971 | EO31: 17.797 | EP31: 10.004 | EQ31: 225.39 | ER31: 373.76 | ES31: 429.51 | ET31: 10619.1 | EU31: 0.06 | EV31: 8.4 | EW31: 141.62 | EX31: 4.94 | EY31: 3.3 | EZ31: 0.03 | FA31: 0.502 | FB31: 14.52 | FC31: 0.68 | FD31: 0.002 | FE31: 11596.42 | FF31: 9.702 | FG31: 0 | FH31: 11606.12 | FI31: 86.799 | FJ31: 215.55 | FK31: 302.35
A32: 01C10J | B32: Pose d'un stimulateur médullaire, en ambulatoire | D32: 101 | E32: 4840.35 | F32: 1.204 | G32: 0.265 | H32: 25.74 | I32: 34.26 | J32: 88.54 | K32: 150.01 | L32: 0 | M32: 0 | N32: 0 | O32: 0 | P32: 0 | Q32: 0 | R32: 0 | S32: 0 | T32: 0 | U32: 0 | V32: 0 | W32: 0 | X32: 0 | Y32: 0 | Z32: 0 | AA32: 0 | AB32: 0 | AC32: 0 | AD32: 150.01 | AE32: 2.366 | AF32: 1.571 | AG32: 3.002 | AH32: 49.25 | AI32: 49.44 | AJ32: 105.63 | AK32: 27.699 | AL32: 16.389 | AM32: 27.947 | AN32: 70.12 | AO32: 157.94 | AP32: 300.1 | AQ32: 0 | AR32: 0 | AS32: 0 | AT32: 0 | AU32: 0 | AV32: 0 | AW32: 0 | AX32: 0 | AY32: 0 | AZ32: 0 | BA32: 0 | BB32: 0 | BC32: 0 | BD32: 0.016 | BE32: 0.009 | BF32: 0.074 | BG32: 0.063 | BH32: 0.09 | BI32: 0.25 | BJ32: 0.087 | BK32: 0.092 | BL32: 0.56 | BM32: 0.12 | BN32: 0.055 | BO32: 0.92 | BP32: 0 | BQ32: 0 | BR32: 0 | BS32: 0 | BT32: 0 | BU32: 0 | BV32: 0.093 | BW32: 0.044 | BX32: 1.36 | BY32: 0.58 | BZ32: 0.015 | CA32: 2.09 | CB32: 0 | CC32: 0 | CD32: 0 | CE32: 0 | CF32: 0 | CG32: 0 | CH32: 0.001 | CI32: 0.0008 | CJ32: 0.02 | CK32: 0.006 | CL32: 0.0006 | CM32: 0.03 | CN32: 0 | CO32: 0 | CP32: 0 | CQ32: 0 | CR32: 0 | CS32: 0 | CT32: 0 | CU32: 0 | CV32: 0 | CW32: 0 | CX32: 0 | CY32: 0 | CZ32: 0 | DA32: 0 | DB32: 0 | DC32: 0 | DD32: 0 | DE32: 0 | DF32: 0 | DG32: 0 | DH32: 0 | DI32: 0 | DJ32: 0 | DK32: 0 | DL32: 0 | DM32: 0 | DN32: 0 | DO32: 0 | DP32: 0 | DQ32: 0 | DR32: 0 | DS32: 0 | DT32: 0 | DU32: 0 | DV32: 0 | DW32: 0 | DX32: 0 | DY32: 409.01 | DZ32: 7.455 | EA32: 9.29 | EB32: 16.232 | EC32: 67.79 | ED32: 50.41 | EE32: 8.382 | EF32: 7.969 | EG32: 25.33 | EH32: 26.82 | EI32: 58.79 | EJ32: 7.124 | EK32: 285.6 | EL32: 23.41 | EM32: 24.49 | EN32: 5.533 | EO32: 4.259 | EP32: 1.558 | EQ32: 59.25 | ER32: 187.11 | ES32: 204.83 | ET32: 3524.48 | EU32: 0.13 | EV32: 0.53 | EW32: 15.9 | EX32: 0.14 | EY32: 0.33 | EZ32: 0.35 | FA32: 0.011 | FB32: 1.78 | FC32: 0.06 | FD32: 0 | FE32: 3935.64 | FF32: 0.843 | FG32: 0 | FH32: 3936.48 | FI32: 24.391 | FJ32: 55.18 | FK32: 79.57
A33: 01C111 | B33: Craniotomies pour tumeurs, âge inférieur à 18 ans, niveau 1 | D33: 213 | E33: 7203.01 | F33: 9.345 | G33: 1.713 | H33: 272.36 | I33: 248.2 | J33: 885.11 | K33: 1416.73 | L33: 0.762 | M33: 0.352 | N33: 7.786 | O33: 20.15 | P33: 109.5 | Q33: 138.56 | R33: 1.491 | S33: 0.3797 | T33: 11.45 | U33: 18.51 | V33: 90.49 | W33: 122.32 | X33: 7.92 | Y33: 4.799 | Z33: 48.18 | AA33: 115.37 | AB33: 330.43 | AC33: 506.71 | AD33: 2184.31 | AE33: 24.027 | AF33: 12.353 | AG33: 27.942 | AH33: 411.58 | AI33: 373.73 | AJ33: 849.63 | AK33: 113.087 | AL33: 73.726 | AM33: 81.084 | AN33: 232.35 | AO33: 538.07 | AP33: 1038.32 | AQ33: 0 | AR33: 0 | AS33: 0 | AT33: 0 | AU33: 0 | AV33: 0 | AW33: 0 | AX33: 0 | AY33: 0 | AZ33: 0 | BA33: 0 | BB33: 0 | BC33: 0 | BD33: 0.325 | BE33: 0.2484 | BF33: 3.187 | BG33: 3.546 | BH33: 2.96 | BI33: 10.27 | BJ33: 46.199 | BK33: 19.106 | BL33: 83.95 | BM33: 59.62 | BN33: 9.51 | BO33: 218.39 | BP33: 0 | BQ33: 0 | BR33: 0 | BS33: 0 | BT33: 0 | BU33: 0 | BV33: 2.201 | BW33: 1.426 | BX33: 41.6 | BY33: 20.89 | BZ33: 1.428 | CA33: 67.54 | CB33: 1.6553 | CC33: 0.97139 | CD33: 23.413 | CE33: 11.8388 | CF33: 0.57877 | CG33: 38.458 | CH33: 0.601 | CI33: 0.3943 | CJ33: 11.12 | CK33: 6.691 | CL33: 0.5646 | CM33: 19.37 | CN33: 6.5897 | CO33: 3.7983 | CP33: 92.348 | CQ33: 52.138 | CR33: 2.1104 | CS33: 156.984 | CT33: 0 | CU33: 0 | CV33: 0 | CW33: 0 | CX33: 0 | CY33: 0 | CZ33: 0 | DA33: 0.0897 | DB33: 0.1003 | DC33: 1.072 | DD33: 1.13 | DE33: 1.189 | DF33: 3.58 | DG33: 0 | DH33: 0 | DI33: 0 | DJ33: 0 | DK33: 0 | DL33: 0 | DM33: 0.05248 | DN33: 0.01974 | DO33: 0.8155 | DP33: 3.159 | DQ33: 4.432 | DR33: 8.479 | DS33: 0.0123 | DT33: 0.00147 | DU33: 7.32 | DV33: 0.3902 | DW33: 0.301 | DX33: 8.02 | DY33: 2419.05 | DZ33: 50.782 | EA33: 110.73 | EB33: 11.73 | EC33: 185.17 | ED33: 132.55 | EE33: 33.207 | EF33: 7.735 | EG33: 72.12 | EH33: 82.86 | EI33: 175.47 | EJ33: 21.249 | EK33: 883.61 | EL33: 115.13 | EM33: 122.26 | EN33: 56.076 | EO33: 15.721 | EP33: 4.524 | EQ33: 313.72 | ER33: 898.67 | ES33: 136.72 | ET33: 21 | EU33: 6.26 | EV33: 46.7 | EW33: 200.03 | EX33: 18.02 | EY33: 20.18 | EZ33: 0.15 | FA33: 4.601 | FB33: 43.75 | FC33: 1.57 | FD33: 0 | FE33: 1397.65 | FF33: 4.672 | FG33: 0 | FH33: 1402.32 | FI33: 65.271 | FJ33: 157.74 | FK33: 223.01
A34: 01C112 | B34: Craniotomies pour tumeurs, âge inférieur à 18 ans, niveau 2 | D34: 187 | E34: 9559.42 | F34: 13.594 | G34: 2.182 | H34: 344.18 | I34: 352.38 | J34: 1100.07 | K34: 1812.41 | L34: 1.921 | M34: 0.158 | N34: 22.435 | O34: 49.46 | P34: 271.18 | Q34: 345.16 | R34: 1.212 | S34: 0.3791 | T34: 10.98 | U34: 18 | V34: 87.8 | W34: 118.37 | X34: 17.84 | Y34: 9.77 | Z34: 91.68 | AA34: 225.06 | AB34: 609.89 | AC34: 954.23 | AD34: 3230.17 | AE34: 29.718 | AF34: 14.807 | AG34: 37.257 | AH34: 484.46 | AI34: 451.61 | AJ34: 1017.85 | AK34: 135.189 | AL34: 83.188 | AM34: 90.383 | AN34: 270.96 | AO34: 568.75 | AP34: 1148.48 | AQ34: 0 | AR34: 0 | AS34: 0 | AT34: 0 | AU34: 0 | AV34: 0 | AW34: 0 | AX34: 0 | AY34: 0 | AZ34: 0 | BA34: 0 | BB34: 0 | BC34: 0 | BD34: 0.967 | BE34: 0.43 | BF34: 5.543 | BG34: 8.627 | BH34: 9.3 | BI34: 24.87 | BJ34: 63.237 | BK34: 23.045 | BL34: 99.22 | BM34: 80.43 | BN34: 14.336 | BO34: 280.27 | BP34: 0 | BQ34: 0 | BR34: 0 | BS34: 0 | BT34: 0 | BU34: 0 | BV34: 3.565 | BW34: 2.152 | BX34: 67.55 | BY34: 37.7 | BZ34: 3.364 | CA34: 114.33 | CB34: 1.7645 | CC34: 0.76619 | CD34: 21.075 | CE34: 13.5329 | CF34: 0.64168 | CG34: 37.781 | CH34: 1.365 | CI34: 0.9433 | CJ34: 25.41 | CK34: 13.249 | CL34: 1.2075 | CM34: 42.18 | CN34: 6.2492 | CO34: 3.1196 | CP34: 78.009 | CQ34: 52.851 | CR34: 2.2923 | CS34: 142.521 | CT34: 0 | CU34: 0 | CV34: 0 | CW34: 0 | CX34: 0 | CY34: 0 | CZ34: 0 | DA34: 0.1976 | DB34: 0.2179 | DC34: 2.716 | DD34: 2.58 | DE34: 3.083 | DF34: 8.79 | DG34: 0 | DH34: 0 | DI34: 0 | DJ34: 0 | DK34: 0 | DL34: 0 | DM34: 0.10148 | DN34: 0.04552 | DO34: 0.9333 | DP34: 4.039 | DQ34: 6.138 | DR34: 11.258 | DS34: 0.0543 | DT34: 0.0102 | DU34: 21.1 | DV34: 1.0914 | DW34: 0.892 | DX34: 23.15 | DY34: 2851.47 | DZ34: 75.397 | EA34: 155.99 | EB34: 12.091 | EC34: 275.89 | ED34: 198.59 | EE34: 42.982 | EF34: 7.314 | EG34: 102.44 | EH34: 104.07 | EI34: 261.73 | EJ34: 30.259 | EK34: 1266.76 | EL34: 146.46 | EM34: 126.93 | EN34: 54.571 | EO34: 17.898 | EP34: 5.634 | EQ34: 351.49 | ER34: 1231.68 | ES34: 144.76 | ET34: 18.34 | EU34: 9.69 | EV34: 90.06 | EW34: 256.31 | EX34: 14.36 | EY34: 29.9 | EZ34: 0.31 | FA34: 6.728 | FB34: 50.17 | FC34: 0.76 | FD34: 0.001 | FE34: 1853.07 | FF34: 6.46 | FG34: 0 | FH34: 1859.53 | FI34: 96.5 | FJ34: 224.46 | FK34: 320.96
A35: 01C113 | B35: Craniotomies pour tumeurs, âge inférieur à 18 ans, niveau 3 | D35: 138 | E35: 15935.84 | F35: 20.896 | G35: 4.94 | H35: 663.64 | I35: 470.72 | J35: 1921.35 | K35: 3081.54 | L35: 3.966 | M35: 0.515 | N35: 37.901 | O35: 90.09 | P35: 549.64 | Q35: 682.11 | R35: 7.398 | S35: 2.8366 | T35: 101.82 | U35: 121.57 | V35: 664.19 | W35: 897.81 | X35: 42.31 | Y35: 22.181 | Z35: 191.01 | AA35: 494.72 | AB35: 1285.4 | AC35: 2035.62 | AD35: 6697.09 | AE35: 31.777 | AF35: 16.944 | AG35: 39.454 | AH35: 553.73 | AI35: 458.88 | AJ35: 1100.79 | AK35: 148.056 | AL35: 93.24 | AM35: 119.524 | AN35: 322.41 | AO35: 786.16 | AP35: 1469.39 | AQ35: 0 | AR35: 0 | AS35: 0 | AT35: 0 | AU35: 0 | AV35: 0 | AW35: 0 | AX35: 0 | AY35: 0 | AZ35: 0 | BA35: 0 | BB35: 0 | BC35: 0 | BD35: 2.464 | BE35: 1.612 | BF35: 18.36 | BG35: 24.751 | BH35: 23.95 | BI35: 71.13 | BJ35: 81.922 | BK35: 38.028 | BL35: 179.29 | BM35: 107.22 | BN35: 17.083 | BO35: 423.54 | BP35: 0.116 | BQ35: 0.324 | BR35: 1.47 | BS35: 1.585 | BT35: 0.976 | BU35: 4.47 | BV35: 8.968 | BW35: 5.545 | BX35: 157.41 | BY35: 79.49 | BZ35: 4.761 | CA35: 256.17 | CB35: 1.385 | CC35: 0.70734 | CD35: 15.171 | CE35: 10.5886 | CF35: 0.1714 | CG35: 28.024 | CH35: 2.551 | CI35: 1.715 | CJ35: 44.56 | CK35: 23.865 | CL35: 1.534 | CM35: 74.22 | CN35: 7.0865 | CO35: 4.4461 | CP35: 89.438 | CQ35: 66.632 | CR35: 1.3566 | CS35: 168.96 | CT35: 0 | CU35: 0 | CV35: 0 | CW35: 0 | CX35: 0 | CY35: 0 | CZ35: 0 | DA35: 0.7937 | DB35: 0.8349 | DC35: 6.803 | DD35: 8.63 | DE35: 6.164 | DF35: 23.23 | DG35: 0.048 | DH35: 0.0897 | DI35: 0.7869 | DJ35: 3.912 | DK35: 3.348 | DL35: 8.185 | DM35: 0.20112 | DN35: 0.0785 | DO35: 1.8141 | DP35: 6.591 | DQ35: 10.738 | DR35: 19.423 | DS35: 0.5007 | DT35: 0.15308 | DU35: 81.88 | DV35: 3.9717 | DW35: 4.304 | DX35: 90.81 | DY35: 3738.34 | DZ35: 125.249 | EA35: 265.25 | EB35: 12.448 | EC35: 492.95 | ED35: 364.23 | EE35: 88.228 | EF35: 8.372 | EG35: 197 | EH35: 198.94 | EI35: 462.31 | EJ35: 56.299 | EK35: 2271.28 | EL35: 208.18 | EM35: 155.11 | EN35: 98.878 | EO35: 29.096 | EP35: 11.625 | EQ35: 502.89 | ER35: 1586.84 | ES35: 165.79 | ET35: 20.34 | EU35: 39.09 | EV35: 140.87 | EW35: 547.13 | EX35: 57.91 | EY35: 58.69 | EZ35: 0.82 | FA35: 4.462 | FB35: 71.25 | FC35: 6.42 | FD35: 14.615 | FE35: 2714.22 | FF35: 12.039 | FG35: 0 | FH35: 2726.26 | FI35: 151.369 | FJ35: 400.76 | FK35: 552.13
A36: 01C114 | B36: Craniotomies pour tumeurs, âge inférieur à 18 ans, niveau 4 | D36: 108 | E36: 23971.45 | F36: 25.875 | G36: 6.285 | H36: 768.07 | I36: 678.36 | J36: 2580.32 | K36: 4058.9 | L36: 9.35 | M36: 1.824 | N36: 64.981 | O36: 126.65 | P36: 777.67 | Q36: 980.47 | R36: 11.474 | S36: 2.647 | T36: 135.19 | U36: 155.38 | V36: 687.12 | W36: 991.81 | X36: 117.22 | Y36: 67.115 | Z36: 382.9 | AA36: 1281.46 | AB36: 3355.83 | AC36: 5204.52 | AD36: 11235.71 | AE36: 42.317 | AF36: 22.123 | AG36: 45.742 | AH36: 653.26 | AI36: 526.74 | AJ36: 1290.18 | AK36: 183.883 | AL36: 110.541 | AM36: 153.002 | AN36: 328.55 | AO36: 910.5 | AP36: 1686.47 | AQ36: 0 | AR36: 0 | AS36: 0 | AT36: 0 | AU36: 0 | AV36: 0 | AW36: 0 | AX36: 0 | AY36: 0 | AZ36: 0 | BA36: 0 | BB36: 0 | BC36: 0 | BD36: 2.648 | BE36: 1.0811 | BF36: 9.748 | BG36: 19.223 | BH36: 25.68 | BI36: 58.38 | BJ36: 114.417 | BK36: 51.995 | BL36: 255 | BM36: 157.01 | BN36: 27.239 | BO36: 605.67 | BP36: 0 | BQ36: 0 | BR36: 0 | BS36: 0 | BT36: 0 | BU36: 0 | BV36: 16.771 | BW36: 8.722 | BX36: 260.45 | BY36: 140.77 | BZ36: 6.549 | CA36: 433.27 | CB36: 1.5207 | CC36: 0.72625 | CD36: 15.727 | CE36: 12.8515 | CF36: 0.32326 | CG36: 31.149 | CH36: 8.617 | CI36: 4.0472 | CJ36: 126.47 | CK36: 64.872 | CL36: 4.1359 | CM36: 208.14 | CN36: 7.9464 | CO36: 3.808 | CP36: 89.356 | CQ36: 71.451 | CR36: 2.2267 | CS36: 174.788 | CT36: 0.761 | CU36: 0.855 | CV36: 3.48 | CW36: 1.22 | CX36: 0.06 | CY36: 0 | CZ36: 6.37 | DA36: 1.718 | DB36: 1.038 | DC36: 11.683 | DD36: 24.84 | DE36: 15.51 | DF36: 54.79 | DG36: 0 | DH36: 0 | DI36: 0 | DJ36: 0 | DK36: 0 | DL36: 0 | DM36: 0.23234 | DN36: 0.08531 | DO36: 2.0686 | DP36: 6.124 | DQ36: 10.239 | DR36: 18.75 | DS36: 0.8305 | DT36: 0.22308 | DU36: 206.89 | DV36: 10.6935 | DW36: 11.845 | DX36: 230.48 | DY36: 4798.43 | DZ36: 187.4 | EA36: 344.67 | EB36: 11.936 | EC36: 780.74 | ED36: 532.04 | EE36: 136.218 | EF36: 7.806 | EG36: 290.03 | EH36: 292.99 | EI36: 712.91 | EJ36: 94.97 | EK36: 3391.7 | EL36: 309.68 | EM36: 184.94 | EN36: 113.82 | EO36: 41.246 | EP36: 13.612 | EQ36: 663.3 | ER36: 2137.34 | ES36: 222.8 | ET36: 27.64 | EU36: 80.57 | EV36: 249.76 | EW36: 753.74 | EX36: 187.42 | EY36: 61.74 | EZ36: 0.94 | FA36: 6.507 | FB36: 133.3 | FC36: 4.11 | FD36: 5.826 | FE36: 3871.68 | FF36: 10.621 | FG36: 0 | FH36: 3882.3 | FI36: 226.628 | FJ36: 629.99 | FK36: 856.62
A37: 01C121 | B37: Craniotomies pour affections non tumorales, âge inférieur à 18 ans, niveau 1 | D37: 540 | E37: 5800.13 | F37: 9.736 | G37: 1.631 | H37: 245.93 | I37: 261.64 | J37: 883.29 | K37: 1402.22 | L37: 0.708 | M37: 0.322 | N37: 11.414 | O37: 20.34 | P37: 101.56 | Q37: 134.34 | R37: 0.863 | S37: 0.2631 | T37: 7.46 | U37: 12.7 | V37: 60.65 | W37: 81.94 | X37: 6.3 | Y37: 2.51 | Z37: 19.36 | AA37: 57.44 | AB37: 135.4 | AC37: 221.01 | AD37: 1839.51 | AE37: 19.63 | AF37: 10.534 | AG37: 21.703 | AH37: 313.75 | AI37: 290.62 | AJ37: 656.24 | AK37: 70.008 | AL37: 42.038 | AM37: 64.543 | AN37: 167.19 | AO37: 383.01 | AP37: 726.79 | AQ37: 0 | AR37: 0 | AS37: 0 | AT37: 0 | AU37: 0 | AV37: 0 | AW37: 0 | AX37: 0 | AY37: 0 | AZ37: 0 | BA37: 0 | BB37: 0 | BC37: 0 | BD37: 1.393 | BE37: 0.4567 | BF37: 4.529 | BG37: 9.909 | BH37: 20.19 | BI37: 36.47 | BJ37: 22.585 | BK37: 13.556 | BL37: 67.64 | BM37: 38.08 | BN37: 6.776 | BO37: 148.63 | BP37: 0.507 | BQ37: 0.667 | BR37: 2.262 | BS37: 1.586 | BT37: 1.195 | BU37: 6.22 | BV37: 1.864 | BW37: 1.057 | BX37: 29.88 | BY37: 14.85 | BZ37: 0.532 | CA37: 48.19 | CB37: 0.4003 | CC37: 0.15711 | CD37: 4.59 | CE37: 3.0703 | CF37: 0.13795 | CG37: 8.356 | CH37: 0.717 | CI37: 0.4002 | CJ37: 11.16 | CK37: 5.778 | CL37: 0.1894 | CM37: 18.24 | CN37: 1.1456 | CO37: 0.6046 | CP37: 15.176 | CQ37: 9.32 | CR37: 0.469 | CS37: 26.716 | CT37: 0 | CU37: 0 | CV37: 0 | CW37: 0 | CX37: 0 | CY37: 0 | CZ37: 0 | DA37: 0.4936 | DB37: 0.3418 | DC37: 5.296 | DD37: 10.11 | DE37: 6.206 | DF37: 22.45 | DG37: 0.089 | DH37: 0.1039 | DI37: 1.3186 | DJ37: 6.793 | DK37: 5.1972 | DL37: 13.502 | DM37: 0.11726 | DN37: 0.04666 | DO37: 1.9694 | DP37: 4.981 | DQ37: 7.56 | DR37: 14.674 | DS37: 0.0097 | DT37: 0.00108 | DU37: 4.22 | DV37: 0.1507 | DW37: 0.137 | DX37: 4.52 | DY37: 1731 | DZ37: 50.909 | EA37: 116.27 | EB37: 12.862 | EC37: 192.17 | ED37: 130.28 | EE37: 30.049 | EF37: 8.271 | EG37: 73.73 | EH37: 79.15 | EI37: 173.29 | EJ37: 20.709 | EK37: 887.69 | EL37: 89.91 | EM37: 78.29 | EN37: 29.192 | EO37: 12.347 | EP37: 5.215 | EQ37: 214.96 | ER37: 580.22 | ES37: 188.4 | ET37: 25.12 | EU37: 3.08 | EV37: 28.54 | EW37: 158.44 | EX37: 43.5 | EY37: 23.54 | EZ37: 0.14 | FA37: 2.86 | FB37: 35.92 | FC37: 2.86 | FD37: 30.464 | FE37: 1123.09 | FF37: 3.889 | FG37: 0 | FH37: 1126.98 | FI37: 72.383 | FJ37: 157.21 | FK37: 229.59
A38: 01C122 | B38: Craniotomies pour affections non tumorales, âge inférieur à 18 ans, niveau 2 | D38: 297 | E38: 9243.02 | F38: 15.716 | G38: 3.837 | H38: 434.14 | I38: 377.3 | J38: 1467.1 | K38: 2298.09 | L38: 2.686 | M38: 0.637 | N38: 38.499 | O38: 74.53 | P38: 329.29 | Q38: 445.64 | R38: 2.105 | S38: 0.3029 | T38: 7.92 | U38: 18.3 | V38: 67.14 | W38: 95.76 | X38: 22.73 | Y38: 9.347 | Z38: 66.53 | AA38: 160.04 | AB38: 413.6 | AC38: 672.24 | AD38: 3511.73 | AE38: 20.106 | AF38: 10.237 | AG38: 21.48 | AH38: 323.71 | AI38: 299.76 | AJ38: 675.28 | AK38: 99.812 | AL38: 60.171 | AM38: 92.762 | AN38: 216.47 | AO38: 480.25 | AP38: 949.47 | AQ38: 0 | AR38: 0 | AS38: 0 | AT38: 0 | AU38: 0 | AV38: 0 | AW38: 0 | AX38: 0 | AY38: 0 | AZ38: 0 | BA38: 0 | BB38: 0 | BC38: 0 | BD38: 3.03 | BE38: 0.927 | BF38: 21.723 | BG38: 27.671 | BH38: 44.02 | BI38: 97.38 | BJ38: 36.544 | BK38: 21.942 | BL38: 119.95 | BM38: 60.05 | BN38: 12.093 | BO38: 250.58 | BP38: 0.633 | BQ38: 2.068 | BR38: 5.204 | BS38: 2.355 | BT38: 3.316 | BU38: 13.58 | BV38: 4.054 | BW38: 2.534 | BX38: 65.46 | BY38: 32.38 | BZ38: 1.208 | CA38: 105.64 | CB38: 0.6266 | CC38: 0.25553 | CD38: 7.338 | CE38: 4.7752 | CF38: 0.18005 | CG38: 13.176 | CH38: 2.054 | CI38: 1.3348 | CJ38: 29.16 | CK38: 15.826 | CL38: 0.4584 | CM38: 48.84 | CN38: 2.4458 | CO38: 1.1481 | CP38: 30.748 | CQ38: 18.272 | CR38: 0.5928 | CS38: 53.207 | CT38: 0 | CU38: 0 | CV38: 0 | CW38: 0 | CX38: 0 | CY38: 0 | CZ38: 0 | DA38: 0.7535 | DB38: 0.4919 | DC38: 7.829 | DD38: 9.23 | DE38: 7.85 | DF38: 26.15 | DG38: 0.153 | DH38: 0.0283 | DI38: 1.1677 | DJ38: 8.02 | DK38: 5.0284 | DL38: 14.398 | DM38: 0.13568 | DN38: 0.054 | DO38: 2.7043 | DP38: 5.736 | DQ38: 8.958 | DR38: 17.588 | DS38: 0.0808 | DT38: 0.02284 | DU38: 12.05 | DV38: 0.8223 | DW38: 2.227 | DX38: 15.2 | DY38: 2280.48 | DZ38: 89.741 | EA38: 198.24 | EB38: 13.492 | EC38: 334.99 | ED38: 234.81 | EE38: 50.014 | EF38: 8.471 | EG38: 129.54 | EH38: 140.14 | EI38: 305.55 | EJ38: 32.814 | EK38: 1537.79 | EL38: 139.86 | EM38: 105.99 | EN38: 41.233 | EO38: 18.645 | EP38: 8.052 | EQ38: 313.78 | ER38: 818.98 | ES38: 210.16 | ET38: 29.82 | EU38: 10.34 | EV38: 57.69 | EW38: 257.51 | EX38: 84.9 | EY38: 36.16 | EZ38: 0.24 | FA38: 5.017 | FB38: 44.49 | FC38: 2.44 | FD38: 33.766 | FE38: 1591.5 | FF38: 7.74 | FG38: 0 | FH38: 1599.24 | FI38: 132.913 | FJ38: 270.55 | FK38: 403.47
A39: 01C123 | B39: Craniotomies pour affections non tumorales, âge inférieur à 18 ans, niveau 3 | D39: 142 | E39: 16912.83 | F39: 17.872 | G39: 4.99 | H39: 493.74 | I39: 464.75 | J39: 1935.07 | K39: 2916.43 | L39: 3.108 | M39: 1.238 | N39: 38.385 | O39: 85.69 | P39: 422.26 | Q39: 550.68 | R39: 7.498 | S39: 0.8075 | T39: 36.28 | U39: 40.35 | V39: 239.59 | W39: 324.52 | X39: 85 | Y39: 38.756 | Z39: 289.12 | AA39: 922.11 | AB39: 2395.76 | AC39: 3730.74 | AD39: 7522.37 | AE39: 23.608 | AF39: 12.2 | AG39: 25.62 | AH39: 394.47 | AI39: 361.41 | AJ39: 817.3 | AK39: 88.235 | AL39: 50.661 | AM39: 80.97 | AN39: 236.31 | AO39: 541.82 | AP39: 998 | AQ39: 0 | AR39: 0 | AS39: 0 | AT39: 0 | AU39: 0 | AV39: 0 | AW39: 0 | AX39: 0 | AY39: 0 | AZ39: 0 | BA39: 0 | BB39: 0 | BC39: 0 | BD39: 6.227 | BE39: 2.9899 | BF39: 26.727 | BG39: 46.197 | BH39: 59.73 | BI39: 141.87 | BJ39: 57.816 | BK39: 37.877 | BL39: 204.46 | BM39: 105.31 | BN39: 22.056 | BO39: 427.52 | BP39: 3.896 | BQ39: 4.294 | BR39: 15.755 | BS39: 11.78 | BT39: 7.926 | BU39: 43.65 | BV39: 17.164 | BW39: 8.166 | BX39: 233.31 | BY39: 117.56 | BZ39: 3.561 | CA39: 379.76 | CB39: 0.5023 | CC39: 0.18085 | CD39: 5.5 | CE39: 3.9741 | CF39: 0.15288 | CG39: 10.31 | CH39: 4.093 | CI39: 2.2426 | CJ39: 58.23 | CK39: 32.741 | CL39: 1.146 | CM39: 98.45 | CN39: 1.4213 | CO39: 0.8676 | CP39: 19.833 | CQ39: 13.026 | CR39: 0.4562 | CS39: 35.604 | CT39: 0 | CU39: 0 | CV39: 0 | CW39: 0 | CX39: 0 | CY39: 0 | CZ39: 0 | DA39: 3.3158 | DB39: 1.8819 | DC39: 25.831 | DD39: 52.44 | DE39: 33.656 | DF39: 117.12 | DG39: 0.126 | DH39: 0.0612 | DI39: 0.4743 | DJ39: 15.001 | DK39: 8.174 | DL39: 23.836 | DM39: 0.19176 | DN39: 0.06557 | DO39: 2.1438 | DP39: 8.037 | DQ39: 12.578 | DR39: 23.017 | DS39: 0.4771 | DT39: 0.13142 | DU39: 119.45 | DV39: 5.2706 | DW39: 4.446 | DX39: 129.77 | DY39: 3246.21 | DZ39: 143.918 | EA39: 277.05 | EB39: 13.513 | EC39: 573.72 | ED39: 388.6 | EE39: 94.109 | EF39: 8.821 | EG39: 213.33 | EH39: 235.83 | EI39: 522.32 | EJ39: 65.466 | EK39: 2536.67 | EL39: 216.14 | EM39: 113.29 | EN39: 67.208 | EO39: 31.65 | EP39: 11.819 | EQ39: 440.1 | ER39: 1287.82 | ES39: 181.43 | ET39: 102.41 | EU39: 30.15 | EV39: 181.49 | EW39: 547.5 | EX39: 628.2 | EY39: 32.26 | EZ39: 1.25 | FA39: 6.88 | FB39: 75.22 | FC39: 5.42 | FD39: 71.959 | FE39: 3151.97 | FF39: 15.508 | FG39: 0 | FH39: 3167.48 | FI39: 203.839 | FJ39: 445.35 | FK39: 649.19
A40: 01C124 | B40: Craniotomies pour affections non tumorales, âge inférieur à 18 ans, niveau 4 | D40: 129 | E40: 28792.6 | F40: 22.375 | G40: 7.482 | H40: 662.92 | I40: 622.15 | J40: 2188.01 | K40: 3502.94 | L40: 9.466 | M40: 2.701 | N40: 165.601 | O40: 261.53 | P40: 1094.04 | Q40: 1533.34 | R40: 12.463 | S40: 3.4402 | T40: 88.47 | U40: 157.67 | V40: 725.52 | W40: 987.56 | X40: 258.35 | Y40: 111.14 | Z40: 781.73 | AA40: 2050.63 | AB40: 5872.36 | AC40: 9074.21 | AD40: 15098.06 | AE40: 25.476 | AF40: 13.435 | AG40: 28.654 | AH40: 424.53 | AI40: 355.99 | AJ40: 848.08 | AK40: 90.784 | AL40: 54.786 | AM40: 88.669 | AN40: 219.71 | AO40: 518.81 | AP40: 972.76 | AQ40: 0 | AR40: 0 | AS40: 0 | AT40: 0 | AU40: 0 | AV40: 0 | AW40: 0 | AX40: 0 | AY40: 0 | AZ40: 0 | BA40: 0 | BB40: 0 | BC40: 0 | BD40: 17.045 | BE40: 6.9543 | BF40: 57.912 | BG40: 107.13 | BH40: 152.81 | BI40: 341.85 | BJ40: 88.308 | BK40: 58.572 | BL40: 349.32 | BM40: 169.51 | BN40: 31.059 | BO40: 696.76 | BP40: 0.554 | BQ40: 2.885 | BR40: 7.004 | BS40: 3.223 | BT40: 5.129 | BU40: 18.8 | BV40: 30.89 | BW40: 16.97 | BX40: 439.06 | BY40: 229 | BZ40: 5.89 | CA40: 721.81 | CB40: 0.3393 | CC40: 0.16193 | CD40: 3.753 | CE40: 2.6601 | CF40: 0.06478 | CG40: 6.98 | CH40: 7 | CI40: 4.5348 | CJ40: 112.53 | CK40: 61.871 | CL40: 1.4472 | CM40: 187.38 | CN40: 0.807 | CO40: 0.5071 | CP40: 10.278 | CQ40: 6.94 | CR40: 0.277 | CS40: 18.81 | CT40: 0 | CU40: 0 | CV40: 0 | CW40: 0 | CX40: 0 | CY40: 0 | CZ40: 0 | DA40: 3.7057 | DB40: 2.0786 | DC40: 31.739 | DD40: 66.83 | DE40: 44.761 | DF40: 149.11 | DG40: 12.539 | DH40: 0.8796 | DI40: 10.6286 | DJ40: 49.948 | DK40: 33.2226 | DL40: 107.218 | DM40: 0.12114 | DN40: 0.05973 | DO40: 2.508 | DP40: 7.375 | DQ40: 9.877 | DR40: 19.94 | DS40: 1.5037 | DT40: 0.40724 | DU40: 198.41 | DV40: 7.8529 | DW40: 11.491 | DX40: 219.66 | DY40: 4309.16 | DZ40: 243.325 | EA40: 370.98 | EB40: 13.117 | EC40: 898 | ED40: 674.31 | EE40: 144.929 | EF40: 8.734 | EG40: 394.97 | EH40: 404.77 | EI40: 827.36 | EJ40: 96.738 | EK40: 4077.23 | EL40: 378.31 | EM40: 179.81 | EN40: 147.372 | EO40: 57.509 | EP40: 24.619 | EQ40: 787.62 | ER40: 2265.92 | ES40: 306.42 | ET40: 31.5 | EU40: 52.87 | EV40: 352.41 | EW40: 929.89 | EX40: 100.11 | EY40: 162.64 | EZ40: 0.85 | FA40: 10.444 | FB40: 107.77 | FC40: 7.12 | FD40: 174.552 | FE40: 4502.5 | FF40: 18.035 | FG40: 0 | FH40: 4520.54 | FI40: 353.529 | FJ40: 770.3 | FK40: 1123.82
A41: 01C141 | B41: Libérations de nerfs superficiels à l'exception du médian au canal carpien, niveau 1 | D41: 733 | E41: 1847.06 | F41: 3.116 | G41: 0.275 | H41: 77.16 | I41: 68.96 | J41: 296.3 | K41: 445.81 | L41: 0.062 | M41: 0.027 | N41: 0.372 | O41: 0.88 | P41: 2.48 | Q41: 3.82 | R41: 0 | S41: 0 | T41: 0 | U41: 0 | V41: 0 | W41: 0 | X41: 0 | Y41: 0 | Z41: 0 | AA41: 0 | AB41: 0 | AC41: 0 | AD41: 449.63 | AE41: 6.862 | AF41: 4.204 | AG41: 10.13 | AH41: 161.05 | AI41: 155.53 | AJ41: 337.77 | AK41: 28.195 | AL41: 12.174 | AM41: 31.859 | AN41: 106.72 | AO41: 231.12 | AP41: 410.06 | AQ41: 0 | AR41: 0 | AS41: 0 | AT41: 0 | AU41: 0 | AV41: 0 | AW41: 0 | AX41: 0 | AY41: 0 | AZ41: 0 | BA41: 0 | BB41: 0 | BC41: 0 | BD41: 0.016 | BE41: 0.0033 | BF41: 0.018 | BG41: 0.17 | BH41: 0.34 | BI41: 0.55 | BJ41: 0.504 | BK41: 0.515 | BL41: 2.46 | BM41: 1.15 | BN41: 0.124 | BO41: 4.76 | BP41: 0 | BQ41: 0 | BR41: 0 | BS41: 0 | BT41: 0 | BU41: 0 | BV41: 0.177 | BW41: 0.126 | BX41: 1.99 | BY41: 0.82 | BZ41: 0.053 | CA41: 3.17 | CB41: 0.0656 | CC41: 0.02583 | CD41: 0.724 | CE41: 0.5006 | CF41: 0.0145 | CG41: 1.33 | CH41: 0.002 | CI41: 0.001 | CJ41: 0.02 | CK41: 0.011 | CL41: 0.0001 | CM41: 0.03 | CN41: 0.1371 | CO41: 0.0573 | CP41: 1.491 | CQ41: 1.013 | CR41: 0.0095 | CS41: 2.708 | CT41: 0 | CU41: 0 | CV41: 0 | CW41: 0 | CX41: 0 | CY41: 0 | CZ41: 0 | DA41: 0.0102 | DB41: 0.0041 | DC41: 0.225 | DD41: 5 | DE41: 2.262 | DF41: 7.51 | DG41: 0 | DH41: 0 | DI41: 0 | DJ41: 0 | DK41: 0 | DL41: 0 | DM41: 0.01693 | DN41: 0.00636 | DO41: 0.2484 | DP41: 0.823 | DQ41: 0.999 | DR41: 2.094 | DS41: 0.0105 | DT41: 0.00313 | DU41: 1.56 | DV41: 0.0406 | DW41: 0.132 | DX41: 1.75 | DY41: 771.73 | DZ41: 13.698 | EA41: 33.53 | EB41: 13.253 | EC41: 51.84 | ED41: 29.03 | EE41: 6.953 | EF41: 8.675 | EG41: 20.67 | EH41: 25.34 | EI41: 40.33 | EJ41: 4.824 | EK41: 248.14 | EL41: 34.56 | EM41: 63.76 | EN41: 10.909 | EO41: 6.645 | EP41: 2.056 | EQ41: 117.93 | ER41: 160.27 | ES41: 27.31 | ET41: 2.19 | EU41: 0.02 | EV41: 0.93 | EW41: 36.06 | EX41: 0.47 | EY41: 0.62 | EZ41: 0.07 | FA41: 0.457 | FB41: 7.22 | FC41: 0.06 | FD41: 0.015 | FE41: 235.69 | FF41: 23.045 | FG41: 0.89 | FH41: 259.63 | FI41: 17.863 | FJ41: 45.27 | FK41: 63.14
A42: 01C142 | B42: Libérations de nerfs superficiels à l'exception du médian au canal carpien, niveau 2 | C42: * | D42: 25 | E42: 3034.46 | F42: 5.12 | G42: 0.451 | H42: 126.76 | I42: 113.29 | J42: 486.78 | K42: 732.41 | L42: 0.102 | M42: 0.044 | N42: 0.611 | O42: 1.45 | P42: 4.07 | Q42: 6.28 | R42: 0 | S42: 0 | T42: 0 | U42: 0 | V42: 0 | W42: 0 | X42: 0 | Y42: 0 | Z42: 0 | AA42: 0 | AB42: 0 | AC42: 0 | AD42: 738.68 | AE42: 11.273 | AF42: 6.907 | AG42: 16.642 | AH42: 264.58 | AI42: 255.51 | AJ42: 554.91 | AK42: 46.321 | AL42: 20 | AM42: 52.341 | AN42: 175.32 | AO42: 379.69 | AP42: 673.68 | AQ42: 0 | AR42: 0 | AS42: 0 | AT42: 0 | AU42: 0 | AV42: 0 | AW42: 0 | AX42: 0 | AY42: 0 | AZ42: 0 | BA42: 0 | BB42: 0 | BC42: 0 | BD42: 0.026 | BE42: 0.0054 | BF42: 0.03 | BG42: 0.28 | BH42: 0.56 | BI42: 0.9 | BJ42: 0.828 | BK42: 0.846 | BL42: 4.04 | BM42: 1.89 | BN42: 0.204 | BO42: 7.82 | BP42: 0 | BQ42: 0 | BR42: 0 | BS42: 0 | BT42: 0 | BU42: 0 | BV42: 0.291 | BW42: 0.208 | BX42: 3.27 | BY42: 1.35 | BZ42: 0.087 | CA42: 5.21 | CB42: 0.1078 | CC42: 0.04244 | CD42: 1.189 | CE42: 0.8224 | CF42: 0.02382 | CG42: 2.185 | CH42: 0.003 | CI42: 0.0016 | CJ42: 0.03 | CK42: 0.017 | CL42: 0.0002 | CM42: 0.05 | CN42: 0.2253 | CO42: 0.0942 | CP42: 2.45 | CQ42: 1.664 | CR42: 0.0157 | CS42: 4.449 | CT42: 0 | CU42: 0 | CV42: 0 | CW42: 0 | CX42: 0 | CY42: 0 | CZ42: 0 | DA42: 0.0167 | DB42: 0.0068 | DC42: 0.37 | DD42: 8.22 | DE42: 3.716 | DF42: 12.33 | DG42: 0 | DH42: 0 | DI42: 0 | DJ42: 0 | DK42: 0 | DL42: 0 | DM42: 0.02781 | DN42: 0.01045 | DO42: 0.4081 | DP42: 1.353 | DQ42: 1.642 | DR42: 3.441 | DS42: 0.0172 | DT42: 0.00514 | DU42: 2.57 | DV42: 0.0667 | DW42: 0.217 | DX42: 2.87 | DY42: 1267.84 | DZ42: 22.505 | EA42: 55.09 | EB42: 21.772 | EC42: 85.16 | ED42: 47.69 | EE42: 11.423 | EF42: 14.251 | EG42: 33.96 | EH42: 41.64 | EI42: 66.25 | EJ42: 7.925 | EK42: 407.66 | EL42: 56.77 | EM42: 104.76 | EN42: 17.921 | EO42: 10.917 | EP42: 3.378 | EQ42: 193.74 | ER42: 263.3 | ES42: 44.87 | ET42: 3.6 | EU42: 0.03 | EV42: 1.52 | EW42: 59.24 | EX42: 0.77 | EY42: 1.02 | EZ42: 0.12 | FA42: 0.751 | FB42: 11.85 | FC42: 0.1 | FD42: 0.024 | FE42: 387.21 | FF42: 37.86 | FG42: 1.462 | FH42: 426.53 | FI42: 29.346 | FJ42: 74.38 | FK42: 103.73
A43: 01C143 | B43: Libérations de nerfs superficiels à l'exception du médian au canal carpien, niveau 3 | C43: * | D43: 9 | E43: 4811.15 | F43: 8.117 | G43: 0.715 | H43: 200.98 | I43: 179.63 | J43: 771.79 | K43: 1161.23 | L43: 0.162 | M43: 0.069 | N43: 0.969 | O43: 2.3 | P43: 6.45 | Q43: 9.95 | R43: 0 | S43: 0 | T43: 0 | U43: 0 | V43: 0 | W43: 0 | X43: 0 | Y43: 0 | Z43: 0 | AA43: 0 | AB43: 0 | AC43: 0 | AD43: 1171.18 | AE43: 17.874 | AF43: 10.95 | AG43: 26.387 | AH43: 419.49 | AI43: 405.11 | AJ43: 879.81 | AK43: 73.443 | AL43: 31.71 | AM43: 82.986 | AN43: 277.97 | AO43: 602 | AP43: 1068.11 | AQ43: 0 | AR43: 0 | AS43: 0 | AT43: 0 | AU43: 0 | AV43: 0 | AW43: 0 | AX43: 0 | AY43: 0 | AZ43: 0 | BA43: 0 | BB43: 0 | BC43: 0 | BD43: 0.041 | BE43: 0.0086 | BF43: 0.047 | BG43: 0.443 | BH43: 0.88 | BI43: 1.42 | BJ43: 1.313 | BK43: 1.342 | BL43: 6.41 | BM43: 3 | BN43: 0.324 | BO43: 12.39 | BP43: 0 | BQ43: 0 | BR43: 0 | BS43: 0 | BT43: 0 | BU43: 0 | BV43: 0.461 | BW43: 0.329 | BX43: 5.19 | BY43: 2.14 | BZ43: 0.137 | CA43: 8.26 | CB43: 0.1709 | CC43: 0.06728 | CD43: 1.885 | CE43: 1.3039 | CF43: 0.03776 | CG43: 3.465 | CH43: 0.005 | CI43: 0.0025 | CJ43: 0.05 | CK43: 0.027 | CL43: 0.0003 | CM43: 0.09 | CN43: 0.3572 | CO43: 0.1493 | CP43: 3.885 | CQ43: 2.639 | CR43: 0.0248 | CS43: 7.054 | CT43: 0 | CU43: 0 | CV43: 0 | CW43: 0 | CX43: 0 | CY43: 0 | CZ43: 0 | DA43: 0.0265 | DB43: 0.0108 | DC43: 0.587 | DD43: 13.04 | DE43: 5.891 | DF43: 19.55 | DG43: 0 | DH43: 0 | DI43: 0 | DJ43: 0 | DK43: 0 | DL43: 0 | DM43: 0.0441 | DN43: 0.01657 | DO43: 0.6471 | DP43: 2.145 | DQ43: 2.603 | DR43: 5.455 | DS43: 0.0272 | DT43: 0.00815 | DU43: 4.07 | DV43: 0.1058 | DW43: 0.344 | DX43: 4.56 | DY43: 2010.17 | DZ43: 35.681 | EA43: 87.34 | EB43: 34.52 | EC43: 135.02 | ED43: 75.62 | EE43: 18.111 | EF43: 22.595 | EG43: 53.84 | EH43: 66.02 | EI43: 105.04 | EJ43: 12.565 | EK43: 646.35 | EL43: 90.01 | EM43: 166.09 | EN43: 28.414 | EO43: 17.309 | EP43: 5.356 | EQ43: 307.18 | ER43: 417.47 | ES43: 71.15 | ET43: 5.71 | EU43: 0.05 | EV43: 2.42 | EW43: 93.93 | EX43: 1.22 | EY43: 1.61 | EZ43: 0.19 | FA43: 1.191 | FB43: 18.79 | FC43: 0.15 | FD43: 0.038 | FE43: 613.92 | FF43: 60.027 | FG43: 2.318 | FH43: 676.27 | FI43: 46.528 | FJ43: 117.93 | FK43: 164.46
A44: 01C144 | B44: Libérations de nerfs superficiels à l'exception du médian au canal carpien, niveau 4 | C44: * | D44: 2 | E44: 12173.69 | F44: 20.539 | G44: 1.81 | H44: 508.54 | I44: 454.52 | J44: 1952.87 | K44: 2938.28 | L44: 0.409 | M44: 0.176 | N44: 2.451 | O44: 5.82 | P44: 16.33 | Q44: 25.18 | R44: 0 | S44: 0 | T44: 0 | U44: 0 | V44: 0 | W44: 0 | X44: 0 | Y44: 0 | Z44: 0 | AA44: 0 | AB44: 0 | AC44: 0 | AD44: 2963.46 | AE44: 45.227 | AF44: 27.708 | AG44: 66.767 | AH44: 1061.43 | AI44: 1025.05 | AJ44: 2226.19 | AK44: 185.832 | AL44: 80.236 | AM44: 209.981 | AN44: 703.35 | AO44: 1523.26 | AP44: 2702.66 | AQ44: 0 | AR44: 0 | AS44: 0 | AT44: 0 | AU44: 0 | AV44: 0 | AW44: 0 | AX44: 0 | AY44: 0 | AZ44: 0 | BA44: 0 | BB44: 0 | BC44: 0 | BD44: 0.104 | BE44: 0.0217 | BF44: 0.12 | BG44: 1.122 | BH44: 2.23 | BI44: 3.6 | BJ44: 3.323 | BK44: 3.395 | BL44: 16.22 | BM44: 7.6 | BN44: 0.82 | BO44: 31.36 | BP44: 0 | BQ44: 0 | BR44: 0 | BS44: 0 | BT44: 0 | BU44: 0 | BV44: 1.166 | BW44: 0.833 | BX44: 13.14 | BY44: 5.42 | BZ44: 0.347 | CA44: 20.9 | CB44: 0.4324 | CC44: 0.17024 | CD44: 4.77 | CE44: 3.2992 | CF44: 0.09555 | CG44: 8.767 | CH44: 0.013 | CI44: 0.0063 | CJ44: 0.13 | CK44: 0.069 | CL44: 0.0007 | CM44: 0.22 | CN44: 0.9038 | CO44: 0.3778 | CP44: 9.829 | CQ44: 6.676 | CR44: 0.0628 | CS44: 17.85 | CT44: 0 | CU44: 0 | CV44: 0 | CW44: 0 | CX44: 0 | CY44: 0 | CZ44: 0 | DA44: 0.067 | DB44: 0.0273 | DC44: 1.484 | DD44: 32.99 | DE44: 14.907 | DF44: 49.47 | DG44: 0 | DH44: 0 | DI44: 0 | DJ44: 0 | DK44: 0 | DL44: 0 | DM44: 0.11158 | DN44: 0.04192 | DO44: 1.6373 | DP44: 5.426 | DQ44: 6.586 | DR44: 13.804 | DS44: 0.0689 | DT44: 0.02063 | DU44: 10.31 | DV44: 0.2676 | DW44: 0.87 | DX44: 11.53 | DY44: 5086.35 | DZ44: 90.285 | EA44: 221.01 | EB44: 87.345 | EC44: 341.65 | ED44: 191.34 | EE44: 45.827 | EF44: 57.173 | EG44: 136.23 | EH44: 167.04 | EI44: 265.78 | EJ44: 31.793 | EK44: 1635.47 | EL44: 227.75 | EM44: 420.26 | EN44: 71.897 | EO44: 43.797 | EP44: 13.553 | EQ44: 777.26 | ER44: 1056.32 | ES44: 180.02 | ET44: 14.45 | EU44: 0.12 | EV44: 6.12 | EW44: 237.68 | EX44: 3.09 | EY44: 4.08 | EZ44: 0.49 | FA44: 3.015 | FB44: 47.56 | FC44: 0.38 | FD44: 0.096 | FE44: 1553.41 | FF44: 151.886 | FG44: 5.866 | FH44: 1711.16 | FI44: 117.73 | FJ44: 298.4 | FK44: 416.13
A45: 01C14J | B45: Libérations de nerfs superficiels à l'exception du médian au canal carpien, en ambulatoire | D45: 877 | E45: 1441.26 | F45: 1.452 | G45: 0.201 | H45: 32.55 | I45: 36.79 | J45: 109.11 | K45: 180.1 | L45: 0 | M45: 0 | N45: 0 | O45: 0 | P45: 0 | Q45: 0 | R45: 0 | S45: 0 | T45: 0 | U45: 0 | V45: 0 | W45: 0 | X45: 0 | Y45: 0 | Z45: 0 | AA45: 0 | AB45: 0 | AC45: 0 | AD45: 180.1 | AE45: 6.297 | AF45: 2.73 | AG45: 6.895 | AH45: 130.53 | AI45: 118.22 | AJ45: 264.67 | AK45: 26.165 | AL45: 11.782 | AM45: 34.706 | AN45: 98.88 | AO45: 191.5 | AP45: 363.04 | AQ45: 0 | AR45: 0 | AS45: 0 | AT45: 0 | AU45: 0 | AV45: 0 | AW45: 0 | AX45: 0 | AY45: 0 | AZ45: 0 | BA45: 0 | BB45: 0 | BC45: 0 | BD45: 0 | BE45: 0 | BF45: 0 | BG45: 0 | BH45: 0 | BI45: 0 | BJ45: 0.012 | BK45: 0.011 | BL45: 0.11 | BM45: 0.03 | BN45: 0.002 | BO45: 0.17 | BP45: 0 | BQ45: 0 | BR45: 0 | BS45: 0 | BT45: 0 | BU45: 0 | BV45: 0.004 | BW45: 0.002 | BX45: 0.06 | BY45: 0.02 | BZ45: 0.004 | CA45: 0.09 | CB45: 0.0891 | CC45: 0.03124 | CD45: 0.881 | CE45: 0.5695 | CF45: 0.01564 | CG45: 1.587 | CH45: 0 | CI45: 0 | CJ45: 0 | CK45: 0 | CL45: 0 | CM45: 0 | CN45: 0.0364 | CO45: 0.0145 | CP45: 0.347 | CQ45: 0.25 | CR45: 0.0019 | CS45: 0.65 | CT45: 0 | CU45: 0 | CV45: 0 | CW45: 0 | CX45: 0 | CY45: 0 | CZ45: 0 | DA45: 0 | DB45: 0 | DC45: 0 | DD45: 0 | DE45: 0 | DF45: 0 | DG45: 0 | DH45: 0 | DI45: 0 | DJ45: 0 | DK45: 0 | DL45: 0 | DM45: 0 | DN45: 0 | DO45: 0 | DP45: 0 | DQ45: 0 | DR45: 0 | DS45: 0.0029 | DT45: 0.00202 | DU45: 0.64 | DV45: 0 | DW45: 0.06 | DX45: 0.71 | DY45: 630.91 | DZ45: 7.363 | EA45: 8.7 | EB45: 14.857 | EC45: 94.67 | ED45: 47.43 | EE45: 9.004 | EF45: 8.526 | EG45: 29.67 | EH45: 36.38 | EI45: 62.44 | EJ45: 9.827 | EK45: 328.86 | EL45: 22.65 | EM45: 48.9 | EN45: 10.265 | EO45: 3.522 | EP45: 0.487 | EQ45: 85.82 | ER45: 130.25 | ES45: 10.5 | ET45: 0.51 | EU45: 0.02 | EV45: 0.24 | EW45: 21.97 | EX45: 0.45 | EY45: 3.14 | EZ45: 0.08 | FA45: 0.026 | FB45: 4.01 | FC45: 0.01 | FD45: 0.003 | FE45: 171.2 | FF45: 42.463 | FG45: 1.912 | FH45: 215.58 | FI45: 19.964 | FJ45: 58.49 | FK45: 78.45
A46: 01C151 | B46: Libérations du médian au canal carpien, niveau 1 | D46: 612 | E46: 1345.65 | F46: 3.01 | G46: 0.268 | H46: 58.06 | I46: 60.83 | J46: 212.1 | K46: 334.27 | L46: 0.091 | M46: 0.038 | N46: 0.421 | O46: 0.53 | P46: 3.19 | Q46: 4.27 | R46: 0.013 | S46: 0.0037 | T46: 0.02 | U46: 0.15 | V46: 0.4 | W46: 0.58 | X46: 0 | Y46: 0 | Z46: 0 | AA46: 0 | AB46: 0 | AC46: 0 | AD46: 339.12 | AE46: 5.756 | AF46: 3.013 | AG46: 7.366 | AH46: 100.77 | AI46: 101.73 | AJ46: 218.64 | AK46: 18.162 | AL46: 8.356 | AM46: 24.195 | AN46: 66.02 | AO46: 136.25 | AP46: 252.98 | AQ46: 0 | AR46: 0 | AS46: 0 | AT46: 0 | AU46: 0 | AV46: 0 | AW46: 0 | AX46: 0 | AY46: 0 | AZ46: 0 | BA46: 0 | BB46: 4.91 | BC46: 4.91 | BD46: 0.02 | BE46: 0.017 | BF46: 0.04 | BG46: 0.094 | BH46: 0.12 | BI46: 0.29 | BJ46: 0.324 | BK46: 0.354 | BL46: 1.74 | BM46: 0.88 | BN46: 0.083 | BO46: 3.39 | BP46: 0 | BQ46: 0 | BR46: 0 | BS46: 0 | BT46: 0 | BU46: 0 | BV46: 0.204 | BW46: 0.223 | BX46: 3.02 | BY46: 1.31 | BZ46: 0.066 | CA46: 4.82 | CB46: 0.0705 | CC46: 0.03165 | CD46: 0.703 | CE46: 0.5245 | CF46: 0.01192 | CG46: 1.342 | CH46: 0.008 | CI46: 0.0044 | CJ46: 0.11 | CK46: 0.053 | CL46: 0.001 | CM46: 0.18 | CN46: 0.1033 | CO46: 0.0394 | CP46: 0.922 | CQ46: 0.684 | CR46: 0.0089 | CS46: 1.758 | CT46: 0 | CU46: 0 | CV46: 0 | CW46: 0 | CX46: 0 | CY46: 0 | CZ46: 0 | DA46: 0.0099 | DB46: 0.0827 | DC46: 0.06 | DD46: 4.1 | DE46: 2.248 | DF46: 6.5 | DG46: 0 | DH46: 0 | DI46: 0 | DJ46: 0 | DK46: 0 | DL46: 0 | DM46: 0.03058 | DN46: 0.00736 | DO46: 0.4823 | DP46: 1.445 | DQ46: 1.545 | DR46: 3.511 | DS46: 0.0034 | DT46: 0.00131 | DU46: 0.81 | DV46: 0.1109 | DW46: 0.133 | DX46: 1.05 | DY46: 499.37 | DZ46: 10.477 | EA46: 25.33 | EB46: 12.02 | EC46: 41.71 | ED46: 20.33 | EE46: 4.604 | EF46: 9.12 | EG46: 13.94 | EH46: 19.17 | EI46: 31.21 | EJ46: 4.167 | EK46: 192.08 | EL46: 26.97 | EM46: 40.13 | EN46: 8.258 | EO46: 4.903 | EP46: 1.707 | EQ46: 81.96 | ER46: 111.12 | ES46: 15.78 | ET46: 8.62 | EU46: 0.01 | EV46: 1.15 | EW46: 24.35 | EX46: 43.46 | EY46: 0.9 | EZ46: 0.03 | FA46: 0.333 | FB46: 2.64 | FC46: 0.01 | FD46: 0.073 | FE46: 208.49 | FF46: 24.408 | FG46: 0.211 | FH46: 233.11 | FI46: 13.038 | FJ46: 30.75 | FK46: 43.79
A47: 01C152 | B47: Libérations du médian au canal carpien, niveau 2 | C47: * | D47: 22 | E47: 2210.71 | F47: 4.944 | G47: 0.441 | H47: 95.38 | I47: 99.94 | J47: 348.46 | K47: 549.17 | L47: 0.149 | M47: 0.063 | N47: 0.692 | O47: 0.87 | P47: 5.24 | Q47: 7.01 | R47: 0.022 | S47: 0.006 | T47: 0.04 | U47: 0.24 | V47: 0.65 | W47: 0.95 | X47: 0 | Y47: 0 | Z47: 0 | AA47: 0 | AB47: 0 | AC47: 0 | AD47: 557.13 | AE47: 9.457 | AF47: 4.949 | AG47: 12.101 | AH47: 165.55 | AI47: 167.13 | AJ47: 359.19 | AK47: 29.837 | AL47: 13.728 | AM47: 39.749 | AN47: 108.46 | AO47: 223.83 | AP47: 415.61 | AQ47: 0 | AR47: 0 | AS47: 0 | AT47: 0 | AU47: 0 | AV47: 0 | AW47: 0 | AX47: 0 | AY47: 0 | AZ47: 0 | BA47: 0 | BB47: 8.06 | BC47: 8.06 | BD47: 0.033 | BE47: 0.0279 | BF47: 0.066 | BG47: 0.154 | BH47: 0.2 | BI47: 0.48 | BJ47: 0.532 | BK47: 0.581 | BL47: 2.86 | BM47: 1.45 | BN47: 0.136 | BO47: 5.56 | BP47: 0 | BQ47: 0 | BR47: 0 | BS47: 0 | BT47: 0 | BU47: 0 | BV47: 0.335 | BW47: 0.366 | BX47: 4.96 | BY47: 2.16 | BZ47: 0.108 | CA47: 7.93 | CB47: 0.1159 | CC47: 0.052 | CD47: 1.155 | CE47: 0.8617 | CF47: 0.01958 | CG47: 2.204 | CH47: 0.014 | CI47: 0.0072 | CJ47: 0.19 | CK47: 0.086 | CL47: 0.0016 | CM47: 0.29 | CN47: 0.1697 | CO47: 0.0648 | CP47: 1.515 | CQ47: 1.124 | CR47: 0.0147 | CS47: 2.889 | CT47: 0 | CU47: 0 | CV47: 0 | CW47: 0 | CX47: 0 | CY47: 0 | CZ47: 0 | DA47: 0.0163 | DB47: 0.1359 | DC47: 0.098 | DD47: 6.74 | DE47: 3.693 | DF47: 10.68 | DG47: 0 | DH47: 0 | DI47: 0 | DJ47: 0 | DK47: 0 | DL47: 0 | DM47: 0.05024 | DN47: 0.01209 | DO47: 0.7923 | DP47: 2.375 | DQ47: 2.539 | DR47: 5.768 | DS47: 0.0056 | DT47: 0.00215 | DU47: 1.32 | DV47: 0.1823 | DW47: 0.219 | DX47: 1.73 | DY47: 820.4 | DZ47: 17.212 | EA47: 41.61 | EB47: 19.747 | EC47: 68.53 | ED47: 33.4 | EE47: 7.564 | EF47: 14.982 | EG47: 22.91 | EH47: 31.49 | EI47: 51.27 | EJ47: 6.847 | EK47: 315.56 | EL47: 44.3 | EM47: 65.92 | EN47: 13.567 | EO47: 8.055 | EP47: 2.804 | EQ47: 134.66 | ER47: 182.56 | ES47: 25.93 | ET47: 14.16 | EU47: 0.02 | EV47: 1.89 | EW47: 40.01 | EX47: 71.4 | EY47: 1.48 | EZ47: 0.05 | FA47: 0.547 | FB47: 4.34 | FC47: 0.02 | FD47: 0.12 | FE47: 342.52 | FF47: 40.099 | FG47: 0.347 | FH47: 382.97 | FI47: 21.42 | FJ47: 50.52 | FK47: 71.94
A48: 01C153 | B48: Libérations du médian au canal carpien, niveau 3 | C48: * | D48: 2 | E48: 3505.09 | F48: 7.839 | G48: 0.699 | H48: 151.23 | I48: 158.45 | J48: 552.48 | K48: 870.7 | L48: 0.236 | M48: 0.1 | N48: 1.098 | O48: 1.38 | P48: 8.31 | Q48: 11.12 | R48: 0.035 | S48: 0.0095 | T48: 0.06 | U48: 0.38 | V48: 1.03 | W48: 1.51 | X48: 0 | Y48: 0 | Z48: 0 | AA48: 0 | AB48: 0 | AC48: 0 | AD48: 883.34 | AE48: 14.994 | AF48: 7.847 | AG48: 19.186 | AH48: 262.48 | AI48: 264.99 | AJ48: 569.5 | AK48: 47.307 | AL48: 21.767 | AM48: 63.022 | AN48: 171.96 | AO48: 354.89 | AP48: 658.95 | AQ48: 0 | AR48: 0 | AS48: 0 | AT48: 0 | AU48: 0 | AV48: 0 | AW48: 0 | AX48: 0 | AY48: 0 | AZ48: 0 | BA48: 0 | BB48: 12.78 | BC48: 12.78 | BD48: 0.053 | BE48: 0.0442 | BF48: 0.104 | BG48: 0.245 | BH48: 0.32 | BI48: 0.76 | BJ48: 0.844 | BK48: 0.921 | BL48: 4.54 | BM48: 2.3 | BN48: 0.215 | BO48: 8.82 | BP48: 0 | BQ48: 0 | BR48: 0 | BS48: 0 | BT48: 0 | BU48: 0 | BV48: 0.531 | BW48: 0.58 | BX48: 7.86 | BY48: 3.42 | BZ48: 0.171 | CA48: 12.57 | CB48: 0.1837 | CC48: 0.08245 | CD48: 1.831 | CE48: 1.3662 | CF48: 0.03105 | CG48: 3.495 | CH48: 0.022 | CI48: 0.0115 | CJ48: 0.29 | CK48: 0.137 | CL48: 0.0025 | CM48: 0.47 | CN48: 0.2691 | CO48: 0.1027 | CP48: 2.403 | CQ48: 1.782 | CR48: 0.0233 | CS48: 4.58 | CT48: 0 | CU48: 0 | CV48: 0 | CW48: 0 | CX48: 0 | CY48: 0 | CZ48: 0 | DA48: 0.0258 | DB48: 0.2155 | DC48: 0.155 | DD48: 10.69 | DE48: 5.855 | DF48: 16.94 | DG48: 0 | DH48: 0 | DI48: 0 | DJ48: 0 | DK48: 0 | DL48: 0 | DM48: 0.07965 | DN48: 0.01917 | DO48: 1.2562 | DP48: 3.765 | DQ48: 4.025 | DR48: 9.145 | DS48: 0.0089 | DT48: 0.0034 | DU48: 2.1 | DV48: 0.289 | DW48: 0.347 | DX48: 2.75 | DY48: 1300.75 | DZ48: 27.29 | EA48: 65.97 | EB48: 31.309 | EC48: 108.66 | ED48: 52.96 | EE48: 11.993 | EF48: 23.755 | EG48: 36.32 | EH48: 49.92 | EI48: 81.29 | EJ48: 10.855 | EK48: 500.32 | EL48: 70.25 | EM48: 104.52 | EN48: 21.51 | EO48: 12.771 | EP48: 4.446 | EQ48: 213.5 | ER48: 289.45 | ES48: 41.11 | ET48: 22.45 | EU48: 0.04 | EV48: 2.99 | EW48: 63.44 | EX48: 113.21 | EY48: 2.34 | EZ48: 0.07 | FA48: 0.867 | FB48: 6.88 | FC48: 0.03 | FD48: 0.191 | FE48: 543.07 | FF48: 63.576 | FG48: 0.55 | FH48: 607.2 | FI48: 33.961 | FJ48: 80.1 | FK48: 114.06
A49: 01C15J | B49: Libérations du médian au canal carpien, en ambulatoire | D49: 6244 | E49: 1027.59 | F49: 1.724 | G49: 0.135 | H49: 36.72 | I49: 35.44 | J49: 110.44 | K49: 184.45 | L49: 0 | M49: 0 | N49: 0 | O49: 0 | P49: 0 | Q49: 0 | R49: 0 | S49: 0 | T49: 0 | U49: 0 | V49: 0 | W49: 0 | X49: 0 | Y49: 0 | Z49: 0 | AA49: 0 | AB49: 0 | AC49: 0 | AD49: 184.45 | AE49: 3.802 | AF49: 2.362 | AG49: 4.673 | AH49: 75.08 | AI49: 72.4 | AJ49: 158.31 | AK49: 16.13 | AL49: 7.07 | AM49: 22.994 | AN49: 61.18 | AO49: 116.85 | AP49: 224.23 | AQ49: 0 | AR49: 0 | AS49: 0 | AT49: 0 | AU49: 0 | AV49: 0 | AW49: 0 | AX49: 0 | AY49: 0 | AZ49: 0 | BA49: 0 | BB49: 0 | BC49: 0 | BD49: 0.002 | BE49: 0.0014 | BF49: 0.003 | BG49: 0.005 | BH49: 0.01 | BI49: 0.02 | BJ49: 0.006 | BK49: 0.007 | BL49: 0.05 | BM49: 0.02 | BN49: 0.002 | BO49: 0.08 | BP49: 0 | BQ49: 0 | BR49: 0 | BS49: 0 | BT49: 0 | BU49: 0 | BV49: 0.014 | BW49: 0.014 | BX49: 0.32 | BY49: 0.09 | BZ49: 0.002 | CA49: 0.44 | CB49: 0.022 | CC49: 0.0076 | CD49: 0.209 | CE49: 0.155 | CF49: 0.00273 | CG49: 0.396 | CH49: 0.001 | CI49: 0.0005 | CJ49: 0.01 | CK49: 0.004 | CL49: 0 | CM49: 0.01 | CN49: 0.0139 | CO49: 0.0042 | CP49: 0.127 | CQ49: 0.099 | CR49: 0.0005 | CS49: 0.245 | CT49: 0 | CU49: 0 | CV49: 0 | CW49: 0 | CX49: 0 | CY49: 0 | CZ49: 0 | DA49: 0 | DB49: 0 | DC49: 0 | DD49: 0 | DE49: 0 | DF49: 0 | DG49: 0 | DH49: 0 | DI49: 0 | DJ49: 0 | DK49: 0 | DL49: 0 | DM49: 0.00098 | DN49: 0.00033 | DO49: 0.0068 | DP49: 0.044 | DQ49: 0.055 | DR49: 0.107 | DS49: 0.0024 | DT49: 0.00167 | DU49: 0.53 | DV49: 0 | DW49: 0.049 | DX49: 0.58 | DY49: 384.43 | DZ49: 7.042 | EA49: 8.33 | EB49: 13.345 | EC49: 67.01 | ED49: 33.12 | EE49: 8.806 | EF49: 8.972 | EG49: 21.37 | EH49: 32.79 | EI49: 47.18 | EJ49: 6.514 | EK49: 254.47 | EL49: 17.78 | EM49: 32.15 | EN49: 5.806 | EO49: 2.979 | EP49: 0.328 | EQ49: 59.04 | ER49: 82.55 | ES49: 10.25 | ET49: 0.21 | EU49: 0.01 | EV49: 0.13 | EW49: 15.3 | EX49: 1.65 | EY49: 1.7 | EZ49: 0.02 | FA49: 0.024 | FB49: 2.37 | FC49: 0.02 | FD49: 0.002 | FE49: 114.22 | FF49: 29.972 | FG49: 0.991 | FH49: 145.19 | FI49: 21.1 | FJ49: 53.03 | FK49: 74.13
A50: 01K021 | B50: Autres embolisations intracrâniennes et médullaires, niveau 1 | D50: 1030 | E50: 8458.91 | F50: 3.465 | G50: 0.692 | H50: 105.3 | I50: 102.81 | J50: 508.45 | K50: 720.72 | L50: 2.81 | M50: 0.547 | N50: 12.395 | O50: 29.3 | P50: 144.27 | Q50: 189.32 | R50: 3.68 | S50: 0.4305 | T50: 11.49 | U50: 22.67 | V50: 88.07 | W50: 126.34 | X50: 1.78 | Y50: 0.407 | Z50: 3.62 | AA50: 8.6 | AB50: 33.4 | AC50: 47.8 | AD50: 1084.19 | AE50: 12.294 | AF50: 6.177 | AG50: 11.496 | AH50: 194.49 | AI50: 139.94 | AJ50: 364.39 | AK50: 0.448 | AL50: 0.227 | AM50: 0.329 | AN50: 0.67 | AO50: 2.6 | AP50: 4.28 | AQ50: 0 | AR50: 0 | AS50: 0 | AT50: 0 | AU50: 0 | AV50: 0 | AW50: 0 | AX50: 0 | AY50: 0 | AZ50: 0 | BA50: 0 | BB50: 0.43 | BC50: 0.43 | BD50: 0.197 | BE50: 0.091 | BF50: 0.764 | BG50: 1.12 | BH50: 1.52 | BI50: 3.7 | BJ50: 131.78 | BK50: 58.318 | BL50: 362.57 | BM50: 146.21 | BN50: 18.668 | BO50: 717.54 | BP50: 255.376 | BQ50: 161.735 | BR50: 260.546 | BS50: 214.823 | BT50: 118.51 | BU50: 1010.99 | BV50: 1.249 | BW50: 0.762 | BX50: 17.96 | BY50: 7.9 | BZ50: 0.197 | CA50: 28.07 | CB50: 0 | CC50: 0 | CD50: 0 | CE50: 0 | CF50: 0 | CG50: 0 | CH50: 0.27 | CI50: 0.1641 | CJ50: 2.53 | CK50: 1.444 | CL50: 0.0284 | CM50: 4.44 | CN50: 0.0138 | CO50: 0.016 | CP50: 0.252 | CQ50: 0.137 | CR50: 0.0003 | CS50: 0.42 | CT50: 0 | CU50: 0 | CV50: 0 | CW50: 0 | CX50: 0 | CY50: 0 | CZ50: 0 | DA50: 0.1991 | DB50: 0.1619 | DC50: 2.296 | DD50: 5.49 | DE50: 3.578 | DF50: 11.73 | DG50: 0.007 | DH50: 0.0134 | DI50: 0.1175 | DJ50: 0.584 | DK50: 0.4999 | DL50: 1.222 | DM50: 0.03843 | DN50: 0.01648 | DO50: 0.4879 | DP50: 1.015 | DQ50: 1.74 | DR50: 3.299 | DS50: 0.0124 | DT50: 0.00088 | DU50: 3.86 | DV50: 0.0031 | DW50: 0.076 | DX50: 3.96 | DY50: 2154.47 | DZ50: 29.947 | EA50: 83.04 | EB50: 12.317 | EC50: 135.1 | ED50: 78.34 | EE50: 19.296 | EF50: 9.515 | EG50: 55.58 | EH50: 66.78 | EI50: 118.6 | EJ50: 16.493 | EK50: 625.01 | EL50: 125.35 | EM50: 13.73 | EN50: 84.285 | EO50: 22.312 | EP50: 8.013 | EQ50: 253.69 | ER50: 1002.96 | ES50: 488.35 | ET50: 2541 | EU50: 0.21 | EV50: 3.98 | EW50: 224.78 | EX50: 1.4 | EY50: 5.09 | EZ50: 0.04 | FA50: 25.6 | FB50: 15.39 | FC50: 0.13 | FD50: 2.853 | FE50: 4311.78 | FF50: 29.768 | FG50: 0 | FH50: 4341.55 | FI50: 47.373 | FJ50: 100.01 | FK50: 147.38
A51: 01K022 | B51: Autres embolisations intracrâniennes et médullaires, niveau 2 | D51: 240 | E51: 10901.76 | F51: 8.962 | G51: 1.976 | H51: 111.13 | I51: 142.64 | J51: 657.69 | K51: 922.4 | L51: 3.632 | M51: 1.254 | N51: 19.868 | O51: 60.59 | P51: 230.89 | Q51: 316.23 | R51: 2.433 | S51: 0.4081 | T51: 17.1 | U51: 36.51 | V51: 126.71 | W51: 183.16 | X51: 22.09 | Y51: 7.179 | Z51: 47.61 | AA51: 157.88 | AB51: 395.55 | AC51: 630.31 | AD51: 2052.1 | AE51: 10.634 | AF51: 4.824 | AG51: 13.596 | AH51: 208.26 | AI51: 158.49 | AJ51: 395.81 | AK51: 0.599 | AL51: 0.339 | AM51: 0.456 | AN51: 1.13 | AO51: 4.24 | AP51: 6.76 | AQ51: 0 | AR51: 0 | AS51: 0 | AT51: 0 | AU51: 0 | AV51: 0 | AW51: 0 | AX51: 0 | AY51: 0 | AZ51: 0 | BA51: 0 | BB51: 0 | BC51: 0 | BD51: 3.864 | BE51: 1.1942 | BF51: 6.731 | BG51: 24.704 | BH51: 5.46 | BI51: 41.95 | BJ51: 140.363 | BK51: 63.797 | BL51: 283.55 | BM51: 282.2 | BN51: 61.758 | BO51: 831.67 | BP51: 193.444 | BQ51: 104.078 | BR51: 317.345 | BS51: 205.229 | BT51: 123.388 | BU51: 943.48 | BV51: 5.038 | BW51: 2.548 | BX51: 81.66 | BY51: 37.8 | BZ51: 0.186 | CA51: 127.23 | CB51: 0 | CC51: 0 | CD51: 0 | CE51: 0 | CF51: 0 | CG51: 0 | CH51: 0.875 | CI51: 0.4417 | CJ51: 10.9 | CK51: 5.826 | CL51: 0.0313 | CM51: 18.08 | CN51: 0.0151 | CO51: 0.0175 | CP51: 0.275 | CQ51: 0.15 | CR51: 0.0003 | CS51: 0.458 | CT51: 0 | CU51: 0 | CV51: 0 | CW51: 0 | CX51: 0 | CY51: 0 | CZ51: 0 | DA51: 0.1951 | DB51: 0.1595 | DC51: 1.592 | DD51: 5.13 | DE51: 4.076 | DF51: 11.15 | DG51: 0.038 | DH51: 0.0324 | DI51: 0.1122 | DJ51: 1.139 | DK51: 0.5859 | DL51: 1.907 | DM51: 0.07832 | DN51: 0.04817 | DO51: 1.318 | DP51: 3.435 | DQ51: 4.327 | DR51: 9.207 | DS51: 0.0346 | DT51: 0.00933 | DU51: 15.29 | DV51: 0.7627 | DW51: 1.187 | DX51: 17.29 | DY51: 2404.99 | DZ51: 49.929 | EA51: 110.31 | EB51: 14.975 | EC51: 240.3 | ED51: 123.01 | EE51: 30.494 | EF51: 17.387 | EG51: 81.01 | EH51: 99.77 | EI51: 185.91 | EJ51: 29.338 | EK51: 982.43 | EL51: 183.11 | EM51: 17.23 | EN51: 43.116 | EO51: 36.228 | EP51: 6.818 | EQ51: 286.5 | ER51: 1463.83 | ES51: 542.37 | ET51: 2679.76 | EU51: 0.54 | EV51: 19.33 | EW51: 277.21 | EX51: 59.03 | EY51: 13.58 | EZ51: 0.08 | FA51: 51.325 | FB51: 23.04 | FC51: 0.35 | FD51: 3.417 | FE51: 5133.86 | FF51: 41.883 | FG51: 0 | FH51: 5175.75 | FI51: 71.162 | FJ51: 164.01 | FK51: 235.17
A52: 01K023 | B52: Autres embolisations intracrâniennes et médullaires, niveau 3 | D52: 91 | E52: 12883.81 | F52: 16.731 | G52: 3.105 | H52: 269.05 | I52: 271.75 | J52: 1307.98 | K52: 1868.61 | L52: 2.441 | M52: 1.369 | N52: 25.222 | O52: 94.46 | P52: 275.76 | Q52: 399.26 | R52: 4.052 | S52: 1.1164 | T52: 32.41 | U52: 58.33 | V52: 239.16 | W52: 335.07 | X52: 29.99 | Y52: 7.432 | Z52: 51.37 | AA52: 182.29 | AB52: 610.87 | AC52: 881.95 | AD52: 3484.9 | AE52: 12.583 | AF52: 6.08 | AG52: 16.522 | AH52: 236.62 | AI52: 198.59 | AJ52: 470.39 | AK52: 0.002 | AL52: 0.001 | AM52: 0.001 | AN52: 0 | AO52: 0.01 | AP52: 0.02 | AQ52: 0 | AR52: 0 | AS52: 0 | AT52: 0 | AU52: 0 | AV52: 0 | AW52: 0 | AX52: 0 | AY52: 0 | AZ52: 0 | BA52: 0 | BB52: 0 | BC52: 0 | BD52: 2.173 | BE52: 0.9744 | BF52: 6.447 | BG52: 12.528 | BH52: 18.79 | BI52: 40.91 | BJ52: 149.393 | BK52: 72.79 | BL52: 434.5 | BM52: 219.41 | BN52: 32.479 | BO52: 908.57 | BP52: 212.725 | BQ52: 91.784 | BR52: 323.473 | BS52: 230.055 | BT52: 99.951 | BU52: 957.99 | BV52: 6.667 | BW52: 3.79 | BX52: 87.33 | BY52: 42.19 | BZ52: 0.543 | CA52: 140.52 | CB52: 0 | CC52: 0 | CD52: 0 | CE52: 0 | CF52: 0 | CG52: 0 | CH52: 1.109 | CI52: 0.6304 | CJ52: 13.66 | CK52: 7.476 | CL52: 0.0873 | CM52: 22.96 | CN52: 0 | CO52: 0 | CP52: 0 | CQ52: 0 | CR52: 0 | CS52: 0 | CT52: 0 | CU52: 0 | CV52: 0 | CW52: 0 | CX52: 0 | CY52: 0 | CZ52: 0 | DA52: 0.5743 | DB52: 0.5213 | DC52: 4.585 | DD52: 14.07 | DE52: 7.176 | DF52: 26.92 | DG52: 0.166 | DH52: 0.1434 | DI52: 0.4967 | DJ52: 5.042 | DK52: 2.5946 | DL52: 8.443 | DM52: 0.15542 | DN52: 0.1208 | DO52: 3.4899 | DP52: 5.432 | DQ52: 8.932 | DR52: 18.13 | DS52: 0.1259 | DT52: 0.026 | DU52: 18.72 | DV52: 1.3019 | DW52: 5.514 | DX52: 25.68 | DY52: 2620.55 | DZ52: 79.213 | EA52: 187.36 | EB52: 12.378 | EC52: 345.76 | ED52: 198.81 | EE52: 33.583 | EF52: 8.022 | EG52: 122.3 | EH52: 141.32 | EI52: 278.03 | EJ52: 43.47 | EK52: 1450.25 | EL52: 224.45 | EM52: 19.8 | EN52: 64.829 | EO52: 41.103 | EP52: 11.616 | EQ52: 361.8 | ER52: 1391.86 | ES52: 697.07 | ET52: 2363.99 | EU52: 1.02 | EV52: 6.37 | EW52: 340.56 | EX52: 3.14 | EY52: 14.75 | EZ52: 0.07 | FA52: 41.733 | FB52: 33.33 | FC52: 1.94 | FD52: 15.121 | FE52: 4910.96 | FF52: 55.366 | FG52: 0 | FH52: 4966.33 | FI52: 116.706 | FJ52: 262.94 | FK52: 379.65
A53: 01K024 | B53: Autres embolisations intracrâniennes et médullaires, niveau 4 | C53: * | D53: 27 | E53: 24596.12 | F53: 31.941 | G53: 5.927 | H53: 513.63 | I53: 518.78 | J53: 2497.04 | K53: 3567.32 | L53: 4.66 | M53: 2.614 | N53: 48.151 | O53: 180.34 | P53: 526.45 | Q53: 762.21 | R53: 7.736 | S53: 2.1312 | T53: 61.88 | U53: 111.35 | V53: 456.57 | W53: 639.68 | X53: 57.25 | Y53: 14.187 | Z53: 98.07 | AA53: 348 | AB53: 1166.2 | AC53: 1683.71 | AD53: 6652.92 | AE53: 24.021 | AF53: 11.607 | AG53: 31.542 | AH53: 451.72 | AI53: 379.12 | AJ53: 898.01 | AK53: 0.003 | AL53: 0.002 | AM53: 0.002 | AN53: 0 | AO53: 0.03 | AP53: 0.04 | AQ53: 0 | AR53: 0 | AS53: 0 | AT53: 0 | AU53: 0 | AV53: 0 | AW53: 0 | AX53: 0 | AY53: 0 | AZ53: 0 | BA53: 0 | BB53: 0 | BC53: 0 | BD53: 4.149 | BE53: 1.8601 | BF53: 12.308 | BG53: 23.917 | BH53: 35.87 | BI53: 78.11 | BJ53: 285.203 | BK53: 138.961 | BL53: 829.49 | BM53: 418.87 | BN53: 62.006 | BO53: 1734.53 | BP53: 406.108 | BQ53: 175.222 | BR53: 617.534 | BS53: 439.191 | BT53: 190.814 | BU53: 1828.87 | BV53: 12.728 | BW53: 7.236 | BX53: 166.72 | BY53: 80.54 | BZ53: 1.037 | CA53: 268.26 | CB53: 0 | CC53: 0 | CD53: 0 | CE53: 0 | CF53: 0 | CG53: 0 | CH53: 2.117 | CI53: 1.2035 | CJ53: 26.07 | CK53: 14.273 | CL53: 0.1667 | CM53: 43.83 | CN53: 0 | CO53: 0 | CP53: 0 | CQ53: 0 | CR53: 0 | CS53: 0 | CT53: 0 | CU53: 0 | CV53: 0 | CW53: 0 | CX53: 0 | CY53: 0 | CZ53: 0 | DA53: 1.0964 | DB53: 0.9951 | DC53: 8.753 | DD53: 26.86 | DE53: 13.699 | DF53: 51.4 | DG53: 0.318 | DH53: 0.2739 | DI53: 0.9483 | DJ53: 9.625 | DK53: 4.9533 | DL53: 16.118 | DM53: 0.29671 | DN53: 0.23061 | DO53: 6.6624 | DP53: 10.369 | DQ53: 17.052 | DR53: 34.611 | DS53: 0.2404 | DT53: 0.04963 | DU53: 35.73 | DV53: 2.4854 | DW53: 10.526 | DX53: 49.03 | DY53: 5002.81 | DZ53: 151.223 | EA53: 357.69 | EB53: 23.63 | EC53: 660.09 | ED53: 379.54 | EE53: 64.112 | EF53: 15.314 | EG53: 233.48 | EH53: 269.79 | EI53: 530.77 | EJ53: 82.988 | EK53: 2768.62 | EL53: 428.5 | EM53: 37.8 | EN53: 123.762 | EO53: 78.469 | EP53: 22.175 | EQ53: 690.7 | ER53: 2657.16 | ES53: 1330.76 | ET53: 4513.03 | EU53: 1.95 | EV53: 12.15 | EW53: 650.16 | EX53: 5.99 | EY53: 28.16 | EZ53: 0.13 | FA53: 79.671 | FB53: 63.63 | FC53: 3.71 | FD53: 28.866 | FE53: 9375.37 | FF53: 105.698 | FG53: 0 | FH53: 9481.07 | FI53: 222.8 | FJ53: 501.98 | FK53: 724.78
A54: 01K031 | B54: Autres actes thérapeutiques par voie vasculaire du système nerveux, niveau 1 | D54: 207 | E54: 6284.06 | F54: 7.22 | G54: 1.58 | H54: 101.13 | I54: 151.72 | J54: 453.86 | K54: 715.5 | L54: 1.688 | M54: 0.261 | N54: 8.267 | O54: 11.25 | P54: 102.87 | Q54: 124.34 | R54: 6.771 | S54: 2.0195 | T54: 30.63 | U54: 59.22 | V54: 242.59 | W54: 341.23 | X54: 5.31 | Y54: 1.768 | Z54: 9.77 | AA54: 24.8 | AB54: 87.45 | AC54: 129.1 | AD54: 1310.17 | AE54: 7.129 | AF54: 3.519 | AG54: 6.148 | AH54: 85.26 | AI54: 57.98 | AJ54: 160.04 | AK54: 33.503 | AL54: 19.085 | AM54: 49.99 | AN54: 76.55 | AO54: 270.86 | AP54: 449.99 | AQ54: 0 | AR54: 0 | AS54: 0 | AT54: 0 | AU54: 0 | AV54: 0 | AW54: 0 | AX54: 0 | AY54: 0 | AZ54: 0 | BA54: 0 | BB54: 0 | BC54: 0 | BD54: 2.15 | BE54: 0.8875 | BF54: 4.728 | BG54: 8.144 | BH54: 11.83 | BI54: 27.73 | BJ54: 83.525 | BK54: 37.264 | BL54: 266.57 | BM54: 92.42 | BN54: 19.438 | BO54: 499.21 | BP54: 100.329 | BQ54: 35.887 | BR54: 148.199 | BS54: 129.733 | BT54: 39.229 | BU54: 453.38 | BV54: 3.27 | BW54: 1.825 | BX54: 45.65 | BY54: 20.26 | BZ54: 0.468 | CA54: 71.47 | CB54: 0.0264 | CC54: 0.00583 | CD54: 0.291 | CE54: 0.2311 | CF54: 0.02048 | CG54: 0.574 | CH54: 0.744 | CI54: 0.3083 | CJ54: 7.46 | CK54: 3.916 | CL54: 0.0432 | CM54: 12.47 | CN54: 0.0659 | CO54: 0.0111 | CP54: 0.463 | CQ54: 0.435 | CR54: 0.0173 | CS54: 0.992 | CT54: 0 | CU54: 0 | CV54: 0 | CW54: 0 | CX54: 0 | CY54: 0 | CZ54: 0 | DA54: 0.7727 | DB54: 0.4364 | DC54: 6.195 | DD54: 15.3 | DE54: 6.152 | DF54: 28.86 | DG54: 0 | DH54: 0 | DI54: 0.0154 | DJ54: 3.159 | DK54: 1.502 | DL54: 4.676 | DM54: 0.33064 | DN54: 0.14004 | DO54: 2.1435 | DP54: 4.658 | DQ54: 9.558 | DR54: 16.83 | DS54: 0.0558 | DT54: 0.01572 | DU54: 8.04 | DV54: 0.0386 | DW54: 0.221 | DX54: 8.37 | DY54: 1734.6 | DZ54: 30.032 | EA54: 83.71 | EB54: 15.749 | EC54: 136.14 | ED54: 83.32 | EE54: 18.165 | EF54: 8.748 | EG54: 55.67 | EH54: 59.42 | EI54: 114.5 | EJ54: 16.603 | EK54: 622.06 | EL54: 113.83 | EM54: 63.82 | EN54: 54.618 | EO54: 20.18 | EP54: 5.799 | EQ54: 258.25 | ER54: 958.72 | ES54: 498.93 | ET54: 553.46 | EU54: 0.75 | EV54: 16.57 | EW54: 190.83 | EX54: 2.12 | EY54: 11.73 | EZ54: 0.36 | FA54: 4.534 | FB54: 26.56 | FC54: 7.52 | FD54: 15.392 | FE54: 2287.47 | FF54: 25.202 | FG54: 46.315 | FH54: 2358.99 | FI54: 39.991 | FJ54: 108 | FK54: 147.99
A55: 01K032 | B55: Autres actes thérapeutiques par voie vasculaire du système nerveux, niveau 2 | D55: 113 | E55: 9647.17 | F55: 8.709 | G55: 1.709 | H55: 165.62 | I55: 234.2 | J55: 736.67 | K55: 1146.9 | L55: 2.634 | M55: 1.384 | N55: 30.581 | O55: 41.05 | P55: 263.25 | Q55: 338.9 | R55: 11.873 | S55: 5.0055 | T55: 81.82 | U55: 155.22 | V55: 586.05 | W55: 839.96 | X55: 16.02 | Y55: 4.435 | Z55: 41.51 | AA55: 103.02 | AB55: 331.47 | AC55: 496.45 | AD55: 2822.22 | AE55: 6.016 | AF55: 2.619 | AG55: 7.687 | AH55: 104.03 | AI55: 74.89 | AJ55: 195.25 | AK55: 30.838 | AL55: 16.717 | AM55: 41.808 | AN55: 74.42 | AO55: 238.97 | AP55: 402.75 | AQ55: 0 | AR55: 0 | AS55: 0 | AT55: 0 | AU55: 0 | AV55: 0 | AW55: 0 | AX55: 0 | AY55: 0 | AZ55: 0 | BA55: 0 | BB55: 0 | BC55: 0 | BD55: 4.584 | BE55: 1.8747 | BF55: 11.853 | BG55: 21.523 | BH55: 38.28 | BI55: 78.12 | BJ55: 90.712 | BK55: 52.969 | BL55: 300.96 | BM55: 95.48 | BN55: 43.42 | BO55: 583.54 | BP55: 95.907 | BQ55: 36.724 | BR55: 173.42 | BS55: 152.609 | BT55: 47.054 | BU55: 505.71 | BV55: 8.935 | BW55: 5.636 | BX55: 130.44 | BY55: 66.25 | BZ55: 1.615 | CA55: 212.88 | CB55: 0.0356 | CC55: 0.01441 | CD55: 0.386 | CE55: 0.236 | CF55: 0.00441 | CG55: 0.677 | CH55: 1.408 | CI55: 0.8726 | CJ55: 18.77 | CK55: 11.552 | CL55: 0.1386 | CM55: 32.74 | CN55: 0.1041 | CO55: 0.0361 | CP55: 1.14 | CQ55: 0.62 | CR55: 0.009 | CS55: 1.909 | CT55: 0 | CU55: 0 | CV55: 0 | CW55: 0 | CX55: 0 | CY55: 0 | CZ55: 0 | DA55: 0.9442 | DB55: 0.6967 | DC55: 13.549 | DD55: 19.07 | DE55: 12.085 | DF55: 46.35 | DG55: 0 | DH55: 10.0125 | DI55: 0 | DJ55: 0.346 | DK55: 0.4364 | DL55: 10.795 | DM55: 0.3608 | DN55: 0.11155 | DO55: 4.5961 | DP55: 9.562 | DQ55: 16.49 | DR55: 31.121 | DS55: 0.1794 | DT55: 0.02772 | DU55: 29.78 | DV55: 1.1595 | DW55: 6.034 | DX55: 37.18 | DY55: 2139.02 | DZ55: 64.37 | EA55: 153.82 | EB55: 15.814 | EC55: 272.44 | ED55: 189.71 | EE55: 31.699 | EF55: 8.946 | EG55: 104.59 | EH55: 118.52 | EI55: 228.52 | EJ55: 31.362 | EK55: 1219.79 | EL55: 162.38 | EM55: 81.04 | EN55: 72.018 | EO55: 26.626 | EP55: 11.294 | EQ55: 353.36 | ER55: 1237 | ES55: 734.89 | ET55: 582.57 | EU55: 1.67 | EV55: 32.8 | EW55: 279.38 | EX55: 72.37 | EY55: 23.32 | EZ55: 0.57 | FA55: 7.356 | FB55: 54.73 | FC55: 30.9 | FD55: 3.732 | FE55: 3061.28 | FF55: 26.632 | FG55: 24.869 | FH55: 3112.78 | FI55: 100.384 | FJ55: 217.71 | FK55: 318.09
A56: 01K033 | B56: Autres actes thérapeutiques par voie vasculaire du système nerveux, niveau 3 | D56: 160 | E56: 13449.48 | F56: 17.363 | G56: 3.866 | H56: 310.19 | I56: 323.04 | J56: 1169.74 | K56: 1824.21 | L56: 3.808 | M56: 0.482 | N56: 23.495 | O56: 23.01 | P56: 199.01 | Q56: 249.8 | R56: 23.187 | S56: 7.3246 | T56: 141.67 | U56: 303.62 | V56: 1238.47 | W56: 1714.26 | X56: 54.11 | Y56: 18.332 | Z56: 97.73 | AA56: 325.31 | AB56: 799.6 | AC56: 1295.08 | AD56: 5083.35 | AE56: 8.088 | AF56: 4.26 | AG56: 7.394 | AH56: 123.4 | AI56: 70.09 | AJ56: 213.23 | AK56: 8.872 | AL56: 4.171 | AM56: 14.524 | AN56: 9.33 | AO56: 30.51 | AP56: 67.4 | AQ56: 0 | AR56: 0 | AS56: 0 | AT56: 0 | AU56: 0 | AV56: 0 | AW56: 0 | AX56: 0 | AY56: 0 | AZ56: 0 | BA56: 0 | BB56: 1.45 | BC56: 1.45 | BD56: 9.404 | BE56: 4.018 | BF56: 25.873 | BG56: 48.342 | BH56: 84.68 | BI56: 172.32 | BJ56: 180.242 | BK56: 84.021 | BL56: 497.79 | BM56: 194.48 | BN56: 23.846 | BO56: 980.38 | BP56: 103.442 | BQ56: 62.263 | BR56: 217.998 | BS56: 162.818 | BT56: 85.435 | BU56: 631.96 | BV56: 12.892 | BW56: 6.719 | BX56: 183.28 | BY56: 73.88 | BZ56: 2.67 | CA56: 279.44 | CB56: 0.028 | CC56: 0.01618 | CD56: 0.308 | CE56: 0.2627 | CF56: 0.00033 | CG56: 0.616 | CH56: 2.979 | CI56: 1.4637 | CJ56: 41.02 | CK56: 19.017 | CL56: 0.4892 | CM56: 64.97 | CN56: 0.0659 | CO56: 0.0396 | CP56: 0.541 | CQ56: 0.53 | CR56: 0.0003 | CS56: 1.176 | CT56: 0 | CU56: 0 | CV56: 0 | CW56: 0 | CX56: 0 | CY56: 0 | CZ56: 0 | DA56: 2.428 | DB56: 1.1251 | DC56: 23.615 | DD56: 47 | DE56: 22.037 | DF56: 96.21 | DG56: 0.086 | DH56: 0.0128 | DI56: 0.1968 | DJ56: 6.894 | DK56: 4.1885 | DL56: 11.378 | DM56: 0.62254 | DN56: 0.23572 | DO56: 5.4204 | DP56: 11.13 | DQ56: 23.322 | DR56: 40.731 | DS56: 0.7315 | DT56: 0.21839 | DU56: 77.79 | DV56: 0.9315 | DW56: 4.982 | DX56: 84.66 | DY56: 2645.92 | DZ56: 95.278 | EA56: 255.09 | EB56: 14.441 | EC56: 440.78 | ED56: 261.63 | EE56: 60.906 | EF56: 9.456 | EG56: 181.28 | EH56: 226.66 | EI56: 392.08 | EJ56: 56.19 | EK56: 1993.79 | EL56: 201.02 | EM56: 32.45 | EN56: 81.918 | EO56: 37.535 | EP56: 17.925 | EQ56: 370.85 | ER56: 1636.74 | ES56: 516.92 | ET56: 286.1 | EU56: 0.59 | EV56: 56.05 | EW56: 543.43 | EX56: 23.11 | EY56: 31.53 | EZ56: 0.14 | FA56: 32.807 | FB56: 49.24 | FC56: 5 | FD56: 86.108 | FE56: 3267.78 | FF56: 31.682 | FG56: 56.107 | FH56: 3355.57 | FI56: 138.296 | FJ56: 358.63 | FK56: 496.93
A57: 01K034 | B57: Autres actes thérapeutiques par voie vasculaire du système nerveux, niveau 4 | D57: 73 | E57: 25609.52 | F57: 28.26 | G57: 7.57 | H57: 494.45 | I57: 600.55 | J57: 2067.93 | K57: 3198.76 | L57: 1.041 | M57: 1.347 | N57: 13.592 | O57: 32.81 | P57: 119.68 | Q57: 168.47 | R57: 46.88 | S57: 13.8367 | T57: 274.25 | U57: 578.06 | V57: 2231.59 | W57: 3144.62 | X57: 184.76 | Y57: 72.635 | Z57: 391.33 | AA57: 1383.01 | AB57: 3700.81 | AC57: 5732.55 | AD57: 12244.4 | AE57: 11.756 | AF57: 5.205 | AG57: 11.284 | AH57: 173.09 | AI57: 128.41 | AJ57: 329.75 | AK57: 4.919 | AL57: 2.723 | AM57: 8.683 | AN57: 11.77 | AO57: 37.79 | AP57: 65.89 | AQ57: 0.029 | AR57: 0.0301 | AS57: 0.199 | AT57: 0.54 | AU57: 1.89 | AV57: 2.69 | AW57: 0 | AX57: 0 | AY57: 0 | AZ57: 0 | BA57: 0 | BB57: 0 | BC57: 0 | BD57: 19.78 | BE57: 8.5963 | BF57: 40.146 | BG57: 82.4 | BH57: 133.28 | BI57: 284.2 | BJ57: 203.418 | BK57: 94.323 | BL57: 637.78 | BM57: 244.75 | BN57: 30.691 | BO57: 1210.96 | BP57: 157.085 | BQ57: 71.968 | BR57: 302.718 | BS57: 234.29 | BT57: 74.828 | BU57: 840.89 | BV57: 30.525 | BW57: 15.857 | BX57: 432.95 | BY57: 205.22 | BZ57: 3.865 | CA57: 688.42 | CB57: 0.0759 | CC57: 0.03794 | CD57: 0.83 | CE57: 0.6297 | CF57: 0.00017 | CG57: 1.574 | CH57: 7.53 | CI57: 4.13 | CJ57: 113.44 | CK57: 64.013 | CL57: 0.4621 | CM57: 189.58 | CN57: 0.0675 | CO57: 0.0357 | CP57: 0.765 | CQ57: 0.497 | CR57: 0.0004 | CS57: 1.365 | CT57: 0 | CU57: 0 | CV57: 0 | CW57: 0 | CX57: 0 | CY57: 10.39 | CZ57: 10.39 | DA57: 1.9707 | DB57: 1.3132 | DC57: 38.435 | DD57: 63.37 | DE57: 51.074 | DF57: 156.16 | DG57: 0 | DH57: 0 | DI57: 0.0103 | DJ57: 2.124 | DK57: 1.01 | DL57: 3.144 | DM57: 0.67699 | DN57: 0.22406 | DO57: 7.108 | DP57: 12.039 | DQ57: 26.796 | DR57: 46.844 | DS57: 2.0356 | DT57: 0.62865 | DU57: 152.69 | DV57: 9.7169 | DW57: 34.632 | DX57: 199.7 | DY57: 4031.55 | DZ57: 170.31 | EA57: 395.69 | EB57: 14.247 | EC57: 858 | ED57: 513.77 | EE57: 115.443 | EF57: 8.347 | EG57: 361.58 | EH57: 399.7 | EI57: 776.16 | EJ57: 111.224 | EK57: 3724.48 | EL57: 380.07 | EM57: 70.21 | EN57: 134.04 | EO57: 63.071 | EP57: 26.731 | EQ57: 674.12 | ER57: 2294.75 | ES57: 742.69 | ET57: 173.08 | EU57: 5.54 | EV57: 187.36 | EW57: 1177.41 | EX57: 89.7 | EY57: 93.43 | EZ57: 0.74 | FA57: 6.016 | FB57: 79.18 | FC57: 23.88 | FD57: 26.049 | FE57: 4899.82 | FF57: 35.002 | FG57: 0.16 | FH57: 4934.98 | FI57: 311.69 | FJ57: 671.99 | FK57: 983.68
A58: 01K04J | B58: Injections de toxine botulique, en ambulatoire | D58: 20091 | E58: 480.52 | F58: 1.149 | G58: 0.177 | H58: 30.44 | I58: 51.51 | J58: 76.34 | K58: 159.62 | L58: 0 | M58: 0 | N58: 0 | O58: 0 | P58: 0 | Q58: 0 | R58: 0 | S58: 0 | T58: 0 | U58: 0 | V58: 0 | W58: 0 | X58: 0 | Y58: 0 | Z58: 0 | AA58: 0 | AB58: 0 | AC58: 0 | AD58: 159.62 | AE58: 0.01 | AF58: 0.011 | AG58: 0.021 | AH58: 0.53 | AI58: 0.39 | AJ58: 0.96 | AK58: 0.692 | AL58: 0.09 | AM58: 0.676 | AN58: 2.54 | AO58: 3.5 | AP58: 7.5 | AQ58: 0 | AR58: 0 | AS58: 0 | AT58: 0 | AU58: 0 | AV58: 0 | AW58: 0 | AX58: 0 | AY58: 0 | AZ58: 0 | BA58: 0 | BB58: 0.01 | BC58: 0.01 | BD58: 1.191 | BE58: 0.6244 | BF58: 5.524 | BG58: 9.436 | BH58: 14.16 | BI58: 30.93 | BJ58: 0.053 | BK58: 0.032 | BL58: 0.16 | BM58: 0.12 | BN58: 0.037 | BO58: 0.4 | BP58: 0 | BQ58: 0 | BR58: 0.013 | BS58: 0.003 | BT58: 0 | BU58: 0.02 | BV58: 0.003 | BW58: 0.002 | BX58: 0.06 | BY58: 0.03 | BZ58: 0 | CA58: 0.09 | CB58: 0.0002 | CC58: 0.0001 | CD58: 0.002 | CE58: 0.0011 | CF58: 0 | CG58: 0.003 | CH58: 0.001 | CI58: 0.0009 | CJ58: 0.02 | CK58: 0.009 | CL58: 0.0005 | CM58: 0.03 | CN58: 0 | CO58: 0 | CP58: 0 | CQ58: 0 | CR58: 0 | CS58: 0 | CT58: 0 | CU58: 0 | CV58: 0 | CW58: 0 | CX58: 0 | CY58: 0.01 | CZ58: 0.01 | DA58: 0 | DB58: 0 | DC58: 0 | DD58: 0 | DE58: 0 | DF58: 0 | DG58: 0 | DH58: 0 | DI58: 0 | DJ58: 0 | DK58: 0 | DL58: 0 | DM58: 0.0004 | DN58: 0.00011 | DO58: 0.0014 | DP58: 0.011 | DQ58: 0.015 | DR58: 0.028 | DS58: 0.007 | DT58: 0.00354 | DU58: 1.39 | DV58: 0.0006 | DW58: 0.101 | DX58: 1.5 | DY58: 41.48 | DZ58: 6.518 | EA58: 8.62 | EB58: 13.146 | EC58: 26.28 | ED58: 14.84 | EE58: 3.197 | EF58: 8.389 | EG58: 9.16 | EH58: 11.73 | EI58: 19.88 | EJ58: 3.089 | EK58: 124.85 | EL58: 32.34 | EM58: 0.9 | EN58: 1.17 | EO58: 6.232 | EP58: 1.837 | EQ58: 42.48 | ER58: 9.77 | ES58: 0.58 | ET58: 0.3 | EU58: 0.29 | EV58: 0.04 | EW58: 92.54 | EX58: 3.46 | EY58: 2.06 | EZ58: 0 | FA58: 0.046 | FB58: 0.98 | FC58: 0.19 | FD58: 0 | FE58: 110.25 | FF58: 1.833 | FG58: 0 | FH58: 112.08 | FI58: 9.346 | FJ58: 19.09 | FK58: 28.43
A59: 01K05J | B59: Séjours pour douleurs chroniques rebelles comprenant un bloc ou une infiltration, en ambulatoire | D59: 1818 | E59: 187.12 | F59: 1.089 | G59: 0.054 | H59: 8.93 | I59: 16.47 | J59: 53.18 | K59: 79.72 | L59: 0 | M59: 0 | N59: 0 | O59: 0 | P59: 0 | Q59: 0 | R59: 0 | S59: 0 | T59: 0 | U59: 0 | V59: 0 | W59: 0 | X59: 0 | Y59: 0 | Z59: 0 | AA59: 0 | AB59: 0 | AC59: 0 | AD59: 79.72 | AE59: 0.006 | AF59: 0.004 | AG59: 0.001 | AH59: 0.08 | AI59: 0.07 | AJ59: 0.16 | AK59: 1.452 | AL59: 0.428 | AM59: 0.977 | AN59: 4.19 | AO59: 10.75 | AP59: 17.79 | AQ59: 0 | AR59: 0 | AS59: 0 | AT59: 0 | AU59: 0 | AV59: 0 | AW59: 0 | AX59: 0 | AY59: 0 | AZ59: 0 | BA59: 0 | BB59: 0 | BC59: 0 | BD59: 0.003 | BE59: 0 | BF59: 0 | BG59: 0.039 | BH59: 0.05 | BI59: 0.09 | BJ59: 0.034 | BK59: 0.045 | BL59: 0.15 | BM59: 0.17 | BN59: 0.005 | BO59: 0.4 | BP59: 0 | BQ59: 0 | BR59: 0 | BS59: 0 | BT59: 0 | BU59: 0 | BV59: 0.012 | BW59: 0.01 | BX59: 0.3 | BY59: 0.14 | BZ59: 0.003 | CA59: 0.46 | CB59: 0 | CC59: 0 | CD59: 0 | CE59: 0 | CF59: 0 | CG59: 0 | CH59: 0 | CI59: 0.0001 | CJ59: 0 | CK59: 0.003 | CL59: 0.0001 | CM59: 0.01 | CN59: 0 | CO59: 0 | CP59: 0 | CQ59: 0 | CR59: 0 | CS59: 0 | CT59: 0 | CU59: 0 | CV59: 0 | CW59: 0 | CX59: 0 | CY59: 0 | CZ59: 0 | DA59: 0 | DB59: 0 | DC59: 0 | DD59: 0 | DE59: 0 | DF59: 0 | DG59: 0 | DH59: 0 | DI59: 0 | DJ59: 0 | DK59: 0 | DL59: 0 | DM59: 0.00026 | DN59: 4e-05 | DO59: 0.0021 | DP59: 0.04 | DQ59: 0.038 | DR59: 0.081 | DS59: 0.0001 | DT59: 3e-05 | DU59: 0.03 | DV59: 0 | DW59: 0.001 | DX59: 0.03 | DY59: 19.03 | DZ59: 5.519 | EA59: 8 | EB59: 17.163 | EC59: 8.82 | ED59: 3.77 | EE59: 1.29 | EF59: 7.941 | EG59: 2.53 | EH59: 4.29 | EI59: 7.38 | EJ59: 0.935 | EK59: 67.63 | EL59: 1.68 | EM59: 1.37 | EN59: 0.906 | EO59: 0.249 | EP59: 0.048 | EQ59: 4.26 | ER59: 8.81 | ES59: 0.39 | ET59: 0.01 | EU59: 0.05 | EV59: 0.05 | EW59: 6.29 | EX59: 0.15 | EY59: 0.02 | EZ59: 0.05 | FA59: 0.001 | FB59: 0.1 | FC59: 0 | FD59: 0 | FE59: 15.92 | FF59: 0.574 | FG59: 0 | FH59: 16.49 | FI59: 2.101 | FJ59: 6.22 | FK59: 8.32
A60: 01K06J | B60: Affections du système nerveux sans acte opératoire avec anesthésie, en ambulatoire | D60: 1935 | E60: 847.66 | F60: 1.218 | G60: 0.19 | H60: 52.05 | I60: 52.84 | J60: 104.72 | K60: 211.01 | L60: 0.008 | M60: 0 | N60: 0.04 | O60: 0.06 | P60: 0.44 | Q60: 0.55 | R60: 0 | S60: 0.0001 | T60: 0 | U60: 0.01 | V60: 0.06 | W60: 0.08 | X60: 0.07 | Y60: 0.01 | Z60: 0.14 | AA60: 0.38 | AB60: 1.01 | AC60: 1.62 | AD60: 213.26 | AE60: 2.404 | AF60: 1.622 | AG60: 2.843 | AH60: 38.24 | AI60: 34.35 | AJ60: 79.46 | AK60: 4.222 | AL60: 3.434 | AM60: 5.125 | AN60: 9.69 | AO60: 21.38 | AP60: 43.85 | AQ60: 0.049 | AR60: 0.0174 | AS60: 0.251 | AT60: 0.125 | AU60: 0.72 | AV60: 1.16 | AW60: 0 | AX60: 0 | AY60: 0 | AZ60: 0 | BA60: 0 | BB60: 0 | BC60: 0 | BD60: 1.102 | BE60: 0.5866 | BF60: 0.819 | BG60: 2.117 | BH60: 3.57 | BI60: 8.2 | BJ60: 14.788 | BK60: 8.724 | BL60: 44.24 | BM60: 21.32 | BN60: 2.719 | BO60: 91.8 | BP60: 0.896 | BQ60: 0.372 | BR60: 1.773 | BS60: 1.649 | BT60: 0.053 | BU60: 4.74 | BV60: 0.383 | BW60: 0.213 | BX60: 4.14 | BY60: 1.91 | BZ60: 0.034 | CA60: 6.68 | CB60: 0.0996 | CC60: 0.02854 | CD60: 0.851 | CE60: 0.3034 | CF60: 0.01163 | CG60: 1.295 | CH60: 0.097 | CI60: 0.0444 | CJ60: 1.04 | CK60: 0.518 | CL60: 0.008 | CM60: 1.71 | CN60: 0.1178 | CO60: 0.0849 | CP60: 1.652 | CQ60: 0.967 | CR60: 0.0437 | CS60: 2.865 | CT60: 0 | CU60: 0 | CV60: 0 | CW60: 0 | CX60: 0 | CY60: 4.24 | CZ60: 4.24 | DA60: 0.0528 | DB60: 0.0423 | DC60: 0.846 | DD60: 1.41 | DE60: 0.97 | DF60: 3.32 | DG60: 0 | DH60: 0 | DI60: 0 | DJ60: 0 | DK60: 0 | DL60: 0 | DM60: 0.01979 | DN60: 0.00553 | DO60: 0.183 | DP60: 0.699 | DQ60: 0.931 | DR60: 1.838 | DS60: 0.0008 | DT60: 0.00033 | DU60: 0.21 | DV60: 0.0008 | DW60: 0.011 | DX60: 0.23 | DY60: 251.37 | DZ60: 7.346 | EA60: 9.63 | EB60: 16.055 | EC60: 53.25 | ED60: 30.9 | EE60: 7.546 | EF60: 9.409 | EG60: 19.6 | EH60: 20.57 | EI60: 41.61 | EJ60: 4.686 | EK60: 220.6 | EL60: 17.57 | EM60: 6.8 | EN60: 6.111 | EO60: 3.083 | EP60: 1.077 | EQ60: 34.64 | ER60: 52.18 | ES60: 1.94 | ET60: 9.71 | EU60: 0.47 | EV60: 4.93 | EW60: 19.1 | EX60: 1.92 | EY60: 1.25 | EZ60: 0.02 | FA60: 10.37 | FB60: 7.62 | FC60: 0.68 | FD60: 0.122 | FE60: 110.32 | FF60: 8.321 | FG60: 9.15 | FH60: 127.79 | FI60: 15.465 | FJ60: 40.86 | FK60: 56.32
A61: 01K071 | B61: Embolisations intracrâniennes et médullaires pour hémorragie, niveau 1 | D61: 420 | E61: 13654.6 | F61: 5.847 | G61: 1.55 | H61: 155.93 | I61: 171.58 | J61: 908.72 | K61: 1243.63 | L61: 15.879 | M61: 3.43 | N61: 57.107 | O61: 123.81 | P61: 726.01 | Q61: 926.24 | R61: 4.017 | S61: 0.2678 | T61: 11.8 | U61: 17.78 | V61: 83.77 | W61: 117.64 | X61: 47.78 | Y61: 12.433 | Z61: 88.84 | AA61: 186.84 | AB61: 908.92 | AC61: 1244.81 | AD61: 3532.32 | AE61: 13.436 | AF61: 7.2 | AG61: 12.066 | AH61: 212.37 | AI61: 147.62 | AJ61: 392.7 | AK61: 0.319 | AL61: 0.205 | AM61: 0.445 | AN61: 1.03 | AO61: 2.17 | AP61: 4.17 | AQ61: 0.008 | AR61: 0.0032 | AS61: 0.005 | AT61: 0.013 | AU61: 0.09 | AV61: 0.12 | AW61: 0 | AX61: 0 | AY61: 0 | AZ61: 0 | BA61: 0 | BB61: 0 | BC61: 0 | BD61: 1.542 | BE61: 0.257 | BF61: 5.416 | BG61: 7.997 | BH61: 19.52 | BI61: 34.73 | BJ61: 145.804 | BK61: 81.201 | BL61: 523.35 | BM61: 204.76 | BN61: 35.563 | BO61: 990.68 | BP61: 127.695 | BQ61: 60.745 | BR61: 327.155 | BS61: 313.733 | BT61: 72.417 | BU61: 901.74 | BV61: 4.898 | BW61: 2.851 | BX61: 70.24 | BY61: 34.68 | BZ61: 0.692 | CA61: 113.36 | CB61: 0.0036 | CC61: 0.00172 | CD61: 0.035 | CE61: 0.0279 | CF61: 0 | CG61: 0.068 | CH61: 0.717 | CI61: 0.5498 | CJ61: 13.38 | CK61: 6.818 | CL61: 0.1696 | CM61: 21.64 | CN61: 0.0004 | CO61: 0.0002 | CP61: 0.003 | CQ61: 0.003 | CR61: 0 | CS61: 0.006 | CT61: 0 | CU61: 0 | CV61: 0 | CW61: 0 | CX61: 0 | CY61: 0 | CZ61: 0 | DA61: 0.9241 | DB61: 0.5411 | DC61: 12.344 | DD61: 18.15 | DE61: 13.203 | DF61: 45.16 | DG61: 0.106 | DH61: 0.177 | DI61: 1.8998 | DJ61: 7.726 | DK61: 6.6605 | DL61: 16.569 | DM61: 0.45021 | DN61: 0.1478 | DO61: 3.981 | DP61: 10.65 | DQ61: 20.572 | DR61: 35.8 | DS61: 0.05 | DT61: 0.01027 | DU61: 8.04 | DV61: 0.3424 | DW61: 1.45 | DX61: 9.89 | DY61: 2566.63 | DZ61: 71.132 | EA61: 149.42 | EB61: 12.212 | EC61: 332.38 | ED61: 194.97 | EE61: 41.21 | EF61: 8.548 | EG61: 136.32 | EH61: 141.02 | EI61: 272.53 | EJ61: 42.341 | EK61: 1402.09 | EL61: 209.83 | EM61: 30.23 | EN61: 100.373 | EO61: 32.494 | EP61: 10.883 | EQ61: 383.82 | ER61: 1438.3 | ES61: 298.04 | ET61: 3527.87 | EU61: 0.46 | EV61: 11.63 | EW61: 337.67 | EX61: 3.19 | EY61: 23.02 | EZ61: 0.28 | FA61: 16.487 | FB61: 35.42 | FC61: 0.63 | FD61: 53.841 | FE61: 5746.84 | FF61: 22.903 | FG61: 0 | FH61: 5769.74 | FI61: 109.263 | FJ61: 277.25 | FK61: 386.51
A62: 01K072 | B62: Embolisations intracrâniennes et médullaires pour hémorragie, niveau 2 | D62: 178 | E62: 16594.26 | F62: 8.849 | G62: 2.408 | H62: 218.42 | I62: 239.17 | J62: 1140.84 | K62: 1609.69 | L62: 11.911 | M62: 5.221 | N62: 87.445 | O62: 208.42 | P62: 856.69 | Q62: 1169.68 | R62: 7.708 | S62: 0.4119 | T62: 24 | U62: 33.75 | V62: 162.1 | W62: 227.96 | X62: 75.47 | Y62: 23.429 | Z62: 183.88 | AA62: 447.25 | AB62: 1698.71 | AC62: 2428.74 | AD62: 5436.08 | AE62: 15.327 | AF62: 7.75 | AG62: 18.335 | AH62: 283.88 | AI62: 209.41 | AJ62: 534.7 | AK62: 1.175 | AL62: 0.652 | AM62: 2.461 | AN62: 1.82 | AO62: 10.15 | AP62: 16.26 | AQ62: 0 | AR62: 0 | AS62: 0 | AT62: 0 | AU62: 0 | AV62: 0 | AW62: 0 | AX62: 0 | AY62: 0 | AZ62: 0 | BA62: 0 | BB62: 0 | BC62: 0 | BD62: 2.329 | BE62: 1.0142 | BF62: 7.638 | BG62: 14.194 | BH62: 26.26 | BI62: 51.43 | BJ62: 158.837 | BK62: 83.009 | BL62: 533.33 | BM62: 213.83 | BN62: 49.678 | BO62: 1038.69 | BP62: 182.259 | BQ62: 81.211 | BR62: 320.484 | BS62: 257.957 | BT62: 109.434 | BU62: 951.34 | BV62: 11.834 | BW62: 5.749 | BX62: 146.76 | BY62: 68.96 | BZ62: 1.286 | CA62: 234.59 | CB62: 0.0051 | CC62: 0.00268 | CD62: 0.045 | CE62: 0.0394 | CF62: 0 | CG62: 0.093 | CH62: 1.563 | CI62: 0.9645 | CJ62: 23.94 | CK62: 12.083 | CL62: 0.2883 | CM62: 38.83 | CN62: 0 | CO62: 0 | CP62: 0 | CQ62: 0 | CR62: 0 | CS62: 0 | CT62: 0 | CU62: 0 | CV62: 0 | CW62: 0 | CX62: 0 | CY62: 0 | CZ62: 0 | DA62: 2.2504 | DB62: 1.5607 | DC62: 31.893 | DD62: 38.21 | DE62: 25.753 | DF62: 99.66 | DG62: 11.619 | DH62: 0.2119 | DI62: 2.6758 | DJ62: 7.414 | DK62: 3.3806 | DL62: 25.302 | DM62: 0.44386 | DN62: 0.1659 | DO62: 5.9729 | DP62: 13.265 | DQ62: 23.348 | DR62: 43.195 | DS62: 0.1953 | DT62: 0.04775 | DU62: 30.52 | DV62: 1.5047 | DW62: 4.294 | DX62: 36.56 | DY62: 3070.66 | DZ62: 107.664 | EA62: 213.76 | EB62: 13.356 | EC62: 460.18 | ED62: 312.38 | EE62: 64.341 | EF62: 8.773 | EG62: 186.25 | EH62: 212.75 | EI62: 400.79 | EJ62: 58.603 | EK62: 2038.86 | EL62: 242.46 | EM62: 45.81 | EN62: 108.399 | EO62: 44.672 | EP62: 15.76 | EQ62: 457.11 | ER62: 1776.25 | ES62: 169.67 | ET62: 2937.7 | EU62: 3.67 | EV62: 12.12 | EW62: 500.29 | EX62: 17.03 | EY62: 56.06 | EZ62: 1.3 | FA62: 20.886 | FB62: 42.63 | FC62: 1.68 | FD62: 14.617 | FE62: 5553.92 | FF62: 37.625 | FG62: 0.012 | FH62: 5591.56 | FI62: 171.081 | FJ62: 369.83 | FK62: 540.91
A63: 01K073 | B63: Embolisations intracrâniennes et médullaires pour hémorragie, niveau 3 | D63: 87 | E63: 21390.32 | F63: 9.642 | G63: 2.813 | H63: 186.3 | I63: 284.36 | J63: 1363.66 | K63: 1846.79 | L63: 26.169 | M63: 7.353 | N63: 111.329 | O63: 254.62 | P63: 1548.45 | Q63: 1947.92 | R63: 3.553 | S63: 0.3182 | T63: 21.41 | U63: 33.26 | V63: 161.4 | W63: 219.94 | X63: 119.98 | Y63: 29.553 | Z63: 218.11 | AA63: 775.13 | AB63: 2872.88 | AC63: 4015.66 | AD63: 8030.31 | AE63: 20.889 | AF63: 10.883 | AG63: 22.608 | AH63: 364.46 | AI63: 232.62 | AJ63: 651.46 | AK63: 3.123 | AL63: 1.542 | AM63: 2.113 | AN63: 9.93 | AO63: 23.54 | AP63: 40.25 | AQ63: 0 | AR63: 0 | AS63: 0 | AT63: 0 | AU63: 0 | AV63: 0 | AW63: 0 | AX63: 0 | AY63: 0 | AZ63: 0 | BA63: 0 | BB63: 0 | BC63: 0 | BD63: 3.925 | BE63: 1.7454 | BF63: 7.403 | BG63: 19.193 | BH63: 35.46 | BI63: 67.72 | BJ63: 174.611 | BK63: 98.515 | BL63: 654.81 | BM63: 234.41 | BN63: 46.857 | BO63: 1209.21 | BP63: 266.56 | BQ63: 78.252 | BR63: 412.56 | BS63: 402.398 | BT63: 122.305 | BU63: 1282.07 | BV63: 12.932 | BW63: 8.136 | BX63: 193.95 | BY63: 93.98 | BZ63: 1.294 | CA63: 310.29 | CB63: 0.0533 | CC63: 0.01549 | CD63: 0.322 | CE63: 0.2107 | CF63: 0 | CG63: 0.601 | CH63: 1.989 | CI63: 1.2408 | CJ63: 35.45 | CK63: 18.22 | CL63: 0.2909 | CM63: 57.2 | CN63: 0.1264 | CO63: 0.0357 | CP63: 0.757 | CQ63: 0.487 | CR63: 0 | CS63: 1.406 | CT63: 0 | CU63: 0 | CV63: 0 | CW63: 0 | CX63: 0 | CY63: 0 | CZ63: 0 | DA63: 3.7122 | DB63: 2.2442 | DC63: 50.794 | DD63: 80.7 | DE63: 47.706 | DF63: 185.16 | DG63: 0.283 | DH63: 20.1857 | DI63: 1.7452 | DJ63: 12.99 | DK63: 7.4416 | DL63: 42.645 | DM63: 0.64133 | DN63: 0.23504 | DO63: 5.1573 | DP63: 11.082 | DQ63: 21.658 | DR63: 38.773 | DS63: 0.5692 | DT63: 0.17384 | DU63: 62.97 | DV63: 0.85 | DW63: 1.34 | DX63: 65.91 | DY63: 3952.68 | DZ63: 125.435 | EA63: 257.71 | EB63: 14.287 | EC63: 633.86 | ED63: 376.32 | EE63: 84.691 | EF63: 9.021 | EG63: 237.31 | EH63: 246.71 | EI63: 503.7 | EJ63: 84.127 | EK63: 2573.17 | EL63: 301.05 | EM63: 41.47 | EN63: 150.442 | EO63: 61.149 | EP63: 21.605 | EQ63: 575.72 | ER63: 2078.16 | ES63: 251.37 | ET63: 2912.5 | EU63: 2.55 | EV63: 62.89 | EW63: 678.34 | EX63: 9.67 | EY63: 38.17 | EZ63: 1.61 | FA63: 25.522 | FB63: 49.48 | FC63: 0.69 | FD63: 104.035 | FE63: 6214.98 | FF63: 43.469 | FG63: 0 | FH63: 6258.45 | FI63: 193.267 | FJ63: 461.52 | FK63: 654.79
A64: 01K074 | B64: Embolisations intracrâniennes et médullaires pour hémorragie, niveau 4 | D64: 100 | E64: 33119.39 | F64: 10.849 | G64: 2.875 | H64: 227.69 | I64: 264.61 | J64: 1329.15 | K64: 1835.17 | L64: 23.098 | M64: 6.63 | N64: 118.801 | O64: 316.97 | P64: 1259.9 | Q64: 1725.41 | R64: 7.797 | S64: 0.991 | T64: 37.6 | U64: 56.08 | V64: 280.69 | W64: 383.15 | X64: 319.79 | Y64: 120.705 | Z64: 621.51 | AA64: 2549.29 | AB64: 7071.99 | AC64: 10683.3 | AD64: 14627.02 | AE64: 19.441 | AF64: 9.883 | AG64: 28.164 | AH64: 394.22 | AI64: 277.43 | AJ64: 729.14 | AK64: 3.201 | AL64: 1.948 | AM64: 3.34 | AN64: 5.76 | AO64: 24.05 | AP64: 38.3 | AQ64: 0 | AR64: 0 | AS64: 0 | AT64: 0 | AU64: 0 | AV64: 0 | AW64: 0 | AX64: 0 | AY64: 0 | AZ64: 0 | BA64: 0 | BB64: 0 | BC64: 0 | BD64: 9.934 | BE64: 4.2644 | BF64: 24.957 | BG64: 35.232 | BH64: 64.86 | BI64: 139.25 | BJ64: 245.601 | BK64: 129.571 | BL64: 864.09 | BM64: 311.28 | BN64: 79.365 | BO64: 1629.91 | BP64: 324.401 | BQ64: 98.923 | BR64: 498.163 | BS64: 454.755 | BT64: 134.209 | BU64: 1510.45 | BV64: 34.048 | BW64: 19.54 | BX64: 481.67 | BY64: 222.02 | BZ64: 4.146 | CA64: 761.42 | CB64: 0.0547 | CC64: 0.02203 | CD64: 0.613 | CE64: 0.4359 | CF64: 0.00011 | CG64: 1.125 | CH64: 6.552 | CI64: 3.6572 | CJ64: 103.64 | CK64: 52.777 | CL64: 0.6006 | CM64: 167.23 | CN64: 0.0384 | CO64: 0.013 | CP64: 0.519 | CQ64: 0.373 | CR64: 0 | CS64: 0.943 | CT64: 0 | CU64: 0 | CV64: 0 | CW64: 0 | CX64: 0 | CY64: 0 | CZ64: 0 | DA64: 3.5068 | DB64: 2.1166 | DC64: 53.749 | DD64: 77.17 | DE64: 49.693 | DF64: 186.23 | DG64: 0.052 | DH64: 0.0238 | DI64: 1.4151 | DJ64: 5.708 | DK64: 14.7414 | DL64: 21.939 | DM64: 0.53671 | DN64: 0.13933 | DO64: 7.8026 | DP64: 15.619 | DQ64: 32.31 | DR64: 56.407 | DS64: 0.9866 | DT64: 0.27611 | DU64: 121.39 | DV64: 2.8195 | DW64: 8.326 | DX64: 133.8 | DY64: 5376.15 | DZ64: 177.907 | EA64: 246.14 | EB64: 14.233 | EC64: 849.07 | ED64: 544.83 | EE64: 104.834 | EF64: 8.761 | EG64: 338.44 | EH64: 367.34 | EI64: 701.06 | EJ64: 115.376 | EK64: 3467.99 | EL64: 506.32 | EM64: 93.96 | EN64: 201.871 | EO64: 96.276 | EP64: 39.889 | EQ64: 938.31 | ER64: 3139.75 | ES64: 412.02 | ET64: 3339.59 | EU64: 5.2 | EV64: 162.06 | EW64: 1266.71 | EX64: 36.8 | EY64: 74.1 | EZ64: 1.56 | FA64: 25.468 | FB64: 70.32 | FC64: 9.93 | FD64: 107.445 | FE64: 8650.94 | FF64: 58.97 | FG64: 0 | FH64: 8709.91 | FI64: 297.783 | FJ64: 629.97 | FK64: 927.76
A65: 01M041 | B65: Méningites virales, niveau 1 | D65: 941 | E65: 2154.8 | F65: 9.8 | G65: 2.126 | H65: 177.18 | I65: 235.15 | J65: 587.4 | K65: 1011.66 | L65: 0.749 | M65: 0.113 | N65: 7.426 | O65: 12.9 | P65: 49.48 | Q65: 70.67 | R65: 0.092 | S65: 0.0492 | T65: 0.43 | U65: 1.14 | V65: 4.33 | W65: 6.05 | X65: 0.07 | Y65: 0.034 | Z65: 0.18 | AA65: 0.5 | AB65: 1.22 | AC65: 2 | AD65: 1090.38 | AE65: 0.006 | AF65: 0.004 | AG65: 0.011 | AH65: 0.14 | AI65: 0.14 | AJ65: 0.31 | AK65: 0.011 | AL65: 0.006 | AM65: 0.019 | AN65: 0.09 | AO65: 0.13 | AP65: 0.25 | AQ65: 0 | AR65: 0 | AS65: 0 | AT65: 0 | AU65: 0 | AV65: 0 | AW65: 0 | AX65: 0 | AY65: 0 | AZ65: 0 | BA65: 0 | BB65: 0 | BC65: 0 | BD65: 0.485 | BE65: 0.3073 | BF65: 2.133 | BG65: 3.068 | BH65: 5.27 | BI65: 11.26 | BJ65: 5.27 | BK65: 3.986 | BL65: 22.17 | BM65: 14.54 | BN65: 1.277 | BO65: 47.25 | BP65: 0 | BQ65: 0 | BR65: 0 | BS65: 0 | BT65: 0 | BU65: 0 | BV65: 4.97 | BW65: 3.618 | BX65: 86.43 | BY65: 31.38 | BZ65: 1.709 | CA65: 128.11 | CB65: 0.0596 | CC65: 0.02373 | CD65: 0.651 | CE65: 0.4144 | CF65: 0.00377 | CG65: 1.152 | CH65: 3.264 | CI65: 2.1133 | CJ65: 45.95 | CK65: 20.259 | CL65: 0.7104 | CM65: 72.29 | CN65: 0.0351 | CO65: 0.0142 | CP65: 0.381 | CQ65: 0.25 | CR65: 0.0042 | CS65: 0.685 | CT65: 0 | CU65: 0 | CV65: 0 | CW65: 0 | CX65: 0 | CY65: 0 | CZ65: 0 | DA65: 0.206 | DB65: 0.146 | DC65: 1.917 | DD65: 2.98 | DE65: 1.544 | DF65: 6.79 | DG65: 0.008 | DH65: 0.7495 | DI65: 0.0872 | DJ65: 0.519 | DK65: 0.4145 | DL65: 1.779 | DM65: 0.59225 | DN65: 0.28223 | DO65: 9.0944 | DP65: 25.689 | DQ65: 35.626 | DR65: 71.284 | DS65: 0.0094 | DT65: 0.00338 | DU65: 2.15 | DV65: 0.0159 | DW65: 0.135 | DX65: 2.32 | DY65: 343.47 | DZ65: 24.047 | EA65: 62.71 | EB65: 14.673 | EC65: 96.58 | ED65: 53.75 | EE65: 13.736 | EF65: 8.45 | EG65: 33.85 | EH65: 44.59 | EI65: 75.92 | EJ65: 11.68 | EK65: 439.99 | EL65: 25.21 | EM65: 1.81 | EN65: 6.984 | EO65: 4.166 | EP65: 2.145 | EQ65: 40.32 | ER65: 132.58 | ES65: 0.58 | ET65: 0.06 | EU65: 0.46 | EV65: 0.83 | EW65: 38.36 | EX65: 19.17 | EY65: 2.73 | EZ65: 0.03 | FA65: 4.75 | FB65: 22.98 | FC65: 11.71 | FD65: 2.647 | FE65: 236.89 | FF65: 0.701 | FG65: 3.055 | FH65: 240.64 | FI65: 38.337 | FJ65: 74.55 | FK65: 112.89
A66: 01M042 | B66: Méningites virales, niveau 2 | D66: 273 | E66: 4058.4 | F66: 14.525 | G66: 3.155 | H66: 283.07 | I66: 366.63 | J66: 1057.66 | K66: 1725.04 | L66: 1.221 | M66: 0.489 | N66: 9.289 | O66: 14.54 | P66: 66.04 | Q66: 91.58 | R66: 0.097 | S66: 0.0718 | T66: 2.53 | U66: 2.42 | V66: 13.16 | W66: 18.27 | X66: 1.26 | Y66: 0.824 | Z66: 2.42 | AA66: 8.42 | AB66: 26.9 | AC66: 39.83 | AD66: 1874.72 | AE66: 0.065 | AF66: 0.007 | AG66: 0.076 | AH66: 1 | AI66: 0.88 | AJ66: 2.03 | AK66: 0.124 | AL66: 0.07 | AM66: 0.083 | AN66: 0.65 | AO66: 1.18 | AP66: 2.11 | AQ66: 0 | AR66: 0 | AS66: 0 | AT66: 0 | AU66: 0 | AV66: 0 | AW66: 0 | AX66: 0 | AY66: 0 | AZ66: 0 | BA66: 0 | BB66: 0 | BC66: 0 | BD66: 2.175 | BE66: 1.0414 | BF66: 8.344 | BG66: 12.855 | BH66: 17.91 | BI66: 42.33 | BJ66: 17.831 | BK66: 10.322 | BL66: 58.87 | BM66: 28.41 | BN66: 4.04 | BO66: 119.47 | BP66: 0.001 | BQ66: 0 | BR66: 0.085 | BS66: 0.121 | BT66: 0.036 | BU66: 0.24 | BV66: 7.988 | BW66: 4.927 | BX66: 133.5 | BY66: 59.41 | BZ66: 2.453 | CA66: 208.28 | CB66: 0.204 | CC66: 0.07378 | CD66: 2.156 | CE66: 1.3939 | CF66: 0.01541 | CG66: 3.843 | CH66: 6.253 | CI66: 3.6594 | CJ66: 88.65 | CK66: 43.216 | CL66: 0.6977 | CM66: 142.48 | CN66: 0.137 | CO66: 0.0783 | CP66: 1.693 | CQ66: 1.103 | CR66: 0.0232 | CS66: 3.035 | CT66: 0 | CU66: 0 | CV66: 0 | CW66: 0 | CX66: 0 | CY66: 0 | CZ66: 0 | DA66: 0.2313 | DB66: 0.1563 | DC66: 1.924 | DD66: 5.77 | DE66: 3.976 | DF66: 12.06 | DG66: 0 | DH66: 0 | DI66: 0 | DJ66: 0 | DK66: 0 | DL66: 0 | DM66: 0.50338 | DN66: 0.23426 | DO66: 9.6525 | DP66: 23.396 | DQ66: 32.456 | DR66: 66.242 | DS66: 0.051 | DT66: 0.01669 | DU66: 8.18 | DV66: 0.0955 | DW66: 0.262 | DX66: 8.6 | DY66: 610.71 | DZ66: 51.983 | EA66: 133.69 | EB66: 14.852 | EC66: 214.65 | ED66: 125.65 | EE66: 31.815 | EF66: 9.128 | EG66: 81.53 | EH66: 103.38 | EI66: 177.78 | EJ66: 25.451 | EK66: 969.91 | EL66: 49.65 | EM66: 3.15 | EN66: 13.677 | EO66: 8.167 | EP66: 4.215 | EQ66: 78.87 | ER66: 240.49 | ES66: 2.08 | ET66: 0.14 | EU66: 1.72 | EV66: 9.63 | EW66: 128.1 | EX66: 75.62 | EY66: 5.28 | EZ66: 0.06 | FA66: 10.113 | FB66: 30.61 | FC66: 16.5 | FD66: 0.703 | FE66: 521.04 | FF66: 1.885 | FG66: 1.27 | FH66: 524.19 | FI66: 76.212 | FJ66: 168.65 | FK66: 244.86
A67: 01M043 | B67: Méningites virales, niveau 3 | D67: 92 | E67: 7507.95 | F67: 32.639 | G67: 6.582 | H67: 456.84 | I67: 743.23 | J67: 2060.79 | K67: 3300.08 | L67: 9.063 | M67: 1.097 | N67: 44.417 | O67: 60.9 | P67: 244.67 | Q67: 360.14 | R67: 0.477 | S67: 0.12 | T67: 0.86 | U67: 5.29 | V67: 16.32 | W67: 23.07 | X67: 2.36 | Y67: 1.6 | Z67: 7.41 | AA67: 22.46 | AB67: 57.07 | AC67: 90.9 | AD67: 3774.19 | AE67: 0.095 | AF67: 0.03 | AG67: 0.147 | AH67: 2.44 | AI67: 1.76 | AJ67: 4.47 | AK67: 0.293 | AL67: 0.542 | AM67: 0.123 | AN67: 0.91 | AO67: 1.69 | AP67: 3.56 | AQ67: 0 | AR67: 0 | AS67: 0 | AT67: 0 | AU67: 0 | AV67: 0 | AW67: 0 | AX67: 0 | AY67: 0 | AZ67: 0 | BA67: 0 | BB67: 44.5 | BC67: 44.5 | BD67: 4.935 | BE67: 2.042 | BF67: 23.773 | BG67: 32.089 | BH67: 61.76 | BI67: 124.6 | BJ67: 22.477 | BK67: 14.556 | BL67: 86.3 | BM67: 43.06 | BN67: 7.121 | BO67: 173.51 | BP67: 0.076 | BQ67: 0.107 | BR67: 0.312 | BS67: 0.185 | BT67: 0.26 | BU67: 0.94 | BV67: 13.301 | BW67: 8.499 | BX67: 204.6 | BY67: 76.82 | BZ67: 4.225 | CA67: 307.45 | CB67: 0.2439 | CC67: 0.11221 | CD67: 2.43 | CE67: 1.7497 | CF67: 0.01633 | CG67: 4.552 | CH67: 9.796 | CI67: 4.8946 | CJ67: 102.33 | CK67: 45.669 | CL67: 2.587 | CM67: 165.27 | CN67: 0.3719 | CO67: 0.2358 | CP67: 4.05 | CQ67: 3.029 | CR67: 0.029 | CS67: 7.716 | CT67: 0 | CU67: 0 | CV67: 0 | CW67: 0 | CX67: 0 | CY67: 0 | CZ67: 0 | DA67: 0.4909 | DB67: 0.5834 | DC67: 4.183 | DD67: 11.24 | DE67: 6.807 | DF67: 23.31 | DG67: 0 | DH67: 0 | DI67: 0 | DJ67: 0 | DK67: 0 | DL67: 0 | DM67: 0.41907 | DN67: 0.30689 | DO67: 7.2549 | DP67: 18.852 | DQ67: 24.747 | DR67: 51.58 | DS67: 0.1486 | DT67: 0.03122 | DU67: 18.26 | DV67: 1.5837 | DW67: 0.62 | DX67: 20.65 | DY67: 932.1 | DZ67: 100.398 | EA67: 250.79 | EB67: 12.962 | EC67: 375.06 | ED67: 219.38 | EE67: 72.476 | EF67: 9.404 | EG67: 149.52 | EH67: 204.98 | EI67: 325.48 | EJ67: 40.688 | EK67: 1761.14 | EL67: 90.86 | EM67: 5.72 | EN67: 21.667 | EO67: 15.755 | EP67: 4.483 | EQ67: 138.49 | ER67: 369.63 | ES67: 5.46 | ET67: 1.15 | EU67: 2.15 | EV67: 15.59 | EW67: 204.14 | EX67: 151.55 | EY67: 8.42 | EZ67: 0.35 | FA67: 25.136 | FB67: 74.13 | FC67: 25.41 | FD67: 0.048 | FE67: 883.17 | FF67: 2.235 | FG67: 16.637 | FH67: 902.04 | FI67: 148.85 | FJ67: 359.1 | FK67: 507.95
A68: 01M044 | B68: Méningites virales, niveau 4 | C68: * | D68: 29 | E68: 16831.94 | F68: 73.173 | G68: 14.756 | H68: 1024.19 | I68: 1666.23 | J68: 4620.04 | K68: 7398.38 | L68: 20.318 | M68: 2.46 | N68: 99.577 | O68: 136.52 | P68: 548.52 | Q68: 807.4 | R68: 1.069 | S68: 0.2691 | T68: 1.93 | U68: 11.85 | V68: 36.59 | W68: 51.71 | X68: 5.29 | Y68: 3.586 | Z68: 16.6 | AA68: 50.36 | AB68: 127.95 | AC68: 203.79 | AD68: 8461.28 | AE68: 0.214 | AF68: 0.067 | AG68: 0.33 | AH68: 5.46 | AI68: 3.95 | AJ68: 10.03 | AK68: 0.657 | AL68: 1.216 | AM68: 0.276 | AN68: 2.05 | AO68: 3.78 | AP68: 7.98 | AQ68: 0 | AR68: 0 | AS68: 0 | AT68: 0 | AU68: 0 | AV68: 0 | AW68: 0 | AX68: 0 | AY68: 0 | AZ68: 0 | BA68: 0 | BB68: 99.76 | BC68: 99.76 | BD68: 11.064 | BE68: 4.5779 | BF68: 53.297 | BG68: 71.939 | BH68: 138.46 | BI68: 279.34 | BJ68: 50.391 | BK68: 32.633 | BL68: 193.47 | BM68: 96.53 | BN68: 15.965 | BO68: 388.98 | BP68: 0.171 | BQ68: 0.24 | BR68: 0.699 | BS68: 0.414 | BT68: 0.583 | BU68: 2.11 | BV68: 29.819 | BW68: 19.055 | BX68: 458.69 | BY68: 172.23 | BZ68: 9.472 | CA68: 689.26 | CB68: 0.5468 | CC68: 0.25155 | CD68: 5.447 | CE68: 3.9225 | CF68: 0.03662 | CG68: 10.204 | CH68: 21.961 | CI68: 10.9731 | CJ68: 229.41 | CK68: 102.384 | CL68: 5.7998 | CM68: 370.52 | CN68: 0.8338 | CO68: 0.5286 | CP68: 9.08 | CQ68: 6.79 | CR68: 0.0651 | CS68: 17.298 | CT68: 0 | CU68: 0 | CV68: 0 | CW68: 0 | CX68: 0 | CY68: 0 | CZ68: 0 | DA68: 1.1006 | DB68: 1.3078 | DC68: 9.377 | DD68: 25.21 | DE68: 15.261 | DF68: 52.25 | DG68: 0 | DH68: 0 | DI68: 0 | DJ68: 0 | DK68: 0 | DL68: 0 | DM68: 0.9395 | DN68: 0.68802 | DO68: 16.2647 | DP68: 42.263 | DQ68: 55.481 | DR68: 115.636 | DS68: 0.3332 | DT68: 0.06999 | DU68: 40.95 | DV68: 3.5505 | DW68: 1.391 | DX68: 46.29 | DY68: 2089.66 | DZ68: 225.081 | EA68: 562.24 | EB68: 29.06 | EC68: 840.84 | ED68: 491.83 | EE68: 162.483 | EF68: 21.083 | EG68: 335.21 | EH68: 459.55 | EI68: 729.68 | EJ68: 91.218 | EK68: 3948.27 | EL68: 203.7 | EM68: 12.83 | EN68: 48.575 | EO68: 35.32 | EP68: 10.05 | EQ68: 310.47 | ER68: 828.68 | ES68: 12.24 | ET68: 2.59 | EU68: 4.81 | EV68: 34.95 | EW68: 457.67 | EX68: 339.75 | EY68: 18.88 | EZ68: 0.78 | FA68: 56.351 | FB68: 166.19 | FC68: 56.97 | FD68: 0.108 | FE68: 1979.96 | FF68: 5.01 | FG68: 37.297 | FH68: 2022.26 | FI68: 333.704 | FJ68: 805.05 | FK68: 1138.75
A69: 01M04T | B69: Méningites virales, très courte durée | D69: 743 | E69: 778.75 | F69: 2.567 | G69: 0.593 | H69: 49.89 | I69: 80.66 | J69: 194.38 | K69: 328.1 | L69: 0.012 | M69: 0.001 | N69: 0.272 | O69: 0.49 | P69: 1.71 | Q69: 2.48 | R69: 0.003 | S69: 0.0009 | T69: 0.02 | U69: 0.06 | V69: 0.25 | W69: 0.34 | X69: 0.01 | Y69: 0.005 | Z69: 0 | AA69: 0.04 | AB69: 0.1 | AC69: 0.16 | AD69: 331.07 | AE69: 0 | AF69: 0 | AG69: 0 | AH69: 0 | AI69: 0 | AJ69: 0 | AK69: 0.001 | AL69: 0.001 | AM69: 0.001 | AN69: 0.01 | AO69: 0.03 | AP69: 0.04 | AQ69: 0 | AR69: 0 | AS69: 0 | AT69: 0 | AU69: 0 | AV69: 0 | AW69: 0 | AX69: 0 | AY69: 0 | AZ69: 0 | BA69: 0 | BB69: 0 | BC69: 0 | BD69: 0.092 | BE69: 0.0329 | BF69: 0.336 | BG69: 0.58 | BH69: 0.8 | BI69: 1.84 | BJ69: 2.112 | BK69: 1.75 | BL69: 8.44 | BM69: 4.3 | BN69: 0.433 | BO69: 17.04 | BP69: 0.041 | BQ69: 0.008 | BR69: 0.168 | BS69: 0.134 | BT69: 0.022 | BU69: 0.37 | BV69: 2.484 | BW69: 1.752 | BX69: 40.75 | BY69: 16.05 | BZ69: 1.346 | CA69: 62.39 | CB69: 0.0222 | CC69: 0.00682 | CD69: 0.218 | CE69: 0.1375 | CF69: 0.00116 | CG69: 0.385 | CH69: 1.791 | CI69: 1.2896 | CJ69: 27.05 | CK69: 13.951 | CL69: 0.1575 | CM69: 44.24 | CN69: 0.0043 | CO69: 0.0033 | CP69: 0.058 | CQ69: 0.039 | CR69: 0.0006 | CS69: 0.106 | CT69: 0 | CU69: 0 | CV69: 0 | CW69: 0 | CX69: 0 | CY69: 0 | CZ69: 0 | DA69: 0.0579 | DB69: 0.0366 | DC69: 0.522 | DD69: 1.4 | DE69: 1.077 | DF69: 3.09 | DG69: 0 | DH69: 0 | DI69: 0 | DJ69: 0 | DK69: 0 | DL69: 0 | DM69: 0.43166 | DN69: 0.20729 | DO69: 8.2084 | DP69: 25.104 | DQ69: 32.251 | DR69: 66.202 | DS69: 0.0022 | DT69: 0.0011 | DU69: 0.54 | DV69: 0 | DW69: 0.036 | DX69: 0.58 | DY69: 196.28 | DZ69: 7.439 | EA69: 17.45 | EB69: 16.356 | EC69: 31.11 | ED69: 16.97 | EE69: 4.48 | EF69: 8.304 | EG69: 10.91 | EH69: 12.76 | EI69: 24.06 | EJ69: 3.031 | EK69: 152.88 | EL69: 9.24 | EM69: 0.57 | EN69: 2.255 | EO69: 1.532 | EP69: 0.456 | EQ69: 14.05 | ER69: 62.8 | ES69: 0.06 | ET69: 0.01 | EU69: 0.08 | EV69: 0.25 | EW69: 7.09 | EX69: 0.69 | EY69: 0.68 | EZ69: 0 | FA69: 1.391 | FB69: 6.29 | FC69: 3.62 | FD69: 0.501 | FE69: 83.45 | FF69: 0.667 | FG69: 0.344 | FH69: 84.46 | FI69: 13.575 | FJ69: 23.17 | FK69: 36.74
A70: 01M051 | B70: Infections du système nerveux à l'exception des méningites virales, niveau 1 | D70: 963 | E70: 3892.24 | F70: 14.297 | G70: 2.599 | H70: 225.13 | I70: 307.37 | J70: 823.82 | K70: 1373.21 | L70: 1.892 | M70: 0.874 | N70: 9.844 | O70: 22.86 | P70: 72.68 | Q70: 108.15 | R70: 0.457 | S70: 0.0847 | T70: 2.4 | U70: 6.02 | V70: 16.81 | W70: 25.78 | X70: 2.42 | Y70: 0.977 | Z70: 5.4 | AA70: 12.36 | AB70: 34.07 | AC70: 55.23 | AD70: 1562.37 | AE70: 0.118 | AF70: 0.054 | AG70: 0.117 | AH70: 1.87 | AI70: 1.71 | AJ70: 3.86 | AK70: 0.282 | AL70: 0.22 | AM70: 0.522 | AN70: 0.56 | AO70: 1.75 | AP70: 3.34 | AQ70: 0 | AR70: 0 | AS70: 0 | AT70: 0 | AU70: 0 | AV70: 0 | AW70: 0.1156 | AX70: 0.0226 | AY70: 0.186 | AZ70: 0.2045 | BA70: 1.674 | BB70: 0.27 | BC70: 2.47 | BD70: 2.762 | BE70: 1.1288 | BF70: 11.933 | BG70: 17.925 | BH70: 29.96 | BI70: 63.71 | BJ70: 14.238 | BK70: 9.988 | BL70: 47.67 | BM70: 34.49 | BN70: 2.655 | BO70: 109.04 | BP70: 0.274 | BQ70: 0.089 | BR70: 0.252 | BS70: 0.174 | BT70: 0.081 | BU70: 0.87 | BV70: 6.831 | BW70: 4.421 | BX70: 100.42 | BY70: 40.14 | BZ70: 2.167 | CA70: 153.98 | CB70: 0.1066 | CC70: 0.04351 | CD70: 1.191 | CE70: 0.7991 | CF70: 0.01063 | CG70: 2.15 | CH70: 3.775 | CI70: 1.9881 | CJ70: 42.91 | CK70: 20.557 | CL70: 0.7109 | CM70: 69.94 | CN70: 0.0935 | CO70: 0.0438 | CP70: 1.086 | CQ70: 0.824 | CR70: 0.0195 | CS70: 2.066 | CT70: 0 | CU70: 0 | CV70: 0 | CW70: 0 | CX70: 0 | CY70: 0 | CZ70: 0 | DA70: 1.001 | DB70: 0.6091 | DC70: 6.819 | DD70: 19.31 | DE70: 13.069 | DF70: 40.81 | DG70: 7.356 | DH70: 0.0355 | DI70: 0.3295 | DJ70: 2.49 | DK70: 1.3473 | DL70: 11.559 | DM70: 0.42081 | DN70: 0.16147 | DO70: 5.6768 | DP70: 16.589 | DQ70: 22.523 | DR70: 45.371 | DS70: 0.0841 | DT70: 0.03489 | DU70: 8.47 | DV70: 0.8728 | DW70: 1.499 | DX70: 10.96 | DY70: 520.13 | DZ70: 38.528 | EA70: 96.45 | EB70: 14.066 | EC70: 152.88 | ED70: 86.31 | EE70: 19.453 | EF70: 8.134 | EG70: 54.41 | EH70: 65.19 | EI70: 120.56 | EJ70: 17.864 | EK70: 673.85 | EL70: 40.17 | EM70: 3.14 | EN70: 10.324 | EO70: 6.709 | EP70: 3.871 | EQ70: 64.21 | ER70: 170.56 | ES70: 2.47 | ET70: 0.75 | EU70: 1.25 | EV70: 49.43 | EW70: 69.74 | EX70: 676.65 | EY70: 6.87 | EZ70: 0.05 | FA70: 22.348 | FB70: 37.55 | FC70: 10.56 | FD70: 17.506 | FE70: 1065.73 | FF70: 2.865 | FG70: 3.076 | FH70: 1071.67 | FI70: 55.691 | FJ70: 111.32 | FK70: 167.02
A71: 01M052 | B71: Infections du système nerveux à l'exception des méningites virales, niveau 2 | D71: 609 | E71: 7164.88 | F71: 21.001 | G71: 3.254 | H71: 351.4 | I71: 476.1 | J71: 1464.29 | K71: 2316.04 | L71: 6.584 | M71: 2.196 | N71: 33.074 | O71: 77.97 | P71: 222.25 | Q71: 342.07 | R71: 0.463 | S71: 0.622 | T71: 9.42 | U71: 13.56 | V71: 85.62 | W71: 109.69 | X71: 15.6 | Y71: 4.665 | Z71: 27.58 | AA71: 85.54 | AB71: 242.16 | AC71: 375.55 | AD71: 3143.35 | AE71: 0.348 | AF71: 0.274 | AG71: 0.364 | AH71: 5.33 | AI71: 5.38 | AJ71: 11.7 | AK71: 0.741 | AL71: 0.212 | AM71: 0.723 | AN71: 2.56 | AO71: 5.39 | AP71: 9.62 | AQ71: 0 | AR71: 0 | AS71: 0 | AT71: 0 | AU71: 0 | AV71: 0 | AW71: 0.3029 | AX71: 0.0504 | AY71: 0.543 | AZ71: 1.4183 | BA71: 3.547 | BB71: 0 | BC71: 5.86 | BD71: 4.281 | BE71: 1.9361 | BF71: 16.147 | BG71: 28.377 | BH71: 44.57 | BI71: 95.31 | BJ71: 22.447 | BK71: 17.181 | BL71: 87.17 | BM71: 55.51 | BN71: 5.252 | BO71: 187.56 | BP71: 0.07 | BQ71: 0.103 | BR71: 0.494 | BS71: 0.443 | BT71: 0.222 | BU71: 1.33 | BV71: 11.24 | BW71: 7.234 | BX71: 167.9 | BY71: 66.95 | BZ71: 4.193 | CA71: 257.51 | CB71: 0.1746 | CC71: 0.06489 | CD71: 1.999 | CE71: 1.3261 | CF71: 0.02431 | CG71: 3.589 | CH71: 4.418 | CI71: 2.4392 | CJ71: 57.81 | CK71: 27.925 | CL71: 0.7526 | CM71: 93.34 | CN71: 0.1664 | CO71: 0.0704 | CP71: 1.917 | CQ71: 1.469 | CR71: 0.029 | CS71: 3.653 | CT71: 0 | CU71: 0 | CV71: 0 | CW71: 0 | CX71: 0 | CY71: 0 | CZ71: 0 | DA71: 0.9553 | DB71: 0.4565 | DC71: 8.4 | DD71: 26.4 | DE71: 14.13 | DF71: 50.35 | DG71: 0 | DH71: 0 | DI71: 0.0012 | DJ71: 0.252 | DK71: 0.1196 | DL71: 0.372 | DM71: 0.46047 | DN71: 0.2097 | DO71: 6.9056 | DP71: 17.178 | DQ71: 23.623 | DR71: 48.377 | DS71: 0.0933 | DT71: 0.02904 | DU71: 19.02 | DV71: 0.873 | DW71: 2.235 | DX71: 22.25 | DY71: 790.83 | DZ71: 81.504 | EA71: 198.78 | EB71: 14.104 | EC71: 309.99 | ED71: 176 | EE71: 46.837 | EF71: 8.597 | EG71: 109.93 | EH71: 145.15 | EI71: 255.94 | EJ71: 32.544 | EK71: 1379.37 | EL71: 88.43 | EM71: 6.8 | EN71: 18.803 | EO71: 14.1 | EP71: 8.705 | EQ71: 136.83 | ER71: 314.54 | ES71: 2.04 | ET71: 0.93 | EU71: 1.42 | EV71: 35.1 | EW71: 179.28 | EX71: 1030.97 | EY71: 9.24 | EZ71: 0.14 | FA71: 42.732 | FB71: 53.39 | FC71: 20.23 | FD71: 13.079 | FE71: 1703.07 | FF71: 1.916 | FG71: 9.511 | FH71: 1714.5 | FI71: 121.371 | FJ71: 252.57 | FK71: 373.94
A72: 01M053 | B72: Infections du système nerveux à l'exception des méningites virales, niveau 3 | D72: 564 | E72: 11460.98 | F72: 36.165 | G72: 5.687 | H72: 514.58 | I72: 695.02 | J72: 2088.77 | K72: 3340.22 | L72: 10.051 | M72: 1.192 | N72: 41.551 | O72: 77.96 | P72: 259.85 | Q72: 390.6 | R72: 1.574 | S72: 0.6363 | T72: 10.7 | U72: 20.05 | V72: 74.34 | W72: 107.3 | X72: 49 | Y72: 19.624 | Z72: 146.16 | AA72: 425.91 | AB72: 1039.66 | AC72: 1680.35 | AD72: 5518.48 | AE72: 0.533 | AF72: 0.475 | AG72: 0.462 | AH72: 8.74 | AI72: 7.88 | AJ72: 18.09 | AK72: 1.386 | AL72: 0.527 | AM72: 1.906 | AN72: 5.13 | AO72: 8.85 | AP72: 17.8 | AQ72: 0 | AR72: 0 | AS72: 0 | AT72: 0 | AU72: 0 | AV72: 0 | AW72: 0.4042 | AX72: 0.3971 | AY72: 1.964 | AZ72: 2.0958 | BA72: 9.069 | BB72: 4.58 | BC72: 18.51 | BD72: 6.077 | BE72: 2.5839 | BF72: 21.553 | BG72: 34.853 | BH72: 62.35 | BI72: 127.42 | BJ72: 35.286 | BK72: 26.929 | BL72: 136.85 | BM72: 68.87 | BN72: 8.341 | BO72: 276.28 | BP72: 0.172 | BQ72: 0.034 | BR72: 0.463 | BS72: 0.398 | BT72: 0.089 | BU72: 1.16 | BV72: 18.653 | BW72: 11.603 | BX72: 266.3 | BY72: 104.59 | BZ72: 6.981 | CA72: 408.12 | CB72: 0.2676 | CC72: 0.1166 | CD72: 2.95 | CE72: 1.8533 | CF72: 0.02615 | CG72: 5.214 | CH72: 5.884 | CI72: 3.5628 | CJ72: 83.73 | CK72: 37.493 | CL72: 1.4062 | CM72: 132.07 | CN72: 0.2448 | CO72: 0.1245 | CP72: 2.79 | CQ72: 1.816 | CR72: 0.0503 | CS72: 5.025 | CT72: 0 | CU72: 0 | CV72: 0 | CW72: 0 | CX72: 0 | CY72: 0.92 | CZ72: 0.92 | DA72: 2.258 | DB72: 1.3285 | DC72: 18.535 | DD72: 37.54 | DE72: 21.055 | DF72: 80.71 | DG72: 38.438 | DH72: 0.0726 | DI72: 0.6643 | DJ72: 9.567 | DK72: 5.9078 | DL72: 54.65 | DM72: 0.53349 | DN72: 0.17028 | DO72: 7.1114 | DP72: 19.387 | DQ72: 25.699 | DR72: 52.902 | DS72: 0.6752 | DT72: 0.16436 | DU72: 47.69 | DV72: 4.4824 | DW72: 11.707 | DX72: 64.71 | DY72: 1263.59 | DZ72: 124.144 | EA72: 285.02 | EB72: 12.94 | EC72: 466.02 | ED72: 269.65 | EE72: 75.499 | EF72: 8.894 | EG72: 174.72 | EH72: 219.45 | EI72: 383.02 | EJ72: 48.282 | EK72: 2067.64 | EL72: 149.78 | EM72: 15.83 | EN72: 41.076 | EO72: 26.874 | EP72: 21.311 | EQ72: 254.87 | ER72: 576.34 | ES72: 5.86 | ET72: 0.5 | EU72: 4.36 | EV72: 149.69 | EW72: 428.92 | EX72: 1040.07 | EY72: 18.6 | EZ72: 3.89 | FA72: 19.938 | FB72: 65.87 | FC72: 13.8 | FD72: 19.434 | FE72: 2347.27 | FF72: 5.414 | FG72: 3.711 | FH72: 2356.4 | FI72: 170.88 | FJ72: 378.81 | FK72: 549.69
A73: 01M054 | B73: Infections du système nerveux à l'exception des méningites virales, niveau 4 | D73: 318 | E73: 29265.3 | F73: 29.57 | G73: 5.676 | H73: 573.89 | I73: 707.22 | J73: 2264.46 | K73: 3580.81 | L73: 27.246 | M73: 4.471 | N73: 238.77 | O73: 472.81 | P73: 1476.65 | Q73: 2219.95 | R73: 8.227 | S73: 1.2881 | T73: 42.92 | U73: 75.33 | V73: 235.95 | W73: 363.71 | X73: 331.15 | Y73: 125.191 | Z73: 825.2 | AA73: 2246.7 | AB73: 6097.91 | AC73: 9626.16 | AD73: 15790.62 | AE73: 1.03 | AF73: 0.618 | AG73: 1.318 | AH73: 18.43 | AI73: 18.07 | AJ73: 39.48 | AK73: 2.316 | AL73: 1.526 | AM73: 2.636 | AN73: 7.54 | AO73: 18.69 | AP73: 32.71 | AQ73: 0.15 | AR73: 0.0579 | AS73: 0.084 | AT73: 0.236 | AU73: 1.63 | AV73: 2.16 | AW73: 0.832 | AX73: 0.7074 | AY73: 2.1 | AZ73: 2.4029 | BA73: 14.635 | BB73: 20.57 | BC73: 41.25 | BD73: 21.879 | BE73: 9.3493 | BF73: 68.805 | BG73: 117.37 | BH73: 163.06 | BI73: 380.47 | BJ73: 75.083 | BK73: 53.58 | BL73: 354.15 | BM73: 129.67 | BN73: 26.816 | BO73: 639.3 | BP73: 0.31 | BQ73: 0.293 | BR73: 1.341 | BS73: 0.955 | BT73: 0.749 | BU73: 3.65 | BV73: 41.967 | BW73: 24.59 | BX73: 589.17 | BY73: 284.89 | BZ73: 8.584 | CA73: 949.2 | CB73: 0.4217 | CC73: 0.17379 | CD73: 4.644 | CE73: 3.2772 | CF73: 0.0512 | CG73: 8.568 | CH73: 15.419 | CI73: 8.3636 | CJ73: 213.45 | CK73: 110.891 | CL73: 1.6607 | CM73: 349.78 | CN73: 0.7453 | CO73: 0.3285 | CP73: 8.123 | CQ73: 5.936 | CR73: 0.0796 | CS73: 15.212 | CT73: 0 | CU73: 0 | CV73: 0 | CW73: 0 | CX73: 0 | CY73: 5.41 | CZ73: 5.41 | DA73: 3.1329 | DB73: 1.7554 | DC73: 21.969 | DD73: 51.91 | DE73: 32.299 | DF73: 111.07 | DG73: 8.926 | DH73: 0.1128 | DI73: 1.6548 | DJ73: 4.076 | DK73: 2.9919 | DL73: 17.761 | DM73: 0.40617 | DN73: 0.15669 | DO73: 7.3265 | DP73: 16.783 | DQ73: 24.291 | DR73: 48.964 | DS73: 1.1027 | DT73: 0.31898 | DU73: 155.64 | DV73: 6.0804 | DW73: 13.714 | DX73: 176.85 | DY73: 2821.83 | DZ73: 216.42 | EA73: 369.47 | EB73: 13.949 | EC73: 963.78 | ED73: 578.65 | EE73: 126.96 | EF73: 8.718 | EG73: 349.16 | EH73: 417.18 | EI73: 801.04 | EJ73: 119.569 | EK73: 3964.9 | EL73: 471.08 | EM73: 55.85 | EN73: 132.69 | EO73: 79.787 | EP73: 42.037 | EQ73: 781.45 | ER73: 2048.15 | ES73: 20.15 | ET73: 11.97 | EU73: 25.11 | EV73: 462.68 | EW73: 1423.98 | EX73: 1646.15 | EY73: 62.28 | EZ73: 1.3 | FA73: 19.164 | FB73: 127.22 | FC73: 30.75 | FD73: 20.726 | FE73: 5899.61 | FF73: 5.187 | FG73: 1.702 | FH73: 5906.5 | FI73: 341.888 | FJ73: 708.66 | FK73: 1050.55
A74: 01M05T | B74: Infections du système nerveux à l'exception des méningites virales, très courte durée | D74: 248 | E74: 773.13 | F74: 1.08 | G74: 0.271 | H74: 29.42 | I74: 52.89 | J74: 104.82 | K74: 188.47 | L74: 0.224 | M74: 0.006 | N74: 0.729 | O74: 1.91 | P74: 8.8 | Q74: 11.67 | R74: 0.026 | S74: 0.0132 | T74: 0.54 | U74: 1.2 | V74: 4.2 | W74: 5.98 | X74: 0.43 | Y74: 0.314 | Z74: 2.14 | AA74: 2.78 | AB74: 6.36 | AC74: 12.03 | AD74: 218.15 | AE74: 0.026 | AF74: 0.015 | AG74: 0.006 | AH74: 0.28 | AI74: 0.39 | AJ74: 0.72 | AK74: 0.05 | AL74: 0.031 | AM74: 0.086 | AN74: 0.16 | AO74: 0.24 | AP74: 0.57 | AQ74: 0 | AR74: 0 | AS74: 0 | AT74: 0 | AU74: 0 | AV74: 0 | AW74: 0 | AX74: 0 | AY74: 0 | AZ74: 0 | BA74: 0 | BB74: 0 | BC74: 0 | BD74: 1.446 | BE74: 0.5945 | BF74: 3.973 | BG74: 7.33 | BH74: 11.14 | BI74: 24.48 | BJ74: 4.926 | BK74: 4.052 | BL74: 19.93 | BM74: 8.92 | BN74: 1.561 | BO74: 39.39 | BP74: 0 | BQ74: 0 | BR74: 0 | BS74: 0 | BT74: 0 | BU74: 0 | BV74: 1.923 | BW74: 1.124 | BX74: 25.89 | BY74: 12.5 | BZ74: 0.489 | CA74: 41.93 | CB74: 0.0466 | CC74: 0.02342 | CD74: 0.558 | CE74: 0.3832 | CF74: 0.01518 | CG74: 1.026 | CH74: 0.824 | CI74: 0.5249 | CJ74: 11.41 | CK74: 5.785 | CL74: 0.1028 | CM74: 18.65 | CN74: 0.0506 | CO74: 0.0312 | CP74: 0.664 | CQ74: 0.408 | CR74: 0.0244 | CS74: 1.178 | CT74: 0 | CU74: 0 | CV74: 0 | CW74: 0 | CX74: 0 | CY74: 0 | CZ74: 0 | DA74: 1.0532 | DB74: 0.8569 | DC74: 13.223 | DD74: 24.92 | DE74: 14.039 | DF74: 54.09 | DG74: 0 | DH74: 0 | DI74: 0 | DJ74: 0 | DK74: 0 | DL74: 0 | DM74: 0.08415 | DN74: 0.04327 | DO74: 1.42 | DP74: 4.687 | DQ74: 5.892 | DR74: 12.127 | DS74: 0.004 | DT74: 0.00121 | DU74: 0.53 | DV74: 0.0901 | DW74: 0.366 | DX74: 0.99 | DY74: 195.16 | DZ74: 7.24 | EA74: 9.57 | EB74: 14.2 | EC74: 43.87 | ED74: 25.77 | EE74: 6.153 | EF74: 8.758 | EG74: 16.29 | EH74: 18.83 | EI74: 37.57 | EJ74: 5.209 | EK74: 193.47 | EL74: 30.7 | EM74: 0.54 | EN74: 2.378 | EO74: 5.892 | EP74: 1.909 | EQ74: 41.42 | ER74: 41.05 | ES74: 0.92 | ET74: 0.09 | EU74: 0.31 | EV74: 1.14 | EW74: 41.3 | EX74: 27.51 | EY74: 0.28 | EZ74: 0.01 | FA74: 1.796 | FB74: 4.46 | FC74: 3.77 | FD74: 2.01 | FE74: 124.65 | FF74: 0.29 | FG74: 0 | FH74: 124.94 | FI74: 17.017 | FJ74: 33.44 | FK74: 50.46
A75: 01M071 | B75: Maladies dégénératives du système nerveux, âge supérieur à 79 ans, niveau 1 | D75: 389 | E75: 1985.64 | F75: 7.897 | G75: 1.077 | H75: 154.11 | I75: 199.37 | J75: 577.33 | K75: 939.78 | L75: 0.016 | M75: 0.033 | N75: 0.175 | O75: 0.33 | P75: 2.71 | Q75: 3.27 | R75: 0.079 | S75: 0.0623 | T75: 0.65 | U75: 1.11 | V75: 4.48 | W75: 6.39 | X75: 0 | Y75: 0 | Z75: 0 | AA75: 0 | AB75: 0 | AC75: 0 | AD75: 949.44 | AE75: 0.004 | AF75: 0.005 | AG75: 0.019 | AH75: 0.26 | AI75: 0.2 | AJ75: 0.49 | AK75: 0.034 | AL75: 0.01 | AM75: 0.019 | AN75: 0.13 | AO75: 0.28 | AP75: 0.48 | AQ75: 0 | AR75: 0 | AS75: 0 | AT75: 0 | AU75: 0 | AV75: 0 | AW75: 0 | AX75: 0 | AY75: 0 | AZ75: 0 | BA75: 0 | BB75: 0.32 | BC75: 0.32 | BD75: 2.056 | BE75: 1.3268 | BF75: 5.691 | BG75: 10.767 | BH75: 14.11 | BI75: 33.95 | BJ75: 6.534 | BK75: 5.446 | BL75: 29.76 | BM75: 15.85 | BN75: 1.755 | BO75: 59.35 | BP75: 0 | BQ75: 0 | BR75: 0 | BS75: 0 | BT75: 0 | BU75: 0 | BV75: 2.548 | BW75: 2.046 | BX75: 38.1 | BY75: 15.52 | BZ75: 0.855 | CA75: 59.07 | CB75: 0.022 | CC75: 0.0098 | CD75: 0.272 | CE75: 0.1845 | CF75: 0.00148 | CG75: 0.49 | CH75: 0.271 | CI75: 0.1688 | CJ75: 3.66 | CK75: 2.031 | CL75: 0.0359 | CM75: 6.17 | CN75: 0.0276 | CO75: 0.0136 | CP75: 0.31 | CQ75: 0.267 | CR75: 0.003 | CS75: 0.621 | CT75: 0 | CU75: 0 | CV75: 0 | CW75: 0 | CX75: 0 | CY75: 0 | CZ75: 0 | DA75: 0.0505 | DB75: 0.0146 | DC75: 0.861 | DD75: 1.26 | DE75: 0.894 | DF75: 3.08 | DG75: 0 | DH75: 0 | DI75: 0 | DJ75: 0 | DK75: 0 | DL75: 0 | DM75: 0.56416 | DN75: 0.19523 | DO75: 8.4593 | DP75: 22.151 | DQ75: 27.57 | DR75: 58.94 | DS75: 0.1384 | DT75: 0.00763 | DU75: 13.69 | DV75: 0.1805 | DW75: 0.633 | DX75: 14.65 | DY75: 237.59 | DZ75: 29.315 | EA75: 74.53 | EB75: 14.614 | EC75: 124.6 | ED75: 66.18 | EE75: 14.907 | EF75: 8.707 | EG75: 40.36 | EH75: 64.49 | EI75: 92.45 | EJ75: 19.145 | EK75: 549.31 | EL75: 30.17 | EM75: 1.49 | EN75: 5.518 | EO75: 5.182 | EP75: 2.939 | EQ75: 45.3 | ER75: 63.67 | ES75: 0.71 | ET75: 2.35 | EU75: 0.02 | EV75: 0.54 | EW75: 42.42 | EX75: 74.44 | EY75: 4.57 | EZ75: 0.02 | FA75: 3.12 | FB75: 8.37 | FC75: 0.75 | FD75: 0.597 | FE75: 201.57 | FF75: 0.887 | FG75: 1.545 | FH75: 204 | FI75: 62.522 | FJ75: 88.17 | FK75: 150.69
A76: 01M072 | B76: Maladies dégénératives du système nerveux, âge supérieur à 79 ans, niveau 2 | D76: 420 | E76: 4418.9 | F76: 21.304 | G76: 3.071 | H76: 341.37 | I76: 480.52 | J76: 1426.84 | K76: 2273.1 | L76: 0.123 | M76: 0.131 | N76: 0.986 | O76: 2.73 | P76: 4.35 | Q76: 8.32 | R76: 0.001 | S76: 0 | T76: 0.39 | U76: 1.28 | V76: 5.12 | W76: 6.79 | X76: 0 | Y76: 0 | Z76: 0 | AA76: 0 | AB76: 0 | AC76: 0 | AD76: 2288.21 | AE76: 0.009 | AF76: 0.006 | AG76: 0.014 | AH76: 0.16 | AI76: 0.15 | AJ76: 0.34 | AK76: 0.093 | AL76: 0.078 | AM76: 0.112 | AN76: 0.04 | AO76: 0.41 | AP76: 0.73 | AQ76: 0 | AR76: 0 | AS76: 0 | AT76: 0 | AU76: 0 | AV76: 0 | AW76: 0 | AX76: 0 | AY76: 0 | AZ76: 0 | BA76: 0 | BB76: 0 | BC76: 0 | BD76: 2.641 | BE76: 1.3937 | BF76: 6.794 | BG76: 15.755 | BH76: 18.41 | BI76: 44.99 | BJ76: 11.236 | BK76: 8.844 | BL76: 47.71 | BM76: 29.45 | BN76: 1.947 | BO76: 99.19 | BP76: 0 | BQ76: 0 | BR76: 0 | BS76: 0 | BT76: 0 | BU76: 0 | BV76: 4.785 | BW76: 3.792 | BX76: 67.72 | BY76: 23.16 | BZ76: 0.917 | CA76: 100.37 | CB76: 0.0326 | CC76: 0.0079 | CD76: 0.26 | CE76: 0.1653 | CF76: 0.00358 | CG76: 0.469 | CH76: 0.198 | CI76: 0.1291 | CJ76: 2.66 | CK76: 1.231 | CL76: 0.0398 | CM76: 4.26 | CN76: 0.0079 | CO76: 0.0028 | CP76: 0.058 | CQ76: 0.051 | CR76: 0.0001 | CS76: 0.119 | CT76: 0 | CU76: 0 | CV76: 0 | CW76: 0 | CX76: 0 | CY76: 0 | CZ76: 0 | DA76: 0.5148 | DB76: 0.194 | DC76: 3.174 | DD76: 15.67 | DE76: 6.36 | DF76: 25.92 | DG76: 0 | DH76: 0 | DI76: 0 | DJ76: 0 | DK76: 0 | DL76: 0 | DM76: 0.49522 | DN76: 0.17466 | DO76: 7.4597 | DP76: 19.7 | DQ76: 23.334 | DR76: 51.164 | DS76: 0.2516 | DT76: 0.01626 | DU76: 17.9 | DV76: 1.5008 | DW76: 3.874 | DX76: 23.54 | DY76: 351.09 | DZ76: 84.816 | EA76: 197.78 | EB76: 15.6 | EC76: 308.62 | ED76: 148.91 | EE76: 50.419 | EF76: 9.278 | EG76: 105.95 | EH76: 157.91 | EI76: 226.87 | EJ76: 29.72 | EK76: 1335.88 | EL76: 50.38 | EM76: 3.77 | EN76: 8.157 | EO76: 8.527 | EP76: 7.243 | EQ76: 78.08 | ER76: 123.99 | ES76: 0.85 | ET76: 3.36 | EU76: 0.03 | EV76: 4.02 | EW76: 91.45 | EX76: 67.37 | EY76: 7.55 | EZ76: 0.06 | FA76: 17.776 | FB76: 23.16 | FC76: 1.34 | FD76: 1.383 | FE76: 342.33 | FF76: 1.03 | FG76: 22.279 | FH76: 365.64 | FI76: 125.433 | FJ76: 257.59 | FK76: 383.03
A77: 01M073 | B77: Maladies dégénératives du système nerveux, âge supérieur à 79 ans, niveau 3 | D77: 554 | E77: 5351.63 | F77: 25.865 | G77: 3.939 | H77: 429.95 | I77: 523.76 | J77: 1728.69 | K77: 2712.21 | L77: 0.088 | M77: 0.157 | N77: 0.95 | O77: 1.93 | P77: 11.81 | Q77: 14.93 | R77: 0.241 | S77: 0.2771 | T77: 3.59 | U77: 6.38 | V77: 23.02 | W77: 33.51 | X77: 0.5 | Y77: 0.237 | Z77: 1.35 | AA77: 3.68 | AB77: 9.25 | AC77: 15.02 | AD77: 2775.66 | AE77: 0.031 | AF77: 0.023 | AG77: 0.023 | AH77: 0.61 | AI77: 0.69 | AJ77: 1.37 | AK77: 0.162 | AL77: 0.264 | AM77: 0.22 | AN77: 0.11 | AO77: 1.37 | AP77: 2.13 | AQ77: 0 | AR77: 0 | AS77: 0 | AT77: 0 | AU77: 0 | AV77: 0 | AW77: 0 | AX77: 0 | AY77: 0 | AZ77: 0 | BA77: 0 | BB77: 0 | BC77: 0 | BD77: 1.855 | BE77: 0.9903 | BF77: 3.913 | BG77: 9.241 | BH77: 12.4 | BI77: 28.4 | BJ77: 12.581 | BK77: 10.75 | BL77: 59.81 | BM77: 38.41 | BN77: 3.661 | BO77: 125.21 | BP77: 0.002 | BQ77: 0.016 | BR77: 0.048 | BS77: 0.013 | BT77: 0.067 | BU77: 0.15 | BV77: 5.561 | BW77: 3.863 | BX77: 79.78 | BY77: 28.41 | BZ77: 1.351 | CA77: 118.97 | CB77: 0.0107 | CC77: 0.00458 | CD77: 0.104 | CE77: 0.0745 | CF77: 0.00081 | CG77: 0.194 | CH77: 0.213 | CI77: 0.1419 | CJ77: 3.08 | CK77: 1.486 | CL77: 0.0428 | CM77: 4.97 | CN77: 0.0296 | CO77: 0.0124 | CP77: 0.322 | CQ77: 0.228 | CR77: 0.0011 | CS77: 0.593 | CT77: 0 | CU77: 0 | CV77: 0 | CW77: 0 | CX77: 0 | CY77: 0 | CZ77: 0 | DA77: 0.2205 | DB77: 0.0975 | DC77: 1.585 | DD77: 5.07 | DE77: 2.102 | DF77: 9.07 | DG77: 1.933 | DH77: 0.0177 | DI77: 0.2168 | DJ77: 0.586 | DK77: 0.1582 | DL77: 2.912 | DM77: 0.54049 | DN77: 0.19935 | DO77: 7.3146 | DP77: 18.746 | DQ77: 23.698 | DR77: 50.498 | DS77: 0.2092 | DT77: 0.03189 | DU77: 38.36 | DV77: 1.0739 | DW77: 2.993 | DX77: 42.67 | DY77: 387.13 | DZ77: 105.702 | EA77: 254.95 | EB77: 15.948 | EC77: 389.79 | ED77: 200.49 | EE77: 59.293 | EF77: 9.085 | EG77: 134.8 | EH77: 183.75 | EI77: 292.78 | EJ77: 36.136 | EK77: 1682.72 | EL77: 59.13 | EM77: 4.26 | EN77: 8.961 | EO77: 9.942 | EP77: 6.726 | EQ77: 89.03 | ER77: 150.75 | ES77: 1.16 | ET77: 0.18 | EU77: 0.26 | EV77: 28.02 | EW77: 129.41 | EX77: 26.97 | EY77: 7.19 | EZ77: 0.05 | FA77: 16.594 | FB77: 17.23 | FC77: 1.42 | FD77: 1.023 | FE77: 380.26 | FF77: 3.178 | FG77: 33.654 | FH77: 417.1 | FI77: 165.943 | FJ77: 326.35 | FK77: 492.29
A78: 01M074 | B78: Maladies dégénératives du système nerveux, âge supérieur à 79 ans, niveau 4 | D78: 108 | E78: 8517.18 | F78: 39.366 | G78: 5.584 | H78: 593.15 | I78: 861.76 | J78: 2650.51 | K78: 4150.37 | L78: 1.593 | M78: 0.397 | N78: 4.844 | O78: 24.45 | P78: 63.99 | Q78: 95.28 | R78: 0.641 | S78: 1.256 | T78: 11.38 | U78: 19.94 | V78: 67.73 | W78: 100.94 | X78: 0.59 | Y78: 0.578 | Z78: 3.79 | AA78: 13.1 | AB78: 26.49 | AC78: 44.56 | AD78: 4391.15 | AE78: 0.555 | AF78: 0.194 | AG78: 0.639 | AH78: 6.11 | AI78: 8.69 | AJ78: 16.18 | AK78: 1.137 | AL78: 0.375 | AM78: 1.986 | AN78: 4.61 | AO78: 7.12 | AP78: 15.23 | AQ78: 0 | AR78: 0 | AS78: 0 | AT78: 0 | AU78: 0 | AV78: 0 | AW78: 0 | AX78: 0 | AY78: 0 | AZ78: 0 | BA78: 0 | BB78: 0 | BC78: 0 | BD78: 4.06 | BE78: 2.0463 | BF78: 8.176 | BG78: 18.974 | BH78: 25.74 | BI78: 58.99 | BJ78: 17.363 | BK78: 14.551 | BL78: 88.94 | BM78: 42.96 | BN78: 8.203 | BO78: 172.02 | BP78: 0.828 | BQ78: 0.65 | BR78: 7.156 | BS78: 2.721 | BT78: 1.045 | BU78: 12.4 | BV78: 9.739 | BW78: 6.251 | BX78: 141.17 | BY78: 54.87 | BZ78: 2.613 | CA78: 214.65 | CB78: 0.0673 | CC78: 0.02333 | CD78: 0.68 | CE78: 0.4497 | CF78: 0.00601 | CG78: 1.226 | CH78: 0.552 | CI78: 0.3463 | CJ78: 7.03 | CK78: 3.824 | CL78: 0.0781 | CM78: 11.83 | CN78: 0.0511 | CO78: 0.0152 | CP78: 0.505 | CQ78: 0.33 | CR78: 0.0045 | CS78: 0.906 | CT78: 0 | CU78: 0 | CV78: 0 | CW78: 0 | CX78: 0 | CY78: 0 | CZ78: 0 | DA78: 0.1824 | DB78: 0.0977 | DC78: 1.482 | DD78: 4.28 | DE78: 3.745 | DF78: 9.79 | DG78: 0 | DH78: 0 | DI78: 0 | DJ78: 0 | DK78: 0 | DL78: 0 | DM78: 0.56514 | DN78: 0.25667 | DO78: 7.3206 | DP78: 21.547 | DQ78: 25.631 | DR78: 55.32 | DS78: 0.2198 | DT78: 0.05686 | DU78: 34.29 | DV78: 0.6215 | DW78: 1.597 | DX78: 36.79 | DY78: 605.33 | DZ78: 159.964 | EA78: 389.25 | EB78: 13.231 | EC78: 569.73 | ED78: 321.44 | EE78: 98.068 | EF78: 9.63 | EG78: 216.43 | EH78: 301.14 | EI78: 474.88 | EJ78: 51.752 | EK78: 2605.52 | EL78: 123.52 | EM78: 10.43 | EN78: 12.974 | EO78: 20.474 | EP78: 14.628 | EQ78: 182.03 | ER78: 274.84 | ES78: 18.21 | ET78: 3.07 | EU78: 0.24 | EV78: 27.96 | EW78: 211.1 | EX78: 100.25 | EY78: 19.62 | EZ78: 0.16 | FA78: 20.957 | FB78: 42.99 | FC78: 1.58 | FD78: 2.826 | FE78: 723.82 | FF78: 9.3 | FG78: 0.028 | FH78: 733.15 | FI78: 250.064 | FJ78: 510.33 | FK78: 760.39
A79: 01M07T | B79: Maladies dégénératives du système nerveux, âge supérieur à 79 ans, très courte durée | D79: 1161 | E79: 765.88 | F79: 2.251 | G79: 0.358 | H79: 83.76 | I79: 87.91 | J79: 146.22 | K79: 320.5 | L79: 0 | M79: 0 | N79: 0 | O79: 0 | P79: 0 | Q79: 0 | R79: 0.022 | S79: 0.0004 | T79: 0.02 | U79: 0.09 | V79: 0.4 | W79: 0.54 | X79: 0 | Y79: 0 | Z79: 0 | AA79: 0 | AB79: 0 | AC79: 0 | AD79: 321.04 | AE79: 0.003 | AF79: 0 | AG79: 0.005 | AH79: 0.07 | AI79: 0.07 | AJ79: 0.14 | AK79: 0.082 | AL79: 0.022 | AM79: 0.231 | AN79: 0.64 | AO79: 0.78 | AP79: 1.76 | AQ79: 0 | AR79: 0 | AS79: 0 | AT79: 0 | AU79: 0 | AV79: 0 | AW79: 0 | AX79: 0 | AY79: 0 | AZ79: 0 | BA79: 0 | BB79: 0 | BC79: 0 | BD79: 0.464 | BE79: 0.1854 | BF79: 1.968 | BG79: 3.587 | BH79: 4.76 | BI79: 10.97 | BJ79: 4.404 | BK79: 3.117 | BL79: 17.89 | BM79: 5.8 | BN79: 1.719 | BO79: 32.92 | BP79: 0 | BQ79: 0 | BR79: 0 | BS79: 0 | BT79: 0 | BU79: 0 | BV79: 1.648 | BW79: 1.353 | BX79: 27.4 | BY79: 13.35 | BZ79: 0.304 | CA79: 44.05 | CB79: 0.0089 | CC79: 0.00406 | CD79: 0.095 | CE79: 0.0647 | CF79: 0.0035 | CG79: 0.176 | CH79: 0.196 | CI79: 0.1215 | CJ79: 2.96 | CK79: 1.574 | CL79: 0.0229 | CM79: 4.88 | CN79: 0.0053 | CO79: 0.0029 | CP79: 0.065 | CQ79: 0.041 | CR79: 0.0028 | CS79: 0.117 | CT79: 0 | CU79: 0 | CV79: 0 | CW79: 0 | CX79: 0 | CY79: 0 | CZ79: 0 | DA79: 0.0296 | DB79: 0.0031 | DC79: 0.164 | DD79: 0.82 | DE79: 0.317 | DF79: 1.34 | DG79: 0 | DH79: 0 | DI79: 0 | DJ79: 0 | DK79: 0 | DL79: 0 | DM79: 0.01343 | DN79: 0.00713 | DO79: 0.3447 | DP79: 0.632 | DQ79: 0.898 | DR79: 1.895 | DS79: 0.0282 | DT79: 0.00958 | DU79: 2.76 | DV79: 0.0231 | DW79: 0.132 | DX79: 2.95 | DY79: 101.19 | DZ79: 7.957 | EA79: 9.2 | EB79: 15.238 | EC79: 47.25 | ED79: 31.32 | EE79: 5.261 | EF79: 9.419 | EG79: 17.27 | EH79: 18.88 | EI79: 37.96 | EJ79: 4.373 | EK79: 204.15 | EL79: 22.49 | EM79: 0.77 | EN79: 1.744 | EO79: 3.291 | EP79: 2.612 | EQ79: 30.9 | ER79: 28.55 | ES79: 0.05 | ET79: 0.03 | EU79: 0.12 | EV79: 0.41 | EW79: 68.04 | EX79: 8.17 | EY79: 0.65 | EZ79: 0 | FA79: 0.343 | FB79: 0.83 | FC79: 0.09 | FD79: 0.322 | FE79: 107.59 | FF79: 0.998 | FG79: 0.003 | FH79: 108.6 | FI79: 19.636 | FJ79: 34.38 | FK79: 54.02
A80: 01M081 | B80: Maladies dégénératives du système nerveux, âge inférieur à 80 ans, niveau 1 | D80: 3665 | E80: 2156.37 | F80: 6.991 | G80: 1.053 | H80: 119.6 | I80: 160.48 | J80: 512.32 | K80: 800.45 | L80: 0.215 | M80: 0.109 | N80: 0.751 | O80: 2.14 | P80: 6 | Q80: 9.21 | R80: 0.268 | S80: 0.0984 | T80: 2.57 | U80: 5.24 | V80: 19.29 | W80: 27.46 | X80: 0.16 | Y80: 0.06 | Z80: 0.53 | AA80: 1.13 | AB80: 2.59 | AC80: 4.47 | AD80: 841.6 | AE80: 0.077 | AF80: 0.046 | AG80: 0.12 | AH80: 2.16 | AI80: 1.55 | AJ80: 3.95 | AK80: 0.452 | AL80: 0.167 | AM80: 0.264 | AN80: 1.35 | AO80: 2.73 | AP80: 4.96 | AQ80: 0 | AR80: 0 | AS80: 0 | AT80: 0 | AU80: 0 | AV80: 0 | AW80: 0.003 | AX80: 0.0038 | AY80: 0.009 | AZ80: 0.0107 | BA80: 0.06 | BB80: 0.41 | BC80: 0.5 | BD80: 3.989 | BE80: 1.6725 | BF80: 12.93 | BG80: 21.357 | BH80: 30.52 | BI80: 70.47 | BJ80: 10.055 | BK80: 7.62 | BL80: 36.93 | BM80: 20.94 | BN80: 2.769 | BO80: 78.31 | BP80: 0.032 | BQ80: 0.095 | BR80: 0.228 | BS80: 0.082 | BT80: 0.133 | BU80: 0.57 | BV80: 3.449 | BW80: 2.186 | BX80: 50.13 | BY80: 21.95 | BZ80: 1.027 | CA80: 78.75 | CB80: 0.0504 | CC80: 0.02667 | CD80: 0.596 | CE80: 0.3915 | CF80: 0.00592 | CG80: 1.07 | CH80: 0.989 | CI80: 0.6085 | CJ80: 12.93 | CK80: 7.265 | CL80: 0.1627 | CM80: 21.96 | CN80: 0.0738 | CO80: 0.0365 | CP80: 0.816 | CQ80: 0.618 | CR80: 0.0104 | CS80: 1.555 | CT80: 0.089 | CU80: 0.044 | CV80: 0.05 | CW80: 0.05 | CX80: 0.032 | CY80: 0 | CZ80: 0.26 | DA80: 0.24 | DB80: 0.0979 | DC80: 1.665 | DD80: 6.19 | DE80: 3.177 | DF80: 11.37 | DG80: 0.002 | DH80: 0.0007 | DI80: 0.0403 | DJ80: 0.031 | DK80: 0.0316 | DL80: 0.105 | DM80: 0.21643 | DN80: 0.10112 | DO80: 3.1624 | DP80: 8.086 | DQ80: 10.852 | DR80: 22.419 | DS80: 0.1094 | DT80: 0.0171 | DU80: 10.29 | DV80: 0.9825 | DW80: 0.999 | DX80: 12.39 | DY80: 308.64 | DZ80: 27.148 | EA80: 68.92 | EB80: 13.929 | EC80: 106.94 | ED80: 63.16 | EE80: 13.148 | EF80: 8.705 | EG80: 39.47 | EH80: 48.01 | EI80: 87.08 | EJ80: 12.263 | EK80: 488.77 | EL80: 32.89 | EM80: 1.91 | EN80: 6.677 | EO80: 6.035 | EP80: 3.25 | EQ80: 50.77 | ER80: 82.51 | ES80: 0.93 | ET80: 0.28 | EU80: 0.42 | EV80: 11.38 | EW80: 69.59 | EX80: 259.76 | EY80: 9.02 | EZ80: 0.07 | FA80: 6.921 | FB80: 15.28 | FC80: 4.06 | FD80: 1.803 | FE80: 462.01 | FF80: 1.269 | FG80: 3.313 | FH80: 466.59 | FI80: 34.469 | FJ80: 78.6 | FK80: 113.07
A81: 01M082 | B81: Maladies dégénératives du système nerveux, âge inférieur à 80 ans, niveau 2 | D81: 1564 | E81: 4255.52 | F81: 20.779 | G81: 2.874 | H81: 303.35 | I81: 387.53 | J81: 1277.77 | K81: 1992.31 | L81: 0.635 | M81: 0.253 | N81: 2.384 | O81: 4.01 | P81: 22.18 | Q81: 29.46 | R81: 0.161 | S81: 0.2379 | T81: 3.31 | U81: 6.9 | V81: 23.01 | W81: 33.61 | X81: 0.58 | Y81: 0.3 | Z81: 1.22 | AA81: 3.27 | AB81: 7.94 | AC81: 13.31 | AD81: 2068.69 | AE81: 0.06 | AF81: 0.043 | AG81: 0.077 | AH81: 1.3 | AI81: 1.28 | AJ81: 2.76 | AK81: 0.105 | AL81: 0.05 | AM81: 0.155 | AN81: 0.51 | AO81: 1.18 | AP81: 2 | AQ81: 0.005 | AR81: 0.0021 | AS81: 0.003 | AT81: 0.008 | AU81: 0.06 | AV81: 0.08 | AW81: 0.0887 | AX81: 0.0542 | AY81: 0.191 | AZ81: 0.219 | BA81: 1.476 | BB81: 2.31 | BC81: 4.34 | BD81: 3.294 | BE81: 1.5659 | BF81: 10.271 | BG81: 18.19 | BH81: 26.66 | BI81: 59.98 | BJ81: 12.004 | BK81: 9.884 | BL81: 49.45 | BM81: 28.77 | BN81: 3.02 | BO81: 103.12 | BP81: 0.075 | BQ81: 0.083 | BR81: 0.269 | BS81: 0.177 | BT81: 0.136 | BU81: 0.74 | BV81: 4.885 | BW81: 3.552 | BX81: 68.28 | BY81: 27.21 | BZ81: 1.351 | CA81: 105.28 | CB81: 0.0342 | CC81: 0.01543 | CD81: 0.378 | CE81: 0.2458 | CF81: 0.00598 | CG81: 0.679 | CH81: 0.72 | CI81: 0.4361 | CJ81: 10.09 | CK81: 5.87 | CL81: 0.128 | CM81: 17.24 | CN81: 0.086 | CO81: 0.0416 | CP81: 0.982 | CQ81: 0.521 | CR81: 0.0221 | CS81: 1.652 | CT81: 0 | CU81: 0 | CV81: 0 | CW81: 0 | CX81: 0 | CY81: 2.73 | CZ81: 2.73 | DA81: 0.2168 | DB81: 0.1683 | DC81: 2.865 | DD81: 5.55 | DE81: 2.966 | DF81: 11.77 | DG81: 0.001 | DH81: 0.0003 | DI81: 0.0161 | DJ81: 0.012 | DK81: 0.0126 | DL81: 0.042 | DM81: 0.39796 | DN81: 0.11128 | DO81: 4.7184 | DP81: 12.973 | DQ81: 16.183 | DR81: 34.384 | DS81: 0.2541 | DT81: 0.01906 | DU81: 22.16 | DV81: 2.0267 | DW81: 4.155 | DX81: 28.62 | DY81: 375.41 | DZ81: 72.533 | EA81: 182.38 | EB81: 14.703 | EC81: 283.39 | ED81: 151.19 | EE81: 39.702 | EF81: 9.006 | EG81: 97.67 | EH81: 124.81 | EI81: 220.13 | EJ81: 30.116 | EK81: 1225.63 | EL81: 65.07 | EM81: 3.21 | EN81: 9.086 | EO81: 11.362 | EP81: 6.216 | EQ81: 94.95 | ER81: 134.16 | ES81: 2.74 | ET81: 4.46 | EU81: 0.38 | EV81: 18 | EW81: 113.82 | EX81: 142.47 | EY81: 7.49 | EZ81: 0.08 | FA81: 18.55 | FB81: 24.04 | FC81: 3.42 | FD81: 0.748 | FE81: 470.36 | FF81: 4.466 | FG81: 16.019 | FH81: 490.85 | FI81: 99.801 | FJ81: 208.28 | FK81: 308.08
A82: 01M083 | B82: Maladies dégénératives du système nerveux, âge inférieur à 80 ans, niveau 3 | D82: 1084 | E82: 6615.44 | F82: 30.827 | G82: 4.387 | H82: 460.03 | I82: 586.7 | J82: 1907.71 | K82: 2989.66 | L82: 1.667 | M82: 0.794 | N82: 7.376 | O82: 16.2 | P82: 54.45 | Q82: 80.49 | R82: 1.131 | S82: 1.5696 | T82: 17.99 | U82: 35.83 | V82: 107.5 | W82: 164.02 | X82: 4.07 | Y82: 1.318 | Z82: 11.58 | AA82: 36.17 | AB82: 87.13 | AC82: 140.27 | AD82: 3374.43 | AE82: 0.154 | AF82: 0.09 | AG82: 0.19 | AH82: 2.31 | AI82: 2.41 | AJ82: 5.16 | AK82: 0.259 | AL82: 0.217 | AM82: 0.299 | AN82: 0.49 | AO82: 0.97 | AP82: 2.23 | AQ82: 0 | AR82: 0 | AS82: 0 | AT82: 0 | AU82: 0 | AV82: 0 | AW82: 0.043 | AX82: 0.0084 | AY82: 0.069 | AZ82: 0.0761 | BA82: 0.623 | BB82: 13.32 | BC82: 14.14 | BD82: 4.025 | BE82: 1.8984 | BF82: 10.832 | BG82: 20.982 | BH82: 28.95 | BI82: 66.69 | BJ82: 16.571 | BK82: 13.635 | BL82: 70.69 | BM82: 41.85 | BN82: 5.332 | BO82: 148.08 | BP82: 0.295 | BQ82: 0.166 | BR82: 0.971 | BS82: 0.616 | BT82: 0.23 | BU82: 2.28 | BV82: 7.222 | BW82: 4.807 | BX82: 101.18 | BY82: 39.55 | BZ82: 2.26 | CA82: 155.02 | CB82: 0.0497 | CC82: 0.02231 | CD82: 0.561 | CE82: 0.3867 | CF82: 0.00691 | CG82: 1.027 | CH82: 0.894 | CI82: 0.5265 | CJ82: 12.27 | CK82: 6.302 | CL82: 0.1785 | CM82: 20.17 | CN82: 0.1407 | CO82: 0.0644 | CP82: 1.549 | CQ82: 1.196 | CR82: 0.0167 | CS82: 2.967 | CT82: 0 | CU82: 0 | CV82: 0 | CW82: 0 | CX82: 0 | CY82: 0 | CZ82: 0 | DA82: 0.3077 | DB82: 0.1615 | DC82: 3.426 | DD82: 6.65 | DE82: 3.908 | DF82: 14.45 | DG82: 0.001 | DH82: 0.0006 | DI82: 0.0365 | DJ82: 0.028 | DK82: 0.0286 | DL82: 0.095 | DM82: 0.43561 | DN82: 0.13878 | DO82: 5.647 | DP82: 14.883 | DQ82: 18.259 | DR82: 39.363 | DS82: 0.2734 | DT82: 0.05963 | DU82: 36.26 | DV82: 1.7536 | DW82: 4.087 | DX82: 42.44 | DY82: 514.12 | DZ82: 112.051 | EA82: 278.46 | EB82: 14.634 | EC82: 413.12 | ED82: 245.47 | EE82: 64.287 | EF82: 9.328 | EG82: 153.39 | EH82: 192.83 | EI82: 330.68 | EJ82: 38.986 | EK82: 1853.24 | EL82: 99.29 | EM82: 6.43 | EN82: 14.928 | EO82: 17.576 | EP82: 12.5 | EQ82: 150.72 | ER82: 221.43 | ES82: 1.65 | ET82: 1.26 | EU82: 0.68 | EV82: 46.77 | EW82: 211.69 | EX82: 141.59 | EY82: 13.28 | EZ82: 0.1 | FA82: 22.186 | FB82: 32.05 | FC82: 5.34 | FD82: 2.209 | FE82: 700.24 | FF82: 7.997 | FG82: 14.7 | FH82: 722.94 | FI82: 157.856 | FJ82: 330.75 | FK82: 488.6
